Workbook

Sheet PI vs gap
A1: Measurement | B1: Hall
A2: Type | B2: Gap dependence
A4: PS type | B4: SXR
A5: PS serial no | B5: 16334
A7: Measurement date | B7: ='DF raw data'!B2 -> 28. feb 2017
C11: Nominal gap [mm] | D11: Encoder [counts] | E11: Encoder [mm] | F11: PI [T^2mm^3] | H11: Encoder offset
C12: 10 | D12: =' 10 mm'!B3 -> 390664 | E12: =(D12-$H$12)*0.00005+10 -> 9.99965 | F12: =' 10 mm'!Q3 -> 4519.409356 | H12: 390671
C13: 12 | D13: =' 12 mm'!B3 -> 430832 | E13: =(D13-$H$12)*0.00005+10 -> 12.00805 | F13: =' 12 mm'!Q3 -> 3758.942046
C14: 15 | D14: =' 15 mm'!B3 -> 491199 | E14: 15.0264 | F14: =' 15 mm'!Q3 -> 2872.786814
C15: 20 | D15: =' 20 mm'!B3 -> 591535 | E15: 20.0432 | F15: =' 20 mm'!Q3 -> 1869.453892
C16: 30 | D16: =' 30 mm'!B3 -> 791774 | E16: 30.05515 | F16: =' 30 mm'!Q3 -> 836.1971217
C17: 100 | D17: =' 100 mm'!B3 -> 2191908 | E17: 100.06185 | F17: =' 100 mm'!Q3 -> 8.755268928
A41: Measuring series at 10 mm gap:
A42: Reference magnet
A43: Tref | B43: 21.25 | C43: degC
A44: Hall ref field | B44: 0.50517 | C44: T
A45: NMR ref field | B45: 0.50634 | C45: T
A47: Measuring series at larger gaps:
A48: Reference magnet
A49: Tref | B49: 21.27 | C49: degC
A50: Hall ref field | B50: 0.50513 | C50: T
A51: NMR ref field | B51: 0.50633 | C51: T
A53: Offset from Faro | B53: -1.119

Sheet 10 mm
A1: dz | B1: ='DF raw data'!B7 -> 0.50015 | C1: mm | F1: T_coeff | G1: -0.0008 | H1: /degC | L1: Hallref | M1: ='PI vs gap'!B44 -> 0.50517 | N1: T | P1: IBy total | Q1: =P1203*1000 -> -9.692296275 | R1: muTm
A2: Tref | B2: ='DF raw data'!B8 -> 21.1 | C2: degC | F2: Tcorr | G2: 20 | H2: degC | L2: NMRref | M2: ='PI vs gap'!B45 -> 0.50634 | N2: T | P2: JBy total | Q2: =Q1203 -> -7.430985067 | R2: muTm^2
A3: Encoder | B3: ='DF raw data'!B9 -> 390664 | P3: PI total | Q3: =R1203 -> 4519.409356 | R3: T^2mm^3
J4: SXR-rotation
A5: z [mm] | B5: Bx | C5: By | D5: Bz | F5: Bx_corr | G5: By_corr | H5: Bz_corr | J5: Bx_rot | K5: By_rot | L5: Bz_rot | N5: Ix | O5: Jx | P5: Iy | Q5: Jy | R5: PI
A6: ='PI vs gap'!B53 -> -1.119 | B6: ='DF raw data'!A11 -> 3.2110136e-06 | C6: ='DF raw data'!B11 -> -6.5537029e-07 | D6: ='DF raw data'!C11 -> -6.0592697e-06 | F6: =(1-$G$1*($B$2-$G$2))*B6 -> 3.213839292e-06 | G6: =(1-$G$1*($B$2-$G$2))*C6*$M$2/$M$1 -> -6.574662233e-07 | H6: =(1-$G$1*($B$2-$G$2))*D6 -> -6.064601857e-06 | J6: =-CELL("contents", INDEX($F$6:$F$1203,1204-CELL("row",F6))) -> -4.789576121e-06 | K6: =CELL("contents", INDEX($G$6:$G$1203,1204-CELL("row",G6))) -> 7.0415431e-06 | L6: =-CELL("contents", INDEX($H$6:$H$1203,1204-CELL("row",H6))) -> 7.867273313e-06 | N6: =J6*$B$1 -> -2.395506497e-06 | O6: =N6*$B$1 -> -1.198112574e-06 | P6: =K6*$B$1 -> 3.521827781e-06 | Q6: =P6*$B$1 -> 1.761442165e-06 | R6: =(N6^2+P6^2)*$B$1 -> 9.073582408e-12
A7: =A6+$B$1 -> -0.61885 | B7: ='DF raw data'!A12 -> 2.7252106e-06 | C7: ='DF raw data'!B12 -> 1.3133395e-05 | D7: ='DF raw data'!C12 -> -2.3771656e-06 | F7: =(1-$G$1*($B$2-$G$2))*B7 -> 2.727608785e-06 | G7: =(1-$G$1*($B$2-$G$2))*C7*$M$2/$M$1 -> 1.317539678e-05 | H7: =(1-$G$1*($B$2-$G$2))*D7 -> -2.379257506e-06 | J7: =-CELL("contents", INDEX($F$6:$F$1203,1204-CELL("row",F7))) -> -4.719894856e-06 | K7: =CELL("contents", INDEX($G$6:$G$1203,1204-CELL("row",G7))) -> 3.540191358e-06 | L7: =-CELL("contents", INDEX($H$6:$H$1203,1204-CELL("row",H7))) -> 7.602155715e-06 | N7: =J7*$B$1+N6 -> -4.756161909e-06 | O7: =N7*$B$1+O6 -> -3.576906953e-06 | P7: =K7*$B$1+P6 -> 5.292454489e-06 | Q7: =P7*$B$1+Q6 -> 4.408463278e-06 | R7: =(N7^2+P7^2)*$B$1+R6 -> 3.439675239e-11
A8: =A7+$B$1 -> -0.1187 | B8: ='DF raw data'!A13 -> 3.4604561e-06 | C8: ='DF raw data'!B13 -> -6.6746679e-06 | D8: ='DF raw data'!C13 -> -4.8816338e-07 | F8: 3.463501301e-06 | G8: -6.69601409e-06 | H8: -4.885929638e-07 | J8: -2.795953776e-06 | K8: -5.611662892e-06 | L8: 6.724336413e-06 | N8: =J8*$B$1+N7 -> -6.15455819e-06 | O8: =N8*$B$1+O7 -> -6.655109232e-06 | P8: =K8*$B$1+P7 -> 2.485781294e-06 | Q8: =P8*$B$1+Q7 -> 5.651726792e-06 | R8: =(N8^2+P8^2)*$B$1+R7 -> 5.643220863e-11
A9: 0.38145 | B9: ='DF raw data'!A14 -> 3.2646128e-06 | C9: ='DF raw data'!B14 -> -1.4420541e-06 | D9: ='DF raw data'!C14 -> -1.4250447e-06 | F9: 3.267485659e-06 | G9: -1.446665919e-06 | H9: -1.426298739e-06 | J9: -2.511350946e-06 | K9: -3.482449483e-06 | L9: 5.888612723e-06 | N9: -7.410610366e-06 | O9: -1.036152601e-05 | P9: 7.440341848e-07 | Q9: 6.023855489e-06 | R9: 8.417589567e-11
A10: 0.8816 | B10: ='DF raw data'!A15 -> 3.1449315e-06 | C10: ='DF raw data'!B15 -> 3.5447854e-06 | D10: ='DF raw data'!C15 -> 8.8253482e-06 | F10: 3.14769904e-06 | G10: 3.556121943e-06 | H10: 8.833114506e-06 | J10: -5.204454994e-06 | K10: 6.073778769e-06 | L10: 5.920786211e-06 | N10: -1.001361853e-05 | O10: -1.536983731e-05 | P10: 3.781834636e-06 | Q10: 7.915340082e-06 | R10: 1.414804965e-10
A11: 1.38175 | B11: ='DF raw data'!A16 -> 3.2196901e-06 | C11: ='DF raw data'!B16 -> 1.6986858e-06 | D11: ='DF raw data'!C16 -> 1.036421e-05 | F11: =(1-$G$1*($B$2-$G$2))*B11 -> 3.222523427e-06 | G11: 1.70411835e-06 | H11: =(1-$G$1*($B$2-$G$2))*D11 -> 1.03733305e-05 | J11: -5.915828752e-06 | K11: -1.966421947e-06 | L11: 6.253451699e-06 | N11: -1.297242028e-05 | O11: -2.185799332e-05 | P11: 2.798328699e-06 | Q11: 9.314924181e-06 | R11: 2.295640794e-10
A12: 1.8819 | B12: ='DF raw data'!A17 -> 3.4433676e-06 | C12: ='DF raw data'!B17 -> -5.0197732e-06 | D12: ='DF raw data'!C17 -> 6.9622315e-06 | F12: 3.446397763e-06 | G12: -5.035826887e-06 | H12: 6.968358264e-06 | J12: -3.85733477e-06 | K12: 1.481922513e-06 | L12: 6.261509584e-06 | N12: -1.490166627e-05 | O12: -2.93110617e-05 | P12: 3.539512244e-06 | Q12: 1.108521123e-05 | R12: 3.468931698e-10
A13: 2.38205 | B13: ='DF raw data'!A18 -> 3.2971864e-06 | C13: ='DF raw data'!B18 -> -2.1286717e-06 | D13: ='DF raw data'!C18 -> 5.259887e-07 | F13: 3.300087924e-06 | G13: -2.135479384e-06 | H13: 5.264515701e-07 | J13: -3.897152879e-06 | K13: -5.477040931e-07 | L13: 6.019571365e-06 | N13: -1.685082728e-05 | O13: -3.773900296e-05 | P13: 3.265578042e-06 | Q13: 1.271849009e-05 | R13: 4.942445519e-10
A14: 2.8822 | B14: ='DF raw data'!A19 -> 3.6414137e-06 | C14: ='DF raw data'!B19 -> -1.1172236e-05 | D14: ='DF raw data'!C19 -> 2.4170556e-06 | F14: 3.644618144e-06 | G14: -1.120796582e-05 | H14: 2.419182609e-06 | J14: -1.1436188e-05 | K14: 1.46358325e-06 | L14: 6.096975621e-06 | N14: -2.257063671e-05 | O14: -4.902770691e-05 | P14: 3.997589205e-06 | Q14: 1.471788433e-05 | R14: 7.570305445e-10
A15: 3.38235 | B15: ='DF raw data'!A20 -> 3.7788502e-06 | C15: ='DF raw data'!B20 -> -1.4776236e-05 | D15: ='DF raw data'!C20 -> 2.6553196e-06 | F15: 3.782175588e-06 | G15: -1.482349173e-05 | H15: 2.657656281e-06 | J15: -1.622359521e-05 | K15: 4.472083834e-06 | L15: 6.518169146e-06 | N15: -3.068486785e-05 | O15: -6.437474357e-05 | P15: 6.234301934e-06 | Q15: 1.783597044e-05 | R15: 1.247391426e-09
A16: 3.8825 | B16: ='DF raw data'!A21 -> 3.5067803e-06 | C16: ='DF raw data'!B21 -> -7.9116753e-06 | D16: ='DF raw data'!C21 -> -1.2679095e-06 | F16: 3.509866267e-06 | G16: -7.936977551e-06 | H16: -1.26902526e-06 | J16: -9.943893933e-06 | K16: -3.08373402e-07 | L16: 6.470207476e-06 | N16: -3.56583064e-05 | O16: -8.220924552e-05 | P16: 6.080068977e-06 | Q16: 2.087691694e-05 | R16: 1.901828726e-09
A17: 4.38265 | B17: ='DF raw data'!A22 -> 3.4019829e-06 | C17: ='DF raw data'!B22 -> -5.028046e-06 | D17: ='DF raw data'!C22 -> -1.2802241e-06 | F17: 3.404976645e-06 | G17: -5.044126144e-06 | H17: -1.281350697e-06 | J17: 5.305593818e-07 | K17: -7.28751423e-06 | L17: 5.879753734e-06 | N17: -3.539294713e-05 | O17: -9.991102802e-05 | P17: 2.435218735e-06 | Q17: 2.209489159e-05 | R17: 2.531313013e-09
A18: 4.8828 | B18: ='DF raw data'!A23 -> 3.2292353e-06 | C18: ='DF raw data'!B23 -> 3.0970909e-07 | D18: ='DF raw data'!C23 -> 2.4828103e-06 | F18: 3.232077027e-06 | G18: 3.106995676e-07 | H18: 2.484995173e-06 | J18: 7.474668025e-06 | K18: 1.021428306e-05 | L18: 5.808412109e-06 | N18: -3.165449191e-05 | O18: -0.0001157430222 | P18: 7.543892408e-06 | Q18: 2.586796938e-05 | R18: 3.060930436e-09
A19: 5.38295 | B19: ='DF raw data'!A24 -> 3.2626774e-06 | C19: ='DF raw data'!B24 -> -4.8871811e-07 | D19: ='DF raw data'!C24 -> 3.2892465e-06 | F19: 3.265548556e-06 | G19: -4.902810746e-07 | H19: 3.292141037e-06 | J19: 3.086506738e-06 | K19: -1.239864257e-06 | L19: 6.007515465e-06 | N19: -3.011077557e-05 | O19: -0.0001308029266 | P19: 6.9237743e-06 | Q19: 2.933089509e-05 | R19: 3.538372353e-09
A20: 5.8831 | B20: ='DF raw data'!A25 -> 2.7824815e-06 | C20: ='DF raw data'!B25 -> 1.1695852e-05 | D20: ='DF raw data'!C25 -> -1.9141492e-06 | F20: 2.784930084e-06 | G20: 1.173325639e-05 | H20: -1.915833651e-06 | J20: -3.183440865e-06 | K20: 1.666505444e-06 | L20: 6.457150196e-06 | N20: -3.170297352e-05 | O20: -0.0001466591688 | P20: 7.757276998e-06 | Q20: 3.321069718e-05 | R20: 4.07115908e-09
A21: 6.38325 | B21: ='DF raw data'!A26 -> 3.1831785e-06 | C21: ='DF raw data'!B26 -> 1.0315496e-06 | D21: ='DF raw data'!C26 -> -1.7515895e-07 | F21: 3.185979697e-06 | G21: 1.034848589e-06 | H21: -1.753130899e-07 | J21: -4.14888591e-06 | K21: 1.09701547e-05 | L21: 7.244580926e-06 | N21: -3.377803881e-05 | O21: -0.0001635532549 | P21: 1.324399987e-05 | Q21: 3.983468372e-05 | R21: 4.729536253e-09
A22: 6.8834 | B22: ='DF raw data'!A27 -> 2.0705991e-06 | C22: ='DF raw data'!B27 -> 9.0187687e-06 | D22: ='DF raw data'!C27 -> -2.0256932e-06 | F22: 2.072421227e-06 | G22: 9.047611535e-06 | H22: -2.02747581e-06 | J22: -8.759117546e-06 | K22: -1.051968465e-05 | L22: 7.062660277e-06 | N22: -3.815891145e-05 | O22: -0.0001826384344 | P22: 7.982579594e-06 | Q22: 4.38271709e-05 | R22: 5.489676276e-09
A23: 7.38355 | B23: ='DF raw data'!A28 -> 4.941773e-07 | C23: ='DF raw data'!B28 -> 1.2141766e-05 | D23: ='DF raw data'!C28 -> 1.0199024e-05 | F23: 4.94612176e-07 | G23: 1.218059646e-05 | H23: 1.020799914e-05 | J23: -9.693563636e-06 | K23: -7.883028968e-06 | L23: 7.52748246e-06 | N23: -4.30071473e-05 | O23: -0.0002041484591 | P23: 4.039882655e-06 | Q23: 4.584771821e-05 | R23: 6.422923852e-09
A24: 7.8837 | B24: ='DF raw data'!A29 -> 5.6580001e-07 | C24: ='DF raw data'!B29 -> 1.7847458e-06 | D24: ='DF raw data'!C29 -> 1.2794898e-05 | F24: 5.66297914e-07 | G24: 1.790453578e-06 | H24: 1.280615751e-05 | J24: -3.5536925e-06 | K24: 2.658495906e-06 | L24: 5.574000207e-06 | N24: -4.47845266e-05 | O24: -0.0002265474401 | P24: 5.369529383e-06 | Q24: 4.853328834e-05 | R24: 7.440471859e-09
A25: 8.38385 | B25: ='DF raw data'!A30 -> -1.0872502e-06 | C25: ='DF raw data'!B30 -> -7.3883739e-06 | D25: ='DF raw data'!C30 -> 1.0976574e-05 | F25: -1.08820698e-06 | G25: -7.412002586e-06 | H25: 1.098623339e-05 | J25: -1.788085932e-06 | K25: 2.252921678e-06 | L25: 1.010425793e-05 | N25: -4.567883778e-05 | O25: -0.0002493937108 | P25: 6.49632816e-06 | Q25: 5.178242686e-05 | R25: 8.505170423e-09
A26: 8.884 | B26: ='DF raw data'!A31 -> -2.4484054e-06 | C26: ='DF raw data'!B31 -> -2.0389114e-05 | D26: ='DF raw data'!C31 -> 8.0298259e-06 | F26: -2.450559997e-06 | G26: -2.045432022e-05 | H26: 8.036892147e-06 | J26: -6.01664209e-06 | K26: 6.282992821e-06 | L26: 1.645370853e-05 | N26: -4.868806132e-05 | O26: -0.0002737450447 | P26: 9.638767019e-06 | Q26: 5.660325619e-05 | R26: 9.73725651e-09
A27: 9.38415 | B27: ='DF raw data'!A32 -> 2.787621e-06 | C27: ='DF raw data'!B32 -> -6.1102719e-06 | D27: ='DF raw data'!C32 -> 6.2069762e-06 | F27: 2.790074106e-06 | G27: -6.1298131e-06 | H27: 6.212438339e-06 | J27: -8.593433873e-06 | K27: -1.263243187e-05 | L27: 1.281872456e-05 | N27: -5.298606727e-05 | O27: -0.0003002460263 | P27: 3.320656222e-06 | Q27: 5.82640824e-05 | R27: 1.114695433e-08
A28: 9.8843 | B28: ='DF raw data'!A33 -> 4.8740753e-06 | C28: ='DF raw data'!B33 -> 1.9484621e-06 | D28: ='DF raw data'!C33 -> 4.7109083e-06 | F28: 4.878364486e-06 | G28: 1.954693457e-06 | H28: 4.715053899e-06 | J28: -7.772361364e-06 | K28: -6.201425794e-06 | L28: 1.14766806e-05 | N28: -5.687341381e-05 | O28: -0.0003286912642 | P28: 2.190131106e-07 | Q28: 5.837362181e-05 | R28: 1.276475611e-08
A29: 10.38445 | B29: ='DF raw data'!A34 -> -1.8969879e-06 | C29: ='DF raw data'!B34 -> 6.5280847e-06 | D29: ='DF raw data'!C34 -> 5.513883e-06 | F29: -1.898657249e-06 | G29: 6.548962103e-06 | H29: 5.518735217e-06 | J29: -1.14507528e-05 | K29: -3.837563951e-06 | L29: 8.766877869e-06 | N29: -6.260050782e-05 | O29: -0.0003600009082 | P29: -1.700344499e-06 | Q29: 5.75231945e-05 | R29: 1.472620174e-08
A30: 10.8846 | B30: ='DF raw data'!A35 -> 1.3379574e-06 | C30: ='DF raw data'!B35 -> 2.402249e-06 | D30: ='DF raw data'!C35 -> 1.1040781e-06 | F30: 1.339134803e-06 | G30: 2.409931609e-06 | H30: 1.105049689e-06 | J30: -1.094795373e-05 | K30: 9.224698069e-06 | L30: 4.722757773e-06 | N30: -6.807612688e-05 | O30: -0.000394049183 | P30: 2.91338824e-06 | Q30: 5.898032563e-05 | R30: 1.704832161e-08
A31: 11.38475 | B31: ='DF raw data'!A36 -> 7.584169e-06 | C31: ='DF raw data'!B36 -> 1.1005098e-05 | D31: ='DF raw data'!C36 -> 2.2709016e-06 | F31: 7.590843069e-06 | G31: 1.10402933e-05 | H31: 2.272899993e-06 | J31: -8.641067754e-06 | K31: 9.904810797e-06 | L31: 5.366168877e-06 | N31: -7.239795692e-05 | O31: -0.0004302590212 | P31: 7.86727936e-06 | Q31: 6.29151454e-05 | R31: 1.970079624e-08
A32: 11.8849 | B32: ='DF raw data'!A37 -> 5.0743233e-06 | C32: ='DF raw data'!B37 -> 4.3269365e-06 | D32: ='DF raw data'!C37 -> 3.7862726e-06 | F32: 5.078788705e-06 | G32: 4.340774433e-06 | H32: 3.78960452e-06 | J32: -5.578180283e-06 | K32: 1.151694682e-05 | L32: 9.233564292e-06 | N32: -7.518788379e-05 | O32: -0.0004678642413 | P32: 1.362748031e-05 | Q32: 6.973092968e-05 | R32: 2.262113512e-08
A33: 12.38505 | B33: ='DF raw data'!A38 -> 1.2199441e-06 | C33: ='DF raw data'!B38 -> 6.0877728e-06 | D33: ='DF raw data'!C38 -> 1.6333822e-06 | F33: 1.221017651e-06 | G33: 6.107242046e-06 | H33: 1.634819576e-06 | J33: -1.862309592e-06 | K33: 1.033394654e-05 | L33: 1.349084651e-05 | N33: -7.611931793e-05 | O33: -0.0005059353181 | P33: 1.879600367e-05 | Q33: 7.913175092e-05 | R33: 2.56957774e-08
A34: 12.8852 | B34: ='DF raw data'!A39 -> 1.4116483e-06 | C34: ='DF raw data'!B39 -> 7.4728823e-06 | D34: ='DF raw data'!C39 -> 1.6845613e-06 | F34: 1.412890551e-06 | G34: 7.496781251e-06 | H34: 1.686043714e-06 | J34: 1.690616635e-06 | K34: -2.200263609e-06 | L34: 9.225637423e-06 | N34: -7.527375602e-05 | O34: -0.0005435834872 | P34: 1.769554183e-05 | Q34: 8.798217616e-05 | R34: 2.868630956e-08
A35: 13.38535 | B35: ='DF raw data'!A40 -> 3.9457905e-06 | C35: ='DF raw data'!B40 -> 5.8521409e-06 | D35: ='DF raw data'!C40 -> -5.2782826e-07 | F35: 3.949262796e-06 | G35: 5.870856574e-06 | H35: -5.282927489e-07 | J35: 9.483775385e-07 | K35: 1.466184442e-05 | L35: 5.611438824e-06 | N35: -7.479942499e-05 | O35: -0.0005809944196 | P35: 2.502866331e-05 | Q35: 0.0001005002621 | R35: 3.179793675e-08
A36: 13.8855 | B36: ='DF raw data'!A41 -> 6.2339618e-06 | C36: ='DF raw data'!B41 -> 3.3786341e-07 | D36: ='DF raw data'!C41 -> -2.7794206e-06 | F36: 6.239447686e-06 | G36: 3.389439276e-07 | H36: -2.78186649e-06 | J36: -2.191673477e-06 | K36: 8.486895833e-06 | L36: -4.677341742e-08 | N36: -7.589559048e-05 | O36: -0.0006189535992 | P36: 2.927338426e-05 | Q36: 0.0001151413453 | R36: 3.510746516e-08
A37: 14.38565 | B37: ='DF raw data'!A42 -> 2.8759312e-06 | C37: ='DF raw data'!B42 -> 5.7703519e-06 | D37: ='DF raw data'!C42 -> -5.8972123e-06 | F37: 2.878462019e-06 | G37: 5.788806006e-06 | H37: -5.902401847e-06 | J37: -1.682528123e-06 | K37: 2.883456858e-07 | L37: 3.850531288e-06 | N37: -7.673710692e-05 | O37: -0.0006573336632 | P37: 2.941760036e-05 | Q37: 0.0001298545581 | R37: 3.848546765e-08
A38: 14.8858 | B38: ='DF raw data'!A43 -> 4.6656164e-06 | C38: ='DF raw data'!B43 -> 5.1601864e-06 | D38: ='DF raw data'!C43 -> -8.200671e-07 | F38: 4.669722142e-06 | G38: 5.176689141e-06 | H38: -8.20788759e-07 | J38: -5.142456583e-06 | K38: -1.772335519e-06 | L38: 7.65444629e-06 | N38: -7.930910658e-05 | O38: -0.0006970001129 | P38: 2.853116675e-05 | Q38: 0.0001441244211 | R38: 4.203851417e-08
A39: 15.38595 | B39: ='DF raw data'!A44 -> 5.732139e-06 | C39: ='DF raw data'!B44 -> -2.3277419e-06 | D39: ='DF raw data'!C44 -> 1.0273697e-05 | F39: 5.737183282e-06 | G39: -2.335186228e-06 | H39: 1.028273785e-05 | J39: -1.038917043e-05 | K39: -9.230269129e-06 | L39: -3.053667365e-06 | N39: -8.450525018e-05 | O39: -0.0007392654137 | P39: 2.391464764e-05 | Q39: 0.0001560853321 | R39: 4.589619497e-08
A40: 15.8861 | B40: ='DF raw data'!A45 -> 2.5669476e-06 | C40: ='DF raw data'!B45 -> 3.250844e-06 | D40: ='DF raw data'!C45 -> 9.7969705e-06 | F40: 2.569206514e-06 | G40: 3.261240492e-06 | H40: 9.805591834e-06 | J40: -1.102157646e-05 | K40: -4.553552347e-06 | L40: -4.630522077e-06 | N40: -9.001769164e-05 | O40: -0.0007842877622 | P40: 2.163718844e-05 | Q40: 0.0001669071719 | R40: 5.018315704e-08
A41: 16.38625 | B41: ='DF raw data'!A46 -> 4.9706618e-06 | C41: ='DF raw data'!B46 -> -3.1763441e-06 | D41: ='DF raw data'!C46 -> 5.1403154e-06 | F41: 4.975035982e-06 | G41: -3.186502335e-06 | H41: 5.144838878e-06 | J41: -9.236462641e-06 | K41: -4.207269734e-06 | L41: -7.711623762e-06 | N41: -9.463730843e-05 | O41: -0.000831620612 | P41: 1.953292248e-05 | Q41: 0.0001766765631 | R41: 5.485343531e-08
A42: 16.8864 | B42: ='DF raw data'!A47 -> 5.4127427e-06 | C42: ='DF raw data'!B47 -> -3.0415788e-06 | D42: ='DF raw data'!C47 -> 7.8955864e-06 | F42: 5.417505914e-06 | G42: -3.051306043e-06 | H42: 7.902534516e-06 | J42: -4.398748295e-06 | K42: -1.606324393e-05 | L42: 7.168731137e-07 | N42: -9.683734239e-05 | O42: -0.0008800538088 | P42: 1.149889103e-05 | Q42: 0.0001824277335 | R42: 5.960970945e-08
A43: 17.38655 | B43: ='DF raw data'!A48 -> 3.0201761e-06 | C43: ='DF raw data'!B48 -> -2.9770047e-06 | D43: ='DF raw data'!C48 -> 3.7553243e-06 | F43: 3.022833855e-06 | G43: -2.986525429e-06 | H43: 3.758628985e-06 | J43: -3.544605911e-06 | K43: -1.103598657e-06 | L43: 1.040874464e-05 | N43: -9.861017704e-05 | O43: -0.0009293736889 | P43: 1.094692616e-05 | Q43: 0.0001879028386 | R43: 6.453308712e-08
A44: 17.8867 | B44: ='DF raw data'!A49 -> 2.5741572e-06 | C44: ='DF raw data'!B49 -> -8.0098716e-06 | D44: ='DF raw data'!C49 -> -5.4228895e-08 | F44: 2.576422458e-06 | G44: -8.035487891e-06 | H44: -5.427661643e-08 | J44: -9.57725067e-06 | K44: 7.5005294e-06 | L44: 1.056475381e-05 | N44: -0.000103400239 | O44: -0.0009810893184 | P44: 1.469831594e-05 | Q44: 0.0001952542013 | R44: 6.998854822e-08
A45: 18.38685 | B45: ='DF raw data'!A50 -> 2.3673672e-06 | C45: ='DF raw data'!B50 -> -1.7070113e-05 | D45: ='DF raw data'!C50 -> 1.7082555e-06 | F45: 2.369450483e-06 | G45: -1.712470476e-05 | H45: 1.709758765e-06 | J45: -1.211449138e-05 | K45: 9.151850338e-07 | L45: 9.422479592e-06 | N45: -0.0001094593018 | O45: -0.001035835388 | P45: 1.515604573e-05 | Q45: 0.0002028344976 | R45: 7.609590212e-08
A46: 18.887 | B46: ='DF raw data'!A51 -> -2.598925e-06 | C46: ='DF raw data'!B51 -> 6.8963427e-06 | D46: ='DF raw data'!C51 -> 6.4798104e-07 | F46: -2.601212054e-06 | G46: 6.918397826e-06 | H46: 6.485512633e-07 | J46: -1.029837861e-05 | K46: -7.251375825e-06 | L46: 1.090221151e-05 | N46: -0.0001146100359 | O46: -0.001093157598 | P46: 1.152927011e-05 | Q46: 0.000208600862 | R46: 8.273208457e-08
A47: 19.38715 | B47: ='DF raw data'!A52 -> 1.7444809e-07 | C47: ='DF raw data'!B52 -> -2.0921136e-06 | D47: ='DF raw data'!C52 -> 2.9078609e-07 | F47: 1.746016043e-07 | G47: -2.098804368e-06 | H47: 2.910419818e-07 | J47: -7.82079725e-06 | K47: 2.13834201e-06 | L47: 7.705273479e-06 | N47: -0.0001185216076 | O47: -0.00115243618 | P47: 1.259876187e-05 | Q47: 0.0002149021328 | R47: 8.983726563e-08
A48: 19.8873 | B48: ='DF raw data'!A53 -> 8.3558598e-06 | C48: ='DF raw data'!B53 -> -1.0971958e-05 | D48: ='DF raw data'!C53 -> 4.0064992e-06 | F48: 8.363212957e-06 | G48: -1.100704731e-05 | H48: 4.010024919e-06 | J48: -5.777936313e-06 | K48: -3.903957707e-06 | L48: 5.856570351e-06 | N48: -0.0001214114425 | O48: -0.001213160113 | P48: 1.064619742e-05 | Q48: 0.0002202268284 | R48: 9.726653368e-08
A49: 20.38745 | B49: ='DF raw data'!A54 -> 6.5240542e-06 | C49: ='DF raw data'!B54 -> -1.0037565e-05 | D49: ='DF raw data'!C54 -> 5.8099818e-06 | F49: 6.529795368e-06 | G49: -1.006966604e-05 | H49: 5.815094584e-06 | J49: -3.766409326e-06 | K49: -3.616171274e-06 | L49: 8.798384971e-06 | N49: -0.0001232952121 | O49: -0.001274826213 | P49: 8.837569359e-06 | Q49: 0.0002246469387 | R49: 1.049087316e-07
A50: 20.8876 | B50: ='DF raw data'!A55 -> 2.7475714e-06 | C50: ='DF raw data'!B55 -> -2.7800663e-06 | D50: ='DF raw data'!C55 -> -6.9814428e-06 | F50: 2.749989263e-06 | G50: -2.788957203e-06 | H50: -6.98758647e-06 | J50: -5.936940314e-06 | K50: -3.392230976e-06 | L50: 8.281672364e-06 | N50: -0.0001262645728 | O50: -0.001337977439 | P50: 7.140945036e-06 | Q50: 0.0002282184824 | R50: 1.129079984e-07
A51: 21.38775 | B51: ='DF raw data'!A56 -> 3.4519787e-06 | C51: ='DF raw data'!B56 -> 6.2087938e-06 | D51: ='DF raw data'!C56 -> -1.0844041e-05 | F51: 3.455016441e-06 | G51: 6.228650082e-06 | H51: -1.085358376e-05 | J51: -8.576464153e-06 | K51: 8.662380158e-06 | L51: 1.339072848e-05 | N51: -0.0001305540913 | O51: -0.001403274068 | P51: 1.147343447e-05 | Q51: 0.0002339569206 | R51: 1.2149858e-07
A52: 21.8879 | B52: ='DF raw data'!A57 -> 1.041323e-06 | C52: ='DF raw data'!B57 -> -5.2091082e-06 | D52: ='DF raw data'!C57 -> -6.1919795e-06 | F52: 1.042239364e-06 | G52: -5.225767398e-06 | H52: -6.197428442e-06 | J52: -1.431094456e-05 | K52: 1.076696295e-05 | L52: 8.190278708e-06 | N52: -0.0001377117103 | O52: -0.00147215058 | P52: 1.685853099e-05 | Q52: 0.0002423887149 | R52: 1.3112583e-07
A53: 22.38805 | B53: ='DF raw data'!A58 -> -4.5492093e-06 | C53: ='DF raw data'!B58 -> -6.4663864e-06 | D53: ='DF raw data'!C58 -> 6.8694774e-08 | F53: -4.553212604e-06 | G53: -6.487066487e-06 | H53: 6.87552254e-08 | J53: -1.485636611e-05 | K53: 3.530556343e-06 | L53: 1.662705995e-06 | N53: -0.0001451421218 | O53: -0.001544743412 | P53: 1.862433875e-05 | Q53: 0.0002517036779 | R53: 1.418355927e-07
A54: 22.8882 | B54: ='DF raw data'!A59 -> -3.8935309e-06 | C54: ='DF raw data'!B59 -> -8.7193066e-06 | D54: ='DF raw data'!C59 -> 1.2792468e-06 | F54: -3.896957207e-06 | G54: -8.747191729e-06 | H54: 1.280372537e-06 | J54: -4.016672864e-06 | K54: 3.230857434e-06 | L54: 8.298858775e-06 | N54: -0.0001471510607 | O54: -0.001618341015 | P54: 2.024025209e-05 | Q54: 0.00026182684 | R54: 1.528704534e-07
A55: 23.38835 | B55: ='DF raw data'!A60 -> 2.0266777e-06 | C55: ='DF raw data'!B60 -> -3.0805973e-07 | D55: ='DF raw data'!C60 -> 5.3582794e-06 | F55: 2.028461176e-06 | G55: -3.090449328e-07 | H55: 5.362994686e-06 | J55: 6.388367421e-06 | K55: 8.170200642e-06 | L55: 7.757295118e-06 | N55: -0.0001439559187 | O55: -0.001690340568 | P55: 2.432657794e-05 | Q55: 0.000273993778 | R55: 1.635311951e-07
A56: 23.8885 | B56: ='DF raw data'!A61 -> 2.8512338e-06 | C56: ='DF raw data'!B61 -> 3.2034775e-06 | D56: ='DF raw data'!C61 -> 9.4364468e-06 | F56: 2.853742886e-06 | G56: 3.21372251e-06 | H56: 9.444750873e-06 | J56: 7.591315084e-06 | K56: 1.027504978e-05 | L56: 4.346529183e-06 | N56: -0.0001401591225 | O56: -0.001760441153 | P56: 2.946564409e-05 | Q56: 0.0002887310199 | R56: 1.737906739e-07
A57: 24.38865 | B57: ='DF raw data'!A62 -> -1.4013733e-06 | C57: ='DF raw data'!B62 -> 3.0141462e-06 | D57: ='DF raw data'!C62 -> 6.6606085e-06 | F57: -1.402606509e-06 | G57: 3.023785711e-06 | H57: 6.666469835e-06 | J57: 2.014235569e-06 | K57: 1.116932865e-05 | L57: 9.813163691e-06 | N57: -0.0001391517026 | O57: -0.001830037877 | P57: 3.505198381e-05 | Q57: 0.0003062622696 | R57: 1.840896817e-07
A58: 24.8888 | B58: ='DF raw data'!A63 -> -1.5821299e-06 | C58: ='DF raw data'!B63 -> 2.8529655e-06 | D58: ='DF raw data'!C63 -> 8.4966368e-06 | F58: -1.583522174e-06 | G58: 2.862089541e-06 | H58: 8.50411384e-06 | J58: -3.013147438e-06 | K58: 9.364978267e-06 | L58: 8.68780955e-06 | N58: -0.0001406587283 | O58: -0.00190038834 | P58: 3.973587769e-05 | Q58: 0.0003261361688 | R58: 1.947747951e-07
A59: 25.38895 | B59: ='DF raw data'!A64 -> -3.336105e-06 | C59: ='DF raw data'!B64 -> 8.9145624e-06 | D59: ='DF raw data'!C64 -> 1.2440299e-05 | F59: -3.339040772e-06 | G59: 8.943071974e-06 | H59: 1.245124646e-05 | J59: -8.705805273e-06 | K59: -6.165066083e-07 | L59: 3.738954387e-06 | N59: -0.0001450129368 | O59: -0.00197291656 | P59: 3.942753191e-05 | Q59: 0.0003458558489 | R59: 2.060698237e-07
A60: 25.8891 | B60: ='DF raw data'!A65 -> -7.4414625e-06 | C60: ='DF raw data'!B65 -> 1.3227594e-05 | D60: ='DF raw data'!C65 -> 1.1585677e-05 | F60: -7.448010987e-06 | G60: 1.326989704e-05 | H60: 1.15958724e-05 | J60: -1.002352895e-05 | K60: 5.041898041e-06 | L60: -4.445177317e-07 | N60: -0.0001500262048 | O60: -0.002047952166 | P60: 4.194923722e-05 | Q60: 0.0003668367599 | R60: 2.182072641e-07
A61: 26.38925 | B61: ='DF raw data'!A66 -> -6.5372756e-06 | C61: ='DF raw data'!B66 -> 1.1364252e-06 | D61: ='DF raw data'!C66 -> 5.1530264e-06 | F61: -6.543028403e-06 | G61: 1.14005959e-06 | H61: 5.157561063e-06 | J61: -4.324390818e-06 | K61: 6.054103647e-06 | L61: -3.084242347e-06 | N61: -0.0001521890489 | O61: -0.002124069519 | P61: 4.497719716e-05 | Q61: 0.000389332105 | R61: 2.308032692e-07
A62: 26.8894 | B62: ='DF raw data'!A67 -> -4.8744137e-06 | C62: ='DF raw data'!B67 -> -3.1151023e-06 | D62: ='DF raw data'!C67 -> -5.500418e-06 | F62: -4.878703184e-06 | G62: -3.125064678e-06 | H62: -5.505258368e-06 | J62: -9.060837526e-07 | K62: -2.284055128e-06 | L62: 2.574566827e-06 | N62: -0.0001526422266 | O62: -0.002200413529 | P62: 4.383482698e-05 | Q62: 0.0004112560937 | R62: 2.434176231e-07
A63: 27.38955 | B63: ='DF raw data'!A68 -> -2.8267407e-06 | C63: ='DF raw data'!B68 -> -1.5272981e-05 | D63: ='DF raw data'!C68 -> -8.5920519e-06 | F63: -2.829228232e-06 | G63: -1.532182537e-05 | H63: -8.599612906e-06 | J63: -5.381029443e-06 | K63: 1.672797302e-06 | L63: 5.108577195e-06 | N63: -0.0001553335485 | O63: -0.002278103603 | P63: 4.467147655e-05 | Q63: 0.0004335985327 | R63: 2.564835678e-07
A64: 27.8897 | B64: ='DF raw data'!A69 -> -1.6513497e-06 | C64: ='DF raw data'!B69 -> 4.5268107e-06 | D64: ='DF raw data'!C69 -> -6.7009182e-06 | F64: -1.652802888e-06 | G64: 4.541287849e-06 | H64: -6.706815008e-06 | J64: -5.893114081e-06 | K64: 1.256274772e-05 | L64: 9.125854491e-06 | N64: -0.0001582809895 | O64: -0.00235726784 | P64: 5.095473483e-05 | Q64: 0.0004590835434 | R64: 2.703123435e-07
A65: 28.38985 | B65: ='DF raw data'!A70 -> 2.5470561e-06 | C65: ='DF raw data'!B70 -> 4.5725728e-06 | D65: ='DF raw data'!C70 -> -1.0402302e-06 | F65: 2.549297509e-06 | G65: 4.5871963e-06 | H65: -1.041145603e-06 | J65: -2.297564479e-06 | K65: -3.43921616e-06 | L65: 1.188128534e-05 | N65: -0.0001594301164 | O65: -0.002437006813 | P65: 4.923461086e-05 | Q65: 0.000483708234 | R65: 2.842375242e-07
A66: 28.89 | B66: ='DF raw data'!A71 -> 3.4794127e-06 | C66: ='DF raw data'!B71 -> 8.3514601e-07 | D66: ='DF raw data'!C71 -> 7.2524749e-06 | F66: 3.482474583e-06 | G66: 8.378168822e-07 | H66: 7.258857078e-06 | J66: -1.186411024e-06 | K66: -5.02752763e-06 | L66: 4.397888039e-06 | N66: -0.0001600234999 | O66: -0.002517042566 | P66: 4.672009292e-05 | Q66: 0.0005070752885 | R66: 2.981368366e-07
A67: 29.39015 | B67: ='DF raw data'!A72 -> 2.6378355e-06 | C67: ='DF raw data'!B72 -> -1.6029692e-06 | D67: ='DF raw data'!C72 -> 5.3132212e-06 | F67: 2.640156795e-06 | G67: -1.60809564e-06 | H67: 5.317896835e-06 | J67: -5.110456047e-06 | K67: 8.989516936e-06 | L67: -1.942237166e-06 | N67: -0.0001625794945 | O67: -0.0025983567 | P67: 5.121619982e-05 | Q67: 0.0005326910708 | R67: 3.126687904e-07
A68: 29.8903 | B68: ='DF raw data'!A73 -> -1.9327517e-07 | C68: ='DF raw data'!B73 -> 3.5317105e-06 | D68: ='DF raw data'!C73 -> -1.3036815e-07 | F68: -1.934452521e-07 | G68: 3.543005229e-06 | H68: -1.30482874e-07 | J68: -8.500369849e-06 | K68: 7.274581903e-06 | L68: 1.354957114e-06 | N68: -0.0001668309544 | O68: -0.002681797202 | P68: 5.485458195e-05 | Q68: 0.00056012659 | R68: 3.280942129e-07
A69: 30.39045 | B69: ='DF raw data'!A74 -> -1.7714995e-06 | C69: ='DF raw data'!B74 -> 1.6343736e-06 | D69: ='DF raw data'!C74 -> -3.7981346e-07 | F69: -1.77305842e-06 | G69: 1.639600474e-06 | H69: -3.801476958e-07 | J69: -6.491581269e-06 | K69: 5.6965803e-06 | L69: 1.130148857e-05 | N69: -0.0001700777188 | O69: -0.002766861573 | P69: 5.770372659e-05 | Q69: 0.0005889871088 | R69: 3.442271266e-07
A70: 30.8906 | B70: ='DF raw data'!A75 -> -1.9842957e-06 | C70: ='DF raw data'!B75 -> -8.2181532e-06 | D70: ='DF raw data'!C75 -> -7.5564213e-07 | F70: -1.98604188e-06 | G70: -8.244435595e-06 | H70: -7.563070951e-07 | J70: -4.508982216e-06 | K70: 4.314402362e-06 | L70: 1.67174284e-05 | N70: -0.0001723328863 | O70: -0.002853053866 | P70: 5.986157493e-05 | Q70: 0.0006189268755 | R70: 3.608731348e-07
A71: 31.39075 | B71: ='DF raw data'!A76 -> -7.5383679e-07 | C71: ='DF raw data'!B76 -> -1.2430853e-05 | D71: ='DF raw data'!C76 -> 3.787404e-06 | F71: -7.545001664e-07 | G71: =(1-$G$1*($B$2-$G$2))*C71*$M$2/$M$1 -> -1.247060799e-05 | H71: 3.790736916e-06 | J71: =-CELL("contents", INDEX($F$6:$F$1203,1204-CELL("row",F71))) -> -7.948400643e-06 | K71: =CELL("contents", INDEX($G$6:$G$1203,1204-CELL("row",G71))) -> -5.640575161e-06 | L71: =-CELL("contents", INDEX($H$6:$H$1203,1204-CELL("row",H71))) -> 1.056848309e-05 | N71: -0.0001763082789 | O71: -0.002941234452 | P71: 5.704044127e-05 | Q71: 0.0006474556522 | R71: 3.780473961e-07
A72: =A71+$B$1 -> 31.8909 | B72: ='DF raw data'!A77 -> -1.0142933e-06 | C72: ='DF raw data'!B77 -> 2.3077816e-06 | D72: ='DF raw data'!C77 -> 4.3388031e-06 | F72: -1.015185878e-06 | G72: 2.315162094e-06 | H72: 4.342621247e-06 | J72: -1.001043444e-05 | K72: -8.671965917e-06 | L72: -9.07541134e-07 | N72: =J72*$B$1+N71 -> -0.0001813149976 | O72: =N72*$B$1+O71 -> -0.003031919148 | P72: =K72*$B$1+P71 -> 5.270315751e-05 | Q72: =P72*$B$1+Q71 -> 0.0006738151365 | R72: =(N72^2+P72^2)*$B$1+R71 -> 3.958791196e-07
A73: 32.39105 | B73: ='DF raw data'!A78 -> -5.0335443e-06 | C73: ='DF raw data'!B78 -> 5.4704078e-06 | D73: ='DF raw data'!C78 -> 3.2050564e-06 | F73: -5.037973819e-06 | G73: 5.487902657e-06 | H73: 3.20787685e-06 | J73: -8.274358133e-06 | K73: -2.424871837e-06 | L73: 6.015577053e-06 | N73: -0.0001854534179 | O73: -0.003124673675 | P73: 5.149035786e-05 | Q73: 0.0006995680389 | R73: 4.144067898e-07
A74: 32.8912 | B74: ='DF raw data'!A79 -> -4.8559236e-06 | C74: ='DF raw data'!B79 -> 6.262163e-06 | D74: ='DF raw data'!C79 -> 3.2679117e-07 | F74: -4.860196813e-06 | G74: 6.282189962e-06 | H74: 3.270787462e-07 | J74: -5.958384969e-06 | K74: -3.021058016e-06 | L74: 1.302762323e-05 | N74: -0.0001884335041 | O74: -0.003218918692 | P74: 4.99793757e-05 | Q74: 0.0007245652237 | R74: 4.334150523e-07
A75: 33.39135 | B75: ='DF raw data'!A80 -> -8.9307588e-07 | C75: ='DF raw data'!B80 -> 1.2813839e-05 | D75: ='DF raw data'!C80 -> 5.8340743e-06 | F75: =(1-$G$1*($B$2-$G$2))*B75 -> -8.938617868e-07 | G75: 1.285481881e-05 | H75: =(1-$G$1*($B$2-$G$2))*D75 -> 5.839208285e-06 | J75: -6.374667475e-06 | K75: -1.598325594e-06 | L75: 1.390071287e-05 | N75: -0.000191621794 | O75: -0.003314758332 | P75: 4.917997315e-05 | Q75: 0.0007491625873 | R75: 4.529897138e-07
A76: 33.8915 | B76: ='DF raw data'!A81 -> 3.9982556e-06 | C76: ='DF raw data'!B81 -> -1.2832782e-06 | D76: ='DF raw data'!C81 -> 6.9050625e-06 | F76: 4.001774065e-06 | G76: -1.287382239e-06 | H76: 6.911138955e-06 | J76: -7.827544383e-06 | K76: -4.628238037e-06 | L76: 1.032947595e-05 | N76: -0.0001955367404 | O76: -0.003412556033 | P76: 4.68651599e-05 | Q76: 0.000772602197 | R76: 4.732112585e-07
A77: 34.39165 | B77: ='DF raw data'!A82 -> 5.2621567e-06 | C77: ='DF raw data'!B82 -> -9.7808543e-06 | D77: ='DF raw data'!C82 -> -1.9200718e-06 | F77: 5.266787398e-06 | G77: -9.812134354e-06 | H77: -1.921761463e-06 | J77: -1.118667762e-06 | K77: 9.546702084e-07 | L77: 3.859725272e-06 | N77: -0.000196096242 | O77: -0.003510633569 | P77: 4.73426382e-05 | Q77: 0.0007962806175 | R77: 4.935648935e-07
A78: 34.8918 | B78: ='DF raw data'!A83 -> 2.1494968e-06 | C78: ='DF raw data'!B83 -> -2.0732044e-07 | D78: ='DF raw data'!C83 -> -9.5957557e-06 | F78: 2.151388357e-06 | G78: -2.079834695e-07 | H78: -9.604199965e-06 | J78: 2.504205563e-06 | K78: 6.106840566e-06 | L78: 1.680824525e-06 | N78: -0.0001948437636 | O78: -0.003608084677 | P78: 5.039697451e-05 | Q78: 0.0008214866643 | R78: 5.138229428e-07
A79: 35.39195 | B79: ='DF raw data'!A84 -> -3.4784828e-06 | C79: ='DF raw data'!B84 -> 1.3509795e-05 | D79: ='DF raw data'!C84 -> -1.0868001e-05 | F79: -3.481543865e-06 | G79: 1.355300054e-05 | H79: -1.087756484e-05 | J79: -9.44966089e-07 | K79: -3.963387965e-06 | L79: 8.325967309e-06 | N79: -0.0001953163884 | O79: -0.003705772169 | P79: 4.841468602e-05 | Q79: 0.0008457012695 | R79: 5.340752533e-07
A80: 35.8921 | B80: ='DF raw data'!A85 -> -9.5308533e-06 | C80: ='DF raw data'!B85 -> 1.8192684e-05 | D80: ='DF raw data'!C85 -> -2.3572659e-06 | F80: -9.539240451e-06 | G80: 1.825086584e-05 | H80: -2.359340294e-06 | J80: -2.32876391e-06 | K80: -4.901572197e-06 | L80: 1.021643556e-05 | N80: -0.0001964811197 | O80: -0.003804042201 | P80: 4.596316469e-05 | Q80: 0.0008686897463 | R80: 5.544400824e-07
A81: 36.39225 | B81: ='DF raw data'!A86 -> -1.2267581e-05 | C81: ='DF raw data'!B86 -> 8.4208814e-06 | D81: ='DF raw data'!C86 -> 1.920095e-06 | F81: -1.227837647e-05 | G81: 8.447812138e-06 | H81: 1.921784684e-06 | J81: -3.974383282e-06 | K81: -1.888922386e-06 | L81: 7.329576957e-06 | N81: -0.0001984689075 | O81: -0.003903306425 | P81: 4.501842015e-05 | Q81: 0.0008912057092 | R81: 5.751545776e-07
A82: 36.8924 | B82: ='DF raw data'!A87 -> -7.8193316e-06 | C82: ='DF raw data'!B87 -> 1.3775286e-06 | D82: ='DF raw data'!C87 -> 2.9383045e-09 | F82: -7.826212612e-06 | G82: 1.381934061e-06 | H82: 2.940890208e-09 | J82: -8.779427203e-06 | K82: -7.109756156e-06 | L82: 4.032251662e-06 | N82: -0.000202859938 | O82: -0.004004766823 | P82: 4.146247561e-05 | Q82: 0.0009119431663 | R82: 5.965966539e-07
A83: 37.39255 | B83: ='DF raw data'!A88 -> 2.0930936e-06 | C83: ='DF raw data'!B88 -> -1.8598178e-06 | D83: ='DF raw data'!C88 -> -1.2484754e-06 | F83: 2.094935522e-06 | G83: -1.865765665e-06 | H83: -1.249574058e-06 | J83: -1.296449272e-05 | K83: -1.144019815e-05 | L83: 1.274504978e-05 | N83: -0.000209344129 | O83: -0.004109470289 | P83: 3.574066051e-05 | Q83: 0.0009298188577 | R83: 6.191545989e-07
A84: 37.8927 | B84: ='DF raw data'!A89 -> 5.824721e-06 | C84: ='DF raw data'!B89 -> 6.0191519e-07 | D84: ='DF raw data'!C89 -> -2.8556908e-06 | F84: 5.829846754e-06 | G84: 6.03840169e-07 | H84: -2.858203808e-06 | J84: -9.92498711e-06 | K84: -1.009616953e-05 | L84: 1.551707002e-05 | N84: -0.0002143081113 | O84: -0.004216656491 | P84: 3.069106132e-05 | Q84: 0.000945168992 | R84: 6.425965833e-07
A85: 38.39285 | B85: ='DF raw data'!A90 -> 3.5666542e-06 | C85: ='DF raw data'!B90 -> 3.4645934e-06 | D85: ='DF raw data'!C90 -> -1.2559988e-06 | F85: 3.569792856e-06 | G85: 3.475673482e-06 | H85: -1.257104079e-06 | J85: -1.067851683e-05 | K85: -4.472968955e-06 | L85: 7.311789818e-06 | N85: -0.0002196489715 | O85: -0.004326513924 | P85: 2.84539059e-05 | Q85: 0.000959400213 | R85: 6.671315893e-07
A86: 38.893 | B86: ='DF raw data'!A91 -> 2.4425933e-06 | C86: ='DF raw data'!B91 -> 4.0977075e-06 | D86: ='DF raw data'!C91 -> -3.2214714e-06 | F86: 2.444742782e-06 | G86: 4.110812338e-06 | H86: -3.224306295e-06 | J86: -1.570382822e-05 | K86: -8.924278262e-06 | L86: 6.371422322e-06 | N86: -0.0002275032412 | O86: -0.00444029967 | P86: 2.399042812e-05 | Q86: 0.0009713990257 | R86: 6.93306072e-07
A87: 39.39315 | B87: ='DF raw data'!A92 -> 5.0342737e-06 | C87: ='DF raw data'!B92 -> -3.9483521e-06 | D87: ='DF raw data'!C92 -> -6.0486213e-06 | F87: 5.038703861e-06 | G87: -3.960979286e-06 | H87: -6.053944087e-06 | J87: -1.167863516e-05 | K87: -9.701171516e-06 | L87: 9.568294296e-06 | N87: -0.0002333443106 | O87: -0.004557006827 | P87: 1.913838719e-05 | Q87: 0.00098097109 | R87: 7.207222169e-07
A88: 39.8933 | B88: ='DF raw data'!A93 -> 1.1576987e-05 | C88: ='DF raw data'!B93 -> 1.5715311e-06 | D88: ='DF raw data'!C93 -> -3.6038266e-06 | F88: 1.158717475e-05 | G88: 1.576556998e-06 | H88: -3.606997967e-06 | J88: -3.038801394e-06 | K88: -9.781477523e-06 | L88: 9.166351697e-06 | N88: -0.0002348641671 | O88: -0.00467447414 | P88: 1.424618121e-05 | Q88: 0.0009880963176 | R88: 7.484125869e-07
A89: 40.39345 | B89: ='DF raw data'!A94 -> 1.3567054e-05 | C89: ='DF raw data'!B94 -> -1.2581887e-05 | D89: ='DF raw data'!C94 -> 1.7334776e-06 | F89: 1.357899301e-05 | G89: -1.262212501e-05 | H89: 1.73500306e-06 | J89: 5.816669969e-07 | K89: 4.263136231e-06 | L89: 1.060645347e-05 | N89: -0.0002345732464 | O89: -0.004791795949 | P89: 1.637838879e-05 | Q89: 0.0009962879687 | R89: 7.760673106e-07
A90: 40.8936 | B90: ='DF raw data'!A95 -> 7.8348803e-06 | C90: ='DF raw data'!B95 -> -7.0510678e-06 | D90: ='DF raw data'!C95 -> 4.7480961e-07 | F90: 7.841774995e-06 | G90: -7.07361775e-06 | H90: 4.752274425e-07 | J90: -5.221290896e-06 | K90: 1.634291449e-05 | L90: 4.918198109e-06 | N90: -0.000237184675 | O90: -0.004910423864 | P90: 2.455229748e-05 | Q90: 0.0010085678 | R90: 8.045055322e-07
A91: 41.39375 | B91: ='DF raw data'!A96 -> 7.619079e-06 | C91: ='DF raw data'!B96 -> 8.4252833e-06 | D91: ='DF raw data'!C96 -> -1.2403937e-05 | F91: 7.62578379e-06 | G91: 8.452228116e-06 | H91: -1.241485246e-05 | J91: -8.900617457e-06 | K91: -1.047514968e-06 | L91: 2.665093821e-06 | N91: -0.0002416363188 | O91: -0.005031278269 | P91: 2.402838287e-05 | Q91: 0.001020585596 | R91: 8.339971139e-07
A92: 41.8939 | B92: ='DF raw data'!A97 -> 9.2181954e-06 | C92: ='DF raw data'!B97 -> 6.0666907e-06 | D92: ='DF raw data'!C97 -> -7.5839575e-06 | F92: 9.226307412e-06 | G92: 6.086092524e-06 | H92: -7.590631383e-06 | J92: -5.853162154e-06 | K92: -2.561805266e-06 | L92: 6.68809575e-06 | N92: -0.0002445637779 | O92: -0.005153596843 | P92: 2.274709596e-05 | Q92: 0.001031962556 | R92: 8.641705991e-07
A93: 42.39405 | B93: ='DF raw data'!A98 -> 3.9995243e-06 | C93: ='DF raw data'!B98 -> -2.9307005e-06 | D93: ='DF raw data'!C98 -> 4.5284349e-07 | F93: 4.003043881e-06 | G93: -2.940073144e-06 | H93: 4.532419923e-07 | J93: -4.959135002e-06 | K93: 4.3225702e-06 | L93: 8.575031293e-06 | N93: -0.0002470440892 | O93: -0.005277155944 | P93: 2.490902945e-05 | Q93: 0.001044420807 | R93: 8.950054677e-07
A94: 42.8942 | B94: ='DF raw data'!A99 -> 4.2330134e-06 | C94: ='DF raw data'!B99 -> 1.6663987e-06 | D94: ='DF raw data'!C99 -> 1.1507971e-06 | F94: 4.236738452e-06 | G94: 1.671727993e-06 | H94: 1.151809801e-06 | J94: -7.865959759e-06 | K94: -2.378828255e-06 | L94: 8.4063682e-06 | N94: -0.000250978249 | O94: -0.005402682715 | P94: 2.37192585e-05 | Q94: 0.001056283994 | R94: 9.26791343e-07
A95: 43.39435 | B95: ='DF raw data'!A100 -> 7.5664138e-06 | C95: ='DF raw data'!B100 -> 3.0230847e-06 | D95: ='DF raw data'!C100 -> 5.6434642e-06 | F95: 7.573072244e-06 | G95: 3.032752797e-06 | H95: 5.648430448e-06 | J95: -1.087065677e-05 | K95: -4.177554605e-06 | L95: 1.138641924e-05 | N95: -0.000256415208 | O95: -0.005530928782 | P95: 2.162985456e-05 | Q95: 0.001067102166 | R95: 9.599095802e-07
A96: 43.8945 | B96: ='DF raw data'!A101 -> 5.7371458e-06 | C96: ='DF raw data'!B101 -> 6.6697839e-06 | D96: ='DF raw data'!C101 -> 7.5385237e-06 | F96: 5.742194488e-06 | G96: 6.69111447e-06 | H96: 7.545157601e-06 | J96: -1.092183176e-05 | K96: -9.853360378e-06 | L96: 6.521897724e-06 | N96: -0.0002618777622 | O96: -0.005661906944 | P96: 1.670169637e-05 | Q96: 0.001075455519 | R96: 9.943493635e-07
A97: 44.39465 | B97: ='DF raw data'!A102 -> 5.551115e-06 | C97: ='DF raw data'!B102 -> -2.4949288e-06 | D97: ='DF raw data'!C102 -> -3.1269611e-08 | F97: 5.555999981e-06 | G97: -2.502907807e-06 | H97: -3.129712826e-08 | J97: -5.903870138e-06 | K97: -4.645507992e-06 | L97: 3.885570296e-06 | N97: -0.0002648305828 | O97: -0.00579436196 | P97: 1.437824554e-05 | Q97: 0.001082646799 | R97: 1.029530901e-06
A98: 44.8948 | B98: ='DF raw data'!A103 -> -1.9010588e-06 | C98: ='DF raw data'!B103 -> -6.5882077e-06 | D98: ='DF raw data'!C103 -> -5.5764514e-07 | F98: -1.902731732e-06 | G98: -6.609277382e-06 | H98: -5.581358677e-07 | J98: -2.646589251e-07 | K98: 3.467242906e-06 | L98: 1.151238199e-05 | N98: -0.000264962952 | O98: -0.005926883181 | P98: 1.611238708e-05 | Q98: 0.001090705409 | R98: 1.064773958e-06
A99: 45.39495 | B99: ='DF raw data'!A104 -> -9.3131166e-06 | C99: ='DF raw data'!B104 -> -2.2199605e-07 | D99: ='DF raw data'!C104 -> 4.1135177e-06 | F99: -9.321312143e-06 | G99: -2.227060134e-07 | H99: 4.117137596e-06 | J99: -3.304163307e-06 | K99: -4.330546427e-06 | L99: 7.928292163e-06 | N99: -0.0002666155292 | O99: -0.006060230938 | P99: 1.394646429e-05 | Q99: 0.001097680733 | R99: 1.100423822e-06
A100: 45.8951 | B100: ='DF raw data'!A105 -> -1.0406873e-05 | C100: ='DF raw data'!B105 -> -4.280987e-06 | D100: ='DF raw data'!C105 -> -9.00732e-07 | F100: -1.041603105e-05 | G100: -4.294677982e-06 | H100: -9.015246442e-07 | J100: -8.82893263e-06 | K100: -9.903287039e-06 | L100: 1.047829079e-05 | N100: -0.0002710313199 | O100: -0.006195787252 | P100: 8.993335276e-06 | Q100: 0.00110217875 | R100: 1.137204281e-06
A101: 46.39525 | B101: ='DF raw data'!A106 -> -1.0961026e-05 | C101: ='DF raw data'!B106 -> -1.5350775e-05 | D101: ='DF raw data'!C106 -> -9.0541371e-06 | F101: -1.09706717e-05 | G101: -1.539986816e-05 | H101: -9.062104741e-06 | J101: -3.12805667e-06 | K101: 7.320358935e-06 | L101: 1.534594156e-05 | N101: -0.0002725958174 | O101: -0.00633212605 | P101: 1.26546128e-05 | Q101: 0.001108507955 | R101: 1.174449761e-06
A102: 46.8954 | B102: ='DF raw data'!A107 -> -6.3638604e-06 | C102: ='DF raw data'!B107 -> -8.3866717e-06 | D102: ='DF raw data'!C107 -> -1.0486846e-05 | F102: -6.369460597e-06 | G102: -8.413493032e-06 | H102: -1.049607442e-05 | J102: 3.163670582e-06 | K102: 2.414347687e-06 | L102: 9.484761952e-06 | N102: -0.0002710135076 | O102: -0.006467673456 | P102: 1.386214879e-05 | Q102: 0.001115441108 | R102: 1.211281047e-06
A103: 47.39555 | B103: ='DF raw data'!A108 -> -1.8391161e-08 | C103: ='DF raw data'!B108 -> 5.3930171e-06 | D103: ='DF raw data'!C108 -> -5.1976617e-06 | F103: -1.840734522e-08 | G103: 5.410264455e-06 | H103: -5.202235642e-06 | J103: -2.805373458e-06 | K103: -6.647291768e-06 | L103: 6.334984985e-06 | N103: -0.0002724166151 | O103: -0.006603922626 | P103: 1.053750582e-05 | Q103: 0.001120711442 | R103: 1.248453121e-06
A104: 47.8957 | B104: ='DF raw data'!A109 -> 2.682558e-06 | C104: ='DF raw data'!B109 -> 2.1711163e-07 | D104: ='DF raw data'!C109 -> -6.2428276e-06 | F104: 2.684918651e-06 | G104: 2.178059726e-07 | H104: -6.248321288e-06 | J104: -1.169019333e-05 | K104: 1.6512464e-06 | L104: 5.739732123e-06 | N104: -0.0002782634653 | O104: -0.006743096099 | P104: 1.13633767e-05 | Q104: 0.001126394835 | R104: 1.287244596e-06
A105: 48.39585 | B105: ='DF raw data'!A110 -> 1.3379574e-06 | C105: ='DF raw data'!B110 -> 4.5749775e-06 | D105: ='DF raw data'!C110 -> -7.5926778e-06 | F105: 1.339134803e-06 | G105: 4.58960869e-06 | H105: -7.599359356e-06 | J105: -1.249309326e-05 | K105: -2.775300366e-06 | L105: 2.691204678e-06 | N105: -0.0002845118859 | O105: -0.006885394718 | P105: 9.975310225e-06 | Q105: 0.001131383986 | R105: 1.327780013e-06
A106: 48.896 | B106: ='DF raw data'!A111 -> -6.806275e-06 | C106: ='DF raw data'!B111 -> 1.1750156e-05 | D106: ='DF raw data'!C111 -> -2.9752202e-06 | F106: -6.812264522e-06 | G106: 1.178773406e-05 | H106: -2.977838394e-06 | J106: -9.684611865e-06 | K106: -7.558488467e-07 | L106: 7.923562304e-06 | N106: -0.0002893556445 | O106: -0.007030115944 | P106: 9.597272424e-06 | Q106: 0.001136184062 | R106: 1.369701984e-06
A107: 49.39615 | B107: ='DF raw data'!A112 -> -9.1419042e-06 | C107: ='DF raw data'!B112 -> -4.7102176e-06 | D107: ='DF raw data'!C112 -> -7.1577716e-07 | F107: -9.149949076e-06 | G107: -4.725281301e-06 | H107: -7.164070439e-07 | J107: -8.445053013e-06 | K107: -4.697442052e-06 | L107: 1.340345067e-05 | N107: -0.0002935794378 | O107: -0.0071769497 | P107: 7.247846782e-06 | Q107: 0.001139809073 | R107: 1.412835629e-06
A108: 49.8963 | B108: ='DF raw data'!A113 -> -2.9554342e-06 | C108: ='DF raw data'!B113 -> -6.529498e-06 | D108: ='DF raw data'!C113 -> 3.0877879e-06 | F108: -2.958034982e-06 | G108: -6.550379923e-06 | H108: 3.090505153e-06 | J108: -6.279264895e-06 | K108: -8.221143743e-06 | L108: 5.961086744e-06 | N108: -0.0002967200121 | O108: -0.007325354214 | P108: 3.136041739e-06 | Q108: 0.001141377564 | R108: 1.456875137e-06
A109: 50.39645 | B109: ='DF raw data'!A114 -> -8.5963467e-07 | C109: ='DF raw data'!B114 -> 9.693108e-06 | D109: ='DF raw data'!C114 -> 5.6873218e-06 | F109: -8.603911485e-07 | G109: 9.724107433e-06 | H109: 5.692326643e-06 | J109: -1.891838654e-06 | K109: -3.961650726e-06 | L109: 4.509129745e-06 | N109: -0.0002976662153 | O109: -0.007474231971 | P109: 1.154622128e-06 | Q109: 0.001141955048 | R109: 1.501191683e-06
A110: 50.8966 | B110: ='DF raw data'!A115 -> -1.9435122e-06 | C110: ='DF raw data'!B115 -> -5.9366821e-06 | D110: ='DF raw data'!C115 -> 3.2250216e-06 | F110: -1.945222491e-06 | G110: -5.955668145e-06 | H110: 3.227859619e-06 | J110: 1.09829485e-06 | K110: 7.059079504e-06 | L110: 1.241491852e-05 | N110: -0.0002971169031 | O110: -0.00762283499 | P110: 4.685220742e-06 | Q110: 0.001144298361 | R110: 1.54535513e-06
A111: 51.39675 | B111: ='DF raw data'!A116 -> -1.947383e-06 | C111: ='DF raw data'!B116 -> -1.1775456e-05 | D111: ='DF raw data'!C116 -> -4.4127896e-06 | F111: -1.949096697e-06 | G111: -1.181311497e-05 | H111: -4.416672855e-06 | J111: 9.340804381e-07 | K111: 6.619636807e-06 | L111: 1.486626281e-05 | N111: -0.0002966497228 | O111: -0.007771204349 | P111: 7.996032091e-06 | Q111: 0.001148297577 | R111: 1.589400837e-06
A112: 51.8969 | B112: ='DF raw data'!A117 -> 5.4617493e-07 | C112: ='DF raw data'!B117 -> -3.1968914e-06 | D112: ='DF raw data'!C117 -> -6.315769e-06 | F112: 5.466555639e-07 | G112: -3.207115347e-06 | H112: -6.321326877e-06 | J112: 2.60936282e-06 | K112: -7.860968442e-07 | L112: 9.637706125e-06 | N112: -0.0002953446499 | O112: -0.007918920976 | P112: 7.602865754e-06 | Q112: 0.00115210015 | R112: 1.633057063e-06
A113: 52.39705 | B113: ='DF raw data'!A118 -> 9.3185344e-07 | C113: ='DF raw data'!B118 -> 6.1623587e-06 | D113: ='DF raw data'!C118 -> -8.9993637e-06 | F113: 9.32673471e-07 | G113: 6.182066479e-06 | H113: -9.00728314e-06 | J113: 3.248382663e-06 | K113: -3.01182448e-06 | L113: 5.62362584e-06 | N113: -0.0002937199713 | O113: -0.00806582502 | P113: 6.09650174e-06 | Q113: 0.001155149315 | R113: 1.676224304e-06
A114: 52.8972 | B114: ='DF raw data'!A119 -> 1.651613e-06 | C114: ='DF raw data'!B119 -> -4.9032924e-06 | D114: ='DF raw data'!C119 -> -5.5799478e-06 | F114: 1.653066419e-06 | G114: -4.918973571e-06 | H114: -5.584858154e-06 | J114: 2.337051697e-06 | K114: -2.566754143e-06 | L114: 2.25815553e-06 | N114: -0.0002925510949 | O114: -0.00821214445 | P114: 4.812739656e-06 | Q114: 0.001157556407 | R114: 1.719041798e-06
A115: 53.39735 | B115: ='DF raw data'!A120 -> 1.7780364e-06 | C115: ='DF raw data'!B120 -> -1.3963126e-05 | D115: ='DF raw data'!C120 -> -6.5509716e-06 | F115: 1.779601072e-06 | G115: -1.400778134e-05 | H115: -6.556736455e-06 | J115: 1.843072778e-06 | K115: -5.019270006e-07 | L115: 3.397764804e-06 | N115: -0.0002916292821 | O115: -0.008358002835 | P115: 4.561700867e-06 | Q115: 0.001159837942 | R115: 1.761588782e-06
A116: 53.8975 | B116: ='DF raw data'!A121 -> -1.468323e-06 | C116: ='DF raw data'!B121 -> -3.8276003e-06 | D116: ='DF raw data'!C121 -> -9.9604049e-06 | F116: -1.469615124e-06 | G116: -3.839841311e-06 | H116: -9.969170056e-06 | J116: -1.113590098e-06 | K116: -5.840289229e-06 | L116: 1.17099567e-05 | N116: -0.0002921862442 | O116: -0.008504139785 | P116: 1.640680209e-06 | Q116: 0.001160658528 | R116: 1.804289335e-06
A117: 54.39765 | B117: ='DF raw data'!A122 -> -9.3368799e-06 | C117: ='DF raw data'!B122 -> 2.1672829e-06 | D117: ='DF raw data'!C122 -> -7.7221894e-06 | F117: -9.345096354e-06 | G117: 2.174214066e-06 | H117: -7.728984927e-06 | J117: -8.949320978e-06 | K117: -7.893072687e-06 | L117: 1.272273616e-05 | N117: -0.0002966622471 | O117: -0.008652515408 | P117: -2.307040095e-06 | Q117: 0.001159504662 | R117: 1.848309443e-06
A118: 54.8978 | B118: ='DF raw data'!A123 -> -1.2560144e-05 | C118: ='DF raw data'!B123 -> -2.5980655e-06 | D118: ='DF raw data'!C123 -> 4.0264663e-06 | F118: -1.257119693e-05 | G118: -2.606374348e-06 | H118: 4.03000959e-06 | J118: -1.17362238e-05 | K118: -2.00885241e-06 | L118: 6.086186735e-06 | N118: -0.0003025321194 | O118: -0.008803826848 | P118: -3.311767628e-06 | Q118: 0.001157848281 | R118: 1.894091499e-06
A119: 55.39795 | B119: ='DF raw data'!A124 -> -1.0626412e-05 | C119: ='DF raw data'!B124 -> -2.4452922e-06 | D119: ='DF raw data'!C124 -> 3.4939665e-06 | F119: -1.063576324e-05 | G119: -2.453112465e-06 | H119: 3.497041191e-06 | J119: -7.252994323e-06 | K119: 2.750053682e-06 | L119: 3.946785818e-06 | N119: -0.0003061597045 | O119: -0.008956952624 | P119: -1.936328279e-06 | Q119: 0.001156879827 | R119: 1.940974316e-06
A120: 55.8981 | B120: ='DF raw data'!A125 -> -7.4626228e-06 | C120: ='DF raw data'!B125 -> 4.5236056e-06 | D120: ='DF raw data'!C125 -> -1.0295572e-05 | F120: -7.469189908e-06 | G120: 4.538072499e-06 | H120: -1.03046321e-05 | J120: -2.938922878e-06 | K120: 3.210244422e-06 | L120: 9.232701334e-06 | N120: -0.0003076296068 | O120: -0.009110813572 | P120: -3.307245315e-07 | Q120: 0.001156714415 | R120: 1.988306554e-06
A121: 56.39825 | B121: ='DF raw data'!A126 -> -5.8843984e-06 | C121: ='DF raw data'!B126 -> -2.9364969e-07 | D121: ='DF raw data'!C126 -> -1.0189816e-05 | F121: -5.889576671e-06 | G121: -2.945888082e-07 | H121: -1.019878304e-05 | J121: -1.06735895e-06 | K121: 1.6527208e-06 | L121: 9.258611915e-06 | N121: -0.0003081634464 | O121: -0.009264941519 | P121: 4.958837768e-07 | Q121: 0.001156962431 | R121: 2.035803276e-06
A122: 56.8984 | B122: ='DF raw data'!A127 -> -8.1175676e-06 | C122: ='DF raw data'!B127 -> -7.1221007e-07 | D122: ='DF raw data'!C127 -> -3.024071e-06 | F122: -8.124711059e-06 | G122: -7.14487782e-07 | H122: -3.026732182e-06 | J122: -2.784930084e-06 | K122: -4.879083305e-06 | L122: 1.946943804e-06 | N122: -0.0003095563291 | O122: -0.009419766117 | P122: -1.944389738e-06 | Q122: 0.001155989945 | R122: 2.083732102e-06
A123: 57.39855 | B123: ='DF raw data'!A128 -> -7.6326323e-06 | C123: ='DF raw data'!B128 -> -2.1831104e-06 | D123: ='DF raw data'!C128 -> -1.16056e-06 | F123: -7.639349016e-06 | G123: -2.190092184e-06 | H123: -1.161581293e-06 | J123: -8.273021858e-06 | K123: -7.048851398e-06 | L123: 4.492879157e-06 | N123: -0.000313694081 | O123: -0.009576660212 | P123: -5.469872765e-06 | Q123: 0.001153254188 | R123: 2.132963815e-06
A124: 57.8987 | B124: ='DF raw data'!A129 -> -3.1531456e-06 | C124: ='DF raw data'!B129 -> 1.3992533e-05 | D124: ='DF raw data'!C129 -> 2.1958974e-06 | F124: -3.155920368e-06 | G124: 1.403728238e-05 | H124: 2.19782979e-06 | J124: -1.575921191e-05 | K124: 7.66155403e-06 | L124: 1.098394537e-05 | N124: -0.0003215760509 | O124: -0.009737496474 | P124: -1.637946517e-06 | Q124: 0.001152434969 | R124: 2.184686246e-06
A125: 58.39885 | B125: ='DF raw data'!A130 -> 2.7989688e-06 | C125: ='DF raw data'!B130 -> 7.2545927e-06 | D125: ='DF raw data'!C130 -> 1.1670068e-05 | F125: 2.801431893e-06 | G125: 7.277793541e-06 | H125: 1.168033766e-05 | J125: -1.642348496e-05 | K125: 8.44379754e-06 | L125: 1.314865564e-05 | N125: -0.0003297902569 | O125: -0.009902441071 | P125: 2.585218822e-06 | Q125: 0.001153727966 | R125: 2.23908671e-06
A126: 58.899 | B126: ='DF raw data'!A131 -> 6.4096462e-06 | C126: ='DF raw data'!B131 -> -3.0269032e-06 | D126: ='DF raw data'!C131 -> 4.1293574e-06 | F126: 6.415286689e-06 | G126: -3.036583509e-06 | H126: 4.132991235e-06 | J126: -1.018781139e-05 | K126: 4.521841355e-07 | L126: 1.429519471e-05 | N126: -0.0003348856907 | O126: -0.01006993415 | P126: 2.811378718e-06 | Q126: 0.001155134077 | R126: 2.295181698e-06
A127: 59.39915 | B127: ='DF raw data'!A132 -> 5.9776435e-06 | C127: ='DF raw data'!B132 -> 1.6842757e-06 | D127: ='DF raw data'!C132 -> -3.9561614e-06 | F127: 5.982903826e-06 | G127: 1.689662166e-06 | H127: -3.959642822e-06 | J127: -7.590843069e-06 | K127: -5.658779394e-06 | L127: 1.454326082e-05 | N127: -0.0003386822509 | O127: -0.01023932608 | P127: -1.885979626e-08 | Q127: 0.001155124644 | R127: 2.352551738e-06
A128: 59.8993 | B128: ='DF raw data'!A133 -> -2.0225436e-06 | C128: ='DF raw data'!B133 -> 7.6324586e-06 | D128: ='DF raw data'!C133 -> -1.3239489e-06 | F128: -2.024323438e-06 | G128: 7.656867891e-06 | H128: -1.325113975e-06 | J128: -8.890529587e-06 | K128: -5.825968175e-06 | L128: 1.083040338e-05 | N128: -0.0003431288493 | O128: -0.01041094197 | P128: -2.932717779e-06 | Q128: 0.001153657846 | R128: 2.411442404e-06
A129: 60.39945 | B129: ='DF raw data'!A134 -> -7.7417026e-06 | C129: ='DF raw data'!B134 -> 4.3466835e-06 | D129: ='DF raw data'!C134 -> -5.2554983e-06 | F129: -7.748515298e-06 | G129: 4.360584586e-06 | H129: -5.260123139e-06 | J129: -5.750812265e-06 | K129: 8.894480971e-06 | L129: 7.95486913e-06 | N129: -0.000346005118 | O129: -0.01058399643 | P129: 1.515856879e-06 | Q129: 0.001154416001 | R129: 2.471321282e-06
A130: 60.8996 | B130: ='DF raw data'!A135 -> -6.0602165e-06 | C130: ='DF raw data'!B135 -> -5.6125891e-06 | D130: ='DF raw data'!C135 -> -1.6982497e-06 | F130: -6.065549491e-06 | G130: -5.630538666e-06 | H130: -1.69974416e-06 | J130: 1.909728884e-07 | K130: 8.484757115e-06 | L130: 1.223293151e-05 | N130: -0.0003459096029 | O130: -0.01075700312 | P130: 5.75950815e-06 | Q130: 0.001157296619 | R130: 2.531182548e-06
A131: 61.39975 | B131: ='DF raw data'!A136 -> -3.0468802e-06 | C131: ='DF raw data'!B136 -> -7.9300835e-06 | D131: ='DF raw data'!C136 -> 5.4396755e-06 | F131: -3.049561455e-06 | G131: -7.955444622e-06 | H131: 5.444462414e-06 | J131: 1.349827604e-06 | K131: 5.422311861e-06 | L131: 1.317903035e-05 | N131: -0.0003452344867 | O131: -0.01092967215 | P131: 8.471477427e-06 | Q131: 0.001161533629 | R131: 2.590829745e-06
A132: 61.8999 | B132: ='DF raw data'!A137 -> 7.8887632e-07 | C132: ='DF raw data'!B137 -> -1.6030313e-05 | D132: ='DF raw data'!C137 -> -3.6502145e-06 | F132: 7.895705312e-07 | G132: -1.608157939e-05 | H132: -3.653426689e-06 | J132: -2.964978287e-06 | K132: 7.586729597e-06 | L132: 1.158878917e-05 | N132: -0.0003467174205 | O132: -0.01110308286 | P132: 1.226598023e-05 | Q132: 0.001167668459 | R132: 2.651029511e-06
A133: 62.40005 | B133: ='DF raw data'!A138 -> 1.0259034e-06 | C133: ='DF raw data'!B138 -> -1.9648244e-06 | D133: ='DF raw data'!C138 -> -5.6681324e-06 | F133: 1.026806195e-06 | G133: -1.971108086e-06 | H133: -5.673120357e-06 | J133: -5.071774037e-06 | K133: 9.005181071e-06 | L133: 1.418641407e-05 | N133: -0.0003492540683 | O133: -0.01127776229 | P133: 1.676992155e-05 | Q133: 0.001176055935 | R133: 2.712177667e-06
A134: 62.9002 | B134: ='DF raw data'!A139 -> -6.6263187e-06 | C134: ='DF raw data'!B139 -> 9.0401163e-06 | D134: ='DF raw data'!C139 -> 2.4115986e-06 | F134: -6.63214986e-06 | G134: 9.069027407e-06 | H134: 2.413720807e-06 | J134: -3.354269562e-06 | K134: -2.390200508e-06 | L134: 1.077524688e-05 | N134: -0.0003509317063 | O134: -0.01145328078 | P134: 1.557446276e-05 | Q134: 0.001183845503 | R134: 2.77389399e-06
A135: 63.40035 | B135: ='DF raw data'!A140 -> -1.2474036e-05 | C135: ='DF raw data'!B140 -> -2.1959498e-07 | D135: ='DF raw data'!C140 -> 1.0127877e-05 | F135: -1.248501315e-05 | G135: =(1-$G$1*($B$2-$G$2))*C135*$M$2/$M$1 -> -2.202972645e-07 | H135: 1.013678953e-05 | J135: =-CELL("contents", INDEX($F$6:$F$1203,1204-CELL("row",F135))) -> -4.018944061e-06 | K135: =CELL("contents", INDEX($G$6:$G$1203,1204-CELL("row",G135))) -> -1.584880733e-05 | L135: =-CELL("contents", INDEX($H$6:$H$1203,1204-CELL("row",H135))) -> 1.216534009e-06 | N135: -0.0003529417811 | O135: -0.01162980461 | P135: 7.647681776e-06 | Q135: 0.001187670491 | R135: 2.836225878e-06
A136: =A135+$B$1 -> 63.9005 | B136: ='DF raw data'!A141 -> -6.9379062e-06 | C136: ='DF raw data'!B141 -> 2.6837777e-06 | D136: ='DF raw data'!C141 -> 2.7721205e-06 | F136: -6.944011557e-06 | G136: 2.692360663e-06 | H136: 2.774559966e-06 | J136: -2.998315998e-06 | K136: -6.66643038e-06 | L136: 2.943003266e-06 | N136: =J136*$B$1+N135 -> -0.0003544413889 | O136: =N136*$B$1+O135 -> -0.01180707847 | P136: =K136*$B$1+P135 -> 4.313466621e-06 | Q136: =P136*$B$1+Q135 -> 0.001189827871 | R136: =(N136^2+P136^2)*$B$1+R135 -> 2.899068377e-06
A137: 64.40065 | B137: ='DF raw data'!A142 -> 3.7013549e-06 | C137: ='DF raw data'!B142 -> 5.1523175e-06 | D137: ='DF raw data'!C142 -> -8.2620109e-06 | F137: 3.704612092e-06 | G137: 5.168795076e-06 | H137: -8.26928147e-06 | J137: -3.837959034e-08 | K137: -6.987815321e-06 | L137: 1.616194801e-05 | N137: -0.0003544605844 | O137: -0.01198436193 | P137: 8.185107885e-07 | Q137: 0.001190237249 | R137: 2.961908711e-06
A138: 64.9008 | B138: ='DF raw data'!A143 -> 4.9874157e-06 | C138: ='DF raw data'!B143 -> 4.9997539e-07 | D138: ='DF raw data'!C143 -> -1.2699068e-06 | F138: 4.991804626e-06 | G138: 5.015743564e-07 | H138: -1.271024318e-06 | J138: -2.877459738e-06 | K138: -1.285316053e-05 | L138: 1.704656179e-05 | N138: -0.0003558997459 | O138: -0.01216236519 | P138: -5.609997449e-06 | Q138: 0.001187431409 | R138: 3.025275766e-06
A139: 65.40095 | B139: ='DF raw data'!A144 -> -2.5569391e-06 | C139: ='DF raw data'!B144 -> 8.1459871e-07 | D139: ='DF raw data'!C144 -> -2.5671118e-06 | F139: =(1-$G$1*($B$2-$G$2))*B139 -> -2.559189206e-06 | G139: 8.172038701e-07 | H139: =(1-$G$1*($B$2-$G$2))*D139 -> -2.569370858e-06 | J139: -7.557438899e-06 | K139: -1.254503024e-05 | L139: 1.36614395e-05 | N139: -0.000359679599 | O139: -0.01234225894 | P139: -1.188439432e-05 | Q139: 0.001181487429 | R139: 3.090050519e-06
A140: 65.9011 | B140: ='DF raw data'!A145 -> -7.8863486e-06 | C140: ='DF raw data'!B145 -> 1.3523536e-05 | D140: ='DF raw data'!C145 -> -2.7657745e-06 | F140: -7.893288587e-06 | G140: 1.356678549e-05 | H140: -2.768208382e-06 | J140: -1.102591928e-05 | K140: -9.254896739e-06 | L140: 1.606962283e-05 | N140: -0.0003651942125 | O140: -0.01252491083 | P140: -1.651323093e-05 | Q140: 0.001173228337 | R140: 3.156890315e-06
A141: 66.40125 | B141: ='DF raw data'!A146 -> -7.3090982e-06 | C141: ='DF raw data'!B146 -> 1.0164241e-05 | D141: ='DF raw data'!C146 -> -1.1054519e-06 | F141: -7.315530206e-06 | G141: 1.019674716e-05 | H141: -1.106424698e-06 | J141: -1.436178526e-05 | K141: -3.260655126e-06 | L141: 1.272859832e-05 | N141: -0.0003723772594 | O141: -0.01271115531 | P141: -1.814404759e-05 | Q141: 0.001164153591 | R141: 3.226408179e-06
A142: 66.9014 | B142: ='DF raw data'!A147 -> -5.3293102e-06 | C142: ='DF raw data'!B147 -> 1.1572381e-06 | D142: ='DF raw data'!C147 -> -8.2742563e-06 | F142: -5.333999993e-06 | G142: 1.160939052e-06 | H142: -8.281537646e-06 | J142: -1.514597874e-05 | K142: -9.001650115e-06 | L142: 1.529331929e-05 | N142: -0.0003799525207 | O142: -0.01290118857 | P142: -2.264622289e-05 | Q142: 0.001152827083 | R142: 3.298868295e-06
A143: 67.40155 | B143: ='DF raw data'!A148 -> -8.3193328e-07 | C143: ='DF raw data'!B148 -> -8.3989462e-06 | D143: ='DF raw data'!C148 -> -1.1579e-05 | F143: -8.326653813e-07 | G143: -8.425806787e-06 | H143: -1.158918952e-05 | J143: -1.72459601e-05 | K143: -7.846087603e-06 | L143: 1.940258426e-05 | N143: -0.0003885780876 | O143: -0.0130955359 | P143: -2.657044361e-05 | Q143: 0.001139537876 | R143: 3.374740509e-06
A144: 67.9017 | B144: ='DF raw data'!A149 -> 3.948127e-06 | C144: ='DF raw data'!B149 -> -2.9041505e-06 | D144: ='DF raw data'!C149 -> -1.5129525e-05 | F144: 3.951601352e-06 | G144: -2.913438235e-06 | H144: -1.514283898e-05 | J144: -1.747965457e-05 | K144: -6.04561649e-06 | L144: 1.773160609e-05 | N144: -0.0003973205368 | O144: -0.01329425577 | P144: -2.95941587e-05 | Q144: 0.001124736357 | R144: 3.454134032e-06
A145: 68.40185 | B145: ='DF raw data'!A150 -> 1.9148063e-06 | C145: ='DF raw data'!B150 -> 8.7926101e-06 | D145: ='DF raw data'!C150 -> -1.5340769e-05 | F145: 1.91649133e-06 | G145: 8.82072966e-06 | H145: -1.535426888e-05 | J145: -1.00250663e-05 | K145: -5.475269584e-06 | L145: 1.062323923e-05 | N145: -0.0004023345738 | O145: -0.0134954834 | P145: -3.233261478e-05 | Q145: 0.0011085652 | R145: 3.535617723e-06
A146: 68.902 | B146: ='DF raw data'!A151 -> -6.5911928e-07 | C146: ='DF raw data'!B151 -> 2.4516164e-06 | D146: ='DF raw data'!C151 -> -9.3240787e-06 | F146: -6.59699305e-07 | G146: 2.45945689e-06 | H146: -9.332283889e-06 | J146: -3.478332742e-06 | K146: -1.400430626e-05 | L146: 8.293662806e-06 | N146: -0.0004040742619 | O146: -0.01369758114 | P146: -3.933686855e-05 | Q146: 0.001088890865 | R146: 3.618054146e-06
A147: 69.40215 | B147: ='DF raw data'!A152 -> -1.2995135e-06 | C147: ='DF raw data'!B152 -> 5.6532017e-06 | D147: ='DF raw data'!C152 -> -3.6416943e-06 | F147: -1.300657072e-06 | G147: 5.671281149e-06 | H147: -3.644898991e-06 | J147: -4.475043776e-06 | K147: -5.697465321e-06 | L147: 8.554181962e-06 | N147: -0.000406312455 | O147: -0.01390079832 | P147: -4.218645583e-05 | Q147: 0.001067791309 | R147: 3.701513931e-06
A148: 69.9023 | B148: ='DF raw data'!A153 -> -2.263162e-07 | C148: ='DF raw data'!B153 -> 5.6552026e-06 | D148: ='DF raw data'!C153 -> -1.0038905e-06 | F148: -2.265153583e-07 | G148: 5.673288448e-06 | H148: -1.004773924e-06 | J148: -1.172526716e-05 | K148: 1.080438424e-07 | L148: 2.472184109e-06 | N148: -0.0004121768474 | O148: -0.01410694857 | P148: -4.213241771e-05 | Q148: 0.00104671878 | R148: 3.787372127e-06
A149: 70.40245 | B149: ='DF raw data'!A154 -> 2.1342782e-06 | C149: ='DF raw data'!B154 -> -7.3813017e-06 | D149: ='DF raw data'!C154 -> -1.7946852e-06 | F149: 2.136156365e-06 | G149: -7.404907768e-06 | H149: -1.796264523e-06 | J149: -1.684718249e-05 | K149: -3.476559005e-06 | L149: 1.52628555e-06 | N149: -0.0004206029657 | O149: -0.01431731314 | P149: -4.387121869e-05 | Q149: 0.00102477659 | R149: 3.876814721e-06
A150: 70.9026 | B150: ='DF raw data'!A155 -> 2.459348e-06 | C150: ='DF raw data'!B155 -> 1.1879281e-06 | D150: ='DF raw data'!C155 -> -3.2275941e-06 | F150: 2.461512226e-06 | G150: 1.191727201e-06 | H150: -3.230434383e-06 | J150: -1.600038896e-05 | K150: -7.212156999e-06 | L150: 6.618352529e-06 | N150: -0.0004286055603 | O150: -0.01453168021 | P150: -4.747837901e-05 | Q150: 0.001001030279 | R150: 3.969821076e-06
A151: 71.40275 | B151: ='DF raw data'!A156 -> 3.7050256e-06 | C151: ='DF raw data'!B156 -> 4.8324919e-06 | D151: ='DF raw data'!C156 -> 2.7763151e-06 | F151: 3.708286023e-06 | G151: 4.847946645e-06 | H151: 2.778758257e-06 | J151: -9.529148878e-06 | K151: -5.553436974e-06 | L151: 9.331020478e-06 | N151: -0.0004333715641 | O151: -0.014748431 | P151: -5.025593052e-05 | Q151: 0.0009758947754 | R151: 4.065017912e-06
A152: 71.9029 | B152: ='DF raw data'!A157 -> 3.4242109e-06 | C152: ='DF raw data'!B157 -> -2.6331575e-06 | D152: ='DF raw data'!C157 -> 3.8593485e-06 | F152: 3.427224206e-06 | G152: -2.641578575e-06 | H152: 3.862744727e-06 | J152: -2.398711911e-06 | K152: -3.192655551e-06 | L152: 6.715874273e-06 | N152: -0.0004345712798 | O152: -0.01496578183 | P152: -5.185273719e-05 | Q152: 0.0009499606289 | R152: 4.160817095e-06
A153: 72.40305 | B153: ='DF raw data'!A158 -> -2.703455e-06 | C153: ='DF raw data'!B158 -> 8.918164e-06 | D153: ='DF raw data'!C158 -> 2.1055155e-06 | F153: -2.70583404e-06 | G153: 8.946685092e-06 | H153: 2.107368354e-06 | J153: -3.270425044e-06 | K153: -5.121089194e-06 | L153: 6.966340189e-06 | N153: -0.0004362069829 | O153: -0.01518395075 | P153: -5.441404995e-05 | Q153: 0.0009227454418 | R153: 4.257464791e-06
A154: 72.9032 | B154: ='DF raw data'!A159 -> -4.5476086e-06 | C154: ='DF raw data'!B159 -> 5.1282996e-06 | D154: ='DF raw data'!C159 -> -1.3698057e-06 | F154: -4.551610496e-06 | G154: 5.144700364e-06 | H154: -1.371011129e-06 | J154: -7.503257661e-06 | K154: -3.015700436e-06 | L154: 1.617133927e-05 | N154: -0.0004399597372 | O154: -0.01540399661 | P154: -5.592235252e-05 | Q154: 0.0008947758772 | R154: 4.355840235e-06
A155: 73.40335 | B155: ='DF raw data'!A160 -> -2.5187585e-06 | C155: ='DF raw data'!B160 -> 4.4722374e-06 | D155: ='DF raw data'!C160 -> -2.1487551e-06 | F155: -2.520975007e-06 | G155: 4.486540018e-06 | H155: -2.150646004e-06 | J155: -6.662877377e-06 | K155: -2.440535972e-06 | L155: 1.563737079e-05 | N155: -0.0004432921754 | O155: -0.01562570919 | P155: -5.714298659e-05 | Q155: 0.0008661958125 | R155: 4.455756838e-06
A156: 73.9035 | B156: ='DF raw data'!A161 -> -1.787452e-06 | C156: ='DF raw data'!B161 -> 9.0337135e-06 | D156: ='DF raw data'!C161 -> 1.2351873e-06 | F156: -1.789024958e-06 | G156: 9.06260413e-06 | H156: 1.236274265e-06 | J156: -2.999117002e-06 | K156: -1.261992801e-07 | L156: 1.071543029e-05 | N156: -0.0004447921837 | O156: -0.015848172 | P156: -5.720610516e-05 | Q156: 0.000837584179 | R156: 4.556343317e-06
A157: 74.40365 | B157: ='DF raw data'!A162 -> -2.6001255e-06 | C157: ='DF raw data'!B162 -> -2.3624336e-06 | D157: ='DF raw data'!C162 -> 1.338946e-06 | F157: -2.60241361e-06 | G157: -2.369988876e-06 | H157: 1.340124272e-06 | J157: -1.19402742e-06 | K157: 7.032921314e-07 | L157: 1.179581919e-05 | N157: -0.0004453893765 | O157: -0.0160709335 | P157: -5.68543536e-05 | Q157: 0.000809148474 | R157: 4.657175615e-06
A158: 74.9038 | B158: ='DF raw data'!A163 -> -4.2748038e-06 | C158: ='DF raw data'!B163 -> -1.5097023e-06 | D158: ='DF raw data'!C163 -> 4.5264865e-06 | F158: -4.278565627e-06 | G158: -1.514530464e-06 | H158: 4.530469808e-06 | J158: -3.553843933e-07 | K158: -4.634398576e-06 | L158: 1.093705014e-05 | N158: -0.000445567122 | O158: -0.0162937839 | P158: -5.917224805e-05 | Q158: 0.0007795534741 | R158: 4.758221627e-06
A159: 75.40395 | B159: ='DF raw data'!A164 -> -6.6480793e-06 | C159: ='DF raw data'!B164 -> 3.721442e-06 | D159: ='DF raw data'!C164 -> -2.3798684e-07 | F159: -6.65392961e-06 | G159: 3.733343507e-06 | H159: -2.381962684e-07 | J159: 1.025195179e-07 | K159: -2.106432084e-06 | L159: 5.683446736e-06 | N159: -0.0004455158469 | O159: -0.01651660865 | P159: -6.022578006e-05 | Q159: 0.0007494315503 | R159: 4.859307701e-06
A160: 75.9041 | B160: ='DF raw data'!A165 -> -9.6005406e-06 | C160: ='DF raw data'!B165 -> -1.7533414e-06 | D160: ='DF raw data'!C165 -> -7.1657973e-06 | F160: -9.608989076e-06 | G160: -1.758948744e-06 | H160: -7.172103202e-06 | J160: -5.933533018e-06 | K160: -5.838814828e-06 | L160: -6.480851935e-07 | N160: -0.0004484835034 | O160: -0.01674091767 | P160: -6.314606329e-05 | Q160: 0.0007178490467 | R160: 4.961900909e-06
A161: 76.40425 | B161: ='DF raw data'!A166 -> -8.7672397e-06 | C161: ='DF raw data'!B166 -> 8.8900097e-06 | D161: ='DF raw data'!C166 -> -5.6107615e-06 | F161: -8.774954871e-06 | G161: 8.918440752e-06 | H161: -5.61569897e-06 | J161: -9.943293105e-06 | K161: -8.969256147e-06 | L161: 4.887291735e-06 | N161: -0.0004534566415 | O161: -0.01696771401 | P161: -6.763203675e-05 | Q161: 0.0006840228835 | R161: 5.067030948e-06
A162: 76.9044 | B162: ='DF raw data'!A167 -> -8.7137068e-06 | C162: ='DF raw data'!B167 -> 1.7822691e-05 | D162: ='DF raw data'!C167 -> -3.849143e-06 | F162: -8.721374862e-06 | G162: 1.787968957e-05 | H162: -3.852530246e-06 | J162: -7.249920721e-06 | K162: 3.610198233e-06 | L162: 9.911814228e-06 | N162: -0.0004570826893 | O162: -0.01719632392 | P162: -6.582639611e-05 | Q162: 0.0006510998115 | R162: 5.173691786e-06
A163: 77.40455 | B163: ='DF raw data'!A168 -> -1.0575282e-05 | C163: ='DF raw data'!B168 -> 5.1201614e-06 | D163: ='DF raw data'!C168 -> -1.1911081e-06 | F163: -1.058458825e-05 | G163: 5.136536138e-06 | H163: -1.192156275e-06 | J163: -9.293583663e-06 | K163: -1.314242066e-05 | L163: 5.922253601e-06 | N163: -0.0004617308752 | O163: -0.01742725862 | P163: -7.23995778e-05 | Q163: 0.0006148891627 | R163: 5.282943102e-06
A164: 77.9047 | B164: ='DF raw data'!A169 -> -9.5271826e-06 | C164: ='DF raw data'!B169 -> 1.5728285e-05 | D164: ='DF raw data'!C169 -> 5.1373195e-06 | F164: -9.535566521e-06 | G164: 1.577858547e-05 | H164: 5.141840341e-06 | J164: -1.086791836e-05 | K164: -9.314597157e-06 | L164: 4.151175923e-07 | N164: -0.0004671664646 | O164: -0.01766091192 | P164: -7.705827357e-05 | Q164: 0.0005763484671 | R164: 5.395067971e-06
A165: 78.40485 | B165: ='DF raw data'!A170 -> -7.643046e-06 | C165: ='DF raw data'!B170 -> 1.4162252e-05 | D165: ='DF raw data'!C170 -> 8.0945165e-06 | F165: -7.64977188e-06 | G165: 1.420754416e-05 | H165: 8.101639675e-06 | J165: -1.433051877e-05 | K165: 4.380796118e-06 | L165: 2.364004595e-06 | N165: -0.0004743338735 | O165: -0.01789815001 | P165: -7.486721839e-05 | Q165: 0.0005389036279 | R165: 5.510401422e-06
A166: 78.905 | B166: ='DF raw data'!A171 -> -2.5833053e-06 | C166: ='DF raw data'!B171 -> 1.3964914e-05 | D166: ='DF raw data'!C171 -> 2.8782749e-06 | F166: -2.585578609e-06 | G166: 1.400957505e-05 | H166: 2.880807782e-06 | J166: -1.895671824e-05 | K166: -1.681715633e-06 | L166: 7.966794015e-06 | N166: -0.0004838150762 | O166: -0.01814013012 | P166: -7.570832846e-05 | Q166: 0.0005010381074 | R166: 5.630341783e-06
A167: 79.40515 | B167: ='DF raw data'!A172 -> 2.2548945e-06 | C167: ='DF raw data'!B172 -> 5.1156248e-06 | D167: ='DF raw data'!C172 -> 4.9869072e-06 | F167: 2.256878807e-06 | G167: 5.131985029e-06 | H167: 4.991295678e-06 | J167: -1.682613798e-05 | K167: -1.170393792e-06 | L167: 8.88544922e-06 | N167: -0.0004922306691 | O167: -0.01838631929 | P167: -7.629370092e-05 | Q167: 0.0004628798129 | R167: 5.75443488e-06
A168: 79.9053 | B168: ='DF raw data'!A173 -> 6.7713613e-06 | C168: ='DF raw data'!B173 -> -6.4411679e-06 | D168: ='DF raw data'!C173 -> 5.2208457e-06 | F168: 6.777320098e-06 | G168: -6.461767336e-06 | H168: 5.225440044e-06 | J168: -9.722291694e-06 | K168: -1.413789011e-05 | L168: 1.055236291e-05 | N168: -0.0004970932733 | O168: -0.01863494049 | P168: -8.336476666e-05 | Q168: 0.0004211849248 | R168: 5.881498691e-06
A169: 80.40545 | B169: ='DF raw data'!A174 -> 9.4944717e-06 | C169: ='DF raw data'!B174 -> 1.0175397e-06 | D169: ='DF raw data'!C174 -> -2.9610467e-06 | F169: 9.502826835e-06 | G169: 1.020793884e-06 | H169: -2.963652421e-06 | J169: -3.23935933e-06 | K169: -1.526734971e-05 | L169: 1.586438739e-05 | N169: -0.0004987134388 | O169: -0.01888437202 | P169: -9.100073161e-05 | Q169: 0.0003756709089 | R169: 6.010035354e-06
A170: 80.9056 | B170: ='DF raw data'!A175 -> 9.7672764e-06 | C170: ='DF raw data'!B175 -> 6.8813979e-06 | D170: ='DF raw data'!C175 -> -7.4933791e-06 | F170: 9.775871603e-06 | G170: 6.903405231e-06 | H170: -7.499973274e-06 | J170: -3.043077053e-06 | K170: -2.165491158e-07 | L170: 1.892010906e-05 | N170: -0.0005002354338 | O170: -0.01913456477 | P170: -9.110903865e-05 | Q170: 0.0003301027232 | R170: 6.139342308e-06
A171: 81.40575 | B171: ='DF raw data'!A176 -> 1.061673e-05 | C171: ='DF raw data'!B176 -> -1.4308491e-06 | D171: ='DF raw data'!C176 -> -6.1674887e-06 | F171: 1.062607272e-05 | G171: -1.435425084e-06 | H171: -6.17291609e-06 | J171: -6.018044823e-06 | K171: -5.6452612e-06 | L171: 1.54088899e-05 | N171: -0.0005032453589 | O171: -0.01938626293 | P171: -9.393251604e-05 | Q171: 0.0002831223753 | R171: 6.270421224e-06
A172: 81.9059 | B172: ='DF raw data'!A177 -> 6.8080067e-06 | C172: ='DF raw data'!B177 -> 1.2368456e-05 | D172: ='DF raw data'!C177 -> 9.7249972e-07 | F172: 6.813997746e-06 | G172: 1.240801144e-05 | H172: 9.733555198e-07 | J172: -7.959022782e-06 | K172: -6.403680059e-06 | L172: 1.129935469e-05 | N172: -0.0005072260642 | O172: -0.01963995205 | P172: -9.713531662e-05 | Q172: 0.0002345401467 | R172: 6.403818006e-06
A173: 82.40605 | B173: ='DF raw data'!A178 -> 1.0062129e-06 | C173: ='DF raw data'!B178 -> 1.2653724e-05 | D173: ='DF raw data'!C178 -> -1.6724273e-06 | F173: 1.007098367e-06 | G173: 1.269419175e-05 | H173: -1.673899036e-06 | J173: -8.841559331e-06 | K173: -1.026901956e-06 | L173: 1.239859817e-05 | N173: -0.0005116481701 | O173: -0.01989585288 | P173: -9.764892164e-05 | Q173: 0.0001857010386 | R173: 6.539518285e-06
A174: 82.9062 | B174: ='DF raw data'!A179 -> 4.4558394e-07 | C174: ='DF raw data'!B179 -> 5.4885504e-06 | D174: ='DF raw data'!C179 -> 1.5452951e-08 | F174: 4.459760539e-07 | G174: 5.506103279e-06 | H174: 1.54665496e-08 | J174: -1.016021913e-05 | K174: -4.135844538e-07 | L174: 9.226838979e-06 | N174: -0.0005167298037 | O174: -0.02015429529 | P174: -9.78557759e-05 | Q174: 0.0001367584722 | R174: 6.677852494e-06
A175: 83.40635 | B175: ='DF raw data'!A180 -> 1.9907663e-06 | C175: ='DF raw data'!B180 -> 1.1383364e-05 | D175: ='DF raw data'!C180 -> 5.6638481e-07 | F175: 1.992518174e-06 | G175: 1.141976902e-05 | H175: 5.668832286e-07 | J175: -1.060883557e-05 | K175: -3.59809846e-06 | L175: 3.212781962e-06 | N175: -0.0005220358128 | O175: -0.02041539151 | P175: -9.965536485e-05 | Q175: 8.691584152e-05 | R175: 6.819121153e-06
A176: 83.9065 | B176: ='DF raw data'!A181 -> 1.3408942e-06 | C176: ='DF raw data'!B181 -> 3.6512581e-06 | D176: ='DF raw data'!C181 -> -5.4273419e-06 | F176: 1.342074187e-06 | G176: 3.662935153e-06 | H176: -5.432117961e-06 | J176: -9.383039215e-06 | K176: -6.865098413e-07 | L176: 6.330386142e-06 | N176: -0.0005267287399 | O176: -0.02067883488 | P176: -9.999872274e-05 | Q176: 3.690148034e-05 | R176: 6.962885724e-06
A177: 84.40665 | B177: ='DF raw data'!A182 -> -1.6273864e-06 | C177: ='DF raw data'!B182 -> -6.2654462e-06 | D177: ='DF raw data'!C182 -> -5.7979137e-06 | F177: -1.6288185e-06 | G177: -6.285483662e-06 | H177: -5.803015864e-06 | J177: -5.065827909e-06 | K177: -1.989845218e-06 | L177: 1.247746652e-05 | N177: -0.0005292624137 | O177: -0.02094354548 | P177: -0.0001009939438 | Q177: -1.361064067e-05 | R177: 7.108088511e-06
A178: 84.9068 | B178: ='DF raw data'!A183 -> -1.6888628e-06 | C178: ='DF raw data'!B183 -> 4.6053983e-06 | D178: ='DF raw data'!C183 -> -8.416283e-06 | F178: -1.690348999e-06 | G178: 4.620126779e-06 | H178: -8.423689329e-06 | J178: -4.557618378e-06 | K178: -1.628262931e-05 | L178: 5.540759782e-06 | N178: -0.0005315419065 | O178: -0.02120939617 | P178: -0.0001091377009 | Q178: -6.819586176e-05 | R178: 7.255356597e-06
A179: 85.40695 | B179: ='DF raw data'!A184 -> 7.4562257e-07 | C179: ='DF raw data'!B184 -> 1.9010862e-05 | D179: ='DF raw data'!C184 -> -7.10011e-06 | F179: 7.462787179e-07 | G179: 1.907166045e-05 | H179: -7.106358097e-06 | J179: -8.49923375e-06 | K179: -1.844009107e-05 | L179: 6.644510428e-07 | N179: -0.0005357927983 | O179: -0.02147737293 | P179: -0.0001183605124 | Q179: -0.0001273938721 | R179: 7.405943326e-06
A180: 85.9071 | B180: ='DF raw data'!A185 -> 3.7976926e-07 | C180: ='DF raw data'!B185 -> 1.9918032e-05 | D180: ='DF raw data'!C185 -> -5.0839203e-06 | F180: 3.801034569e-07 | G180: 1.998173166e-05 | H180: -5.08839415e-06 | J180: -9.354912985e-06 | K180: -1.177898416e-05 | L180: -5.380414402e-07 | N180: -0.000540471658 | O180: -0.02174768983 | P180: -0.0001242517714 | Q180: -0.0001895383955 | R180: 7.559763516e-06
A181: 86.40725 | B181: ='DF raw data'!A186 -> 1.1105419e-06 | C181: ='DF raw data'!B186 -> 5.0383687e-06 | D181: ='DF raw data'!C186 -> -5.9045607e-07 | F181: 1.111519177e-06 | G181: 5.054481857e-06 | H181: -5.909756713e-07 | J181: -9.360992831e-06 | K181: -5.388262716e-06 | L181: 1.671564984e-06 | N181: -0.0005451535586 | O181: -0.02202034839 | P181: -0.000126946711 | Q181: -0.000253030793 | R181: 7.716464447e-06
A182: 86.9074 | B182: ='DF raw data'!A187 -> 3.0996086e-06 | C182: ='DF raw data'!B187 -> 6.8329655e-06 | D182: ='DF raw data'!C187 -> 8.6681274e-07 | F182: 3.102336256e-06 | G182: 6.85481794e-06 | H182: 8.675755352e-07 | J182: -9.658155904e-06 | K182: -1.63140896e-05 | L182: 1.227456512e-05 | N182: -0.0005499840853 | O182: -0.02229542293 | P182: -0.0001351062029 | Q182: -0.0003206041604 | R182: 7.876880648e-06
A183: 87.40755 | B183: ='DF raw data'!A188 -> 5.7446209e-06 | C183: ='DF raw data'!B188 -> 1.0898756e-05 | D183: ='DF raw data'!C188 -> -9.573524e-06 | F183: 5.749676166e-06 | G183: 1.09336112e-05 | H183: -9.581948701e-06 | J183: -8.651222983e-06 | K183: -7.711832913e-06 | L183: 6.834310906e-06 | N183: -0.0005543109944 | O183: -0.02257266157 | P183: -0.0001389632761 | Q183: -0.0003901066429 | R183: 8.040215369e-06
A184: 87.9077 | B184: ='DF raw data'!A189 -> 4.6566051e-06 | C184: ='DF raw data'!B189 -> -1.8307285e-06 | D184: ='DF raw data'!C189 -> -1.1965877e-05 | F184: 4.660702912e-06 | G184: -1.836583335e-06 | H184: -1.197640697e-05 | J184: -9.159298696e-06 | K184: 4.341149027e-07 | L184: 4.27042457e-07 | N184: -0.0005588920177 | O184: -0.02285219141 | P184: -0.0001387461535 | Q184: -0.0004595005316 | R184: 8.206070502e-06
A185: 88.40785 | B185: ='DF raw data'!A190 -> -1.4767995e-06 | C185: ='DF raw data'!B190 -> -5.1765483e-06 | D185: ='DF raw data'!C190 -> -1.1111458e-05 | F185: -1.478099084e-06 | G185: -5.193103368e-06 | H185: -1.112123608e-05 | J185: -1.003515417e-05 | K185: -1.269360588e-05 | L185: 3.007550417e-06 | N185: -0.0005639111 | O185: -0.02313423155 | P185: -0.0001450948605 | Q185: -0.0005320697261 | R185: 8.375645482e-06
A186: 88.908 | B186: ='DF raw data'!A191 -> -6.7820461e-06 | C186: ='DF raw data'!B191 -> 6.5566355e-06 | D186: ='DF raw data'!C191 -> -1.0893026e-05 | F186: -6.788014301e-06 | G186: 6.577604211e-06 | H186: -1.090261186e-05 | J186: -1.014071098e-05 | K186: -1.531875257e-05 | L186: 3.754808026e-06 | N186: -0.0005689829766 | O186: -0.02341880838 | P186: -0.0001527565346 | Q186: -0.0006084709069 | R186: 8.549235637e-06
A187: 89.40815 | B187: ='DF raw data'!A192 -> -7.0459723e-06 | C187: ='DF raw data'!B192 -> 6.4286805e-06 | D187: ='DF raw data'!C192 -> -9.2520686e-06 | F187: -7.052172756e-06 | G187: 6.44924e-06 | H187: -9.26021042e-06 | J187: -1.205997545e-05 | K187: -6.031835558e-06 | L187: 3.94065773e-06 | N187: -0.0005750147733 | O187: -0.02370640202 | P187: -0.0001557733572 | Q187: -0.0006863809515 | R187: 8.726742537e-06
A188: 89.9083 | B188: ='DF raw data'!A193 -> -6.9816753e-07 | C188: ='DF raw data'!B193 -> 9.7110819e-07 | D188: ='DF raw data'!C193 -> -9.3552926e-06 | F188: -6.987819174e-07 | G188: 9.742138815e-07 | H188: -9.363525257e-06 | J188: -8.247032908e-06 | K188: -7.5279143e-06 | L188: 1.16589979e-05 | N188: -0.0005791395269 | O188: -0.02399605866 | P188: -0.0001595384435 | Q188: -0.000766174104 | R188: 8.907224219e-06
A189: 90.40845 | B189: ='DF raw data'!A194 -> 2.6577934e-06 | C189: ='DF raw data'!B194 -> 9.9693034e-06 | D189: ='DF raw data'!C194 -> -6.9317953e-06 | F189: 2.660132258e-06 | G189: 1.000118613e-05 | H189: -6.93789528e-06 | J189: -9.244562362e-07 | K189: -1.032078056e-05 | L189: 1.574102092e-05 | N189: -0.0005796018936 | O189: -0.02428594655 | P189: -0.0001647003819 | Q189: -0.000848549 | R189: 9.088810964e-06
A190: 90.9086 | B190: ='DF raw data'!A195 -> -4.3303888e-07 | C190: ='DF raw data'!B195 -> 1.4234302e-05 | D190: ='DF raw data'!C195 -> -1.0437198e-05 | F190: -4.334199542e-07 | G190: 1.427982458e-05 | H190: -1.044638273e-05 | J190: -2.819336535e-06 | K190: -1.342592343e-05 | L190: 1.158332737e-05 | N190: -0.0005810119848 | O190: -0.02457653969 | P190: -0.0001714153575 | Q190: -0.000934282391 | R190: 9.272345083e-06
A191: 91.40875 | B191: ='DF raw data'!A196 -> -3.615118e-06 | C191: ='DF raw data'!B196 -> 1.4939332e-05 | D191: ='DF raw data'!C196 -> -1.7332864e-05 | F191: -3.618299304e-06 | G191: 1.498710933e-05 | H191: -1.734811692e-05 | J191: -7.444332853e-06 | K191: -1.409907236e-05 | L191: 9.915611967e-06 | N191: -0.0005847352679 | O191: -0.02486899503 | P191: -0.0001784670086 | Q191: -0.001023542665 | R191: 9.459284052e-06
A192: 91.9089 | B192: ='DF raw data'!A197 -> -3.9867123e-06 | C192: ='DF raw data'!B197 -> 5.8335945e-06 | D192: ='DF raw data'!C197 -> -8.7465896e-06 | F192: -3.990220607e-06 | G192: 5.852250861e-06 | H192: -8.754286599e-06 | J192: -1.148743005e-05 | K192: -4.345677664e-06 | L192: 9.149966391e-06 | N192: -0.000590480706 | O192: -0.02516432396 | P192: -0.0001806404992 | Q192: -0.001113890011 | R192: 9.649990474e-06
A193: 92.40905 | B193: ='DF raw data'!A198 -> -2.5770316e-06 | C193: ='DF raw data'!B198 -> 9.7340717e-06 | D193: ='DF raw data'!C198 -> -1.5165544e-06 | F193: -2.579299388e-06 | G193: 9.765202139e-06 | H193: -1.517888968e-06 | J193: -1.609792872e-05 | K193: -9.364925298e-06 | L193: 8.652238876e-06 | N193: -0.0005985320851 | O193: -0.02546367978 | P193: -0.0001853243666 | Q193: -0.001206579993 | R193: 9.84634225e-06
A194: 92.9092 | B194: ='DF raw data'!A199 -> -2.182742e-06 | C194: ='DF raw data'!B199 -> 1.8671024e-05 | D194: ='DF raw data'!C199 -> 3.9880496e-07 | F194: -2.184662813e-06 | G194: 1.873073562e-05 | H194: 3.991559084e-07 | J194: -1.81823444e-05 | K194: -8.990000477e-06 | L194: 8.538663217e-06 | N194: -0.0006076259846 | O194: -0.02576758392 | P194: -0.0001898207154 | Q194: -0.001301518824 | R194: 1.004902366e-05
A195: 93.40935 | B195: ='DF raw data'!A200 -> 1.1625395e-06 | C195: ='DF raw data'!B200 -> 1.5151881e-05 | D195: ='DF raw data'!C200 -> 4.3613659e-06 | F195: 1.163562535e-06 | G195: 1.520033808e-05 | H195: 4.365203902e-06 | J195: -1.513622517e-05 | K195: -9.549245391e-06 | L195: 7.323183135e-06 | N195: -0.0006151963676 | O195: -0.02607527438 | P195: -0.0001945967704 | Q195: -0.001398846399 | R195: 1.025725334e-05
A196: 93.9095 | B196: ='DF raw data'!A201 -> 4.3731202e-06 | C196: ='DF raw data'!B201 -> 1.9647443e-05 | D196: ='DF raw data'!C201 -> -4.3319283e-06 | F196: 4.376968546e-06 | G196: 1.971027729e-05 | H196: -4.335740397e-06 | J196: -8.198797298e-06 | K196: -1.691776506e-05 | L196: 7.523884997e-06 | N196: -0.0006192969961 | O196: -0.02638501577 | P196: -0.0002030581906 | Q196: -0.001500405953 | R196: 1.046969776e-05
A197: 94.40965 | B197: ='DF raw data'!A202 -> 1.9920351e-06 | C197: ='DF raw data'!B202 -> 2.1121945e-05 | D197: ='DF raw data'!C202 -> -9.3803183e-06 | F197: 1.993788091e-06 | G197: 2.118949488e-05 | H197: -9.38857298e-06 | J197: -7.095794609e-06 | K197: -1.34007552e-05 | L197: 1.398591278e-05 | N197: -0.0006228459578 | O197: -0.02669653218 | P197: -0.0002097605784 | Q197: -0.001605317706 | R197: 1.068573084e-05
A198: 94.9098 | B198: ='DF raw data'!A203 -> -7.240663e-07 | C198: ='DF raw data'!B203 -> 9.4552097e-06 | D198: ='DF raw data'!C203 -> -3.1615066e-06 | F198: -7.247034783e-07 | G198: 9.485448313e-06 | H198: -3.164288726e-06 | J198: -1.093365716e-05 | K198: -1.741798069e-05 | L198: 1.494886243e-05 | N198: -0.0006283144264 | O198: -0.02701078364 | P198: -0.0002184721814 | Q198: -0.001714586567 | R198: 1.090705177e-05
A199: 95.40995 | B199: ='DF raw data'!A204 -> -5.1197171e-06 | C199: ='DF raw data'!B204 -> 5.8263913e-06 | D199: ='DF raw data'!C204 -> -6.2621962e-06 | F199: -5.124222451e-06 | G199: =(1-$G$1*($B$2-$G$2))*C199*$M$2/$M$1 -> 5.845024625e-06 | H199: -6.267706933e-06 | J199: =-CELL("contents", INDEX($F$6:$F$1203,1204-CELL("row",F199))) -> -1.506013126e-05 | K199: =CELL("contents", INDEX($G$6:$G$1203,1204-CELL("row",G199))) -> -1.419491089e-05 | L199: =-CELL("contents", INDEX($H$6:$H$1203,1204-CELL("row",H199))) -> 3.512207125e-06 | N199: -0.0006358467511 | O199: -0.02732880239 | P199: -0.0002255717661 | Q199: -0.001827406286 | R199: 1.113471191e-05
A200: =A199+$B$1 -> 95.9101 | B200: ='DF raw data'!A205 -> -9.0096746e-06 | C200: ='DF raw data'!B205 -> 1.6693364e-05 | D200: ='DF raw data'!C205 -> -4.9801139e-07 | F200: -9.017603114e-06 | G200: 1.674675088e-05 | H200: -4.9844964e-07 | J200: -1.91849349e-05 | K200: -9.614033329e-06 | L200: 4.628833492e-06 | N200: =J200*$B$1+N199 -> -0.0006454420963 | O200: =N200*$B$1+O199 -> -0.02765162026 | P200: =K200*$B$1+P199 -> -0.0002303802248 | Q200: =P200*$B$1+Q199 -> -0.001942630956 | R200: =(N200^2+P200^2)*$B$1+R199 -> 1.136961763e-05
... 1003 more rows

Sheet 12 mm
A1: dz | B1: ='DF raw data'!E7 -> 0.50015 | C1: mm | F1: T_coeff | G1: -0.0008 | H1: /degC | L1: Hallref | M1: ='PI vs gap'!B50 -> 0.50513 | N1: T | P1: IBy total | Q1: =P1203*1000 -> -7.802506965 | R1: muTm
A2: Tref | B2: ='DF raw data'!E8 -> 21.04 | C2: degC | F2: Tcorr | G2: 20 | H2: degC | L2: NMRref | M2: ='PI vs gap'!B51 -> 0.50633 | N2: T | P2: JBy total | Q2: =Q1203 -> -6.666838996 | R2: muTm^2
A3: Encoder | B3: ='DF raw data'!E9 -> 430832 | P3: PI total | Q3: =R1203 -> 3758.942046 | R3: T^2mm^3
J4: SXR-rotation
A5: z [mm] | B5: Bx | C5: By | D5: Bz | F5: Bx_corr | G5: By_corr | H5: Bz_corr | J5: Bx_rot | K5: By_rot | L5: Bz_rot | N5: Ix | O5: Jx | P5: Iy | Q5: Jy | R5: PI
A6: ='PI vs gap'!B53 -> -1.119 | B6: ='DF raw data'!D11 -> 2.307796e-06 | C6: ='DF raw data'!E11 -> 1.1246336e-06 | D6: ='DF raw data'!F11 -> -5.9574986e-06 | F6: =(1-$G$1*($B$2-$G$2))*B6 -> 2.309716086e-06 | G6: =(1-$G$1*($B$2-$G$2))*C6*$M$2/$M$1 -> 1.128243227e-06 | H6: =(1-$G$1*($B$2-$G$2))*D6 -> -5.962455239e-06 | J6: =-CELL("contents", INDEX($F$6:$F$1203,1204-CELL("row",F6))) -> -1.283725372e-06 | K6: =CELL("contents", INDEX($G$6:$G$1203,1204-CELL("row",G6))) -> 7.449431319e-06 | L6: =-CELL("contents", INDEX($H$6:$H$1203,1204-CELL("row",H6))) -> 7.56861205e-06 | N6: =J6*$B$1 -> -6.420552446e-07 | O6: =N6*$B$1 -> -3.211239306e-07 | P6: =K6*$B$1 -> 3.725833074e-06 | Q6: =P6*$B$1 -> 1.863475412e-06 | R6: =(N6^2+P6^2)*$B$1 -> 7.149177627e-12
A7: =A6+$B$1 -> -0.61885 | B7: ='DF raw data'!D12 -> 1.9859967e-06 | C7: ='DF raw data'!E12 -> 1.0502965e-05 | D7: ='DF raw data'!F12 -> -2.0616926e-06 | F7: =(1-$G$1*($B$2-$G$2))*B7 -> 1.987649049e-06 | G7: =(1-$G$1*($B$2-$G$2))*C7*$M$2/$M$1 -> 1.053667534e-05 | H7: -2.063407928e-06 | J7: =-CELL("contents", INDEX($F$6:$F$1203,1204-CELL("row",F7))) -> 1.898262241e-06 | K7: =CELL("contents", INDEX($G$6:$G$1203,1204-CELL("row",G7))) -> 1.440188243e-05 | L7: =-CELL("contents", INDEX($H$6:$H$1203,1204-CELL("row",H7))) -> 8.076972855e-06 | N7: =J7*$B$1+N6 -> 3.073606153e-07 | O7: =N7*$B$1+O6 -> -1.673975188e-07 | P7: =K7*$B$1+P6 -> 1.092893457e-05 | Q7: =P7*$B$1+Q6 -> 7.329582039e-06 | R7: =(N7^2+P7^2)*$B$1+R6 -> 6.693514876e-11
A8: =A7+$B$1 -> -0.1187 | B8: ='DF raw data'!D13 -> 2.3804855e-06 | C8: ='DF raw data'!E13 -> -4.0817784e-07 | D8: ='DF raw data'!F13 -> -2.7401429e-06 | F8: 2.382466064e-06 | G8: -4.094879287e-07 | H8: -2.742422699e-06 | J8: 5.149327179e-06 | K8: 4.972034399e-06 | L8: 8.787762741e-06 | N8: =J8*$B$1+N7 -> 2.882796604e-06 | O8: =N8*$B$1+O7 -> 1.274433203e-06 | P8: =K8*$B$1+P7 -> 1.341569758e-05 | Q8: =P8*$B$1+Q7 -> 1.403944318e-05 | R8: =(N8^2+P8^2)*$B$1+R7 -> 1.611091213e-10
A9: 0.38145 | B9: ='DF raw data'!D14 -> 2.382088e-06 | C9: ='DF raw data'!E14 -> -1.7355126e-06 | D9: ='DF raw data'!F14 -> -1.0587201e-05 | F9: 2.384069897e-06 | G9: -1.741082906e-06 | H9: -1.059600955e-05 | J9: 7.259160701e-06 | K9: 6.338698915e-06 | L9: 8.995252729e-06 | N9: 6.513465828e-06 | O9: 4.532143137e-06 | P9: 1.658599784e-05 | Q9: 2.233493e-05 | R9: 3.199170301e-10
A10: 0.8816 | B10: ='DF raw data'!D15 -> 1.7719309e-06 | C10: ='DF raw data'!E15 -> 1.4752219e-05 | D10: ='DF raw data'!F15 -> -1.1407147e-05 | F10: 1.773405147e-06 | G10: 1.479956776e-05 | H10: -1.141663775e-05 | J10: 2.719229018e-06 | K10: -2.451863932e-08 | L10: 8.648683623e-06 | N10: 7.873488222e-06 | O10: 8.470068271e-06 | P10: 1.657373484e-05 | Q10: 3.062428348e-05 | R10: 4.883077839e-10
A11: 1.38175 | B11: ='DF raw data'!D16 -> 2.4858168e-06 | C11: ='DF raw data'!E16 -> -3.6686072e-06 | D11: ='DF raw data'!F16 -> -4.8484426e-06 | F11: 2.487885e-06 | G11: -3.680381971e-06 | H11: -4.852476504e-06 | J11: -2.42622364e-06 | K11: -1.665721098e-06 | L11: 8.339081648e-06 | N11: 6.660012468e-06 | O11: 1.180107351e-05 | P11: 1.574062443e-05 | Q11: 3.849695679e-05 | R11: 6.344131142e-10
A12: 1.8819 | B12: ='DF raw data'!D17 -> 2.1320443e-06 | C12: ='DF raw data'!E17 -> 6.2014037e-06 | D12: ='DF raw data'!F17 -> -3.5471776e-06 | F12: 2.133818161e-06 | G12: 6.221307741e-06 | H12: -3.550128852e-06 | J12: -6.33010577e-06 | K12: 4.783434806e-06 | L12: 8.422810152e-06 | N12: 3.494010067e-06 | O12: 1.354860264e-05 | P12: 1.813305935e-05 | Q12: 4.756620643e-05 | R12: 8.049722405e-10
A13: 2.38205 | B13: ='DF raw data'!D18 -> 2.2958479e-06 | C13: ='DF raw data'!E18 -> 1.064858e-06 | D13: ='DF raw data'!F18 -> -7.5298403e-06 | F13: 2.297758045e-06 | G13: 1.068275771e-06 | H13: -7.536105127e-06 | J13: -8.780779235e-06 | K13: -5.737335151e-06 | L13: 8.329888106e-06 | N13: -8.976966672e-07 | O13: 1.309961965e-05 | P13: 1.526353118e-05 | Q13: 5.520026155e-05 | R13: 9.218979294e-10
A14: 2.8822 | B14: ='DF raw data'!D19 -> 2.2446507e-06 | C14: ='DF raw data'!E19 -> 1.5760195e-06 | D14: ='DF raw data'!F19 -> -1.2811905e-05 | F14: 2.246518249e-06 | G14: 1.581077896e-06 | H14: -1.28225645e-05 | J14: -9.305733134e-06 | K14: -2.238355748e-06 | L14: 7.988514719e-06 | N14: -5.551959094e-06 | O14: 1.032280731e-05 | P14: 1.414401755e-05 | Q14: 6.227439192e-05 | R14: 1.037371302e-09
A15: 3.38235 | B15: ='DF raw data'!D20 -> 2.4271435e-06 | C15: ='DF raw data'!E20 -> -2.2298593e-06 | D15: ='DF raw data'!F20 -> -5.9898439e-06 | F15: 2.429162883e-06 | G15: -2.237016262e-06 | H15: -5.99482745e-06 | J15: -7.742897936e-06 | K15: -1.225069105e-06 | L15: 7.962139193e-06 | N15: -9.424569497e-06 | O15: 5.609108879e-06 | P15: 1.353129924e-05 | Q15: 6.904207124e-05 | R15: 1.173371374e-09
A16: 3.8825 | B16: ='DF raw data'!D21 -> 2.3677362e-06 | C16: ='DF raw data'!E21 -> 8.7952844e-07 | D16: ='DF raw data'!F21 -> 2.8081367e-06 | F16: 2.369706157e-06 | G16: 8.823513768e-07 | H16: 2.81047307e-06 | J16: -5.623977359e-06 | K16: 9.321436288e-07 | L16: 8.234905145e-06 | N16: -1.223740177e-05 | O16: -5.114276176e-07 | P16: 1.399751087e-05 | Q16: 7.60429263e-05 | R16: 1.346265384e-09
A17: 4.38265 | B17: ='DF raw data'!D22 -> 2.3631978e-06 | C17: ='DF raw data'!E22 -> 2.2643687e-06 | D17: ='DF raw data'!F22 -> 1.0624047e-05 | F17: 2.365163981e-06 | G17: 2.271636424e-06 | H17: 1.063288621e-05 | J17: -7.473005172e-06 | K17: -6.394433729e-06 | L17: 7.91264705e-06 | N17: -1.597502531e-05 | O17: -8.501336526e-06 | P17: 1.079933484e-05 | Q17: 8.144421362e-05 | R17: 1.532234691e-09
A18: 4.8828 | B18: ='DF raw data'!D23 -> 2.4137939e-06 | C18: ='DF raw data'!E23 -> 1.4990289e-06 | D18: ='DF raw data'!F23 -> 1.4513999e-05 | F18: 2.415802177e-06 | G18: 1.503840187e-06 | H18: 1.452607465e-05 | J18: -9.691464896e-06 | K18: -2.998918341e-06 | L18: 7.156763377e-06 | N18: -2.082221148e-05 | O18: -1.89155656e-05 | P18: 9.299425834e-06 | Q18: 8.609532145e-05 | R18: 1.792334603e-09
A19: 5.38295 | B19: ='DF raw data'!D24 -> 2.8353165e-06 | C19: ='DF raw data'!E24 -> -1.1153603e-05 | D19: ='DF raw data'!F24 -> 7.4369045e-06 | F19: 2.837675483e-06 | G19: -1.118940163e-05 | H19: 7.443092005e-06 | J19: -6.594920713e-06 | K19: 2.986961588e-06 | L19: 7.067839054e-06 | N19: -2.412066107e-05 | O19: -3.097951423e-05 | P19: 1.079335467e-05 | Q19: 9.149361779e-05 | R19: 2.141590747e-09
A20: 5.8831 | B20: ='DF raw data'!D25 -> 2.278693e-06 | C20: ='DF raw data'!E25 -> 3.1252418e-06 | D20: ='DF raw data'!F25 -> 1.9092577e-06 | F20: 2.280588873e-06 | G20: 3.135272584e-06 | H20: 1.910846202e-06 | J20: -3.259682601e-06 | K20: 8.596839661e-06 | L20: 7.975527222e-06 | N20: -2.575099132e-05 | O20: -4.385887254e-05 | P20: 1.509306403e-05 | Q20: 9.904241377e-05 | R20: 2.587181452e-09
A21: 6.38325 | B21: ='DF raw data'!D26 -> 2.6788562e-06 | C21: ='DF raw data'!E26 -> -6.9598505e-06 | D21: ='DF raw data'!F26 -> 6.9625739e-06 | F21: 2.681085008e-06 | G21: -6.982188854e-06 | H21: 6.968366761e-06 | J21: -6.533393164e-06 | K21: 4.374370472e-06 | L21: 8.671927746e-06 | N21: -2.901866792e-05 | O21: -5.83725593e-05 | P21: 1.728090542e-05 | Q21: 0.0001076854586 | R21: 3.157708948e-09
A22: 6.8834 | B22: ='DF raw data'!D27 -> 3.3131087e-06 | C22: ='DF raw data'!E27 -> -7.9841739e-06 | D22: ='DF raw data'!F27 -> 9.2564942e-06 | F22: 3.315865206e-06 | G22: -8.009799925e-06 | H22: 9.264195603e-06 | J22: -1.027954948e-05 | K22: -5.729970188e-06 | L22: 8.556493384e-06 | N22: -3.415998459e-05 | O22: -7.545767559e-05 | P22: 1.441506083e-05 | Q22: 0.0001148951513 | R22: 3.845264416e-09
A23: 7.38355 | B23: ='DF raw data'!D28 -> 4.2987313e-06 | C23: ='DF raw data'!E28 -> -9.9859267e-07 | D23: ='DF raw data'!F28 -> 7.0140877e-06 | F23: =(1-$G$1*($B$2-$G$2))*B23 -> 4.302307844e-06 | G23: -1.001797756e-06 | H23: 7.019923421e-06 | J23: -1.065966947e-05 | K23: 5.984919557e-06 | L23: 5.014472073e-06 | N23: -3.949141827e-05 | O23: -9.520930844e-05 | P23: 1.740841835e-05 | Q23: 0.0001236019717 | R23: 4.776856383e-09
A24: 7.8837 | B24: ='DF raw data'!D29 -> 6.0404241e-06 | C24: ='DF raw data'!E29 -> -1.5296519e-05 | D24: ='DF raw data'!F29 -> 1.4592853e-06 | F24: 6.045449733e-06 | G24: -1.534561475e-05 | H24: 1.460499425e-06 | J24: -1.08747803e-05 | K24: -4.594343439e-06 | L24: 8.006035184e-06 | N24: -4.493043964e-05 | O24: -0.0001176812678 | P24: 1.511055748e-05 | Q24: 0.000131159517 | R24: 5.900730121e-09
A25: 8.38385 | B25: ='DF raw data'!D30 -> 7.5703879e-06 | C25: ='DF raw data'!E30 -> 6.0150086e-08 | D25: ='DF raw data'!F30 -> -5.1412162e-06 | F25: 7.576686463e-06 | G25: 6.034314387e-08 | H25: -5.145493692e-06 | J25: -1.236800663e-05 | K25: -6.67017251e-06 | L25: 8.787697186e-06 | N25: -5.111629815e-05 | O25: -0.0001432470843 | P25: 1.17744707e-05 | Q25: 0.0001370485186 | R25: 7.276899896e-09
A26: 8.884 | B26: ='DF raw data'!D31 -> 7.6743836e-06 | C26: ='DF raw data'!E31 -> -6.0899079e-06 | D26: ='DF raw data'!F31 -> -4.5410297e-06 | F26: 7.680768687e-06 | G26: -6.109454084e-06 | H26: -4.544807837e-06 | J26: -1.36951539e-05 | K26: 1.798188606e-06 | L26: 3.388136886e-06 | N26: -5.796592937e-05 | O26: -0.0001722387439 | P26: 1.267383473e-05 | Q26: 0.000143387337 | R26: 9.037765525e-09
A27: 9.38415 | B27: ='DF raw data'!D32 -> 4.0590339e-06 | C27: ='DF raw data'!E32 -> -4.4334051e-06 | D27: ='DF raw data'!F32 -> 6.1146757e-06 | F27: 4.062411016e-06 | G27: -4.447634569e-06 | H27: 6.11976311e-06 | J27: -1.266695815e-05 | K27: 3.792502582e-06 | L27: 6.430721312e-06 | N27: -6.430130849e-05 | O27: -0.0002043990434 | P27: 1.457065489e-05 | Q27: 0.00015067485 | R27: 1.12118987e-08
A28: 9.8843 | B28: ='DF raw data'!D33 -> 1.2739134e-06 | C28: ='DF raw data'!E33 -> -3.6392487e-06 | D28: ='DF raw data'!F33 -> 5.1244178e-06 | F28: 1.274973296e-06 | G28: -3.650929242e-06 | H28: 5.128681316e-06 | J28: -1.025917354e-05 | K28: 7.869605697e-06 | L28: 5.854681446e-06 | N28: -6.943243413e-05 | O28: -0.0002391256753 | P28: 1.850663818e-05 | Q28: 0.0001599309451 | R28: 1.379435249e-08
A29: 10.38445 | B29: ='DF raw data'!D34 -> 1.8240622e-06 | C29: ='DF raw data'!E34 -> -7.4165769e-06 | D29: ='DF raw data'!F34 -> 1.775151e-06 | F29: 1.82557982e-06 | G29: -7.440381164e-06 | H29: 1.776627926e-06 | J29: -6.182466636e-06 | K29: 6.299614772e-06 | L29: 4.685489086e-06 | N29: -7.252459482e-05 | O29: -0.0002753988514 | P29: 2.165739051e-05 | Q29: 0.000170762889 | R29: 1.665964152e-08
A30: 10.8846 | B30: ='DF raw data'!D35 -> 4.9124924e-06 | C30: ='DF raw data'!E35 -> -1.420495e-05 | D30: ='DF raw data'!F35 -> -3.9948891e-06 | F30: 4.916579594e-06 | G30: -1.425054224e-05 | H30: -3.998212848e-06 | J30: 2.853896668e-07 | K30: -2.125380602e-06 | L30: 9.570156551e-06 | N30: -7.238185718e-05 | O30: -0.0003116006373 | P30: 2.05943814e-05 | Q30: 0.0001810631689 | R30: 1.949212191e-08
A31: 11.38475 | B31: ='DF raw data'!D36 -> 3.7481818e-06 | C31: ='DF raw data'!E36 -> -1.1060602e-05 | D31: ='DF raw data'!F36 -> -4.5186016e-06 | F31: 3.751300287e-06 | G31: -1.109610214e-05 | H31: -4.522361077e-06 | J31: 4.668932923e-06 | K31: 3.368047609e-06 | L31: 7.349132195e-06 | N31: -7.004669038e-05 | O31: -0.0003466344895 | P31: 2.227891041e-05 | Q31: 0.0001922059659 | R31: 2.219437668e-08
A32: 11.8849 | B32: ='DF raw data'!D37 -> -6.5267557e-07 | C32: ='DF raw data'!E37 -> -5.1905613e-07 | D32: ='DF raw data'!F37 -> -2.3064122e-06 | F32: -6.532185961e-07 | G32: -5.207220939e-07 | H32: -2.308331135e-06 | J32: 1.036411678e-06 | K32: 5.95185738e-06 | L32: 7.37251113e-06 | N32: -6.952832908e-05 | O32: -0.0003814090832 | P32: 2.525573188e-05 | Q32: 0.0002048376202 | R32: 2.493121776e-08
A33: 12.38505 | B33: ='DF raw data'!D38 -> -9.6272595e-07 | C33: ='DF raw data'!E38 -> -7.9457423e-06 | D33: ='DF raw data'!F38 -> -2.3902021e-06 | F33: -9.63526938e-07 | G33: -7.971244975e-06 | H33: -2.392190748e-06 | J33: -5.078314445e-06 | K33: -4.455269696e-06 | L33: 6.596245114e-06 | N33: -7.206824805e-05 | O33: -0.0004174540175 | P33: 2.302742874e-05 | Q33: 0.0002163547887 | R33: 2.77941238e-08
A34: 12.8852 | B34: ='DF raw data'!D39 -> -2.0218376e-07 | C34: ='DF raw data'!E39 -> -5.9434064e-06 | D34: ='DF raw data'!F39 -> 2.7156266e-06 | F34: -2.023519769e-07 | G34: -5.962482373e-06 | H34: 2.717886001e-06 | J34: -7.888398892e-06 | K34: 2.907450204e-06 | L34: 8.427206507e-07 | N34: -7.601363075e-05 | O34: -0.0004554722349 | P34: 2.448158996e-05 | Q34: 0.0002285992559 | R34: 3.098379057e-08
A35: 13.38535 | B35: ='DF raw data'!D40 -> 1.2871302e-06 | C35: ='DF raw data'!E40 -> -3.6621971e-06 | D35: ='DF raw data'!F40 -> 2.3215589e-06 | F35: 1.288201092e-06 | G35: -3.673951297e-06 | H35: 2.323490437e-06 | J35: -4.173173594e-06 | K35: 1.153416264e-05 | L35: 2.628987199e-06 | N35: -7.810084353e-05 | O35: -0.0004945343718 | P35: 3.025040141e-05 | Q35: 0.0002437289942 | R35: 3.449225706e-08
A36: 13.8855 | B36: ='DF raw data'!D41 -> 4.121845e-06 | C36: ='DF raw data'!E41 -> 6.2607792e-06 | D36: ='DF raw data'!F41 -> -3.3773313e-06 | F36: 4.125274375e-06 | G36: 6.280873813e-06 | H36: -3.38014124e-06 | J36: 2.186518471e-07 | K36: -2.95996923e-06 | L36: 9.540249389e-06 | N36: -7.799148481e-05 | O36: -0.0005335418129 | P36: 2.87699728e-05 | Q36: 0.0002581182961 | R36: 3.794848514e-08
A37: 14.38565 | B37: ='DF raw data'!D42 -> 3.5861808e-06 | C37: ='DF raw data'!E42 -> -3.2064092e-06 | D37: ='DF raw data'!F42 -> -3.094744e-06 | F37: 3.589164502e-06 | G37: -3.216700499e-06 | H37: -3.097318827e-06 | J37: 6.857518913e-07 | K37: -9.21971896e-06 | L37: 9.517802529e-06 | N37: -7.7648506e-05 | O37: -0.0005723777132 | P37: 2.415873036e-05 | Q37: 0.0002702012851 | R37: 4.125594445e-08
A38: 14.8858 | B38: ='DF raw data'!D43 -> 3.094638e-06 | C38: ='DF raw data'!E43 -> -1.5333742e-05 | D38: ='DF raw data'!F43 -> -7.9795454e-06 | F38: 3.097212739e-06 | G38: -1.538295722e-05 | H38: -7.986184382e-06 | J38: 1.984096696e-07 | K38: 2.095215795e-06 | L38: 7.839710417e-06 | N38: -7.75492714e-05 | O38: -0.0006111639813 | P38: 2.520665254e-05 | Q38: 0.0002828083923 | R38: 4.458157425e-08
A39: 15.38595 | B39: ='DF raw data'!D44 -> -2.168355e-06 | C39: ='DF raw data'!E44 -> -1.1026848e-05 | D39: ='DF raw data'!F44 -> -5.1688357e-06 | F39: -2.170159071e-06 | G39: -1.10622398e-05 | H39: -5.173136171e-06 | J39: -1.34465122e-06 | K39: 2.267888232e-06 | L39: 3.922075754e-06 | N39: -7.822179871e-05 | O39: -0.0006502866139 | P39: 2.634093684e-05 | Q39: 0.0002959828119 | R39: 4.79888435e-08
A40: 15.8861 | B40: ='DF raw data'!D45 -> -8.8639244e-06 | C40: ='DF raw data'!E45 -> 6.1218811e-06 | D40: ='DF raw data'!F45 -> 4.4381113e-06 | F40: -8.871299185e-06 | G40: 6.141529905e-06 | H40: 4.441803809e-06 | J40: -2.900071454e-06 | K40: -1.970241059e-06 | L40: -1.00222786e-06 | N40: -7.967226945e-05 | O40: -0.0006901346995 | P40: 2.535552077e-05 | Q40: 0.0003086643756 | R40: 5.148517856e-08
A41: 16.38625 | B41: ='DF raw data'!D46 -> -8.6337714e-06 | C41: ='DF raw data'!E46 -> -1.6383277e-05 | D41: ='DF raw data'!F46 -> 1.3447453e-06 | F41: -8.640954698e-06 | G41: -1.643586081e-05 | H41: 1.345864128e-06 | J41: -4.224613256e-06 | K41: 1.511606735e-06 | L41: 2.289678229e-06 | N41: -8.178520977e-05 | O41: -0.0007310395722 | P41: 2.611155088e-05 | Q41: 0.0003217240678 | R41: 5.517160097e-08
A42: 16.8864 | B42: ='DF raw data'!D47 -> -6.4371147e-06 | C42: ='DF raw data'!E47 -> -1.4731453e-05 | D42: ='DF raw data'!F47 -> -2.7025717e-07 | F42: -6.442470379e-06 | G42: -1.477873511e-05 | H42: -2.70482024e-07 | J42: -4.700665703e-06 | K42: 1.242021241e-06 | L42: 5.29696321e-06 | N42: -8.413624772e-05 | O42: -0.0007731203165 | P42: 2.67327478e-05 | Q42: 0.0003350944516 | R42: 5.906954399e-08
A43: 17.38655 | B43: ='DF raw data'!D48 -> -7.761957e-06 | C43: ='DF raw data'!E48 -> 7.9239885e-07 | D43: ='DF raw data'!F48 -> 8.6542161e-07 | F43: -7.768414948e-06 | G43: 7.949421354e-07 | H43: 8.661416408e-07 | J43: -4.734602615e-06 | K43: 9.40987704e-06 | L43: 5.373231312e-06 | N43: -8.650425922e-05 | O43: -0.0008163854217 | P43: 3.143909781e-05 | Q43: 0.0003508187164 | R43: 6.330651657e-08
A44: 17.8867 | B44: ='DF raw data'!D49 -> -7.2597345e-06 | C44: ='DF raw data'!E49 -> -3.8096371e-06 | D44: ='DF raw data'!F49 -> 2.0523485e-06 | F44: -7.265774599e-06 | G44: -3.821864521e-06 | H44: 2.054056054e-06 | J44: -4.602195143e-06 | K44: 5.056814037e-07 | L44: 1.323800687e-05 | N44: -8.880604712e-05 | O44: -0.0008608017662 | P44: 3.169201436e-05 | Q44: 0.0003666694773 | R44: 6.775329909e-08
A45: 18.38685 | B45: ='DF raw data'!D50 -> -5.0963849e-06 | C45: ='DF raw data'!E50 -> -1.2694511e-06 | D45: ='DF raw data'!F50 -> 3.9235701e-07 | F45: -5.100625092e-06 | G45: -1.273525534e-06 | H45: 3.92683451e-07 | J45: -1.30857613e-06 | K45: -5.802881155e-07 | L45: 1.904994738e-05 | N45: -8.946053147e-05 | O45: -0.000905545451 | P45: 3.140178326e-05 | Q45: 0.0003823750792 | R45: 7.224927682e-08
A46: 18.887 | B46: ='DF raw data'!D51 -> -1.4584742e-06 | C46: ='DF raw data'!E51 -> -6.1789001e-06 | D46: ='DF raw data'!F51 -> -2.97508e-06 | F46: -1.459687651e-06 | G46: -6.198731914e-06 | H46: -2.977555267e-06 | J46: 7.810160652e-07 | K46: 1.047590492e-05 | L46: 1.04911674e-05 | N46: -8.906990628e-05 | O46: -0.0009500937646 | P46: 3.66413071e-05 | Q46: 0.000400701229 | R46: 7.688868502e-08
A47: 19.38715 | B47: ='DF raw data'!D52 -> 1.8412844e-06 | C47: ='DF raw data'!E52 -> -5.5001169e-07 | D47: ='DF raw data'!F52 -> -2.9965768e-06 | F47: 1.842816349e-06 | G47: -5.517770089e-07 | H47: -2.999069952e-06 | J47: -5.140650466e-07 | K47: -3.441577656e-06 | L47: 2.360950878e-06 | N47: -8.932701592e-05 | O47: -0.0009947706716 | P47: 3.492000204e-05 | Q47: 0.000418166468 | R47: 8.148942599e-08
A48: 19.8873 | B48: ='DF raw data'!D53 -> 6.3458776e-07 | C48: ='DF raw data'!E53 -> 5.732541e-06 | D48: ='DF raw data'!F53 -> -1.9282515e-06 | F48: 6.35115737e-07 | G48: 5.750940178e-06 | H48: -1.929855805e-06 | J48: -1.905211318e-06 | K48: 2.668518181e-06 | L48: -5.967764052e-07 | N48: -9.027990736e-05 | O48: -0.001039924167 | P48: 3.625466141e-05 | Q48: 0.0004362992369 | R48: 8.622327679e-08
A49: 20.38745 | B49: ='DF raw data'!D54 -> -5.4370089e-06 | C49: ='DF raw data'!E54 -> 5.5613523e-06 | D49: ='DF raw data'!F54 -> 2.4484789e-06 | F49: -5.441532491e-06 | G49: 5.579202031e-06 | H49: 2.450516034e-06 | J49: -2.638129299e-06 | K49: -4.809045342e-06 | L49: -1.723605748e-06 | N49: -9.159936773e-05 | O49: -0.001085737591 | P49: 3.384941738e-05 | Q49: 0.000453229023 | R49: 9.099282084e-08
A50: 20.8876 | B50: ='DF raw data'!D55 -> -1.2342371e-05 | C50: ='DF raw data'!E55 -> 3.5304581e-06 | D50: ='DF raw data'!F55 -> 1.0280361e-05 | F50: -1.235263985e-05 | G50: 3.541789467e-06 | H50: 1.028891426e-05 | J50: -1.041423744e-06 | K50: -2.175709421e-06 | L50: 2.6940665e-06 | N50: -9.212023581e-05 | O50: -0.001131811527 | P50: 3.276123631e-05 | Q50: 0.0004696145554 | R50: 9.577397298e-08
A51: 21.38775 | B51: ='DF raw data'!D56 -> -9.7216544e-06 | C51: ='DF raw data'!E56 -> 6.9995654e-06 | D51: ='DF raw data'!F56 -> 6.4603582e-06 | F51: -9.729742816e-06 | G51: 7.022031223e-06 | H51: 6.465733218e-06 | J51: 2.263084821e-06 | K51: 3.775903878e-06 | L51: 8.129130314e-06 | N51: -9.098835394e-05 | O51: -0.001177319352 | P51: 3.464975464e-05 | Q51: 0.0004869446301 | R51: 1.005151379e-07
A52: 21.8879 | B52: ='DF raw data'!D57 -> -1.6444386e-06 | C52: ='DF raw data'!E57 -> -1.7706009e-06 | D52: ='DF raw data'!F57 -> 3.4860559e-06 | F52: -1.645806773e-06 | G52: -1.776283825e-06 | H52: 3.488956299e-06 | J52: 5.411002612e-06 | K52: 2.235362571e-06 | L52: 4.531751183e-06 | N52: -8.828204098e-05 | O52: -0.001221473615 | P52: 3.576777123e-05 | Q52: 0.0005048338809 | R52: 1.05053025e-07
A53: 22.38805 | B53: ='DF raw data'!D58 -> 8.1975088e-07 | C53: ='DF raw data'!E58 -> -5.089471e-06 | D53: ='DF raw data'!F58 -> 2.2904796e-06 | F53: 8.204329127e-07 | G53: -5.105806179e-06 | H53: 2.292385279e-06 | J53: 5.93054321e-06 | K53: 4.814084665e-06 | L53: -3.857440623e-06 | N53: -8.53158798e-05 | O53: -0.001264144352 | P53: 3.817553567e-05 | Q53: 0.0005239273751 | R53: 1.094224209e-07
A54: 22.8882 | B54: ='DF raw data'!D59 -> -4.143134e-07 | C54: ='DF raw data'!E59 -> -2.244404e-06 | D54: ='DF raw data'!F59 -> 4.9351831e-07 | F54: -4.146581087e-07 | G54: -2.251607645e-06 | H54: 4.939289172e-07 | J54: 3.106427799e-07 | K54: 9.648407478e-06 | L54: -1.049120343e-06 | N54: -8.516051181e-05 | O54: -0.001306737382 | P54: 4.300118667e-05 | Q54: 0.0005454344186 | R54: 1.139744935e-07
A55: 23.38835 | B55: ='DF raw data'!D60 -> 3.8551148e-06 | C55: ='DF raw data'!E60 -> -4.856995e-07 | D55: ='DF raw data'!F60 -> 3.6007722e-07 | F55: 3.858322256e-06 | G55: -4.872584024e-07 | H55: 3.603768042e-07 | J55: -5.29342637e-06 | K55: 3.455318217e-06 | L55: 5.516404533e-07 | N55: -8.780801901e-05 | O55: -0.001350654563 | P55: 4.472936408e-05 | Q55: 0.00056780581 | R55: 1.188314322e-07
A56: 23.8885 | B56: ='DF raw data'!D61 -> 8.1671278e-06 | C56: ='DF raw data'!E61 -> -4.0377589e-07 | D56: ='DF raw data'!F61 -> 3.5076855e-06 | F56: 8.17392285e-06 | G56: -4.050718501e-07 | H56: 3.510603894e-06 | J56: -4.928336868e-06 | K56: -4.9509367e-06 | L56: 1.117084942e-06 | N56: -9.027292669e-05 | O56: -0.001395804567 | P56: 4.225315309e-05 | Q56: 0.0005889387246 | R56: 1.238001875e-07
A57: 24.38865 | B57: ='DF raw data'!D62 -> 9.4157431e-06 | C57: ='DF raw data'!E62 -> -6.6791222e-06 | D57: ='DF raw data'!F62 -> 8.1924945e-06 | F57: 9.423576998e-06 | G57: -6.700559528e-06 | H57: 8.199310655e-06 | J57: -4.18202275e-08 | K57: -6.696143399e-06 | L57: 6.498261959e-06 | N57: -9.029384308e-05 | O57: -0.001440965033 | P57: 3.890407697e-05 | Q57: 0.0006083965987 | R57: 1.286348902e-07
A58: 24.8888 | B58: ='DF raw data'!D63 -> 5.4342058e-06 | C58: ='DF raw data'!E63 -> 1.4288487e-06 | D58: ='DF raw data'!F63 -> 8.7445596e-06 | F58: 5.438727059e-06 | G58: 1.433434736e-06 | H58: 8.751835074e-06 | J58: 4.283334071e-06 | K58: -1.324792253e-06 | L58: 9.970546999e-06 | N58: -8.815153354e-05 | O58: -0.001485054022 | P58: 3.824148212e-05 | Q58: 0.0006275230759 | R58: 1.33252827e-07
A59: 25.38895 | B59: ='DF raw data'!D64 -> 1.6436385e-06 | C59: ='DF raw data'!E64 -> 3.2523965e-06 | D59: ='DF raw data'!F64 -> 8.3548193e-06 | F59: 1.645006007e-06 | G59: 3.2628354e-06 | H59: 8.36177051e-06 | J59: 6.025340416e-06 | K59: 3.268459494e-06 | L59: 1.705812356e-05 | N59: -8.513795953e-05 | O59: -0.001527635773 | P59: 3.987620214e-05 | Q59: 0.0006474671584 | R59: 1.376734446e-07
A60: 25.8891 | B60: ='DF raw data'!D65 -> -2.0785718e-07 | C60: ='DF raw data'!E65 -> 4.8694014e-06 | D60: ='DF raw data'!F65 -> 6.0336124e-06 | F60: -2.080301172e-07 | G60: 4.885030243e-06 | H60: 6.038632366e-06 | J60: 2.624232446e-06 | K60: 1.352583868e-06 | L60: 2.267696355e-05 | N60: -8.382544968e-05 | O60: -0.001569561072 | P60: 4.055269696e-05 | Q60: 0.0006677495898 | R60: 1.42010359e-07
A61: 26.38925 | B61: ='DF raw data'!D66 -> 1.5345778e-07 | C61: ='DF raw data'!E66 -> 3.3536669e-06 | D61: ='DF raw data'!F66 -> -3.772756e-07 | F61: 1.535854569e-07 | G61: 3.364430838e-06 | H61: -3.775894933e-07 | J61: -4.936754365e-06 | K61: 1.075539209e-05 | L61: 2.06501036e-05 | N61: -8.629456737e-05 | O61: -0.001612721299 | P61: 4.593200631e-05 | Q61: 0.0006907224828 | R61: 1.467900432e-07
A62: 26.8894 | B62: ='DF raw data'!D67 -> -1.0273401e-06 | C62: ='DF raw data'!E67 -> 6.3290931e-06 | D62: ='DF raw data'!F67 -> -7.5995877e-06 | F62: -1.028194847e-06 | G62: 6.349406974e-06 | H62: -7.605910557e-06 | J62: -7.660059571e-06 | K62: 1.395667908e-05 | L62: 2.286499987e-05 | N62: -9.012574617e-05 | O62: -0.001657797691 | P62: 5.291243935e-05 | Q62: 0.0007171866393 | R62: 1.522528697e-07
A63: 27.38955 | B63: ='DF raw data'!D68 -> -3.924732e-06 | C63: ='DF raw data'!E68 -> 8.503082e-07 | D63: ='DF raw data'!F68 -> -1.3266733e-05 | F63: -3.927997377e-06 | G63: 8.530373514e-07 | H63: -1.327777092e-05 | J63: -6.902357187e-06 | K63: 1.104880582e-05 | L63: 2.500709461e-05 | N63: -9.357796011e-05 | O63: -0.001704600708 | P63: 5.843849959e-05 | Q63: 0.0007464146549 | R63: 1.58340642e-07
A64: 27.8897 | B64: ='DF raw data'!D69 -> -2.1003375e-06 | C64: ='DF raw data'!E69 -> 1.1401096e-06 | D64: ='DF raw data'!F69 -> -8.3191035e-06 | F64: -2.102084981e-06 | G64: 1.143768899e-06 | H64: -8.326024994e-06 | J64: -7.121611255e-06 | K64: 1.255574803e-05 | L64: 2.048924388e-05 | N64: -9.713983398e-05 | O64: -0.001753185196 | P64: 6.471825696e-05 | Q64: 0.0007787834911 | R64: 1.651549857e-07
A65: 28.38985 | B65: ='DF raw data'!D70 -> -1.641947e-08 | C65: ='DF raw data'!E70 -> 2.9094879e-06 | D65: ='DF raw data'!F70 -> -1.1291208e-05 | F65: -1.6433131e-08 | G65: 2.9188262e-06 | H65: -1.130060229e-05 | J65: -6.334915568e-06 | K65: 7.363361553e-06 | L65: 1.664081365e-05 | N65: -0.000100308242 | O65: -0.001803354363 | P65: 6.840104224e-05 | Q65: 0.0008129942724 | R65: 1.725274198e-07
A66: 28.89 | B66: ='DF raw data'!D71 -> -7.9138078e-07 | C66: ='DF raw data'!E71 -> 1.5490657e-06 | D66: ='DF raw data'!F71 -> -1.1030584e-05 | F66: -7.920392088e-07 | G66: 1.554037585e-06 | H66: -1.103976145e-05 | J66: -6.545017528e-06 | K66: -8.727605425e-07 | L66: 1.580153695e-05 | N66: -0.0001035817325 | O66: -0.001855160767 | P66: 6.796453106e-05 | Q66: 0.0008469867326 | R66: 1.802038984e-07
A67: 29.39015 | B67: ='DF raw data'!D72 -> -2.0425286e-07 | C67: ='DF raw data'!E72 -> 4.9606001e-07 | D67: ='DF raw data'!F72 -> -2.4429783e-06 | F67: -2.044227984e-07 | G67: 4.976521655e-07 | H67: -2.445010858e-06 | J67: -6.123945687e-06 | K67: -1.289051205e-06 | L67: 1.895516058e-05 | N67: -0.000106644624 | O67: -0.001908499075 | P67: 6.73198121e-05 | Q67: 0.0008806567366 | R67: 1.881588006e-07
A68: 29.8903 | B68: ='DF raw data'!D73 -> 3.1113254e-06 | C68: ='DF raw data'!E73 -> -4.6571627e-06 | D68: ='DF raw data'!F73 -> 1.4680037e-06 | F68: 3.113914023e-06 | G68: -4.672110341e-06 | H68: 1.469225079e-06 | J68: -4.1171244e-06 | K68: 4.645426772e-06 | L68: 2.159562562e-05 | N68: -0.0001087038037 | O68: -0.001962867283 | P68: 6.96432223e-05 | Q68: 0.0009154887942 | R68: 1.964946483e-07
A69: 30.39045 | B69: ='DF raw data'!D74 -> 2.1440596e-06 | C69: ='DF raw data'!E74 -> -2.3390023e-06 | D69: ='DF raw data'!F74 -> 1.1081476e-06 | F69: 2.145843458e-06 | G69: -2.346509568e-06 | H69: 1.109069579e-06 | J69: -4.284404061e-06 | K69: 8.253903394e-06 | L69: 1.46269455e-05 | N69: -0.0001108466484 | O69: -0.002018307234 | P69: 7.377141208e-05 | Q69: 0.000952385566 | R69: 2.053619081e-07
A70: 30.8906 | B70: ='DF raw data'!D75 -> 3.9986921e-06 | C70: ='DF raw data'!E75 -> 5.9909903e-06 | D70: ='DF raw data'!F75 -> 6.8910294e-06 | F70: 4.002019012e-06 | G70: 6.010218998e-06 | H70: 6.896762736e-06 | J70: -3.380533065e-06 | K70: 1.579812749e-05 | L70: 1.027888192e-05 | N70: -0.000112537422 | O70: -0.002074592826 | P70: 8.167284554e-05 | Q70: 0.0009932342397 | R70: 2.150323709e-07
A71: 31.39075 | B71: ='DF raw data'!D76 -> 2.5085114e-06 | C71: ='DF raw data'!E76 -> 1.4213763e-06 | D71: ='DF raw data'!F76 -> 1.1499565e-05 | F71: 2.510598481e-06 | G71: =(1-$G$1*($B$2-$G$2))*C71*$M$2/$M$1 -> 1.425938353e-06 | H71: 1.150913264e-05 | J71: =-CELL("contents", INDEX($F$6:$F$1203,1204-CELL("row",F71))) -> 1.068762371e-08 | K71: =CELL("contents", INDEX($G$6:$G$1203,1204-CELL("row",G71))) -> 4.953829957e-06 | L71: =-CELL("contents", INDEX($H$6:$H$1203,1204-CELL("row",H71))) -> 8.582872414e-06 | N71: -0.0001125320766 | O71: -0.002130875744 | P71: 8.41505036e-05 | Q71: 0.001035322114 | R71: 2.249077203e-07
A72: =A71+$B$1 -> 31.8909 | B72: ='DF raw data'!D77 -> 1.8439538e-06 | C72: ='DF raw data'!E77 -> -2.1628769e-06 | D72: ='DF raw data'!F77 -> 1.3948223e-05 | F72: 1.84548797e-06 | G72: -2.169818875e-06 | H72: 1.395982792e-05 | J72: -9.183686776e-07 | K72: -4.685174538e-07 | L72: 3.625996421e-06 | N72: =J72*$B$1+N71 -> -0.0001129913987 | O72: =N72*$B$1+O71 -> -0.002187388392 | P72: =K72*$B$1+P71 -> 8.391617459e-05 | Q72: =P72*$B$1+Q71 -> 0.001077292789 | R72: =(N72^2+P72^2)*$B$1+R71 -> 2.348151819e-07
A73: 32.39105 | B73: ='DF raw data'!D78 -> 6.3062203e-06 | C73: ='DF raw data'!E78 -> 3.1577981e-06 | D73: ='DF raw data'!F78 -> 1.3210804e-05 | F73: 6.311467075e-06 | G73: 3.167933377e-06 | H73: 1.322179539e-05 | J73: -8.492048411e-06 | K73: 4.081095187e-06 | L73: -4.669342964e-06 | N73: -0.0001172386967 | O73: -0.002246025326 | P73: 8.595733435e-05 | Q73: 0.00112028435 | R73: 2.453851397e-07
A74: 32.8912 | B74: ='DF raw data'!D79 -> 7.5161875e-06 | C74: ='DF raw data'!E79 -> -3.1833299e-06 | D74: ='DF raw data'!F79 -> 4.0932291e-06 | F74: 7.522440968e-06 | G74: -3.193547124e-06 | H74: 4.096634667e-06 | J74: -1.251257181e-05 | K74: 7.683947715e-06 | L74: -5.674679308e-06 | N74: -0.0001234968595 | O74: -0.00230779228 | P74: 8.98004608e-05 | Q74: 0.00116519805 | R74: 2.570464355e-07
A75: 33.39135 | B75: ='DF raw data'!D80 -> 2.1873134e-06 | C75: ='DF raw data'!E80 -> -2.3427385e-06 | D75: ='DF raw data'!F80 -> -5.8680516e-06 | F75: 2.189133245e-06 | G75: -2.35025776e-06 | H75: -5.872933819e-06 | J75: -7.715107033e-06 | K75: 4.682507305e-06 | L75: -2.444055063e-06 | N75: -0.0001273555703 | O75: -0.002371489169 | P75: 9.214241683e-05 | Q75: 0.00121128308 | R75: 2.694049751e-07
A76: 33.8915 | B76: ='DF raw data'!D81 -> 1.4789681e-06 | C76: ='DF raw data'!E81 -> -5.0156855e-06 | D76: ='DF raw data'!F81 -> -8.2305223e-06 | F76: 1.480198601e-06 | G76: -5.031783857e-06 | H76: -8.237370095e-06 | J76: -2.77234037e-06 | K76: 5.521305701e-07 | L76: -4.959933734e-07 | N76: -0.0001287421563 | O76: -0.002435879558 | P76: 9.241856493e-05 | Q76: 0.001257506225 | R76: 2.819666094e-07
A77: 34.39165 | B77: ='DF raw data'!D82 -> 5.4372763e-06 | C77: ='DF raw data'!E82 -> 2.6713203e-06 | D77: ='DF raw data'!F82 -> -5.070734e-06 | F77: 5.441800114e-06 | G77: 2.679894177e-06 | H77: -5.074952851e-06 | J77: -1.213446748e-06 | K77: 4.042142364e-06 | L77: 4.156942501e-06 | N77: -0.0001293490617 | O77: -0.002500573492 | P77: 9.444024244e-05 | Q77: 0.001304740512 | R77: 2.947955265e-07
A78: 34.8918 | B78: ='DF raw data'!D83 -> 9.4416419e-06 | C78: ='DF raw data'!E83 -> 8.6140353e-06 | D78: ='DF raw data'!F83 -> 1.2868433e-06 | F78: 9.449497346e-06 | G78: 8.64168293e-06 | H78: 1.287913954e-06 | J78: 2.146440054e-07 | K78: 6.800635805e-06 | L78: 6.946677331e-06 | N78: -0.0001292417075 | O78: -0.002565213732 | P78: 9.784158043e-05 | Q78: 0.001353675979 | R78: 3.079376649e-07
A79: 35.39195 | B79: ='DF raw data'!D84 -> 1.0398762e-05 | C79: ='DF raw data'!E84 -> 1.1674636e-06 | D79: ='DF raw data'!F84 -> 3.7854834e-06 | F79: 1.040741377e-05 | G79: 1.171210694e-06 | H79: 3.788632922e-06 | J79: 1.184117267e-06 | K79: 7.444478774e-06 | L79: 3.517419961e-07 | N79: -0.0001286494713 | O79: -0.002629557765 | P79: 0.0001015649365 | Q79: 0.001404473682 | R79: 3.213747562e-07
A80: 35.8921 | B80: ='DF raw data'!D85 -> 8.0660029e-06 | C80: ='DF raw data'!E85 -> 1.0991575e-05 | D80: ='DF raw data'!F85 -> 2.3706771e-06 | F80: 8.072713814e-06 | G80: 1.102685359e-05 | H80: 2.372649503e-06 | J80: -1.798858506e-06 | K80: 6.737989479e-06 | L80: 6.393087927e-06 | N80: -0.0001295491704 | O80: -0.002694351782 | P80: 0.0001049349419 | Q80: 0.001456956893 | R80: 3.352760902e-07
A81: 36.39225 | B81: ='DF raw data'!D86 -> 6.9873352e-07 | C81: ='DF raw data'!E86 -> -6.663246e-06 | D81: ='DF raw data'!F86 -> 3.0793444e-06 | F81: 6.993148663e-07 | G81: -6.684632372e-06 | H81: 3.081906415e-06 | J81: -9.935035378e-06 | K81: -1.055608243e-06 | L81: 8.985458387e-06 | N81: -0.0001345181783 | O81: -0.002761631049 | P81: 0.0001044069795 | Q81: 0.001509176044 | R81: 3.497784184e-07
A82: 36.8924 | B82: ='DF raw data'!D87 -> -8.2408169e-06 | C82: ='DF raw data'!E87 -> -9.3121744e-06 | D82: ='DF raw data'!F87 -> 3.2876587e-06 | F82: -8.24767326e-06 | G82: -9.342062779e-06 | H82: 3.290394032e-06 | J82: -1.765702243e-05 | K82: 3.169539215e-06 | L82: 4.497915355e-06 | N82: -0.0001433493381 | O82: -0.00283332722 | P82: 0.0001059922245 | Q82: 0.001562188055 | R82: 3.656748781e-07
A83: 37.39255 | B83: ='DF raw data'!D88 -> -5.3996287e-06 | C83: ='DF raw data'!E88 -> 7.0750862e-06 | D83: ='DF raw data'!F88 -> -2.263977e-07 | F83: -5.404121191e-06 | G83: 7.097794415e-06 | H83: -2.265860629e-07 | J83: -1.70472265e-05 | K83: 3.704691847e-06 | L83: 5.36030937e-06 | N83: -0.0001518755084 | O83: -0.002909287756 | P83: 0.0001078451261 | Q83: 0.001616126795 | R83: 3.830284532e-07
A84: 37.8927 | B84: ='DF raw data'!D89 -> 2.3583921e-06 | C84: ='DF raw data'!E89 -> -6.0662901e-06 | D84: ='DF raw data'!F89 -> -3.7365235e-06 | F84: 2.360354282e-06 | G84: -6.08576048e-06 | H84: -3.739632288e-06 | J84: -9.764750118e-06 | K84: 6.151570128e-06 | L84: 2.97102694e-06 | N84: -0.0001567593482 | O84: -0.002987690944 | P84: 0.0001109218339 | Q84: 0.00167160435 | R84: 4.01472558e-07
A85: 38.39285 | B85: ='DF raw data'!D90 -> 5.2296855e-06 | C85: ='DF raw data'!E90 -> -9.943953e-06 | D85: ='DF raw data'!F90 -> -3.2356393e-06 | F85: 5.234036598e-06 | G85: -9.975869137e-06 | H85: -3.238331352e-06 | J85: -7.305792466e-06 | K85: 4.855716258e-06 | L85: 3.814581293e-08 | N85: -0.0001604133403 | O85: -0.003067921676 | P85: 0.0001133504204 | Q85: 0.001728296563 | R85: 4.207687239e-07
A86: 38.893 | B86: ='DF raw data'!D91 -> 3.391006e-06 | C86: ='DF raw data'!E91 -> 4.1854541e-06 | D86: ='DF raw data'!F91 -> 6.4379958e-07 | F86: 3.393827317e-06 | G86: 4.198887744e-06 | H86: 6.443352213e-07 | J86: -1.040367266e-05 | K86: 3.946835345e-06 | L86: 1.282129745e-05 | N86: -0.0001656167372 | O86: -0.003150754887 | P86: 0.0001153244301 | Q86: 0.001785976076 | R86: 4.411391471e-07
A87: 39.39315 | B87: ='DF raw data'!D92 -> -3.4462701e-07 | C87: ='DF raw data'!E92 -> 6.3581824e-06 | D87: ='DF raw data'!F92 -> 1.0870962e-05 | F87: =(1-$G$1*($B$2-$G$2))*B87 -> -3.449137397e-07 | G87: 6.378589639e-06 | H87: 1.088000664e-05 | J87: -1.522178099e-05 | K87: 4.277059743e-06 | L87: 1.466264918e-05 | N87: -0.0001732299109 | O87: -0.003237395827 | P87: 0.0001174636015 | Q87: 0.001844725497 | R87: 4.630488679e-07
A88: 39.8933 | B88: ='DF raw data'!D93 -> -3.8827479e-06 | C88: ='DF raw data'!E93 -> -2.0698792e-06 | D88: ='DF raw data'!F93 -> 1.319543e-05 | F88: -3.885978346e-06 | G88: -2.07652269e-06 | H88: 1.32064086e-05 | J88: -1.4635968e-05 | K88: 4.548539698e-08 | L88: 2.000462201e-06 | N88: -0.0001805500903 | O88: -0.003327697955 | P88: 0.0001174863511 | Q88: 0.001903486295 | R88: 4.86256517e-07
A89: 40.39345 | B89: ='DF raw data'!D94 -> -7.8588782e-06 | C89: ='DF raw data'!E94 -> -2.7544959e-06 | D89: ='DF raw data'!F94 -> 6.4945662e-06 | F89: -7.865416787e-06 | G89: -2.763336737e-06 | H89: 6.499969679e-06 | J89: -7.884857948e-06 | K89: -2.022310748e-06 | L89: -4.382433554e-07 | N89: -0.000184493702 | O89: -0.00341997248 | P89: 0.0001164748923 | Q89: 0.001961741213 | R89: 5.10065821e-07
A90: 40.8936 | B90: ='DF raw data'!D95 -> -5.1887678e-06 | C90: ='DF raw data'!E95 -> 1.3482565e-06 | D90: ='DF raw data'!F95 -> -3.4486793e-06 | F90: -5.193084855e-06 | G90: 1.352583868e-06 | H90: -3.451548601e-06 | J90: -5.537464841e-06 | K90: 3.989983089e-07 | L90: 9.501749384e-06 | N90: -0.0001872632651 | O90: -0.003513632202 | P90: 0.0001166744514 | Q90: 0.002020095939 | R90: 5.344133521e-07
A91: 41.39375 | B91: ='DF raw data'!D96 -> 3.4831869e-06 | C91: ='DF raw data'!E96 -> 1.8472034e-05 | D91: ='DF raw data'!F96 -> -5.5022056e-06 | F91: 3.486084912e-06 | G91: 1.853132189e-05 | H91: -5.506783435e-06 | J91: -1.070676662e-05 | K91: 1.721164279e-05 | L91: 1.37845372e-05 | N91: -0.0001926182544 | O91: -0.003609970222 | P91: 0.0001252828545 | Q91: 0.002082756159 | R91: 5.608200645e-07
A92: 41.8939 | B92: ='DF raw data'!D97 -> 8.2493634e-06 | C92: ='DF raw data'!E97 -> 1.4078279e-05 | D92: ='DF raw data'!F97 -> -3.0074907e-06 | F92: 8.25622687e-06 | G92: 1.412346468e-05 | H92: -3.009992932e-06 | J92: -1.683986412e-05 | K92: 9.688966139e-06 | L92: 1.586781405e-05 | N92: -0.0002010407124 | O92: -0.003710520734 | P92: 0.0001301287909 | Q92: 0.002147840074 | R92: 5.895041023e-07
A93: 42.39405 | B93: ='DF raw data'!D98 -> 3.5361859e-06 | C93: ='DF raw data'!E98 -> -6.6288162e-06 | D93: ='DF raw data'!F98 -> -3.9923808e-07 | F93: 3.539128007e-06 | G93: -6.650092066e-06 | H93: -3.995702461e-07 | J93: -1.770077981e-05 | K93: 1.783064419e-06 | L93: 1.718987709e-05 | N93: -0.0002098937574 | O93: -0.003815499097 | P93: 0.0001310205906 | Q93: 0.002213370022 | R93: 6.201241778e-07
A94: 42.8942 | B94: ='DF raw data'!D99 -> -3.2522325e-06 | C94: ='DF raw data'!E99 -> -2.1844937e-06 | D94: ='DF raw data'!F99 -> 4.4602739e-06 | F94: -3.254938357e-06 | G94: -2.191505057e-06 | H94: 4.463984848e-06 | J94: -1.425564784e-05 | K94: 9.237605987e-06 | L94: 1.376022599e-05 | N94: -0.0002170237197 | O94: -0.00392404351 | P94: 0.0001356407792 | Q94: 0.002281210758 | R94: 6.528828604e-07
A95: 43.39435 | B95: ='DF raw data'!D100 -> -2.5000331e-06 | C95: ='DF raw data'!E100 -> 3.1601992e-06 | D95: ='DF raw data'!F100 -> 5.9708518e-06 | F95: -2.502113128e-06 | G95: 3.170342184e-06 | H95: 5.975819549e-06 | J95: -9.927887236e-06 | K95: 1.008732271e-05 | L95: 1.131146031e-05 | N95: -0.0002219891525 | O95: -0.004035071385 | P95: 0.0001406859537 | Q95: 0.002351574838 | R95: 6.874290819e-07
A96: 43.8945 | B96: ='DF raw data'!D101 -> 3.626898e-06 | C96: ='DF raw data'!E101 -> -1.5883418e-06 | D96: ='DF raw data'!F101 -> 3.683389e-06 | F96: 3.629915579e-06 | G96: -1.593439746e-06 | H96: 3.68645358e-06 | J96: -6.424902075e-06 | K96: -2.073044562e-06 | L96: 9.675199574e-06 | N96: -0.0002252025673 | O96: -0.004147706449 | P96: 0.0001396491204 | Q96: 0.002421420345 | R96: 7.225486512e-07
A97: 44.39465 | B97: ='DF raw data'!D102 -> 4.8876614e-06 | C97: ='DF raw data'!E102 -> 1.084474e-06 | D97: ='DF raw data'!F102 -> -1.7814355e-07 | F97: 4.891727934e-06 | G97: 1.087954731e-06 | H97: -1.782917654e-07 | J97: -2.490156088e-06 | K97: 1.301853665e-06 | L97: 1.029459999e-05 | N97: -0.0002264480188 | O97: -0.004260964426 | P97: 0.0001403002425 | Q97: 0.002491591512 | R97: 7.580407273e-07
A98: 44.8948 | B98: ='DF raw data'!D103 -> 1.355215e-06 | C98: ='DF raw data'!E103 -> -5.0139538e-06 | D98: ='DF raw data'!F103 -> -5.572484e-06 | F98: 1.356342539e-06 | G98: -5.030046599e-06 | H98: -5.577120307e-06 | J98: 1.038950388e-06 | K98: 7.324412442e-06 | L98: 8.368322556e-06 | N98: -0.0002259283878 | O98: -0.004373962509 | P98: 0.0001439635474 | Q98: 0.00256359488 | R98: 7.939360623e-07
A99: 45.39495 | B99: ='DF raw data'!D104 -> -9.0305218e-07 | C99: ='DF raw data'!E104 -> -1.7254028e-05 | D99: ='DF raw data'!F104 -> -6.5701961e-06 | F99: -9.038035194e-07 | G99: -1.730940657e-05 | H99: -6.575662503e-06 | J99: -1.750965192e-07 | K99: -8.533839302e-06 | L99: 4.3875419e-06 | N99: -0.0002260159623 | O99: -0.004487004392 | P99: 0.0001396953477 | Q99: 0.002633463508 | R99: 8.292456547e-07
A100: 45.8951 | B100: ='DF raw data'!D105 -> -1.39573e-06 | C100: ='DF raw data'!E105 -> -4.9117484e-06 | D100: ='DF raw data'!F105 -> -7.9787487e-06 | F100: -1.396891247e-06 | G100: -4.92751316e-06 | H100: -7.985387019e-06 | J100: -2.481070835e-06 | K100: -5.583137221e-06 | L100: 7.143775881e-06 | N100: -0.0002272568699 | O100: -0.004600666916 | P100: 0.0001369029416 | Q100: 0.002701935514 | R100: 8.644502631e-07
A101: 46.39525 | B101: ='DF raw data'!D106 -> -1.2606955e-06 | C101: ='DF raw data'!E106 -> 3.0870794e-06 | D101: ='DF raw data'!F106 -> -7.7840768e-06 | F101: -1.261744399e-06 | G101: 3.096987698e-06 | H101: -7.790553152e-06 | J101: -3.335372723e-06 | K101: -2.05891907e-07 | L101: 1.169606303e-05 | N101: -0.0002289250566 | O101: -0.004715163783 | P101: 0.0001367999648 | Q101: 0.002770356017 | R101: 9.000213872e-07
A102: 46.8954 | B102: ='DF raw data'!D107 -> -6.5514485e-07 | C102: ='DF raw data'!E107 -> 1.6484698e-06 | D102: ='DF raw data'!F107 -> -7.5526686e-06 | F102: -6.556899305e-07 | G102: 1.653760733e-06 | H102: -7.55895242e-06 | J102: -6.679762943e-06 | K102: 1.056899775e-06 | L102: 1.102983619e-05 | N102: -0.00023226594 | O102: -0.004831331593 | P102: 0.0001373285732 | Q102: 0.002839040903 | R102: 9.364356101e-07
A103: 47.39555 | B103: ='DF raw data'!D108 -> -9.6526253e-07 | C103: ='DF raw data'!E108 -> 6.3807306e-06 | D103: ='DF raw data'!F108 -> -5.744193e-06 | F103: -9.660656284e-07 | G103: 6.40121021e-06 | H103: -5.748972169e-06 | J103: -9.385631354e-06 | K103: 4.987965167e-06 | L103: 1.026056369e-05 | N103: -0.0002369601635 | O103: -0.004949847219 | P103: 0.000139823304 | Q103: 0.002908973528 | R103: 9.74297303e-07
A104: 47.8957 | B104: ='DF raw data'!D109 -> -2.2080657e-07 | C104: ='DF raw data'!E109 -> -6.6777907e-06 | D104: ='DF raw data'!F109 -> 3.5562245e-08 | F104: -2.209902811e-07 | G104: -6.699223754e-06 | H104: 3.559183279e-08 | J104: -8.11212858e-06 | K104: -7.101590961e-06 | L104: 1.03065249e-05 | N104: -0.0002410174446 | O104: -0.005070392094 | P104: 0.0001362714433 | Q104: 0.00297712969 | R104: 1.012638459e-06
A105: 48.39585 | B105: ='DF raw data'!D110 -> -9.0778848e-08 | C105: ='DF raw data'!E110 -> -1.2071398e-06 | D105: ='DF raw data'!F110 -> 3.3151455e-06 | F105: -9.0854376e-08 | G105: -1.211014239e-06 | H105: 3.317903701e-06 | J105: -5.087733675e-06 | K105: -7.142817459e-06 | L105: 9.217259385e-06 | N105: -0.0002435620746 | O105: -0.005192209665 | P105: 0.0001326989631 | Q105: 0.003043499077 | R105: 1.051115749e-06
A106: 48.896 | B106: ='DF raw data'!D111 -> 9.5538564e-07 | C106: ='DF raw data'!E111 -> 7.0229139e-06 | D106: ='DF raw data'!F111 -> 3.2067956e-06 | F106: 9.561805209e-07 | G106: 7.045454663e-06 | H106: 3.209463654e-06 | J106: -3.727651027e-06 | K106: 4.51197351e-06 | L106: 7.570876733e-06 | N106: -0.0002454264593 | O106: -0.005314959709 | P106: 0.0001349556267 | Q106: 0.003110997133 | R106: 1.0903511e-06
A107: 49.39615 | B107: ='DF raw data'!D112 -> 3.1452382e-07 | C107: ='DF raw data'!E112 -> 9.4207353e-06 | D107: ='DF raw data'!F112 -> 1.3498712e-06 | F107: 3.147855038e-07 | G107: 9.450972116e-06 | H107: 1.350994293e-06 | J107: -7.705553891e-06 | K107: 2.090931087e-06 | L107: 7.054986369e-06 | N107: -0.0002492803921 | O107: -0.005439637297 | P107: 0.0001360014058 | Q107: 0.003179018237 | R107: 1.130681743e-06
A108: 49.8963 | B108: ='DF raw data'!D113 -> -3.3416768e-06 | C108: ='DF raw data'!E113 -> 5.1590719e-06 | D108: ='DF raw data'!F113 -> 1.3721666e-06 | F108: -3.344457075e-06 | G108: 5.175630471e-06 | H108: 1.373308243e-06 | J108: -1.132177288e-05 | K108: -6.411163754e-06 | L108: 6.200252922e-06 | N108: -0.0002549429768 | O108: -0.005567147027 | P108: 0.0001327948623 | Q108: 0.003245435587 | R108: 1.172009336e-06
A109: 50.39645 | B109: ='DF raw data'!D114 -> -8.1380913e-06 | C109: ='DF raw data'!E114 -> 1.6562078e-06 | D109: ='DF raw data'!F114 -> 4.4872749e-07 | F109: -8.144862192e-06 | G109: 1.661523569e-06 | H109: 4.491008313e-07 | J109: -9.272196755e-06 | K109: -4.028537437e-06 | L109: 1.210830874e-05 | N109: -0.000259580466 | O109: -0.005696976197 | P109: 0.0001307799893 | Q109: 0.003310845199 | R109: 1.214264721e-06
A110: 50.8966 | B110: ='DF raw data'!D115 -> -1.1145286e-05 | C110: ='DF raw data'!E115 -> 6.1854348e-07 | D110: ='DF raw data'!F115 -> -3.8557218e-06 | F110: -1.115455888e-05 | G110: 6.205287588e-07 | H110: -3.858929761e-06 | J110: -6.540274185e-06 | K110: -5.9849643e-06 | L110: 1.702035616e-05 | N110: -0.0002628515841 | O110: -0.005828441417 | P110: 0.0001277866094 | Q110: 0.003374757671 | R110: 1.256987721e-06
A111: 51.39675 | B111: ='DF raw data'!D116 -> -1.1052971e-05 | C111: ='DF raw data'!E116 -> 1.0064789e-05 | D111: ='DF raw data'!F116 -> -4.5947409e-06 | F111: -1.106216707e-05 | G111: 1.009709297e-05 | H111: -4.598563724e-06 | J111: -4.269773598e-06 | K111: -7.685601005e-06 | L111: 1.433399697e-05 | N111: -0.0002649871114 | O111: -0.00596097472 | P111: 0.0001239426561 | Q111: 0.003436747591 | R111: 1.299790533e-06
A112: 51.8969 | B112: ='DF raw data'!D117 -> -7.6079673e-06 | C112: ='DF raw data'!E117 -> -2.5911797e-06 | D112: ='DF raw data'!F117 -> -3.5201583e-06 | F112: -7.614297129e-06 | G112: -2.599496357e-06 | H112: -3.523087072e-06 | J112: -8.487581197e-07 | K112: 7.451307321e-06 | L112: 1.10249091e-05 | N112: -0.0002654116178 | O112: -0.006093720341 | P112: 0.0001276694274 | Q112: 0.003500601455 | R112: 1.343174949e-06
A113: 52.39705 | B113: ='DF raw data'!D118 -> -4.2661563e-06 | C113: ='DF raw data'!E118 -> 2.3225437e-06 | D113: ='DF raw data'!F118 -> 1.5324287e-06 | F113: -4.269705742e-06 | G113: 2.329998142e-06 | H113: 1.533703681e-06 | J113: 2.297288355e-06 | K113: 2.069514869e-06 | L113: 6.869477054e-06 | N113: -0.000264262629 | O113: -0.006225891295 | P113: 0.0001287044953 | Q113: 0.003564973008 | R113: 1.386387701e-06
A114: 52.8972 | B114: ='DF raw data'!D119 -> -2.5049053e-06 | C114: ='DF raw data'!E119 -> -9.4358512e-08 | D114: ='DF raw data'!F119 -> 4.3318914e-06 | F114: -2.506989381e-06 | G114: -9.466136533e-08 | H114: 4.335495534e-06 | J114: 8.121475751e-07 | K114: -4.382320407e-06 | L114: 5.418390753e-06 | N114: -0.0002638564334 | O114: -0.00635785909 | P114: 0.0001265126777 | Q114: 0.003628248324 | R114: 1.429213383e-06
A115: 53.39735 | B115: ='DF raw data'!D120 -> -2.0121611e-06 | C115: ='DF raw data'!E120 -> 5.0994308e-06 | D115: ='DF raw data'!F120 -> 9.8821431e-07 | F115: -2.013835218e-06 | G115: 5.115797946e-06 | H115: 9.890365043e-07 | J115: -9.208464574e-06 | K115: 6.876530418e-06 | L115: 1.693525342e-06 | N115: -0.000268462047 | O115: -0.006492130383 | P115: 0.0001299519744 | Q115: 0.003693243804 | R115: 1.47370642e-06
A116: 53.8975 | B116: ='DF raw data'!D121 -> -7.2716773e-07 | C116: ='DF raw data'!E121 -> 6.5367053e-06 | D116: ='DF raw data'!F121 -> 2.6987209e-06 | F116: -7.277727336e-07 | G116: 6.557685526e-06 | H116: 2.700966236e-06 | J116: -1.723541595e-05 | K116: 4.121518715e-06 | L116: 5.430314966e-06 | N116: -0.0002770823402 | O116: -0.006630713115 | P116: 0.000132013352 | Q116: 0.003759270282 | R116: 1.520821624e-06
A117: 54.39765 | B117: ='DF raw data'!D122 -> 1.6260834e-06 | C117: ='DF raw data'!E122 -> 1.7927048e-06 | D117: ='DF raw data'!F122 -> 5.4776058e-07 | F117: 1.627436301e-06 | G117: 1.79845867e-06 | H117: 5.482163168e-07 | J117: -1.66531439e-05 | K117: -3.329139128e-06 | L117: 1.256678387e-05 | N117: -0.0002854114102 | O117: -0.006773461632 | P117: 0.0001303482831 | Q117: 0.003824463976 | R117: 1.570061566e-06
A118: 54.8978 | B118: ='DF raw data'!D123 -> 3.8789435e-06 | C118: ='DF raw data'!E123 -> 2.0270015e-06 | D118: ='DF raw data'!F123 -> -6.1723358e-06 | F118: 3.882170781e-06 | G118: 2.033507369e-06 | H118: -6.177471183e-06 | J118: -1.281653449e-05 | K118: 2.758602691e-06 | L118: 1.331986792e-05 | N118: -0.0002918215999 | O118: -0.006919416205 | P118: 0.0001317279982 | Q118: 0.003890347734 | R118: 1.621332999e-06
A119: 55.39795 | B119: ='DF raw data'!D124 -> 4.2828447e-06 | C119: ='DF raw data'!E124 -> -8.8086199e-06 | D119: ='DF raw data'!F124 -> -5.5830014e-06 | F119: 4.286408027e-06 | G119: -8.836892069e-06 | H119: -5.587646457e-06 | J119: -8.293303292e-06 | K119: 5.164520927e-06 | L119: 1.300760433e-05 | N119: -0.0002959694955 | O119: -0.007067445348 | P119: 0.0001343110333 | Q119: 0.003957523397 | R119: 1.674167542e-06
A120: 55.8981 | B120: ='DF raw data'!D125 -> 3.5154931e-06 | C120: ='DF raw data'!E125 -> -8.4633102e-06 | D120: ='DF raw data'!F125 -> -1.7823648e-06 | F120: 3.51841799e-06 | G120: -8.490474062e-06 | H120: -1.783847728e-06 | J120: -5.32335505e-06 | K120: 1.255936159e-05 | L120: 9.654485955e-06 | N120: -0.0002986319716 | O120: -0.007216806129 | P120: 0.000140592598 | Q120: 0.004027840785 | R120: 1.728657551e-06
A121: 56.39825 | B121: ='DF raw data'!D126 -> 9.0719243e-07 | C121: ='DF raw data'!E126 -> 2.4606413e-06 | D121: ='DF raw data'!F126 -> 2.5203562e-06 | F121: 9.079472141e-07 | G121: 2.468538981e-06 | H121: 2.522453136e-06 | J121: -5.252942515e-06 | K121: 9.120886362e-06 | L121: 4.385878017e-06 | N121: -0.0003012592308 | O121: -0.007367480933 | P121: 0.0001451544094 | Q121: 0.004100439763 | R121: 1.784587788e-06
A122: 56.8984 | B122: ='DF raw data'!D127 -> -3.6557326e-06 | C122: ='DF raw data'!E127 -> 1.0255189e-05 | D122: ='DF raw data'!F127 -> -1.2206464e-06 | F122: -3.65877417e-06 | G122: 1.028810408e-05 | H122: -1.221661978e-06 | J122: -5.777227758e-06 | K122: 3.501902355e-06 | L122: 5.062697263e-06 | N122: -0.0003041487112 | O122: -0.007519600911 | P122: 0.0001469058858 | Q122: 0.004173914742 | R122: 1.84164879e-06
A123: 57.39855 | B123: ='DF raw data'!D128 -> -4.1304543e-06 | C123: ='DF raw data'!E128 -> 1.1492059e-05 | D123: ='DF raw data'!F128 -> -6.7522224e-06 | F123: -4.133890838e-06 | G123: 1.152894394e-05 | H123: -6.757840249e-06 | J123: -4.912103373e-06 | K123: 8.646635575e-06 | L123: 1.414029995e-05 | N123: -0.0003066054997 | O123: -0.007672949652 | P123: 0.0001512305006 | Q123: 0.004249552677 | R123: 1.90010512e-06
A124: 57.8987 | B124: ='DF raw data'!D129 -> 2.8675603e-07 | C124: ='DF raw data'!E129 -> 2.2219338e-05 | D124: ='DF raw data'!F129 -> -6.4040132e-06 | F124: 2.86994611e-07 | G124: 2.229065324e-05 | H124: -6.409341339e-06 | J124: -3.315464673e-06 | K124: 8.798559731e-06 | L124: 1.948743607e-05 | N124: -0.0003082637294 | O124: -0.007827127756 | P124: 0.0001556311002 | Q124: 0.004327391571 | R124: 1.95974679e-06
A125: 58.39885 | B125: ='DF raw data'!D130 -> 3.5019434e-06 | C125: ='DF raw data'!E130 -> 1.579442e-05 | D125: ='DF raw data'!F130 -> -1.6324183e-06 | F125: 3.504857017e-06 | G125: 1.584511381e-05 | H125: -1.633776472e-06 | J125: 2.064936199e-07 | K125: 8.934290379e-06 | L125: 1.282716033e-05 | N125: -0.0003081604516 | O125: -0.007981254206 | P125: 0.0001600995856 | Q125: 0.004407465379 | R125: 2.02006225e-06
A126: 58.899 | B126: ='DF raw data'!D131 -> 3.7555906e-06 | C126: ='DF raw data'!E131 -> 2.6696554e-07 | D126: ='DF raw data'!F131 -> 5.5124283e-06 | F126: 3.758715251e-06 | G126: 2.678223933e-07 | H126: 5.51701464e-06 | J126: 3.537589628e-06 | K126: 8.06985135e-06 | L126: 7.259476163e-06 | N126: -0.0003063911261 | O126: -0.008134495728 | P126: 0.0001641357217 | Q126: 0.00448955786 | R126: 2.080488401e-06
A127: 59.39915 | B127: ='DF raw data'!D132 -> 1.6528508e-06 | C127: ='DF raw data'!E132 -> -1.1457018e-05 | D127: ='DF raw data'!F132 -> 1.4125645e-06 | F127: 1.654225972e-06 | G127: -1.149379047e-05 | H127: 1.413739754e-06 | J127: 4.524690513e-07 | K127: -7.202998398e-07 | L127: 9.151582887e-06 | N127: -0.0003061648237 | O127: -0.008287624064 | P127: 0.0001637754638 | Q127: 0.004571470159 | R127: 2.140786136e-06
A128: 59.8993 | B128: ='DF raw data'!D133 -> -2.7729716e-06 | C128: ='DF raw data'!E133 -> -7.9811034e-06 | D128: ='DF raw data'!F133 -> -3.0014335e-06 | F128: -2.775278712e-06 | G128: -8.00671957e-06 | H128: -3.003930693e-06 | J128: -1.338776036e-07 | K128: -2.145727499e-06 | L128: 1.391942133e-05 | N128: -0.0003062317826 | O128: -0.00844078589 | P128: 0.0001627022782 | Q128: 0.004652845703 | R128: 2.200929142e-06
A129: 60.39945 | B129: ='DF raw data'!D134 -> -4.3068071e-06 | C129: ='DF raw data'!E134 -> 1.3881472e-05 | D129: ='DF raw data'!F134 -> -5.4333204e-06 | F129: -4.310390364e-06 | G129: 1.392602601e-05 | H129: -5.437840923e-06 | J129: 2.617218115e-06 | K129: 4.331403105e-06 | L129: 1.628059119e-05 | N129: -0.000304922781 | O129: -0.008593293019 | P129: 0.0001648686294 | Q129: 0.004735304748 | R129: 2.261026949e-06
A130: 60.8996 | B130: ='DF raw data'!D135 -> -2.6667726e-06 | C130: ='DF raw data'!E135 -> 9.9101453e-06 | D130: ='DF raw data'!F135 -> -1.095571e-05 | F130: -2.668991355e-06 | G130: 9.941952928e-06 | H130: -1.096482515e-05 | J130: -1.644939552e-06 | K130: -7.156335708e-06 | L130: 1.321942342e-05 | N130: -0.0003057454975 | O130: -0.00874621163 | P130: 0.0001612893881 | Q130: 0.004815973636 | R130: 2.320792161e-06
A131: 61.39975 | B131: ='DF raw data'!D136 -> -3.4861891e-06 | C131: ='DF raw data'!E136 -> 2.6877349e-06 | D131: ='DF raw data'!F136 -> -1.7887049e-05 | F131: -3.489089609e-06 | G131: 2.696361461e-06 | H131: -1.790193102e-05 | J131: -8.508281906e-06 | K131: -3.573695245e-06 | L131: 1.205842027e-05 | N131: -0.0003100009147 | O131: -0.008901258587 | P131: 0.0001595020044 | Q131: 0.004895748563 | R131: 2.381581121e-06
A132: 61.8999 | B132: ='DF raw data'!D137 -> -3.039368e-06 | C132: ='DF raw data'!E137 -> -8.2647261e-07 | D132: ='DF raw data'!F137 -> -1.7686323e-05 | F132: -3.041896754e-06 | G132: -8.291252586e-07 | H132: -1.770103802e-05 | J132: -1.012910341e-05 | K132: 2.959519792e-06 | L132: 1.440000885e-05 | N132: -0.0003150669858 | O132: -0.00905883934 | P132: 0.0001609822083 | Q132: 0.004976263815 | R132: 2.444191137e-06
A133: 62.40005 | B133: ='DF raw data'!D138 -> 3.0577993e-07 | C133: ='DF raw data'!E138 -> 7.235732e-06 | D133: ='DF raw data'!F138 -> -1.7211127e-05 | F133: 3.060343389e-07 | G133: 7.258955824e-06 | H133: -1.722544666e-05 | J133: -5.944574274e-06 | K133: -8.127990356e-06 | L133: 9.62231401e-06 | N133: -0.0003180401646 | O133: -0.009217907129 | P133: 0.0001569169939 | Q133: 0.005054745849 | R133: 2.507096247e-06
A134: 62.9002 | B134: ='DF raw data'!D139 -> 2.9457201e-06 | C134: ='DF raw data'!E139 -> 3.7543916e-07 | D134: ='DF raw data'!F139 -> -1.12964e-05 | F134: 2.948170939e-06 | G134: 3.766441705e-07 | H134: -1.13057986e-05 | J134: -1.545667526e-06 | K134: -9.580458186e-06 | L134: 7.079362833e-06 | N134: -0.0003188132302 | O134: -0.009377361566 | P134: 0.0001521253277 | Q134: 0.005130831332 | R134: 2.56950696e-06
A135: 63.40035 | B135: ='DF raw data'!D140 -> 3.0092656e-06 | C135: ='DF raw data'!E140 -> 3.1573979e-06 | D135: ='DF raw data'!F140 -> -2.1758306e-06 | F135: 3.011769309e-06 | G135: =(1-$G$1*($B$2-$G$2))*C135*$M$2/$M$1 -> 3.167531893e-06 | H135: -2.177640891e-06 | J135: =-CELL("contents", INDEX($F$6:$F$1203,1204-CELL("row",F135))) -> -1.943757662e-06 | K135: =CELL("contents", INDEX($G$6:$G$1203,1204-CELL("row",G135))) -> -7.709557349e-06 | L135: =-CELL("contents", INDEX($H$6:$H$1203,1204-CELL("row",H135))) -> 1.215367245e-05 | N135: -0.0003197854006 | O135: -0.009537302234 | P135: 0.0001482693926 | Q135: 0.005204988268 | R135: 2.631648855e-06
A136: =A135+$B$1 -> 63.9005 | B136: ='DF raw data'!D141 -> -1.0944226e-06 | C136: ='DF raw data'!E141 -> 8.7908265e-06 | D136: ='DF raw data'!F141 -> -7.9867996e-06 | F136: -1.09533316e-06 | G136: 8.81904156e-06 | H136: -7.993444617e-06 | J136: -5.326695126e-06 | K136: -7.039481051e-06 | L136: 9.31451063e-06 | N136: =J136*$B$1+N135 -> -0.0003224495472 | O136: =N136*$B$1+O135 -> -0.009698575375 | P136: =K136*$B$1+P135 -> 0.0001447485962 | Q136: =P136*$B$1+Q135 -> 0.005277384279 | R136: =(N136^2+P136^2)*$B$1+R135 -> 2.694130527e-06
A137: 64.40065 | B137: ='DF raw data'!D142 -> -4.5472375e-06 | C137: ='DF raw data'!E142 -> 6.4447736e-06 | D137: ='DF raw data'!F142 -> -1.7273955e-05 | F137: -4.551020802e-06 | G137: 6.465458762e-06 | H137: -1.728832693e-05 | J137: -9.367861381e-06 | K137: -5.956051699e-06 | L137: 2.185301559e-06 | N137: -0.000327134883 | O137: -0.009862191887 | P137: 0.0001417696769 | Q137: 0.005348290383 | R137: 2.757707531e-06
A138: 64.9008 | B138: ='DF raw data'!D143 -> -2.44383e-06 | C138: ='DF raw data'!E143 -> 6.8211734e-06 | D138: ='DF raw data'!F143 -> -1.6415806e-05 | F138: -2.445863267e-06 | G138: 6.843066656e-06 | H138: -1.642946395e-05 | J138: -1.231930514e-05 | K138: -3.314956553e-06 | L138: 3.193042703e-07 | N138: -0.0003332963835 | O138: -0.01002889007 | P138: 0.0001401117014 | Q138: 0.00541836725 | R138: 2.823086023e-06
A139: 65.40095 | B139: ='DF raw data'!D144 -> 1.4838412e-06 | C139: ='DF raw data'!E144 -> -1.7469868e-06 | D139: ='DF raw data'!F144 -> -1.4727596e-05 | F139: 1.485075756e-06 | G139: -1.752593933e-06 | H139: -1.473984936e-05 | J139: -9.56406789e-06 | K139: 1.307207794e-06 | L139: 2.520747418e-06 | N139: -0.0003380798521 | O139: -0.01019798071 | P139: 0.0001407655014 | Q139: 0.005488771116 | R139: 2.890162596e-06
A140: 65.9011 | B140: ='DF raw data'!D145 -> 7.4512502e-07 | C140: ='DF raw data'!E145 -> 3.5712872e-06 | D140: ='DF raw data'!F145 -> -1.2442796e-05 | F140: 7.45744964e-07 | G140: 3.582749613e-06 | H140: -1.245314841e-05 | J140: -3.330495669e-06 | K140: -1.476581377e-06 | L140: 7.277459012e-06 | N140: -0.0003397455995 | O140: -0.01036790447 | P140: 0.0001400269892 | Q140: 0.005558805614 | R140: 2.957700166e-06
A141: 66.40125 | B141: ='DF raw data'!D146 -> -1.3250423e-06 | C141: ='DF raw data'!E146 -> 5.1190432e-06 | D141: ='DF raw data'!F146 -> -1.1990028e-05 | F141: -1.326144735e-06 | G141: 5.135473294e-06 | H141: -1.20000037e-05 | J141: -1.198548664e-06 | K141: -2.913786476e-06 | L141: 1.18016418e-05 | N141: -0.0003403450536 | O141: -0.01053812805 | P141: 0.0001385696589 | Q141: 0.005628111229 | R141: 3.025238575e-06
A142: 66.9014 | B142: ='DF raw data'!D147 -> 9.5452016e-08 | C142: ='DF raw data'!E147 -> 3.3380977e-07 | D142: ='DF raw data'!F147 -> -1.0042589e-05 | F142: 9.553143208e-08 | G142: 3.348811667e-07 | H142: -1.005094443e-05 | J142: -3.131083196e-06 | K142: -2.211581789e-06 | L142: 1.903569253e-05 | N142: -0.0003419110648 | O142: -0.01070913487 | P142: 0.0001374635363 | Q142: 0.005696863617 | R142: 3.093158645e-06
A143: 67.40155 | B143: ='DF raw data'!D148 -> 2.938978e-06 | C143: ='DF raw data'!E148 -> 1.0034817e-06 | D143: ='DF raw data'!F148 -> -6.3954276e-06 | F143: 2.94142323e-06 | G143: 1.006702477e-06 | H143: -6.400748596e-06 | J143: -5.70207238e-06 | K143: 1.932981253e-06 | L143: 2.100080114e-05 | N143: -0.0003447629563 | O143: -0.01088156806 | P143: 0.0001384303168 | Q143: 0.00576609954 | R143: 3.162191573e-06
A144: 67.9017 | B144: ='DF raw data'!D149 -> 5.5930027e-06 | C144: ='DF raw data'!E149 -> 7.8533026e-07 | D144: ='DF raw data'!F149 -> -4.7416897e-06 | F144: 5.597656078e-06 | G144: 7.87850858e-07 | H144: -4.745634786e-06 | J144: -6.230967155e-06 | K144: -5.020805634e-06 | L144: 1.41236451e-05 | N144: -0.0003478793746 | O144: -0.01105555993 | P144: 0.0001359191609 | Q144: 0.005834079508 | R144: 3.231959535e-06
A145: 68.40185 | B145: ='DF raw data'!D150 -> 5.5930027e-06 | C145: ='DF raw data'!E150 -> 1.0934065e-05 | D145: ='DF raw data'!F150 -> 1.4658082e-06 | F145: 5.597656078e-06 | G145: 1.0969159e-05 | H145: 1.467027752e-06 | J145: -5.127415663e-06 | K145: -2.521324459e-06 | L145: 1.619926158e-05 | N145: -0.0003504438515 | O145: -0.01123083442 | P145: 0.0001346581205 | Q145: 0.005901428767 | R145: 3.302452528e-06
A146: 68.902 | B146: ='DF raw data'!D151 -> 2.0903258e-06 | C146: ='DF raw data'!E151 -> 9.50506e-06 | D146: ='DF raw data'!F151 -> 5.1905727e-06 | F146: 2.092064951e-06 | G146: 9.535567465e-06 | H146: 5.194891256e-06 | J146: -9.054612975e-06 | K146: -1.678170127e-06 | L146: 1.822945029e-05 | N146: -0.0003549725162 | O146: -0.01140837393 | P146: 0.0001338187837 | Q146: 0.005968358232 | R146: 3.374430592e-06
A147: 69.40215 | B147: ='DF raw data'!D152 -> -2.7042192e-06 | C147: ='DF raw data'!E152 -> 9.1782181e-07 | D147: ='DF raw data'!F152 -> 6.7079391e-06 | F147: -2.70646911e-06 | G147: 9.207676533e-07 | H147: 6.713520105e-06 | J147: -1.171104649e-05 | K147: -5.088937411e-06 | L147: 1.140444761e-05 | N147: -0.0003608297961 | O147: -0.01158884295 | P147: 0.0001312735516 | Q147: 0.006034014699 | R147: 3.44816815e-06
A148: 69.9023 | B148: ='DF raw data'!D153 -> -8.837618e-07 | C148: ='DF raw data'!E153 -> 2.5422958e-06 | D148: ='DF raw data'!F153 -> 3.0847359e-06 | F148: -8.844970898e-07 | G148: 2.550455559e-06 | H148: 3.0873024e-06 | J148: -7.954535872e-06 | K148: -3.438906109e-06 | L148: 5.203574975e-06 | N148: -0.0003648082572 | O148: -0.0117713018 | P148: 0.0001295535827 | Q148: 0.006098810923 | R148: 3.523125228e-06
A149: 70.40245 | B149: ='DF raw data'!D154 -> 3.2790663e-06 | C149: ='DF raw data'!E154 -> 4.4571093e-06 | D149: ='DF raw data'!F154 -> -4.4016006e-06 | F149: 3.281794483e-06 | G149: 4.47141485e-06 | H149: -4.405262732e-06 | J149: -6.377804322e-06 | K149: -3.666995042e-06 | L149: 9.940039037e-06 | N149: -0.000367998116 | O149: -0.01195535606 | P149: 0.0001277195352 | Q149: 0.006162689849 | R149: 3.599015435e-06
A150: 70.9026 | B150: ='DF raw data'!D155 -> 2.5407512e-06 | C150: ='DF raw data'!E155 -> 3.4145121e-06 | D150: ='DF raw data'!F155 -> -4.797329e-06 | F150: 2.542865105e-06 | G150: 3.425471327e-06 | H150: -4.801320378e-06 | J150: -6.528049022e-06 | K150: 1.312696856e-06 | L150: 1.742920404e-05 | N150: -0.0003712631198 | O150: -0.01214104331 | P150: 0.0001283760805 | Q150: 0.006226897145 | R150: 3.676196944e-06
A151: 71.40275 | B151: ='DF raw data'!D156 -> 2.5571771e-07 | C151: ='DF raw data'!E156 -> -2.9440964e-06 | D151: ='DF raw data'!F156 -> 9.3337542e-07 | F151: =(1-$G$1*($B$2-$G$2))*B151 -> 2.559304671e-07 | G151: -2.953545779e-06 | H151: 9.341519883e-07 | J151: -7.120542166e-06 | K151: -9.619106735e-07 | L151: 1.824383926e-05 | N151: -0.0003748244589 | O151: -0.01232851176 | P151: 0.0001278949809 | Q151: 0.00629086382 | R151: 3.754645722e-06
A152: 71.9029 | B152: ='DF raw data'!D157 -> -1.777203e-06 | C152: ='DF raw data'!E157 -> -3.9247866e-06 | D152: ='DF raw data'!F157 -> 1.8532857e-06 | F152: -1.778681633e-06 | G152: -3.937383605e-06 | H152: 1.854827634e-06 | J152: -9.224297435e-06 | K152: -9.502646239e-07 | L152: 1.619899636e-05 | N152: -0.0003794379913 | O152: -0.01251828767 | P152: 0.000127419706 | Q152: 0.006354592786 | R152: 3.834774239e-06
A153: 72.40305 | B153: ='DF raw data'!D158 -> -1.6898279e-06 | C153: ='DF raw data'!E158 -> 3.54664e-08 | D153: ='DF raw data'!F158 -> 1.1404928e-06 | F153: -1.691233837e-06 | G153: 3.558023305e-08 | H153: 1.14144169e-06 | J153: -8.355565351e-06 | K153: -5.331710723e-07 | L153: 9.711037967e-06 | N153: -0.0003836170273 | O153: -0.01271015373 | P153: 0.0001271530405 | Q153: 0.006418188379 | R153: 3.916463698e-06
A154: 72.9032 | B154: ='DF raw data'!D159 -> -8.1127234e-07 | C154: ='DF raw data'!E159 -> 4.692341e-06 | D154: ='DF raw data'!F159 -> 2.438429e-06 | F154: -8.119473186e-07 | G154: 4.70740155e-06 | H154: 2.440457773e-06 | J154: -3.45782612e-06 | K154: -1.009285542e-05 | L154: 3.08073404e-06 | N154: -0.000385346459 | O154: -0.01290288476 | P154: 0.0001221050989 | Q154: 0.006479259244 | R154: 3.998188982e-06
A155: 73.40335 | B155: ='DF raw data'!D160 -> -6.8432187e-06 | C155: ='DF raw data'!E160 -> 6.4122628e-07 | D155: ='DF raw data'!F160 -> 3.2519192e-06 | F155: -6.848912258e-06 | G155: 6.432843615e-07 | H155: 3.254624797e-06 | J155: -1.097205816e-06 | K155: -1.85292302e-05 | L155: 4.848613393e-06 | N155: -0.0003858952265 | O155: -0.01309589026 | P155: 0.0001128377044 | Q155: 0.006535695022 | R155: 4.079036966e-06
A156: 73.9035 | B156: ='DF raw data'!D161 -> -1.396832e-05 | C156: ='DF raw data'!E161 -> -5.9511408e-06 | D156: ='DF raw data'!F161 -> -4.8635673e-07 | F156: -1.397994164e-05 | G156: -5.970241597e-06 | H156: -4.867613788e-07 | J156: -3.126005875e-06 | K156: -5.899971078e-06 | L156: 1.219590055e-05 | N156: -0.0003874586984 | O156: -0.01328967773 | P156: 0.0001098868339 | Q156: 0.006590654922 | R156: 4.160160976e-06
A157: 74.40365 | B157: ='DF raw data'!D162 -> -1.1261096e-05 | C157: ='DF raw data'!E162 -> -8.6312975e-06 | D157: ='DF raw data'!F162 -> -5.1956549e-06 | F157: -1.127046523e-05 | G157: -8.659000535e-06 | H157: -5.199977685e-06 | J157: -6.008439766e-06 | K157: -1.406577411e-06 | L157: 8.913788907e-06 | N157: -0.0003904638195 | O157: -0.0134849682 | P157: 0.0001091833342 | Q157: 0.006645262967 | R157: 4.242377131e-06
A158: 74.9038 | B158: ='DF raw data'!D163 -> -4.8889292e-06 | C158: ='DF raw data'!E163 -> 1.0096279e-05 | D158: ='DF raw data'!F163 -> -1.170198e-05 | F158: -4.892996789e-06 | G158: 1.012868404e-05 | H158: -1.171171605e-05 | J158: -2.928463056e-06 | K158: -1.288681924e-05 | L158: -6.14959591e-07 | N158: -0.0003919284903 | O158: -0.01368099124 | P158: 0.0001027379915 | Q158: 0.006696647373 | R158: 4.324483273e-06
A159: 75.40395 | B159: ='DF raw data'!D164 -> -1.8409486e-06 | C159: ='DF raw data'!E164 -> 1.7833187e-05 | D159: ='DF raw data'!F164 -> -1.2612973e-05 | F159: -1.842480269e-06 | G159: 1.789042444e-05 | H159: -1.262346699e-05 | J159: 1.286596058e-06 | K159: -1.860285174e-05 | L159: -1.101140187e-08 | N159: -0.0003912849993 | O159: -0.01387669243 | P159: 9.343377523e-05 | Q159: 0.006743378276 | R159: 4.405424459e-06
A160: 75.9041 | B160: ='DF raw data'!D165 -> 8.2702593e-07 | C160: ='DF raw data'!E165 -> 4.4828626e-06 | D160: ='DF raw data'!F165 -> -9.8013979e-06 | F160: 8.277140156e-07 | G160: 4.497250807e-06 | H160: -9.809552663e-06 | J160: -2.195746242e-06 | K160: -7.353636138e-06 | L160: 3.651177654e-06 | N160: -0.0003923832018 | O160: -0.01407294289 | P160: 8.975585412e-05 | Q160: 0.006788269666 | R160: 4.486459107e-06
A161: 76.40425 | B161: ='DF raw data'!D166 -> 4.4213498e-06 | C161: ='DF raw data'!E166 -> -1.1129416e-06 | D161: ='DF raw data'!F166 -> -8.5545062e-06 | F161: 4.425028363e-06 | G161: -1.1165137e-06 | H161: -8.561623549e-06 | J161: -8.298046535e-06 | K161: 7.11265215e-06 | L161: 5.269786718e-06 | N161: -0.0003965334697 | O161: -0.0142712691 | P161: 9.331324709e-05 | Q161: 0.006834940287 | R161: 4.569457076e-06
A162: 76.9044 | B162: ='DF raw data'!D167 -> 5.5689729e-06 | C162: ='DF raw data'!E167 -> 5.4184525e-06 | D162: ='DF raw data'!F167 -> -6.8145155e-06 | F162: 5.573606285e-06 | G162: 5.435843579e-06 | H162: -6.820185177e-06 | J162: -1.106203596e-05 | K162: 9.050342167e-06 | L162: 7.144442234e-06 | N162: -0.000402066147 | O162: -0.01447236249 | P162: 9.783977573e-05 | Q162: 0.006883874851 | R162: 4.655097665e-06
A163: 77.40455 | B163: ='DF raw data'!D168 -> 5.5408045e-06 | C163: ='DF raw data'!E168 -> 8.6590007e-06 | D163: ='DF raw data'!F168 -> -4.7437525e-06 | F163: 5.545414449e-06 | G163: 8.686792651e-06 | H163: -4.747699302e-06 | J163: -1.080857726e-05 | K163: -2.707518857e-06 | L163: 9.076516284e-06 | N163: -0.0004074720569 | O163: -0.01467615964 | P163: 9.648561017e-05 | Q163: 0.006932132129 | R163: 4.742795442e-06
A164: 77.9047 | B164: ='DF raw data'!D169 -> 7.8261719e-06 | C164: ='DF raw data'!E169 -> 5.2415303e-06 | D164: ='DF raw data'!F169 -> -1.9709105e-06 | F164: 7.832683275e-06 | G164: 5.258353529e-06 | H164: -1.972550298e-06 | J164: -1.07083029e-05 | K164: -3.145357048e-06 | L164: 8.70470049e-06 | N164: -0.0004128278146 | O164: -0.01488263547 | P164: 9.491245984e-05 | Q164: 0.006979602595 | R164: 4.832539947e-06
A165: 78.40485 | B165: ='DF raw data'!D170 -> 9.0346039e-06 | C165: ='DF raw data'!E170 -> -6.439443e-07 | D165: ='DF raw data'!F170 -> 6.9797272e-07 | F165: 9.04212069e-06 | G165: -6.460111053e-07 | H165: 6.985534333e-07 | J165: -1.148537789e-05 | K165: 3.276755134e-06 | L165: 8.204131363e-06 | N165: -0.0004185722264 | O165: -0.01509198437 | P165: 9.655132892e-05 | Q165: 0.007027892742 | R165: 4.924830059e-06
A166: 78.905 | B166: ='DF raw data'!D171 -> 6.8824015e-06 | C166: ='DF raw data'!E171 -> -5.384029e-07 | D166: ='DF raw data'!F171 -> 6.6243331e-07 | F166: 6.888127658e-06 | G166: -5.401309593e-07 | H166: 6.629844545e-07 | J166: -1.276896895e-05 | K166: 4.515185186e-06 | L166: 1.000291921e-05 | N166: -0.0004249586262 | O166: -0.01530452742 | P166: 9.880959879e-05 | Q166: 0.007077312363 | R166: 5.020035198e-06
A167: 79.40515 | B167: ='DF raw data'!D172 -> 2.915082e-06 | C167: ='DF raw data'!E172 -> 7.4036484e-07 | D167: ='DF raw data'!F172 -> -6.3927646e-06 | F167: 2.917507348e-06 | G167: 7.427411169e-07 | H167: -6.39808338e-06 | J167: -1.311067702e-05 | K167: -1.641224626e-06 | L167: 8.812740004e-06 | N167: -0.0004315159313 | O167: -0.01552035012 | P167: 9.79887403e-05 | Q167: 0.007126321432 | R167: 5.117968465e-06
A168: 79.9053 | B168: ='DF raw data'!D173 -> 5.5622388e-07 | C168: ='DF raw data'!E173 -> -7.0786014e-06 | D168: ='DF raw data'!F173 -> -1.3877368e-05 | F168: 5.566866583e-07 | G168: -7.101320897e-06 | H168: -1.388891397e-05 | J168: -1.001787394e-05 | K168: -4.791381028e-06 | L168: 3.288686412e-06 | N168: -0.000436526371 | O168: -0.01573867878 | P168: 9.559233108e-05 | Q168: 0.007174131936 | R168: 5.217845002e-06
A169: 80.40545 | B169: ='DF raw data'!D174 -> 1.7139261e-06 | C169: ='DF raw data'!E174 -> 5.2674636e-07 | D169: ='DF raw data'!F174 -> -1.4209206e-05 | F169: 1.715352087e-06 | G169: 5.284370065e-07 | H169: -1.422102806e-05 | J169: -4.017718563e-06 | K169: -6.610002405e-07 | L169: 2.560845752e-06 | N169: -0.0004385358329 | O169: -0.01595801248 | P169: 9.526173181e-05 | Q169: 0.007221777091 | R169: 5.318569447e-06
A170: 80.9056 | B170: ='DF raw data'!D175 -> 5.9877589e-06 | C170: ='DF raw data'!E175 -> 6.6261014e-06 | D170: ='DF raw data'!F175 -> -1.1190047e-05 | F170: 5.992740715e-06 | G170: 6.647368552e-06 | H170: -1.119935712e-05 | J170: -2.303436266e-06 | K170: -8.604466061e-07 | L170: 6.339266585e-06 | N170: -0.0004396878966 | O170: -0.01617792238 | P170: 9.483137944e-05 | Q170: 0.007269207006 | R170: 5.419759014e-06
A171: 81.40575 | B171: ='DF raw data'!D176 -> 8.6912451e-06 | C171: ='DF raw data'!E176 -> 9.2916139e-07 | D171: ='DF raw data'!F176 -> -6.4362239e-06 | F171: 8.698476216e-06 | G171: 9.321436288e-07 | H171: -6.441578838e-06 | J171: -5.02466965e-06 | K171: 4.198752712e-06 | L171: 1.011568826e-05 | N171: -0.0004422009851 | O171: -0.0163990892 | P171: 9.69313856e-05 | Q171: 0.007317687238 | R171: 5.522258457e-06
A172: 81.9059 | B172: ='DF raw data'!D177 -> 7.0272476e-06 | C172: ='DF raw data'!E177 -> 4.177447e-06 | D172: ='DF raw data'!F177 -> -4.6205632e-06 | F172: 7.03309427e-06 | G172: 4.190854945e-06 | H172: -4.624407509e-06 | J172: -6.150266968e-06 | K172: -3.280817732e-06 | L172: 1.627725942e-05 | N172: -0.0004452770411 | O172: -0.01662179452 | P172: 9.529048462e-05 | Q172: 0.007365346774 | R172: 5.625965519e-06
A173: 82.40605 | B173: ='DF raw data'!D178 -> 3.3530255e-06 | C173: ='DF raw data'!E178 -> 7.5404782e-06 | D173: ='DF raw data'!F178 -> -2.3402199e-06 | F173: 3.355815217e-06 | G173: 7.564680138e-06 | H173: -2.342166963e-06 | J173: -5.892873095e-07 | K173: -6.830669694e-06 | L173: 1.871283313e-05 | N173: -0.0004455717732 | O173: -0.01684464724 | P173: 9.187412517e-05 | Q173: 0.007411297618 | R173: 5.729484096e-06
A174: 82.9062 | B174: ='DF raw data'!D179 -> 1.9819249e-06 | C174: ='DF raw data'!E179 -> -4.813945e-06 | D174: ='DF raw data'!F179 -> -3.8598509e-06 | F174: 1.983573862e-06 | G174: -4.82939585e-06 | H174: -3.863062296e-06 | J174: 1.963998889e-06 | K174: 1.899787655e-06 | L174: 1.258336866e-05 | N174: -0.0004445894791 | O174: -0.01706700867 | P174: 9.282430396e-05 | Q174: 0.007457723693 | R174: 5.832653115e-06
A175: 83.40635 | B175: ='DF raw data'!D180 -> 2.5985591e-07 | C175: ='DF raw data'!E180 -> 2.7817052e-07 | D175: ='DF raw data'!F180 -> -3.3666829e-06 | F175: 2.600721101e-07 | G175: 2.790633368e-07 | H175: -3.36948398e-06 | J175: -5.107908947e-06 | K175: -9.356733014e-07 | L175: 5.940543724e-06 | N175: -0.0004471441998 | O175: -0.01729064784 | P175: 9.235632696e-05 | Q175: 0.00750391571 | R175: 5.936918199e-06
A176: 83.9065 | B176: ='DF raw data'!D181 -> -8.4344481e-07 | C176: ='DF raw data'!E181 -> 1.4188623e-05 | D176: ='DF raw data'!F181 -> -5.374487e-06 | F176: -8.441465561e-07 | G176: 1.423416284e-05 | H176: -5.378958573e-06 | J176: -1.190832149e-05 | K176: -5.523436217e-06 | L176: 6.182000649e-06 | N176: -0.0004531001468 | O176: -0.01751726588 | P176: 8.959378034e-05 | Q176: 0.00754872604 | R176: 6.043613592e-06
A177: 84.40665 | B177: ='DF raw data'!D182 -> 3.3721844e-07 | C177: ='DF raw data'!E182 -> 1.8453087e-05 | D177: ='DF raw data'!F182 -> -9.6845934e-06 | F177: 3.374990057e-07 | G177: 1.851231408e-05 | H177: -9.692650982e-06 | J177: -1.229305032e-05 | K177: -1.859141916e-06 | L177: 1.095363685e-05 | N177: -0.0004592485159 | O177: -0.01774695902 | P177: 8.866393051e-05 | Q177: 0.007593071304 | R177: 6.153031653e-06
A178: 84.9068 | B178: ='DF raw data'!D183 -> -3.396945e-06 | C178: ='DF raw data'!E183 -> 9.6375552e-06 | D178: ='DF raw data'!F183 -> -1.1195504e-05 | F178: -3.399771258e-06 | G178: 9.668487922e-06 | H178: -1.120481866e-05 | J178: -1.15005435e-05 | K178: -9.285040546e-06 | L178: 1.30555642e-05 | N178: -0.0004650005127 | O178: -0.01797952903 | P178: 8.402001748e-05 | Q178: 0.007635093916 | R178: 6.264707566e-06
A179: 85.40695 | B179: ='DF raw data'!D184 -> -1.1866114e-05 | C179: ='DF raw data'!E184 -> 1.0775289e-05 | D179: ='DF raw data'!F184 -> -9.2249711e-06 | F179: -1.187598661e-05 | G179: 1.08098734e-05 | H179: -9.232646276e-06 | J179: -1.214948697e-05 | K179: -1.509168635e-05 | L179: 7.253013291e-06 | N179: -0.0004710770786 | O179: -0.01821513823 | P179: 7.647191056e-05 | Q179: 0.007673341342 | R179: 6.378622514e-06
A180: 85.9071 | B180: ='DF raw data'!D185 -> -1.3568291e-05 | C180: ='DF raw data'!E185 -> 1.3304802e-05 | D180: ='DF raw data'!F185 -> -2.9927824e-06 | F180: -1.357957982e-05 | G180: 1.334750513e-05 | H180: -2.995272395e-06 | J180: -1.035717601e-05 | K180: -6.22724303e-06 | L180: 4.148349658e-06 | N180: -0.0004762572202 | O180: -0.01845333828 | P180: 7.335735495e-05 | Q180: 0.007710031023 | R180: 6.494758465e-06
A181: 86.40725 | B181: ='DF raw data'!D186 -> -7.9395777e-06 | C181: ='DF raw data'!E186 -> 1.7409327e-06 | D181: ='DF raw data'!F186 -> -1.0094726e-06 | F181: -7.946183429e-06 | G181: 1.746520402e-06 | H181: -1.010312481e-06 | J181: -9.538548075e-06 | K181: -1.235742252e-05 | L181: 4.191379128e-06 | N181: -0.000481027925 | O181: -0.01869392439 | P181: 6.717679008e-05 | Q181: 0.007743629495 | R181: 6.612744143e-06
A182: 86.9074 | B182: ='DF raw data'!D187 -> -3.4693016e-06 | C182: ='DF raw data'!E187 -> 1.576453e-05 | D182: ='DF raw data'!F187 -> -3.4492105e-06 | F182: -3.472188059e-06 | G182: 1.581512788e-05 | H182: -3.452080243e-06 | J182: -1.015415523e-05 | K182: -1.36523424e-05 | L182: 5.721129423e-06 | N182: -0.0004861065258 | O182: -0.01893705057 | P182: 6.034857103e-05 | Q182: 0.007773812833 | R182: 6.732750886e-06
A183: 87.40755 | B183: ='DF raw data'!D188 -> 1.6796172e-06 | C183: ='DF raw data'!E188 -> 1.7262919e-05 | D183: ='DF raw data'!F188 -> -4.3208702e-06 | F183: 1.681014642e-06 | G183: 1.731832611e-05 | H183: -4.324465164e-06 | J183: -8.64422972e-06 | K183: -3.368226983e-06 | L183: 8.483290931e-06 | N183: -0.0004904299373 | O183: -0.01918233911 | P183: 5.86639523e-05 | Q183: 0.007803153608 | R183: 6.854768972e-06
A184: 87.9077 | B184: ='DF raw data'!D189 -> 5.4607053e-06 | C184: ='DF raw data'!E189 -> 1.6400045e-05 | D184: ='DF raw data'!F189 -> -3.6277079e-06 | F184: 5.465248607e-06 | G184: 1.645268263e-05 | H184: -3.630726153e-06 | J184: -4.907961329e-06 | K184: -5.084652702e-06 | L184: 7.536705927e-06 | N184: -0.0004928846541 | O184: -0.01942885537 | P184: 5.612086325e-05 | Q184: 0.007831222458 | R184: 6.977848302e-06
A185: 88.40785 | B185: ='DF raw data'!D190 -> 2.5840714e-06 | C185: ='DF raw data'!E190 -> 1.6061007e-05 | D185: ='DF raw data'!F190 -> 2.4543342e-06 | F185: 2.586221347e-06 | G185: 1.611255645e-05 | H185: 2.456376206e-06 | J185: -8.514297006e-07 | K185: -9.418895292e-06 | L185: 9.365532045e-06 | N185: -0.0004933104967 | O185: -0.01967558461 | P185: 5.141000277e-05 | Q185: 0.007856935171 | R185: 7.100884319e-06
A186: 88.908 | B186: ='DF raw data'!D191 -> -3.4730397e-06 | C186: ='DF raw data'!E191 -> 1.577894e-05 | D186: ='DF raw data'!F191 -> 5.0651188e-06 | F186: -3.475929269e-06 | G186: 1.582958413e-05 | H186: 5.069332979e-06 | J186: 1.837938093e-06 | K186: -7.247759604e-06 | L186: 1.15090906e-05 | N186: -0.0004923912519 | O186: -0.01992185409 | P186: 4.778503581e-05 | Q186: 0.007880834857 | R186: 7.223287306e-06
A187: 89.40815 | B187: ='DF raw data'!D192 -> -5.9559175e-06 | C187: ='DF raw data'!E192 -> 1.0826257e-05 | D187: ='DF raw data'!F192 -> 5.6796116e-06 | F187: -5.960872823e-06 | G187: 1.086100498e-05 | H187: 5.684337037e-06 | J187: 5.057132637e-07 | K187: -5.304982411e-06 | L187: 1.374250526e-05 | N187: -0.0004921383194 | O187: -0.02016799708 | P187: 4.513174885e-05 | Q187: 0.007903407501 | R187: 7.345442441e-06
A188: 89.9083 | B188: ='DF raw data'!D193 -> -6.0788047e-06 | C188: ='DF raw data'!E193 -> 5.9276131e-06 | D188: ='DF raw data'!F193 -> 5.8851301e-06 | F188: -6.083862266e-06 | G188: 5.946638382e-06 | H188: 5.890026528e-06 | J188: -5.352281396e-06 | K188: -5.555830558e-06 | L188: 1.24952454e-05 | N188: -0.000494815263 | O188: -0.02041547893 | P188: 4.23530002e-05 | Q188: 0.007924590354 | R188: 7.468797397e-06
A189: 90.40845 | B189: ='DF raw data'!D194 -> -6.4627461e-06 | C189: ='DF raw data'!E194 -> 7.9095407e-06 | D189: ='DF raw data'!F194 -> 2.1445258e-06 | F189: -6.468123105e-06 | G189: 7.934927182e-06 | H189: 2.146310045e-06 | J189: -1.044355582e-05 | K189: -2.690650189e-06 | L189: 1.176160852e-05 | N189: -0.0005000386074 | O189: -0.02066557324 | P189: 4.100727151e-05 | Q189: 0.007945100141 | R189: 7.594695258e-06
A190: 90.9086 | B190: ='DF raw data'!D195 -> -5.7299044e-06 | C190: ='DF raw data'!E195 -> 1.1691132e-05 | D190: ='DF raw data'!F195 -> -3.6504052e-06 | F190: -5.73467168e-06 | G190: 1.172865589e-05 | H190: -3.653442337e-06 | J190: -1.217146624e-05 | K190: -2.708051762e-06 | L190: 1.527445678e-05 | N190: -0.0005061261663 | O190: -0.02091871224 | P190: 3.965283942e-05 | Q190: 0.007964932509 | R190: 7.72360194e-06
A191: 91.40875 | B191: ='DF raw data'!D196 -> -1.9319282e-06 | C191: ='DF raw data'!E196 -> 1.5948528e-05 | D191: ='DF raw data'!F196 -> -7.5542002e-06 | F191: -1.933535564e-06 | G191: 1.599971644e-05 | H191: -7.560485295e-06 | J191: -1.086282235e-05 | K191: -5.444997767e-06 | L191: 1.25367419e-05 | N191: -0.0005115592069 | O191: -0.02117456858 | P191: 3.692952379e-05 | Q191: 0.00798340281 | R191: 7.855169705e-06
A192: 91.9089 | B192: ='DF raw data'!D197 -> 4.6025079e-06 | C192: ='DF raw data'!E197 -> 1.916759e-05 | D192: ='DF raw data'!F197 -> -3.1600348e-06 | F192: 4.606337187e-06 | G192: 1.922911035e-05 | H192: -3.162663949e-06 | J192: -3.214254737e-06 | K192: -1.974660799e-06 | L192: 1.858521304e-05 | N192: -0.0005131668164 | O192: -0.02143122896 | P192: 3.594189719e-05 | Q192: 0.00800137915 | R192: 7.9875254e-06
A193: 92.40905 | B193: ='DF raw data'!D198 -> 4.9447322e-06 | C193: ='DF raw data'!E198 -> 2.0560703e-05 | D193: ='DF raw data'!F198 -> -3.6970587e-06 | F193: 4.948846217e-06 | G193: 2.062669469e-05 | H193: -3.700134653e-06 | J193: 1.074022344e-06 | K193: -8.511357375e-06 | L193: 2.663922641e-05 | N193: -0.0005126296441 | O193: -0.02168762068 | P193: 3.16849418e-05 | Q193: 0.008017226373 | R193: 8.119461513e-06
A194: 92.9092 | B194: ='DF raw data'!D199 -> -1.2032245e-06 | C194: ='DF raw data'!E199 -> 1.4539935e-05 | D194: ='DF raw data'!F199 -> -6.752357e-06 | F194: -1.204225583e-06 | G194: 1.458660241e-05 | H194: -6.757974961e-06 | J194: -3.033948447e-06 | K194: -1.607298284e-05 | L194: 1.970445047e-05 | N194: -0.0005141470734 | O194: -0.02194477134 | P194: 2.364603943e-05 | Q194: 0.00802905294 | R194: 8.251954423e-06
A195: 93.40935 | B195: ='DF raw data'!D200 -> -3.3440797e-06 | C195: ='DF raw data'!E200 -> 1.2698907e-05 | D195: ='DF raw data'!F200 -> -1.0591662e-05 | F195: -3.346861974e-06 | G195: 1.273966544e-05 | H195: -1.060047426e-05 | J195: -4.598587844e-06 | K195: -2.225771687e-06 | L195: 1.549020514e-05 | N195: -0.0005164470571 | O195: -0.02220307233 | P195: 2.253281972e-05 | Q195: 0.00804032273 | R195: 8.385607152e-06
A196: 93.9095 | B196: ='DF raw data'!D201 -> -3.2506973e-06 | C196: ='DF raw data'!E201 -> 1.938254e-05 | D196: ='DF raw data'!F201 -> -1.391983e-05 | F196: -3.25340188e-06 | G196: 1.944475025e-05 | H196: -1.39314113e-05 | J196: -4.546212404e-06 | K196: -2.333392703e-06 | L196: 7.416407121e-06 | N196: -0.0005187208453 | O196: -0.02246251056 | P196: 2.136577336e-05 | Q196: 0.008051008821 | R196: 8.520411487e-06
A197: 94.40965 | B197: ='DF raw data'!D202 -> -6.1867381e-06 | C197: ='DF raw data'!E202 -> 2.2000248e-05 | D197: ='DF raw data'!F202 -> -1.222849e-05 | F197: -6.191885466e-06 | G197: 2.207086005e-05 | H197: -1.22386641e-05 | J197: -9.624058961e-06 | K197: -1.532579634e-05 | L197: 6.776629369e-07 | N197: -0.0005235343184 | O197: -0.02272435625 | P197: 1.370057632e-05 | Q197: 0.008057861165 | R197: 8.657590573e-06
A198: 94.9098 | B198: ='DF raw data'!D203 -> -5.7313723e-06 | C198: ='DF raw data'!E203 -> 1.0941807e-05 | D198: ='DF raw data'!F203 -> -1.9335084e-06 | F198: -5.736140802e-06 | G198: 1.097692585e-05 | H198: -1.935117079e-06 | J198: -1.564839764e-05 | K198: -1.430167383e-05 | L198: 3.093786991e-06 | N198: -0.0005313608644 | O198: -0.02299011639 | P198: 6.547594151e-06 | Q198: 0.008061135944 | R198: 8.79882655e-06
A199: 95.40995 | B199: ='DF raw data'!D204 -> -6.5928305e-07 | C199: ='DF raw data'!E204 -> 1.1681659e-05 | D199: ='DF raw data'!F204 -> -5.5570752e-07 | F199: -6.598315735e-07 | G199: =(1-$G$1*($B$2-$G$2))*C199*$M$2/$M$1 -> 1.171915248e-05 | H199: -5.561698687e-07 | J199: =-CELL("contents", INDEX($F$6:$F$1203,1204-CELL("row",F199))) -> -1.935540531e-05 | K199: =CELL("contents", INDEX($G$6:$G$1203,1204-CELL("row",G199))) -> -9.13766745e-06 | L199: =-CELL("contents", INDEX($H$6:$H$1203,1204-CELL("row",H199))) -> 8.150109754e-06 | N199: -0.0005410414704 | O199: -0.02326071828 | P199: 1.977389776e-06 | Q199: 0.008062124935 | R199: 8.945235351e-06
A200: =A199+$B$1 -> 95.9101 | B200: ='DF raw data'!D205 -> 1.9350005e-06 | C200: ='DF raw data'!E205 -> 1.8858838e-05 | D200: ='DF raw data'!F205 -> -4.7361018e-06 | F200: 1.93661042e-06 | G200: 1.891936738e-05 | H200: -4.740042237e-06 | J200: -2.103387964e-05 | K200: -1.122741625e-05 | L200: 1.44323157e-05 | N200: =J200*$B$1+N199 -> -0.0005515615653 | O200: =N200*$B$1+O199 -> -0.0235365818 | P200: =K200*$B$1+P199 -> -3.638002464e-06 | Q200: =P200*$B$1+Q199 -> 0.008060305388 | R200: =(N200^2+P200^2)*$B$1+R199 -> 9.097397684e-06
... 1003 more rows

Sheet 15 mm
A1: dz | B1: ='DF raw data'!H7 -> 0.50008 | C1: mm | F1: T_coeff | G1: -0.0008 | H1: /degC | L1: Hallref | M1: ='PI vs gap'!B50 -> 0.50513 | N1: T | P1: IBy total | Q1: =P1203*1000 -> -7.579409046 | R1: muTm
A2: Tref | B2: ='DF raw data'!H8 -> 21.06 | C2: degC | F2: Tcorr | G2: 20 | H2: degC | L2: NMRref | M2: ='PI vs gap'!B51 -> 0.50633 | N2: T | P2: JBy total | Q2: =Q1203 -> -6.226548888 | R2: muTm^2
A3: Encoder | B3: ='DF raw data'!H9 -> 491199 | P3: PI total | Q3: =R1203 -> 2872.786814 | R3: T^2mm^3
J4: SXR-rotation
A5: z [mm] | B5: Bx | C5: By | D5: Bz | F5: Bx_corr | G5: By_corr | H5: Bz_corr | J5: Bx_rot | K5: By_rot | L5: Bz_rot | N5: Ix | O5: Jx | P5: Iy | Q5: Jy | R5: PI
A6: ='PI vs gap'!B53 -> -1.119 | B6: ='DF raw data'!G11 -> -3.8609329e-07 | C6: ='DF raw data'!H11 -> -4.1314333e-06 | D6: ='DF raw data'!I11 -> -1.5138472e-05 | F6: =(1-$G$1*($B$2-$G$2))*B6 -> -3.864206971e-07 | G6: =(1-$G$1*($B$2-$G$2))*C6*$M$2/$M$1 -> -4.144759819e-06 | H6: =(1-$G$1*($B$2-$G$2))*D6 -> -1.515130942e-05 | J6: =-CELL("contents", INDEX($F$6:$F$1203,1204-CELL("row",F6))) -> -1.182746019e-05 | K6: =CELL("contents", INDEX($G$6:$G$1203,1204-CELL("row",G6))) -> 5.019130857e-06 | L6: =-CELL("contents", INDEX($H$6:$H$1203,1204-CELL("row",H6))) -> 6.648544789e-06 | N6: =J6*$B$1 -> -5.914676291e-06 | O6: =N6*$B$1 -> -2.95781132e-06 | P6: =K6*$B$1 -> 2.509966959e-06 | Q6: =P6*$B$1 -> 1.255184277e-06 | R6: =(N6^2+P6^2)*$B$1 -> 2.064496755e-11
A7: =A6+$B$1 -> -0.61892 | B7: ='DF raw data'!G12 -> -4.3695678e-07 | C7: ='DF raw data'!H12 -> -1.2271222e-06 | D7: ='DF raw data'!I12 -> -6.1751693e-06 | F7: =(1-$G$1*($B$2-$G$2))*B7 -> -4.373273193e-07 | G7: =(1-$G$1*($B$2-$G$2))*C7*$M$2/$M$1 -> -1.231080455e-06 | H7: -6.180405844e-06 | J7: =-CELL("contents", INDEX($F$6:$F$1203,1204-CELL("row",F7))) -> -1.458421193e-05 | K7: =CELL("contents", INDEX($G$6:$G$1203,1204-CELL("row",G7))) -> -1.350532024e-07 | L7: =-CELL("contents", INDEX($H$6:$H$1203,1204-CELL("row",H7))) -> 6.164021061e-06 | N7: =J7*$B$1+N6 -> -1.320794899e-05 | O7: =N7*$B$1+O6 -> -9.562842453e-06 | P7: =K7*$B$1+P6 -> 2.442429554e-06 | Q7: =P7*$B$1+Q6 -> 2.476594448e-06 | R7: =(N7^2+P7^2)*$B$1+R6 -> 1.108670902e-10
A8: =A7+$B$1 -> -0.11884 | B8: ='DF raw data'!G13 -> -3.6433272e-07 | C8: ='DF raw data'!H13 -> -2.599284e-06 | D8: ='DF raw data'!I13 -> -2.7019144e-06 | F8: -3.646416741e-07 | G8: -2.607668356e-06 | H8: -2.704205623e-06 | J8: -1.190295115e-05 | K8: -2.660143979e-06 | L8: 5.314003857e-06 | N8: =J8*$B$1+N7 -> -1.916037681e-05 | O8: =N8*$B$1+O7 -> -1.914456369e-05 | P8: =K8*$B$1+P7 -> 1.112144753e-06 | Q8: =P8*$B$1+Q7 -> 3.032755796e-06 | R8: =(N8^2+P8^2)*$B$1+R7 -> 2.950750114e-10
A9: 0.38124 | B9: ='DF raw data'!G14 -> -7.124309e-07 | C9: ='DF raw data'!H14 -> 6.4342685e-06 | D9: ='DF raw data'!I14 -> -5.3233439e-06 | F9: -7.130350414e-07 | G9: 6.455023138e-06 | H9: -5.327858096e-06 | J9: -6.645783449e-06 | K9: 5.429807594e-06 | L9: 5.001003458e-06 | N9: -2.248380019e-05 | O9: -3.038826249e-05 | P9: 3.827482934e-06 | Q9: 4.946803462e-06 | R9: 5.552020734e-10
A10: 0.88132 | B10: ='DF raw data'!G15 -> -8.0407796e-07 | C10: ='DF raw data'!H15 -> 9.3531207e-06 | D10: ='DF raw data'!I15 -> -2.3296764e-06 | F10: -8.047598181e-07 | G10: 9.383290506e-06 | H10: -2.331651966e-06 | J10: -2.576962012e-06 | K10: 2.83805471e-06 | L10: 5.188576485e-06 | N10: -2.377248736e-05 | O10: -4.227640796e-05 | P10: 5.246737333e-06 | Q10: 7.570591867e-06 | R10: 8.5157919e-10
A11: 1.3814 | B11: ='DF raw data'!G16 -> -5.0277146e-07 | C11: ='DF raw data'!H16 -> 1.2745048e-06 | D11: ='DF raw data'!I16 -> -1.1638498e-06 | F11: -5.031978102e-07 | G11: 1.278615894e-06 | H11: -1.164836745e-06 | J11: -6.717871428e-07 | K11: 5.513601413e-06 | L11: 5.512369028e-06 | N11: -2.410843467e-05 | O11: -5.433255397e-05 | P11: 8.003979128e-06 | Q11: 1.157322175e-05 | R11: 1.174270965e-09
A12: 1.88148 | B12: ='DF raw data'!G17 -> -6.2472287e-07 | C12: ='DF raw data'!H17 -> 4.6378018e-06 | D12: ='DF raw data'!I17 -> -8.3260818e-07 | F12: -6.25252635e-07 | G12: 4.652761682e-06 | H12: -8.333142317e-07 | J12: -3.021088012e-06 | K12: 3.393030206e-06 | L12: 5.78760433e-06 | N12: -2.561922036e-05 | O12: -6.714421369e-05 | P12: 9.700765674e-06 | Q12: 1.642438065e-05 | R12: 1.549555654e-09
A13: 2.38156 | B13: ='DF raw data'!G18 -> -5.8954544e-07 | C13: ='DF raw data'!H18 -> 2.9060511e-06 | D13: ='DF raw data'!I18 -> -5.3481695e-06 | F13: -5.900453745e-07 | G13: 2.915424976e-06 | H13: -5.352704748e-06 | J13: -2.627467204e-06 | K13: 4.194970761e-06 | L13: 5.893249742e-06 | N13: -2.693316416e-05 | O13: -8.061295043e-05 | P13: 1.179858665e-05 | Q13: 2.232461786e-05 | R13: 1.981925811e-09
A14: 2.88164 | B14: ='DF raw data'!G19 -> -3.1347014e-07 | C14: ='DF raw data'!H19 -> -4.4305771e-06 | D14: ='DF raw data'!I19 -> -4.242173e-06 | F14: -3.137359627e-07 | G14: -4.444868549e-06 | H14: -4.245770363e-06 | J14: -4.072415182e-06 | K14: -1.922186447e-06 | L14: 5.57744937e-06 | N14: -2.896969755e-05 | O14: -9.510011678e-05 | P14: 1.083733965e-05 | Q14: 2.774415467e-05 | R14: 2.460348e-09
A15: 3.38172 | B15: ='DF raw data'!G20 -> -3.605947e-07 | C15: ='DF raw data'!H20 -> -2.4992178e-06 | D15: ='DF raw data'!I20 -> -5.9660886e-07 | F15: -3.609004843e-07 | G15: -2.507279378e-06 | H15: -5.971147843e-07 | J15: -9.048262025e-06 | K15: 1.899446833e-06 | L15: 5.310475668e-06 | N15: -3.349455242e-05 | O15: -0.0001118500726 | P15: 1.178721503e-05 | Q15: 3.363870516e-05 | R15: 3.090860606e-09
A16: 3.8818 | B16: ='DF raw data'!G21 -> -4.0578476e-07 | C16: ='DF raw data'!H21 -> -1.6434125e-06 | D16: ='DF raw data'!I21 -> -3.1557449e-06 | F16: -4.061288655e-07 | G16: -1.648713558e-06 | H16: -3.158420972e-06 | J16: -7.952309144e-06 | K16: 4.809644603e-06 | L16: 5.420515903e-06 | N16: -3.747134318e-05 | O16: -0.0001305887418 | P16: 1.41924221e-05 | Q16: 4.073605161e-05 | R16: 3.89375225e-09
A17: 4.38188 | B17: ='DF raw data'!G22 -> -1.8551152e-07 | C17: ='DF raw data'!H22 -> -9.0555613e-06 | D17: ='DF raw data'!I22 -> -1.1955193e-05 | F17: -1.856688338e-07 | G17: -9.084771286e-06 | H17: -1.1965331e-05 | J17: -3.906936075e-06 | K17: 3.466980476e-07 | L17: 5.578581729e-06 | N17: -3.942512377e-05 | O17: -0.0001503044577 | P17: 1.436579886e-05 | Q17: 4.79201003e-05 | R17: 4.774251388e-09
A18: 4.88196 | B18: ='DF raw data'!G23 -> -7.8405361e-07 | C18: ='DF raw data'!H23 -> 6.6286711e-06 | D18: ='DF raw data'!I23 -> -1.5918153e-05 | F18: -7.847184875e-07 | G18: 6.650052811e-06 | H18: -1.593165159e-05 | J18: -6.796698317e-06 | K18: 1.845905483e-06 | L18: 5.680695348e-06 | N18: -4.282401666e-05 | O18: -0.000171719892 | P18: 1.528889927e-05 | Q18: 5.556577305e-05 | R18: 5.808240222e-09
A19: 5.38204 | B19: ='DF raw data'!G24 -> -6.0743429e-07 | C19: ='DF raw data'!H24 -> 3.244023e-06 | D19: ='DF raw data'!I24 -> -6.9871953e-06 | F19: -6.079493943e-07 | G19: 3.254487052e-06 | H19: -6.993120442e-06 | J19: -1.010740582e-05 | K19: 4.138079039e-06 | L19: 5.492922051e-06 | N19: -4.787852817e-05 | O19: -0.0001956629864 | P19: 1.735826984e-05 | Q19: 6.424629663e-05 | R19: 7.105279211e-09
A20: 5.88212 | B20: ='DF raw data'!G25 -> -6.2805981e-07 | C20: ='DF raw data'!H25 -> 4.9240052e-06 | D20: ='DF raw data'!I25 -> 3.3059806e-08 | F20: -6.285924047e-07 | G20: 4.939888271e-06 | H20: 3.308784072e-08 | J20: -5.612828246e-06 | K20: -6.186621354e-06 | L20: 4.604469682e-06 | N20: -5.068539131e-05 | O20: -0.0002210097369 | P20: 1.426446423e-05 | Q20: 7.13796699e-05 | R20: 8.491742926e-09
A21: 6.3822 | B21: ='DF raw data'!G26 -> -4.6552492e-07 | C21: ='DF raw data'!H26 -> 7.0223621e-07 | D21: ='DF raw data'!I26 -> 1.4782141e-06 | F21: -4.659196851e-07 | G21: 7.045013716e-07 | H21: 1.479467626e-06 | J21: -2.670890496e-06 | K21: 7.567109094e-06 | L21: 4.19761366e-06 | N21: -5.202105023e-05 | O21: -0.0002470244237 | P21: 1.804862415e-05 | Q21: 8.040542586e-05 | R21: 1.000795673e-08
A22: 6.88228 | B22: ='DF raw data'!G27 -> -3.1037298e-06 | C22: ='DF raw data'!H27 -> 5.7519219e-06 | D22: ='DF raw data'!I27 -> 2.288243e-06 | F22: -3.106361763e-06 | G22: 5.770475533e-06 | H22: 2.29018343e-06 | J22: -6.919087215e-06 | K22: 1.609678048e-05 | L22: 5.147479764e-06 | N22: -5.548114737e-05 | O22: -0.0002747694358 | P22: 2.609830213e-05 | Q22: 9.345666479e-05 | R22: 1.188789702e-08
A23: 7.38236 | B23: ='DF raw data'!G28 -> -6.313644e-06 | C23: ='DF raw data'!H28 -> -4.3593236e-06 | D23: ='DF raw data'!I28 -> 1.1216194e-06 | F23: =(1-$G$1*($B$2-$G$2))*B23 -> -6.31899797e-06 | G23: -4.373385211e-06 | H23: 1.122570533e-06 | J23: -7.383455665e-06 | K23: 8.121949555e-06 | L23: 1.279190034e-05 | N23: -5.917346588e-05 | O23: -0.0003043609026 | P23: 3.015992666e-05 | Q23: 0.0001085390409 | R23: 1.409381003e-08
A24: 7.88244 | B24: ='DF raw data'!G29 -> -3.3167935e-06 | C24: ='DF raw data'!H29 -> -5.8807918e-06 | D24: ='DF raw data'!I29 -> 4.2491934e-06 | F24: -3.319606141e-06 | G24: -5.899761121e-06 | H24: 4.252796716e-06 | J24: -5.272187027e-07 | K24: 1.819131197e-06 | L24: 1.545252364e-05 | N24: -5.943711741e-05 | O24: -0.0003340842163 | P24: 3.106963779e-05 | Q24: 0.0001240763454 | R24: 1.634321653e-08
A25: 8.38252 | B25: ='DF raw data'!G30 -> -8.9732754e-07 | C25: ='DF raw data'!H30 -> 2.5554045e-06 | D25: ='DF raw data'!I30 -> 4.9145342e-06 | F25: -8.980884738e-07 | G25: 2.563647317e-06 | H25: 4.918701725e-06 | J25: 2.372898613e-06 | K25: 7.458015528e-06 | L25: 1.344215029e-05 | N25: -5.825047827e-05 | O25: -0.0003632141155 | P25: 3.47992422e-05 | Q25: 0.0001414787504 | R25: 1.86456376e-08
A26: 8.8826 | B26: ='DF raw data'!G31 -> -4.6055929e-06 | C26: ='DF raw data'!H31 -> 1.2863792e-06 | D26: ='DF raw data'!I31 -> -1.3715638e-06 | F26: -4.609498443e-06 | G26: 1.290528597e-06 | H26: -1.372726886e-06 | J26: -4.758712969e-06 | K26: 7.185078964e-06 | L26: 1.324138618e-05 | N26: -6.063021545e-05 | O26: -0.0003935340736 | P26: 3.839235649e-05 | Q26: 0.0001606780001 | R26: 2.122104763e-08
A27: 9.38268 | B27: ='DF raw data'!G32 -> -1.0476872e-05 | C27: ='DF raw data'!H32 -> -6.9878433e-06 | D27: ='DF raw data'!I32 -> 2.0173009e-06 | F27: -1.048575639e-05 | G27: -7.010383571e-06 | H27: 2.019011571e-06 | J27: -1.224559947e-05 | K27: 5.592844e-06 | L27: 7.801840355e-06 | N27: -6.675399483e-05 | O27: -0.0004269164114 | P27: 4.118922591e-05 | Q27: 0.0001812759082 | R27: 2.429786392e-08
A28: 9.88276 | B28: ='DF raw data'!G33 -> -8.3057812e-06 | C28: ='DF raw data'!H33 -> -5.8938667e-06 | D28: ='DF raw data'!I33 -> 1.0434729e-05 | F28: -8.312824502e-06 | G28: -5.912878196e-06 | H28: 1.044357765e-05 | J28: -1.528126653e-05 | K28: -1.281008487e-06 | L28: -7.88717796e-07 | N28: -7.43958506e-05 | O28: -0.0004641202883 | P28: 4.054861919e-05 | Q28: 0.0002015534616 | R28: 2.788790479e-08
A29: 10.38284 | B29: ='DF raw data'!G34 -> -1.0521863e-06 | C29: ='DF raw data'!H34 -> -2.7818817e-07 | D29: ='DF raw data'!I34 -> 1.107571e-05 | F29: -1.053078554e-06 | G29: -2.790855051e-07 | H29: 1.10851022e-05 | J29: -1.46395268e-05 | K29: -1.549660275e-06 | L29: -2.914658636e-06 | N29: -8.171678516e-05 | O29: -0.0005049852183 | P29: 3.977366508e-05 | Q29: 0.0002214434761 | R29: 3.201835426e-08
A30: 10.88292 | B30: ='DF raw data'!G35 -> 4.7519443e-06 | C30: ='DF raw data'!H35 -> -1.2967713e-06 | D30: ='DF raw data'!I35 -> 2.8890952e-06 | F30: 4.755973949e-06 | G30: -1.300954218e-06 | H30: 2.891545153e-06 | J30: -1.078455155e-05 | K30: 9.769601801e-06 | L30: 1.359539012e-06 | N30: -8.71099237e-05 | O30: -0.0005485471489 | P30: 4.465924755e-05 | Q30: 0.0002437766726 | R30: 3.681041447e-08
A31: 11.383 | B31: ='DF raw data'!G36 -> 4.2328347e-06 | C31: ='DF raw data'!H36 -> 1.2364705e-05 | D31: ='DF raw data'!I36 -> -1.9892525e-06 | F31: 4.236424144e-06 | G31: 1.240458909e-05 | H31: -1.990939386e-06 | J31: -6.849875973e-06 | K31: 1.253081494e-05 | L31: 6.053071756e-07 | N31: -9.053540968e-05 | O31: -0.0005938220966 | P31: 5.092565749e-05 | Q31: 0.0002692435754 | R31: 4.220631917e-08
A32: 11.88308 | B32: ='DF raw data'!G37 -> 3.5549323e-07 | C32: ='DF raw data'!H37 -> -8.2958277e-06 | D32: ='DF raw data'!I37 -> -4.4585418e-06 | F32: 3.557946883e-07 | G32: -8.322587059e-06 | H32: -4.462322643e-06 | J32: -4.520683892e-06 | K32: 1.723826266e-06 | L32: 3.857833171e-06 | N32: -9.279611328e-05 | O32: -0.0006402275769 | P32: 5.178770852e-05 | Q32: 0.0002951415727 | R32: 4.785376532e-08
A33: 12.38316 | B33: ='DF raw data'!G38 -> -8.6315146e-07 | C33: ='DF raw data'!H38 -> -9.6128852e-06 | D33: ='DF raw data'!I38 -> -5.5126898e-06 | F33: -8.638834124e-07 | G33: -9.643892913e-06 | H33: -5.517364561e-06 | J33: -6.889425283e-06 | K33: 5.516678106e-06 | L33: 6.10720232e-06 | N33: -9.624137708e-05 | O33: -0.0006883559648 | P33: 5.454648891e-05 | Q33: 0.0003224191808 | R33: 5.397360539e-08
A34: 12.88324 | B34: ='DF raw data'!G39 -> -9.2082342e-07 | C34: ='DF raw data'!H39 -> -2.3902094e-06 | D34: ='DF raw data'!I39 -> -6.8506947e-06 | F34: -9.216042783e-07 | G34: -2.397919357e-06 | H34: -6.856504089e-06 | J34: -6.393123175e-06 | K34: 5.71063844e-06 | L34: 9.327886646e-06 | N34: -9.943845011e-05 | O34: -0.0007380831449 | P34: 5.740226498e-05 | Q34: 0.0003511249055 | R34: 6.056617273e-08
A35: 13.38332 | B35: ='DF raw data'!G40 -> 2.2782106e-06 | C35: ='DF raw data'!H40 -> 6.0493303e-06 | D35: ='DF raw data'!I40 -> -9.3379513e-06 | F35: 2.280142523e-06 | G35: 6.068843265e-06 | H35: -9.345869883e-06 | J35: -2.023807935e-06 | K35: -9.445516379e-06 | L35: 1.101819551e-05 | N35: -0.000100450516 | O35: -0.0007883164389 | P35: 5.267875115e-05 | Q35: 0.0003774684954 | R35: 6.699988045e-08
A36: 13.8834 | B36: ='DF raw data'!G41 -> 6.1116307e-06 | C36: ='DF raw data'!H41 -> 2.0510497e-06 | D36: ='DF raw data'!I41 -> -7.567282e-06 | F36: 6.116813363e-06 | G36: 2.057665649e-06 | H36: -7.573699055e-06 | J36: -4.649619336e-06 | K36: -3.155680162e-06 | L36: 1.020574714e-05 | N36: -0.0001027756976 | O36: -0.0008397125098 | P36: 5.110065862e-05 | Q36: 0.0004030229127 | R36: 7.358799504e-08
A37: 14.38348 | B37: ='DF raw data'!G42 -> 2.2838176e-06 | C37: ='DF raw data'!H42 -> 7.6385813e-06 | D37: ='DF raw data'!I42 -> -6.9905896e-06 | F37: 2.285754277e-06 | G37: 7.663220618e-06 | H37: -6.99651762e-06 | J37: -1.230572441e-05 | K37: 6.60239859e-06 | L37: 5.804458811e-06 | N37: -0.0001089295443 | O37: -0.0008941859963 | P37: 5.44023861e-05 | Q37: 0.000430228458 | R37: 8.100181368e-08
A38: 14.88356 | B38: ='DF raw data'!G43 -> -5.8927895e-07 | C38: ='DF raw data'!H43 -> -1.0470822e-05 | D38: ='DF raw data'!I43 -> 4.0840728e-06 | F38: -5.897786585e-07 | G38: -1.050459711e-05 | H38: 4.087536094e-06 | J38: -1.225809205e-05 | K38: -5.132087644e-06 | L38: 2.833496069e-06 | N38: -0.000115059571 | O38: -0.0009517249865 | P38: 5.183593172e-05 | Q38: 0.0004561505707 | R38: 8.896592208e-08
A39: 15.38364 | B39: ='DF raw data'!G44 -> 8.597853e-07 | C39: ='DF raw data'!H44 -> -7.6276256e-06 | D39: ='DF raw data'!I44 -> 1.1671636e-05 | F39: 8.605143979e-07 | G39: -7.652229579e-06 | H39: 1.168153355e-05 | J39: -7.03659888e-06 | K39: 1.728377399e-06 | L39: -1.081670479e-06 | N39: -0.0001185784333 | O39: -0.001011023689 | P39: 5.270025868e-05 | Q39: 0.0004825049161 | R39: 9.738635019e-08
A40: 15.88372 | B40: ='DF raw data'!G45 -> 5.2514306e-06 | C40: ='DF raw data'!H45 -> -6.1914097e-06 | D40: ='DF raw data'!I45 -> 8.928544e-06 | F40: 5.255883813e-06 | G40: -6.211380963e-06 | H40: 8.936115405e-06 | J40: -8.696193924e-06 | K40: 9.580192599e-06 | L40: -8.451058426e-08 | N40: -0.000122927226 | O40: -0.001072497137 | P40: 5.74911214e-05 | Q40: 0.0005112550761 | R40: 1.065959895e-07
A41: 16.3838 | B41: ='DF raw data'!G46 -> 5.0493136e-06 | C41: ='DF raw data'!H46 -> -3.7695781e-06 | D41: ='DF raw data'!I46 -> 6.4413503e-06 | F41: 5.053595418e-06 | G41: -3.781737404e-06 | H41: 6.446812565e-06 | J41: -1.011107993e-05 | K41: 3.248194921e-06 | L41: 7.535529715e-06 | N41: -0.0001279835748 | O41: -0.001136499163 | P41: 5.911547872e-05 | Q41: 0.0005408175447 | R41: 1.16534797e-07
A42: 16.88388 | B42: ='DF raw data'!G47 -> 4.4587154e-07 | C42: ='DF raw data'!H47 -> -1.0156392e-06 | D42: ='DF raw data'!I47 -> 5.0811864e-06 | F42: 4.462496391e-07 | G42: -1.018915287e-06 | H42: 5.085495246e-06 | J42: -5.540411088e-06 | K42: -2.699765272e-06 | L42: 1.107614661e-05 | N42: -0.0001307542236 | O42: -0.001201886735 | P42: 5.77653801e-05 | Q42: 0.0005697048559 | R42: 1.267531848e-07
A43: 17.38396 | B43: ='DF raw data'!G48 -> -1.9047103e-06 | C43: ='DF raw data'!H48 -> 6.7301596e-07 | D43: ='DF raw data'!I48 -> 2.5490679e-06 | F43: -1.906325494e-06 | G43: 6.751868676e-07 | H43: 2.55122951e-06 | J43: -3.806393587e-06 | K43: 5.503429608e-06 | L43: 4.451530499e-06 | N43: -0.0001326577249 | O43: -0.00126822621 | P43: 6.051753518e-05 | Q43: 0.0005999684649 | R43: 1.373851076e-07
A44: 17.88404 | B44: ='DF raw data'!G49 -> 1.1265155e-06 | C44: ='DF raw data'!H49 -> -2.9946304e-06 | D44: ='DF raw data'!I49 -> -1.2187578e-06 | F44: 1.127470785e-06 | G44: -3.004290001e-06 | H44: -1.219791307e-06 | J44: -6.699362146e-06 | K44: 5.19528795e-06 | L44: -3.608274024e-06 | N44: -0.0001360079419 | O44: -0.001336241062 | P44: 6.311559477e-05 | Q44: 0.0006315313116 | R44: 1.486277755e-07
A45: 18.38412 | B45: ='DF raw data'!G50 -> 1.2052132e-06 | C45: ='DF raw data'!H50 -> -2.4124884e-06 | D45: ='DF raw data'!I50 -> -3.958789e-06 | F45: 1.206235221e-06 | G45: -2.420270221e-06 | H45: -3.962146053e-06 | J45: -5.025603801e-06 | K45: 9.173132692e-06 | L45: -4.330864762e-06 | N45: -0.0001385211459 | O45: -0.001405512716 | P45: 6.770289497e-05 | Q45: 0.0006653881753 | R45: 1.605155721e-07
A46: 18.8842 | B46: ='DF raw data'!G51 -> -3.2529142e-06 | C46: ='DF raw data'!H51 -> -3.734217e-06 | D46: ='DF raw data'!I51 -> -1.0855985e-05 | F46: -3.255672671e-06 | G46: -3.746262242e-06 | H46: -1.086519088e-05 | J46: -4.812960232e-06 | K46: -1.543236822e-06 | L46: -3.256303306e-06 | N46: -0.000140928011 | O46: -0.001475987996 | P46: 6.69311531e-05 | Q46: 0.0006988591063 | R46: 1.726877612e-07
A47: 19.38428 | B47: ='DF raw data'!G52 -> -3.041253e-06 | C47: ='DF raw data'!H52 -> 5.9949605e-07 | D47: ='DF raw data'!I52 -> -6.0770712e-06 | F47: -3.043831983e-06 | G47: 6.014298088e-07 | H47: -6.082224556e-06 | J47: -5.233169968e-06 | K47: 2.872190466e-06 | L47: -1.269513035e-06 | N47: -0.0001435450147 | O47: -0.001547771987 | P47: 6.836747811e-05 | Q47: 0.0007330483148 | R47: 1.853294251e-07
A48: 19.88436 | B48: ='DF raw data'!G53 -> 1.2096851e-06 | C48: ='DF raw data'!H53 -> 1.4878541e-06 | D48: ='DF raw data'!I53 -> -3.4184361e-06 | F48: 1.210710913e-06 | G48: 1.492653383e-06 | H48: -3.421334934e-06 | J48: -7.533569854e-07 | K48: 8.273744717e-06 | L48: 6.103027182e-07 | N48: -0.0001439217534 | O48: -0.001619744377 | P48: 7.250501237e-05 | Q48: 0.0007693066214 | R48: 1.983167268e-07
A49: 20.38444 | B49: ='DF raw data'!G54 -> 3.1581012e-06 | C49: ='DF raw data'!H54 -> 1.6046041e-06 | D49: ='DF raw data'!I54 -> -1.1429496e-06 | F49: 3.16077927e-06 | G49: 1.609779976e-06 | H49: -1.143918821e-06 | J49: 2.373634036e-06 | K49: 6.746562214e-06 | L49: 3.354987519e-06 | N49: -0.0001427347465 | O49: -0.001691123169 | P49: 7.58788332e-05 | Q49: 0.0008072521083 | R49: 2.113842198e-07
A50: 20.88452 | B50: ='DF raw data'!G55 -> 1.3390462e-06 | C50: ='DF raw data'!H55 -> -2.6651969e-06 | D50: ='DF raw data'!I55 -> 2.6916948e-06 | F50: 1.340181711e-06 | G50: -2.673793867e-06 | H50: 2.693977357e-06 | J50: 4.577631943e-06 | K50: 1.026808666e-05 | L50: 4.110417381e-06 | N50: -0.0001404455644 | O50: -0.001761357187 | P50: 8.101369798e-05 | Q50: 0.0008477654384 | R50: 2.245304108e-07
A51: 21.3846 | B51: ='DF raw data'!G56 -> -7.5388294e-07 | C51: ='DF raw data'!H56 -> 6.3624839e-06 | D51: ='DF raw data'!I56 -> 1.7482249e-06 | F51: -7.545222327e-07 | G51: 6.383006986e-06 | H51: 1.749707395e-06 | J51: 2.323594939e-06 | K51: 6.834910879e-06 | L51: 3.738132951e-06 | N51: -0.000139283581 | O51: -0.00183101012 | P51: 8.443170021e-05 | Q51: 0.000889988043 | R51: 2.37796847e-07
A52: 21.88468 | B52: ='DF raw data'!G57 -> -1.6759597e-06 | C52: ='DF raw data'!H57 -> -4.4420512e-06 | D52: ='DF raw data'!I57 -> 1.3678015e-06 | F52: -1.677380914e-06 | G52: -4.456379661e-06 | H52: 1.368961396e-06 | J52: -7.545460329e-06 | K52: 4.717682821e-06 | L52: 7.633849419e-06 | N52: -0.0001430569148 | O52: -0.001902550022 | P52: 8.679091904e-05 | Q52: 0.0009333904458 | R52: 2.517980591e-07
A53: 22.38476 | B53: ='DF raw data'!G58 -> -1.4696371e-06 | C53: ='DF raw data'!H58 -> -6.5872075e-07 | D53: ='DF raw data'!I58 -> 6.9027375e-09 | F53: -1.470883352e-06 | G53: -6.608455464e-07 | H53: 6.908591021e-09 | J53: -6.583052499e-06 | K53: 9.175676571e-06 | L53: 1.008138277e-05 | N53: -0.0001463489677 | O53: -0.001975736214 | P53: 9.137949138e-05 | Q53: 0.0009790875018 | R53: 2.666845565e-07
A54: 22.88484 | B54: ='DF raw data'!G59 -> -9.3103614e-07 | C54: ='DF raw data'!H59 -> 3.4133418e-06 | D54: ='DF raw data'!I59 -> -3.9847725e-07 | F54: -9.318256586e-07 | G54: 3.424352014e-06 | H54: -3.988151587e-07 | J54: 1.469213037e-06 | K54: 6.626358928e-06 | L54: 9.406886781e-06 | N54: -0.0001456142436 | O54: -0.002048554985 | P54: 9.469320095e-05 | Q54: 0.001026441678 | R54: 2.817721252e-07
A55: 23.38492 | B55: ='DF raw data'!G60 -> -2.5518448e-06 | C55: ='DF raw data'!H60 -> -5.1195957e-06 | D55: ='DF raw data'!I60 -> -8.1763426e-07 | F55: -2.554008764e-06 | G55: -5.136109676e-06 | H55: -8.183276139e-07 | J55: 2.086299483e-06 | K55: 1.324280418e-05 | L55: 9.409482881e-06 | N55: -0.000144570927 | O55: -0.002120852014 | P55: 0.0001013156625 | Q55: 0.001077107614 | R55: 2.973574267e-07
A56: 23.885 | B56: ='DF raw data'!G61 -> -1.0413061e-06 | C56: ='DF raw data'!H61 -> 1.1156787e-05 | D56: ='DF raw data'!I61 -> -4.6038972e-06 | F56: -1.042189128e-06 | G56: 1.119277479e-05 | H56: -4.607801305e-06 | J56: -2.747584077e-06 | K56: 1.831051825e-05 | L56: 1.163254204e-05 | N56: -0.0001459449388 | O56: -0.002193836159 | P56: 0.0001104723864 | Q56: 0.001132352645 | R56: 3.141121437e-07
A57: 24.38508 | B57: ='DF raw data'!G62 -> 5.9149202e-06 | C57: ='DF raw data'!H62 -> -1.5167926e-06 | D57: ='DF raw data'!I62 -> -1.0963404e-05 | F57: 5.919936052e-06 | G57: -1.521685228e-06 | H57: -1.097270097e-05 | J57: -7.835265275e-06 | K57: 1.252158025e-05 | L57: 1.21070781e-05 | N57: -0.0001498631983 | O57: -0.002268779748 | P57: 0.0001167341783 | Q57: 0.001190729073 | R57: 3.321579538e-07
A58: 24.88516 | B58: ='DF raw data'!G63 -> 9.3389654e-06 | C58: ='DF raw data'!H63 -> 9.3680619e-06 | D58: ='DF raw data'!I63 -> -9.9943081e-06 | F58: 9.346884843e-06 | G58: 9.398279901e-06 | H58: -1.000278327e-05 | J58: -1.053102274e-05 | K58: 7.611416654e-06 | L58: 5.473602582e-06 | N58: -0.0001551295521 | O58: -0.002346356934 | P58: 0.0001205404955 | Q58: 0.001251008964 | R58: 3.514586359e-07
A59: 25.38524 | B59: ='DF raw data'!G64 -> 6.6144544e-06 | C59: ='DF raw data'!H64 -> 6.5767681e-06 | D59: ='DF raw data'!I64 -> -7.8066751e-06 | F59: 6.620063457e-06 | G59: 6.59798239e-06 | H59: -7.81329516e-06 | J59: -1.056569412e-05 | K59: 3.227982834e-06 | L59: 5.832698838e-06 | N59: -0.0001604132445 | O59: -0.002426576389 | P59: 0.0001221547452 | Q59: 0.001312096109 | R59: 3.717889837e-07
A60: 25.88532 | B60: ='DF raw data'!G65 -> 4.2134106e-06 | C60: ='DF raw data'!H65 -> 1.7160136e-06 | D60: ='DF raw data'!I65 -> -5.2404853e-06 | F60: 4.216983572e-06 | G60: 1.721548843e-06 | H60: -5.244929232e-06 | J60: -6.81099493e-06 | K60: 6.407233782e-06 | L60: 9.095947228e-06 | N60: -0.0001638192868 | O60: -0.002508499138 | P60: 0.0001253588746 | Q60: 0.001374785575 | R60: 3.930681909e-07
A61: 26.3854 | B61: ='DF raw data'!G66 -> 4.4829449e-06 | C61: ='DF raw data'!H66 -> -1.2034354e-07 | D61: ='DF raw data'!I66 -> -5.129607e-06 | F61: 4.486746437e-06 | G61: -1.20731725e-07 | H61: -5.133956907e-06 | J61: -8.788186268e-06 | K61: 4.873835594e-07 | L61: 1.728294952e-06 | N61: -0.000168214083 | O61: -0.002592619637 | P61: 0.0001256026054 | Q61: 0.001437596926 | R61: 4.151077127e-07
A62: 26.88548 | B62: ='DF raw data'!G67 -> 2.8830273e-06 | C62: ='DF raw data'!H67 -> -2.1307562e-07 | D62: ='DF raw data'!I67 -> -3.6971635e-06 | F62: 2.885472107e-06 | G62: -2.137629254e-07 | H62: -3.700298695e-06 | J62: -1.571877823e-05 | K62: 5.609041379e-06 | L62: 4.270216475e-06 | N62: -0.0001760747296 | O62: -0.002680671088 | P62: 0.0001284075748 | Q62: 0.001501810986 | R62: 4.388569198e-07
A63: 27.38556 | B63: ='DF raw data'!G68 -> 7.1246899e-07 | C63: ='DF raw data'!H68 -> 5.5186399e-07 | D63: ='DF raw data'!I68 -> 1.0233602e-05 | F63: 7.130731637e-07 | G63: 5.536441049e-07 | H63: 1.024228009e-05 | J63: -1.428264942e-05 | K63: 6.448731007e-06 | L63: 1.61986288e-05 | N63: -0.0001832171969 | O63: -0.002772294343 | P63: 0.0001316324562 | Q63: 0.001567637745 | R63: 4.643088139e-07
A64: 27.88564 | B64: ='DF raw data'!G69 -> -1.3388081e-06 | C64: ='DF raw data'!H69 -> -1.8399506e-06 | D64: ='DF raw data'!I69 -> 1.9714562e-05 | F64: -1.339943409e-06 | G64: -1.845885619e-06 | H64: 1.973127995e-05 | J64: -8.120994168e-06 | K64: -3.342946975e-06 | L64: 2.302194207e-05 | N64: -0.0001872783437 | O64: -0.002865948498 | P64: 0.0001299607153 | Q64: 0.001632628499 | R64: 4.902944537e-07
A65: 28.38572 | B65: ='DF raw data'!G70 -> 2.1598673e-07 | C65: ='DF raw data'!H70 -> -5.0220542e-06 | D65: ='DF raw data'!I70 -> 1.454198e-05 | F65: 2.161698867e-07 | G65: -5.038253542e-06 | H65: 1.45543116e-05 | J65: -3.54197495e-06 | K65: -1.226830691e-05 | L65: 1.417726313e-05 | N65: -0.0001890496145 | O65: -0.002960488429 | P65: 0.0001238255804 | Q65: 0.001694551196 | R65: 5.158348051e-07
A66: 28.8858 | B66: ='DF raw data'!G71 -> 1.8116315e-06 | C66: ='DF raw data'!H71 -> 4.7852418e-06 | D66: ='DF raw data'!I71 -> 5.7889206e-06 | F66: 1.813167764e-06 | G66: 4.80067727e-06 | H66: 5.793829605e-06 | J66: -2.760878541e-06 | K66: 2.810214697e-06 | L66: 4.757508449e-07 | N66: -0.0001904302747 | O66: -0.003055718801 | P66: 0.0001252309126 | Q66: 0.00175717667 | R66: 5.418121963e-07
A67: 29.38588 | B67: ='DF raw data'!G72 -> 4.5137831e-06 | C67: ='DF raw data'!H72 -> 5.5823339e-06 | D67: ='DF raw data'!I72 -> 4.5627678e-07 | F67: 4.517610788e-06 | G67: 5.600340503e-06 | H67: 4.566637027e-07 | J67: -7.113626444e-06 | K67: 5.57664652e-06 | L67: -2.171218934e-06 | N67: -0.000193987657 | O67: -0.003152728148 | P67: 0.0001280196819 | Q67: 0.001821196753 | R67: 5.688266429e-07
A68: 29.88596 | B68: ='DF raw data'!G73 -> 6.7849323e-06 | C68: ='DF raw data'!H73 -> -4.0964724e-06 | D68: ='DF raw data'!I73 -> -8.7413935e-07 | F68: 6.790685923e-06 | G68: -4.109686148e-06 | H68: -8.748806202e-07 | J68: -8.92974811e-06 | K68: -6.134685967e-06 | L68: 1.548113288e-06 | N68: -0.0001984532454 | O68: -0.003251970647 | P68: 0.0001249518482 | Q68: 0.001883682673 | R68: 5.963293701e-07
A69: 30.38604 | B69: ='DF raw data'!G74 -> -5.1718968e-07 | C69: ='DF raw data'!H74 -> -4.8329885e-06 | D69: ='DF raw data'!I74 -> -5.4125944e-06 | F69: -5.176282568e-07 | G69: -4.848577984e-06 | H69: -5.41718428e-06 | J69: -6.640505778e-06 | K69: -9.847831831e-07 | L69: 4.013900103e-06 | N69: -0.0002017740295 | O69: -0.003352873804 | P69: 0.0001244593778 | Q69: 0.001945922319 | R69: 6.244353142e-07
A70: 30.88612 | B70: ='DF raw data'!G75 -> -7.6354836e-06 | C70: ='DF raw data'!H75 -> 6.3436682e-06 | D70: ='DF raw data'!I75 -> -2.05534e-06 | F70: -7.64195849e-06 | G70: 6.364130594e-06 | H70: -2.057082928e-06 | J70: -1.186994919e-06 | K70: 1.205530405e-06 | L70: 5.129959019e-06 | N70: -0.000202367622 | O70: -0.003454073804 | P70: 0.0001250622395 | Q70: 0.002008463443 | R70: 6.527364508e-07
A71: 31.3862 | B71: ='DF raw data'!G76 -> -2.2859831e-06 | C71: ='DF raw data'!H76 -> 6.4986018e-08 | D71: ='DF raw data'!I76 -> 1.2533288e-06 | F71: -2.287921614e-06 | G71: =(1-$G$1*($B$2-$G$2))*C71*$M$2/$M$1 -> 6.519563954e-08 | H71: 1.254391623e-06 | J71: =-CELL("contents", INDEX($F$6:$F$1203,1204-CELL("row",F71))) -> 3.315397075e-06 | K71: =CELL("contents", INDEX($G$6:$G$1203,1204-CELL("row",G71))) -> 1.344131545e-05 | L71: =-CELL("contents", INDEX($H$6:$H$1203,1204-CELL("row",H71))) -> 1.000538298e-05 | N71: -0.0002007096582 | O71: -0.00355444469 | P71: 0.0001317839725 | Q71: 0.002074365972 | R71: 6.81566754e-07
A72: =A71+$B$1 -> 31.88628 | B72: ='DF raw data'!G77 -> 3.6320889e-06 | C72: ='DF raw data'!H77 -> 7.6241201e-07 | D72: ='DF raw data'!I77 -> 7.590985e-07 | F72: 3.635168911e-06 | G72: 7.648712771e-07 | H72: 7.597422155e-07 | J72: -4.425084392e-07 | K72: 1.037330096e-05 | L72: 1.545125656e-05 | N72: =J72*$B$1+N71 -> -0.0002009309478 | O72: =N72*$B$1+O71 -> -0.003654926238 | P72: =K72*$B$1+P71 -> 0.0001369714528 | Q72: =P72*$B$1+Q71 -> 0.002142862657 | R72: =(N72^2+P72^2)*$B$1+R71 -> 7.111386971e-07
A73: 32.38636 | B73: ='DF raw data'!G78 -> 5.7504494e-06 | C73: ='DF raw data'!H78 -> -1.0136383e-06 | D73: ='DF raw data'!I78 -> -5.2213579e-07 | F73: 5.755325781e-06 | G73: -1.016907933e-06 | H73: -5.225785611e-07 | J73: -5.899627045e-06 | K73: 1.053861448e-05 | L73: 1.153509247e-05 | N73: -0.0002038812333 | O73: -0.003756883166 | P73: 0.0001422416032 | Q73: 0.002213994837 | R73: 7.420437566e-07
A74: 32.88644 | B74: ='DF raw data'!G79 -> 3.8193211e-06 | C74: ='DF raw data'!H79 -> 9.8443422e-07 | D74: ='DF raw data'!I79 -> -8.2013102e-08 | F74: 3.822559884e-06 | G74: 9.87609651e-07 | H74: -8.208264911e-08 | J74: -6.001238739e-06 | K74: -3.188878002e-06 | L74: 3.135642472e-06 | N74: -0.0002068823328 | O74: -0.003860340882 | P74: 0.0001406469091 | Q74: 0.002284329544 | R74: 7.733396895e-07
A75: 33.38652 | B75: ='DF raw data'!G80 -> 7.4497615e-07 | C75: ='DF raw data'!H80 -> 8.0471336e-06 | D75: ='DF raw data'!I80 -> 7.1704503e-06 | F75: 7.456078898e-07 | G75: 8.073090761e-06 | H75: 7.176530842e-06 | J75: -3.786751845e-06 | K75: -3.276690041e-06 | L75: 1.085104689e-06 | N75: -0.0002087760116 | O75: -0.00396474559 | P75: 0.0001390083019 | Q75: 0.002353844815 | R75: 8.048000879e-07
A76: 33.8866 | B76: ='DF raw data'!G81 -> 1.4678052e-06 | C76: ='DF raw data'!H81 -> 9.9877007e-06 | D76: ='DF raw data'!I81 -> 1.0366844e-05 | F76: 1.469049899e-06 | G76: 1.001991743e-05 | H76: 1.037563508e-05 | J76: -5.496986895e-06 | K76: 1.078022533e-05 | L76: 4.332300178e-06 | N76: -0.0002115249448 | O76: -0.004070524985 | P76: 0.000144399277 | Q76: 0.002426056006 | R76: 8.376023121e-07
A77: 34.38668 | B77: ='DF raw data'!G82 -> 3.2607622e-06 | C77: ='DF raw data'!H82 -> 1.5261475e-06 | D77: ='DF raw data'!I82 -> 5.152398e-06 | F77: 3.263527326e-06 | G77: 1.531070303e-06 | H77: 5.156767234e-06 | J77: -6.588263714e-06 | K77: -5.12130668e-07 | L77: 4.652229548e-06 | N77: -0.0002148196038 | O77: -0.004177951972 | P77: 0.0001441431707 | Q77: 0.002498139123 | R77: 8.71070024e-07
A78: 34.88676 | B78: ='DF raw data'!G83 -> 4.3081272e-06 | C78: ='DF raw data'!H83 -> -1.2664633e-05 | D78: ='DF raw data'!I83 -> 3.0007047e-06 | F78: 4.311780492e-06 | G78: -1.270548455e-05 | H78: 3.003249298e-06 | J78: -6.19063411e-06 | K78: 6.20778781e-06 | L78: 6.822733276e-06 | N78: -0.0002179154161 | O78: -0.004286927114 | P78: 0.0001472475612 | Q78: 0.002571774683 | R78: 9.056600439e-07
A79: 35.38684 | B79: ='DF raw data'!G84 -> 4.017701e-06 | C79: ='DF raw data'!H84 -> -1.1573865e-05 | D79: ='DF raw data'!I84 -> 7.6961226e-07 | F79: 4.02110801e-06 | G79: -1.161119813e-05 | H79: 7.702648912e-07 | J79: -2.797354647e-06 | K79: 1.060594497e-05 | L79: 7.819426656e-06 | N79: -0.0002193143172 | O79: -0.004396601817 | P79: 0.0001525513822 | Q79: 0.002648062578 | R79: 9.413511006e-07
A80: 35.88692 | B80: ='DF raw data'!G85 -> 8.1367416e-06 | C80: ='DF raw data'!H85 -> -3.2952439e-06 | D80: ='DF raw data'!I85 -> -1.6918224e-06 | F80: 8.143641557e-06 | G80: -3.305873173e-06 | H80: -1.693257065e-06 | J80: 1.373673989e-07 | K80: 5.050051275e-06 | L80: 4.110351925e-06 | N80: -0.0002192456225 | O80: -0.004506242168 | P80: 0.0001550768118 | Q80: 0.00272561339 | R80: 9.774156002e-07
A81: 36.387 | B81: ='DF raw data'!G86 -> 7.8377043e-06 | C81: ='DF raw data'!H86 -> -4.2685924e-06 | D81: ='DF raw data'!I86 -> 6.5094866e-07 | F81: 7.844350673e-06 | G81: -4.282361345e-06 | H81: 6.515006645e-07 | J81: -5.350414007e-06 | K81: 5.998297943e-06 | L81: 3.975534197e-06 | N81: -0.0002219212575 | O81: -0.004617220551 | P81: 0.0001580764406 | Q81: 0.002804664257 | R81: 1.014540142e-06
A82: 36.88708 | B82: ='DF raw data'!G87 -> -1.7531885e-06 | C82: ='DF raw data'!H87 -> -1.3541459e-06 | D82: ='DF raw data'!I87 -> 1.7046965e-06 | F82: -1.754675204e-06 | G82: -1.358513888e-06 | H82: 1.706142083e-06 | J82: -9.02868764e-06 | K82: 1.790218133e-06 | L82: 9.3579291e-06 | N82: -0.0002264363236 | O82: -0.004730456827 | P82: 0.0001589716929 | Q82: 0.002884162821 | R82: 1.05281897e-06
A83: 37.38716 | B83: ='DF raw data'!G88 -> -4.8960183e-06 | C83: ='DF raw data'!H88 -> -1.9921927e-06 | D83: ='DF raw data'!I88 -> 2.3265145e-06 | F83: -4.900170124e-06 | G83: -1.998618798e-06 | H83: 2.328487384e-06 | J83: -1.635397342e-06 | K83: 1.302167218e-05 | L83: 1.282633752e-05 | N83: -0.0002272541532 | O83: -0.004844102084 | P83: 0.0001654835707 | Q83: 0.002966917845 | R83: 1.092339923e-06
A84: 37.88724 | B84: ='DF raw data'!G89 -> -1.9045099e-07 | C84: ='DF raw data'!H89 -> -5.7060015e-06 | D84: ='DF raw data'!I89 -> -2.1914441e-06 | F84: -1.906124924e-07 | G84: -5.72440701e-06 | H84: -2.193302445e-06 | J84: 4.954283573e-06 | K84: 1.41934598e-05 | L84: 8.095590444e-06 | N84: -0.000224776615 | O84: -0.004956508374 | P84: 0.0001725814361 | Q84: 0.003053222369 | R84: 1.132500787e-06
A85: 38.38732 | B85: ='DF raw data'!G90 -> 2.6124917e-06 | C85: ='DF raw data'!H90 -> 4.8113916e-06 | D85: ='DF raw data'!I90 -> -5.9070903e-06 | F85: 2.614707093e-06 | G85: 4.82691142e-06 | H85: -5.912099513e-06 | J85: 9.178630884e-07 | K85: 2.35041281e-06 | L85: 4.707515491e-06 | N85: -0.00022431761 | O85: -0.005068685124 | P85: 0.0001737568306 | Q85: 0.003140114685 | R85: 1.172762141e-06
A86: 38.8874 | B86: ='DF raw data'!G91 -> 6.8376644e-06 | C86: ='DF raw data'!H91 -> -4.9983055e-06 | D86: ='DF raw data'!I91 -> -2.2460829e-06 | F86: 6.843462739e-06 | G86: -5.014428237e-06 | H86: -2.247987578e-06 | J86: -3.622476157e-06 | K86: 1.102170575e-05 | L86: 8.394605494e-06 | N86: -0.0002261291379 | O86: -0.005181767784 | P86: 0.0001792685652 | Q86: 0.003229763309 | R86: 1.214404606e-06
A87: 39.38748 | B87: ='DF raw data'!G92 -> 6.9134248e-06 | C87: ='DF raw data'!H92 -> -4.5502593e-06 | D87: ='DF raw data'!I92 -> 6.1046535e-06 | F87: =(1-$G$1*($B$2-$G$2))*B87 -> 6.919287384e-06 | G87: -4.564936801e-06 | H87: 6.109830246e-06 | J87: -2.182405412e-06 | K87: 1.013958449e-05 | L87: 1.247403502e-05 | N87: -0.0002272205152 | O87: -0.005295396219 | P87: 0.0001843391686 | Q87: 0.003321947641 | R87: 1.2572165e-06
A88: 39.88756 | B88: ='DF raw data'!G93 -> 4.6507521e-06 | C88: ='DF raw data'!H93 -> 2.5592169e-07 | D88: ='DF raw data'!I93 -> 8.9076457e-06 | F88: 4.654695938e-06 | G88: 2.567472014e-07 | H88: 8.915199384e-06 | J88: -3.881015413e-06 | K88: -2.619982549e-06 | L88: 1.35354053e-05 | N88: -0.0002291613334 | O88: -0.005409995219 | P88: 0.0001830289677 | Q88: 0.003413476767 | R88: 1.300230641e-06
A89: 40.38764 | B89: ='DF raw data'!G94 -> 1.2558093e-06 | C89: ='DF raw data'!H94 -> -9.0709063e-06 | D89: ='DF raw data'!I94 -> 4.6101827e-06 | F89: 1.256874226e-06 | G89: -9.100165784e-06 | H89: 4.614092135e-06 | J89: -9.157957268e-06 | K89: 2.885709032e-06 | L89: 1.27428728e-05 | N89: -0.0002337410447 | O89: -0.00552688444 | P89: 0.0001844720531 | Q89: 0.003505727551 | R89: 1.344570142e-06
A90: 40.88772 | B90: ='DF raw data'!G95 -> -3.2384969e-06 | C90: ='DF raw data'!H95 -> -1.9865902e-06 | D90: ='DF raw data'!I95 -> -3.4580355e-06 | F90: -3.241243145e-06 | G90: -1.992998226e-06 | H90: -3.460967914e-06 | J90: -7.584074246e-06 | K90: 9.456912521e-06 | L90: 8.247397267e-06 | N90: -0.0002375336885 | O90: -0.005645670287 | P90: 0.0001892012659 | Q90: 0.00360034332 | R90: 1.390687205e-06
A91: 41.3878 | B91: ='DF raw data'!G96 -> -5.6624367e-06 | C91: ='DF raw data'!H96 -> -7.3230103e-06 | D91: ='DF raw data'!I96 -> -5.23676e-06 | F91: -5.667238446e-06 | G91: -7.346631699e-06 | H91: -5.241200772e-06 | J91: -4.555956678e-06 | K91: 7.812201933e-06 | L91: 4.247769256e-06 | N91: -0.0002398120313 | O91: -0.005765595488 | P91: 0.0001931079918 | Q91: 0.003696912765 | R91: 1.438095043e-06
A92: 41.88788 | B92: ='DF raw data'!G97 -> -5.7592233e-06 | C92: ='DF raw data'!H97 -> -9.2811888e-06 | D92: ='DF raw data'!I97 -> -6.3336361e-06 | F92: -5.764107121e-06 | G92: -9.311126579e-06 | H92: -6.339007023e-06 | J92: -2.000358567e-06 | K92: 7.327428556e-07 | L92: 8.356239587e-06 | N92: -0.0002408123707 | O92: -0.005886020938 | P92: 0.0001934744219 | Q92: 0.003793665454 | R92: 1.485814151e-06
A93: 42.38796 | B93: ='DF raw data'!G98 -> -6.2237314e-06 | C93: ='DF raw data'!H98 -> -4.8698193e-06 | D93: ='DF raw data'!I98 -> -1.0439488e-05 | F93: -6.229009124e-06 | G93: -4.885527587e-06 | H93: -1.044834069e-05 | J93: -1.383338377e-06 | K93: -4.672822282e-06 | L93: 5.209625419e-06 | N93: -0.0002415041505 | O93: -0.006006792334 | P93: 0.0001911376369 | Q93: 0.003889249563 | R93: 1.533250666e-06
A94: 42.88804 | B94: ='DF raw data'!G99 -> -7.3669498e-06 | C94: ='DF raw data'!H99 -> 7.0226788e-06 | D94: ='DF raw data'!I99 -> -1.0556623e-05 | F94: -7.373196973e-06 | G94: 7.045331438e-06 | H94: -1.056557502e-05 | J94: -7.000055818e-06 | K94: -3.076576321e-06 | L94: -6.144001599e-06 | N94: -0.0002450047384 | O94: -0.006129314303 | P94: 0.0001895991026 | Q94: 0.003984064283 | R94: 1.581245914e-06
A95: 43.38812 | B95: ='DF raw data'!G100 -> -3.3262722e-06 | C95: ='DF raw data'!H100 -> 8.3999157e-06 | D95: ='DF raw data'!I100 -> -4.4697213e-06 | F95: -3.329092879e-06 | G95: 8.427010809e-06 | H95: -4.473511624e-06 | J95: -9.567344834e-06 | K95: 2.228870118e-06 | L95: -7.652664161e-06 | N95: -0.0002497891762 | O95: -0.006254228874 | P95: 0.000190713716 | Q95: 0.004079436398 | R95: 1.630636993e-06
A96: 43.8882 | B96: ='DF raw data'!G101 -> -5.106881e-06 | C96: ='DF raw data'!H101 -> 1.123998e-06 | D96: ='DF raw data'!I101 -> 3.3308149e-06 | F96: -5.111211635e-06 | G96: 1.127623614e-06 | H96: 3.333639431e-06 | J96: -6.286567492e-06 | K96: -6.530826065e-07 | L96: -2.34873534e-06 | N96: -0.0002529329629 | O96: -0.006380715591 | P96: 0.0001903871225 | Q96: 0.00417464519 | R96: 1.680756181e-06
A97: 44.38828 | B97: ='DF raw data'!G102 -> -9.5417136e-06 | C97: ='DF raw data'!H102 -> 6.0323225e-07 | D97: ='DF raw data'!I102 -> 6.4410847e-06 | F97: -9.549804973e-06 | G97: 6.051780604e-07 | H97: 6.44654674e-06 | J97: -3.483920061e-06 | K97: -5.767853402e-07 | L97: 4.842001839e-06 | N97: -0.0002546752016 | O97: -0.006508073565 | P97: 0.0001900986836 | Q97: 0.00426970974 | R97: 1.731262744e-06
A98: 44.88836 | B98: ='DF raw data'!G103 -> -6.3514244e-06 | C98: ='DF raw data'!H103 -> 1.5263275e-05 | D98: ='DF raw data'!I103 -> 2.6682662e-06 | F98: -6.356810408e-06 | G98: 1.531250884e-05 | H98: 2.67052889e-06 | J98: -7.743206476e-06 | K98: -8.104984006e-07 | L98: 1.004301726e-05 | N98: -0.0002585474243 | O98: -0.006637367961 | P98: 0.0001896933696 | Q98: 0.0043645716 | R98: 1.782686143e-06
A99: 45.38844 | B99: ='DF raw data'!G104 -> -2.1148362e-06 | C99: ='DF raw data'!H104 -> 1.4670412e-06 | D99: ='DF raw data'!I104 -> -3.9038118e-06 | F99: -2.116629581e-06 | G99: 1.471773348e-06 | H99: -3.907122232e-06 | J99: -1.287197218e-05 | K99: -4.132577148e-06 | L99: 1.443198495e-05 | N99: -0.0002649844402 | O99: -0.00676988138 | P99: 0.0001876267504 | Q99: 0.004458399985 | R99: 1.835404852e-06
A100: 45.88852 | B100: ='DF raw data'!G105 -> -4.9863326e-07 | C100: ='DF raw data'!H105 -> -5.6682466e-06 | D100: ='DF raw data'!I105 -> 8.955991e-07 | F100: -4.99056101e-07 | G100: -5.686530326e-06 | H100: 8.96358568e-07 | J100: -9.553382304e-06 | K100: 2.810616188e-06 | L100: 1.518614694e-05 | N100: -0.0002697618956 | O100: -0.006904783909 | P100: 0.0001890322834 | Q100: 0.004552931249 | R100: 1.889665875e-06
A101: 46.3886 | B101: ='DF raw data'!G106 -> -2.3693528e-06 | C101: ='DF raw data'!H106 -> 2.2705399e-06 | D101: ='DF raw data'!I106 -> 7.1595364e-06 | F101: -2.371362011e-06 | G101: 2.277863846e-06 | H101: 7.165607687e-06 | J101: -8.922333128e-06 | K101: -1.262000873e-06 | L101: 1.081922993e-05 | N101: -0.000274223776 | O101: -0.007041917735 | P101: 0.000188401182 | Q101: 0.004647146913 | R101: 1.945021573e-06
A102: 46.88868 | B102: ='DF raw data'!G107 -> -8.8499883e-06 | C102: ='DF raw data'!H107 -> -4.364264e-06 | D102: ='DF raw data'!I107 -> 4.2226379e-06 | F102: -8.85749309e-06 | G102: -4.378341547e-06 | H102: 4.226218697e-06 | J102: -1.181463432e-05 | K102: -2.830008941e-06 | L102: 7.090708226e-06 | N102: -0.0002801320383 | O102: -0.007182006165 | P102: 0.0001869859511 | Q102: 0.004740654847 | R102: 2.0017495e-06
A103: 47.38876 | B103: ='DF raw data'!G108 -> -1.2122781e-05 | C103: ='DF raw data'!H108 -> 6.1883593e-06 | D103: ='DF raw data'!I108 -> 1.2084423e-07 | F103: -1.213306112e-05 | G103: 6.208320723e-06 | H103: 1.209467059e-07 | J103: -6.979813767e-06 | K103: -1.647691773e-07 | L103: 3.18313291e-06 | N103: -0.0002836225036 | O103: -0.007323840106 | P103: 0.0001869035533 | Q103: 0.004834121576 | R103: 2.059446062e-06
A104: 47.88884 | B104: ='DF raw data'!G109 -> -8.6688315e-06 | C104: ='DF raw data'!H109 -> 9.057444e-06 | D104: ='DF raw data'!I109 -> -2.2087463e-06 | F104: -8.676182669e-06 | G104: 9.086660059e-06 | H104: -2.210619317e-06 | J104: -2.615308803e-06 | K104: 6.456358933e-06 | L104: -1.163833294e-08 | N104: -0.0002849303672 | O104: -0.007466328084 | P104: 0.0001901322493 | Q104: 0.004929202911 | R104: 2.118123242e-06
A105: 48.38892 | B105: ='DF raw data'!G110 -> -3.2468406e-06 | C105: ='DF raw data'!H110 -> 6.1341898e-06 | D105: ='DF raw data'!I110 -> 2.8213415e-06 | F105: -3.249593921e-06 | G105: 6.153976492e-06 | H105: 2.823733998e-06 | J105: -5.273921596e-06 | K105: -4.751802124e-06 | L105: 1.597537164e-06 | N105: -0.0002875677499 | O105: -0.007610134965 | P105: 0.0001877559681 | Q105: 0.005023095916 | R105: 2.177106435e-06
A106: 48.889 | B106: ='DF raw data'!G111 -> -4.1020348e-06 | C106: ='DF raw data'!H111 -> -1.4797864e-05 | D106: ='DF raw data'!I111 -> 3.4120387e-07 | F106: -4.105513326e-06 | G106: -1.484559659e-05 | H106: 3.414932109e-07 | J106: -5.18573778e-06 | K106: -4.036596946e-06 | L106: 3.082220809e-06 | N106: -0.0002901610337 | O106: -0.007755238694 | P106: 0.0001857373467 | Q106: 0.005115979448 | R106: 2.236461824e-06
A107: 49.38908 | B107: ='DF raw data'!G112 -> -9.5838323e-06 | C107: ='DF raw data'!H112 -> -5.9329677e-06 | D107: ='DF raw data'!I112 -> -5.5474325e-06 | F107: -9.59195939e-06 | G107: -5.952105322e-06 | H107: -5.552136723e-06 | J107: -1.778963583e-06 | K107: 2.415600406e-06 | L107: 4.232181849e-06 | N107: -0.0002910506578 | O107: -0.007900787307 | P107: 0.0001869453401 | Q107: 0.005209467074 | R107: 2.296300919e-06
A108: 49.88916 | B108: ='DF raw data'!G113 -> -9.6344274e-06 | C108: ='DF raw data'!H113 -> 4.2976981e-06 | D108: ='DF raw data'!I113 -> -4.9411924e-06 | F108: -9.642597394e-06 | G108: 4.31156093e-06 | H108: -4.945382531e-06 | J108: -2.439474522e-06 | K108: 6.587806974e-06 | L108: 6.169948783e-06 | N108: -0.0002922705902 | O108: -0.008046945984 | P108: 0.0001902397707 | Q108: 0.005304602178 | R108: 2.357117282e-06
A109: 50.38924 | B109: ='DF raw data'!G114 -> -4.5409788e-06 | C109: ='DF raw data'!H114 -> 3.8790031e-06 | D109: ='DF raw data'!I114 -> 2.8227385e-06 | F109: -4.54482955e-06 | G109: 3.89151537e-06 | H109: 2.825132182e-06 | J109: -1.001461119e-05 | K109: 3.689525618e-06 | L109: 1.193908677e-05 | N109: -0.0002972786969 | O109: -0.008195609115 | P109: 0.0001920848286 | Q109: 0.005400659959 | R109: 2.419762907e-06
A110: 50.88932 | B110: ='DF raw data'!G115 -> 1.6330767e-06 | C110: ='DF raw data'!H115 -> 6.0745488e-06 | D110: ='DF raw data'!I115 -> 3.7415173e-06 | F110: 1.634461549e-06 | G110: 6.094143111e-06 | H110: 3.744690107e-06 | J110: -1.656835106e-05 | K110: 3.373875418e-08 | L110: 1.167331058e-05 | N110: -0.0003055641979 | O110: -0.008348415659 | P110: 0.0001921017007 | Q110: 0.005496726178 | R110: 2.4849096e-06
A111: 51.3894 | B111: ='DF raw data'!G116 -> -1.8864837e-07 | C111: ='DF raw data'!H116 -> 6.1947658e-06 | D111: ='DF raw data'!I116 -> -1.1743635e-06 | F111: -1.888083438e-07 | G111: 6.214747888e-06 | H111: -1.17535936e-06 | J111: -1.601920478e-05 | K111: 3.198533246e-06 | L111: 1.277791149e-05 | N111: -0.0003135750819 | O111: -0.008505228286 | P111: 0.0001937012232 | Q111: 0.005593592285 | R111: 2.552845215e-06
A112: 51.88948 | B112: ='DF raw data'!G117 -> -4.6097311e-06 | C112: ='DF raw data'!H117 -> 6.6146613e-06 | D112: ='DF raw data'!I117 -> -6.5238271e-07 | F112: -4.613640152e-06 | G112: 6.63599782e-06 | H112: -6.529359305e-07 | J112: -1.147225323e-05 | K112: 1.420805171e-05 | L112: 1.823970717e-05 | N112: -0.0003193121263 | O112: -0.008664909894 | P112: 0.0002008063857 | Q112: 0.005694011543 | R112: 2.623998317e-06
A113: 52.38956 | B113: ='DF raw data'!G118 -> -2.9771063e-06 | C113: ='DF raw data'!H118 -> 3.0468191e-06 | D113: ='DF raw data'!I118 -> 1.8221668e-06 | F113: -2.979630886e-06 | G113: 3.056647043e-06 | H113: 1.823711997e-06 | J113: -1.109539993e-05 | K113: 7.647961155e-06 | L113: 1.305974028e-05 | N113: -0.0003248607139 | O113: -0.00882736624 | P113: 0.0002046309781 | Q113: 0.005796343402 | R113: 2.69771427e-06
A114: 52.88964 | B114: ='DF raw data'!G119 -> -3.2907619e-06 | C114: ='DF raw data'!H119 -> -1.9188074e-06 | D114: ='DF raw data'!I119 -> 5.3553881e-06 | F114: -3.293552466e-06 | G114: -1.924996783e-06 | H114: 5.359929469e-06 | J114: -1.427236071e-05 | K114: -1.261197891e-06 | L114: 5.445358852e-06 | N114: -0.000331998036 | O114: -0.008993391817 | P114: 0.0002040002783 | Q114: 0.005898359862 | R114: 2.773645822e-06
A115: 53.38972 | B115: ='DF raw data'!G120 -> -4.4089493e-06 | C115: ='DF raw data'!H120 -> -3.8586506e-07 | D115: ='DF raw data'!I120 -> 6.595224e-06 | F115: -4.412688089e-06 | G115: -3.87109722e-07 | H115: 6.60081675e-06 | J115: -1.214478906e-05 | K115: 2.995072665e-06 | L115: 2.422776874e-06 | N115: -0.0003380714021 | O115: -0.009162454564 | P115: 0.0002054980542 | Q115: 0.006001125328 | R115: 2.851919206e-06
A116: 53.8898 | B116: ='DF raw data'!G121 -> -2.1927999e-06 | C116: ='DF raw data'!H121 -> -6.088404e-06 | D116: ='DF raw data'!I121 -> 2.279992e-06 | F116: -2.194659394e-06 | G116: -6.108043003e-06 | H116: 2.281925433e-06 | J116: -7.436032213e-06 | K116: 5.115242482e-06 | L116: 3.073627928e-06 | N116: -0.0003417900131 | O116: -0.009333376914 | P116: 0.0002080560847 | Q116: 0.006105170015 | R116: 2.931985888e-06
A117: 54.38988 | B117: ='DF raw data'!G122 -> 2.3187276e-06 | C117: ='DF raw data'!H122 -> 2.8557488e-06 | D117: ='DF raw data'!I122 -> 2.7541225e-06 | F117: 2.320693881e-06 | G117: 2.864960419e-06 | H117: 2.756457996e-06 | J117: -8.157804357e-06 | K117: 1.125742967e-05 | L117: 1.127133499e-06 | N117: -0.0003458695679 | O117: -0.009506339368 | P117: 0.0002136857001 | Q117: 0.00621202996 | R117: 3.014642779e-06
A118: 54.88996 | B118: ='DF raw data'!G123 -> 9.4972283e-06 | C118: ='DF raw data'!H123 -> 3.3055339e-06 | D118: ='DF raw data'!I123 -> 2.3719019e-06 | F118: 9.50528195e-06 | G118: 3.316196364e-06 | H118: 2.373913273e-06 | J118: -8.44353415e-06 | K118: 4.602432159e-06 | L118: 1.899483297e-06 | N118: -0.0003500920105 | O118: -0.00968141338 | P118: 0.0002159872844 | Q118: 0.006320040881 | R118: 3.099263778e-06
A119: 55.39004 | B119: ='DF raw data'!G124 -> 1.3297808e-05 | C119: ='DF raw data'!H124 -> -2.8011627e-06 | D119: ='DF raw data'!I124 -> -1.7011392e-06 | F119: 1.330908454e-05 | G119: -2.810198244e-06 | H119: -1.702581766e-06 | J119: -3.886560711e-06 | K119: 3.931136663e-06 | L119: 7.836211977e-06 | N119: -0.0003520356017 | O119: -0.009857459344 | P119: 0.0002179531672 | Q119: 0.006429034901 | R119: 3.184993816e-06
A120: 55.89012 | B120: ='DF raw data'!G125 -> 8.551523e-06 | C120: ='DF raw data'!H125 -> -2.1684527e-06 | D120: ='DF raw data'!I125 -> -2.1141079e-06 | F120: 8.558774692e-06 | G120: -2.175447349e-06 | H120: -2.115900663e-06 | J120: -4.398027367e-06 | K120: 8.69834151e-06 | L120: 2.971780034e-06 | N120: -0.0003542349673 | O120: -0.01003460517 | P120: 0.0002223030338 | Q120: 0.006540204202 | R120: 3.272458334e-06
A121: 56.3902 | B121: ='DF raw data'!G126 -> 1.0438173e-07 | C121: ='DF raw data'!H126 -> 1.2562309e-05 | D121: ='DF raw data'!I126 -> -6.410572e-06 | F121: 1.044702457e-07 | G121: 1.260283049e-05 | H121: -6.416008165e-06 | J121: -8.164084278e-06 | K121: -3.864863276e-06 | L121: -2.159228875e-06 | N121: -0.0003583176625 | O121: -0.01021379266 | P121: 0.000220370293 | Q121: 0.006650406979 | R121: 3.360949797e-06
A122: 56.89028 | B122: ='DF raw data'!G127 -> -1.7483827e-06 | C122: ='DF raw data'!H127 -> 1.3364873e-05 | D122: ='DF raw data'!I127 -> -7.2480893e-06 | F122: -1.749865329e-06 | G122: 1.340798328e-05 | H122: -7.25423568e-06 | J122: -7.838471292e-06 | K122: -1.714576224e-06 | L122: 8.31184207e-07 | N122: -0.0003622375253 | O122: -0.0103949404 | P122: 0.0002195128677 | Q122: 0.006760180973 | R122: 3.450665111e-06
A123: 57.39036 | B123: ='DF raw data'!G128 -> 2.8825598e-06 | C123: ='DF raw data'!H128 -> -3.3502795e-07 | D123: ='DF raw data'!I128 -> -5.3386525e-06 | F123: 2.885004211e-06 | G123: -3.361086298e-07 | H123: -5.343179677e-06 | J123: -6.526267386e-06 | K123: 8.00991062e-06 | L123: 9.648216555e-06 | N123: -0.000365501181 | O123: -0.01057772024 | P123: 0.0002235184638 | Q123: 0.006871958087 | R123: 3.542455603e-06
A124: 57.89044 | B124: ='DF raw data'!G129 -> 4.1524681e-06 | C124: ='DF raw data'!H129 -> -4.2954116e-06 | D124: ='DF raw data'!I129 -> -4.9244868e-06 | F124: 4.155989393e-06 | G124: -4.309267054e-06 | H124: -4.928662765e-06 | J124: -6.781199585e-06 | K124: -1.867973739e-06 | L124: 1.479261351e-05 | N124: -0.0003688923233 | O124: -0.01076219591 | P124: 0.0002225843275 | Q124: 0.006983268057 | R124: 3.635283118e-06
A125: 58.39052 | B125: ='DF raw data'!G130 -> 4.9503906e-06 | C125: ='DF raw data'!H130 -> 4.2577528e-07 | D125: ='DF raw data'!I130 -> -3.2000046e-06 | F125: 4.954588531e-06 | G125: 4.27148678e-07 | H125: -3.202718204e-06 | J125: -8.966290772e-06 | K125: 1.012774443e-06 | L125: 9.495477543e-06 | N125: -0.000373376186 | O125: -0.01094891387 | P125: 0.0002230907958 | Q125: 0.007094831302 | R125: 3.729887892e-06
A126: 58.8906 | B126: ='DF raw data'!G131 -> 1.0228202e-05 | C126: ='DF raw data'!H131 -> 4.0400491e-06 | D126: ='DF raw data'!I131 -> -3.4869515e-07 | F126: 1.023687552e-05 | G126: 4.053080846e-06 | H126: -3.489908435e-07 | J126: -9.020871217e-06 | K126: 9.804540438e-06 | L126: 1.622249002e-06 | N126: -0.0003778873433 | O126: -0.01113788777 | P126: 0.0002279938503 | Q126: 0.007208846467 | R126: 3.827293495e-06
A127: 59.39068 | B127: ='DF raw data'!G132 -> 1.2785239e-05 | C127: ='DF raw data'!H132 -> 5.39954e-06 | D127: ='DF raw data'!I132 -> 2.0191671e-06 | F127: 1.279608088e-05 | G127: 5.416956975e-06 | H127: 2.020879354e-06 | J127: -1.002917553e-05 | K127: 7.536856624e-06 | L127: 1.991205211e-06 | N127: -0.0003829027334 | O127: -0.01132936977 | P127: 0.0002317628816 | Q127: 0.007324746449 | R127: 3.927473789e-06
A128: 59.89076 | B128: ='DF raw data'!G133 -> 7.3341466e-06 | C128: ='DF raw data'!H133 -> 8.7418894e-06 | D128: ='DF raw data'!I133 -> 8.5869215e-06 | F128: 7.340365956e-06 | G128: 8.770087593e-06 | H128: 8.594203209e-06 | J128: -8.130814989e-06 | K128: -4.976741464e-07 | L128: 5.537881945e-06 | N128: -0.0003869687914 | O128: -0.01152288513 | P128: 0.0002315140047 | Q128: 0.007440521972 | R128: 4.029161847e-06
A129: 60.39084 | B129: ='DF raw data'!G134 -> 3.7569771e-06 | C129: ='DF raw data'!H134 -> 6.8780473e-06 | D129: ='DF raw data'!I134 -> 1.4688399e-05 | F129: 3.760163017e-06 | G129: 6.900233409e-06 | H129: 1.470085476e-05 | J129: -1.263956027e-06 | K129: -7.412757211e-06 | L129: 6.372377297e-06 | N129: -0.0003876008705 | O129: -0.01171671657 | P129: 0.0002278070331 | Q129: 0.007554443714 | R129: 4.130243257e-06
A130: 60.89092 | B130: ='DF raw data'!G135 -> 2.9888915e-06 | C130: ='DF raw data'!H135 -> 1.1209359e-05 | D130: ='DF raw data'!I135 -> 1.1114313e-05 | F130: 2.99142608e-06 | G130: 1.124551636e-05 | H130: 1.112373794e-05 | J130: -2.091553735e-07 | K130: -3.403992051e-06 | L130: 6.606581534e-06 | N130: -0.0003877054649 | O130: -0.01191060032 | P130: 0.0002261047647 | Q130: 0.007667514184 | R130: 4.230978818e-06
A131: 61.391 | B131: ='DF raw data'!G136 -> -1.5311799e-06 | C131: ='DF raw data'!H136 -> 9.6035628e-06 | D131: ='DF raw data'!I136 -> 2.580882e-06 | F131: -1.532478341e-06 | G131: 9.634540442e-06 | H131: 2.583070588e-06 | J131: -4.688566936e-06 | K131: -3.065999414e-06 | L131: 8.602033244e-06 | N131: -0.0003900501235 | O131: -0.01210565658 | P131: 0.0002245715198 | Q131: 0.00777981791 | R131: 4.332280757e-06
A132: 61.89108 | B132: ='DF raw data'!G137 -> -8.1746175e-06 | C132: ='DF raw data'!H137 -> 8.770844e-06 | D132: ='DF raw data'!I137 -> -2.7501649e-06 | F132: -8.181549576e-06 | G132: 8.799135591e-06 | H132: -2.75249704e-06 | J132: -4.62102611e-06 | K132: 4.824637609e-06 | L132: 1.209062416e-05 | N132: -0.0003923610062 | O132: -0.01230186848 | P132: 0.0002269842245 | Q132: 0.007893328181 | R132: 4.435031693e-06
A133: 62.39116 | B133: ='DF raw data'!G138 -> -9.9364033e-06 | C133: ='DF raw data'!H138 -> 8.7057315e-06 | D133: ='DF raw data'!I138 -> -1.4707315e-06 | F133: -9.94482937e-06 | G133: 8.733813061e-06 | H133: -1.47197868e-06 | J133: -1.780232458e-06 | K133: 4.371127853e-06 | L133: 1.534614651e-05 | N133: -0.0003932512649 | O133: -0.01249852557 | P133: 0.0002291701382 | Q133: 0.008007931584 | R133: 4.538631021e-06
A134: 62.89124 | B134: ='DF raw data'!G139 -> -6.6187558e-06 | C134: ='DF raw data'!H139 -> -4.0644509e-06 | D134: ='DF raw data'!I139 -> -3.0099238e-06 | F134: -6.624368505e-06 | G134: -4.077561358e-06 | H134: -3.012476215e-06 | J134: -1.658579083e-06 | K134: -6.084889258e-06 | L134: 1.185528777e-05 | N134: -0.0003940806871 | O134: -0.01269559744 | P134: 0.0002261272067 | Q134: 0.008121013277 | R134: 4.641864086e-06
A135: 63.39132 | B135: ='DF raw data'!G140 -> -2.9785048e-07 | C135: ='DF raw data'!H140 -> -4.7585409e-06 | D135: ='DF raw data'!I140 -> -1.7882579e-06 | F135: -2.981030572e-07 | G135: =(1-$G$1*($B$2-$G$2))*C135*$M$2/$M$1 -> -4.773890243e-06 | H135: -1.789774343e-06 | J135: =-CELL("contents", INDEX($F$6:$F$1203,1204-CELL("row",F135))) -> -6.653399602e-06 | K135: =CELL("contents", INDEX($G$6:$G$1203,1204-CELL("row",G135))) -> -8.57330047e-06 | L135: =-CELL("contents", INDEX($H$6:$H$1203,1204-CELL("row",H135))) -> 7.124409981e-06 | N135: -0.0003974079192 | O135: -0.01289433319 | P135: 0.0002218398706 | Q135: 0.00823195096 | R135: 4.745453649e-06
A136: =A135+$B$1 -> 63.8914 | B136: ='DF raw data'!G141 -> 3.6600577e-06 | C136: ='DF raw data'!H141 -> 9.5026926e-06 | D136: ='DF raw data'!I141 -> 2.9247656e-06 | F136: 3.663161429e-06 | G136: 9.533344871e-06 | H136: 2.927245801e-06 | J136: -1.311574773e-05 | K136: 2.538482605e-06 | L136: 8.619881766e-06 | N136: =J136*$B$1+N135 -> -0.0004039668423 | O136: =N136*$B$1+O135 -> -0.01309634893 | P136: =K136*$B$1+P135 -> 0.000223109315 | Q136: =P136*$B$1+Q135 -> 0.008343523466 | R136: =(N136^2+P136^2)*$B$1+R135 -> 4.851954175e-06
A137: 64.39148 | B137: ='DF raw data'!G142 -> -6.7545176e-07 | C137: ='DF raw data'!H142 -> 6.1429937e-06 | D137: ='DF raw data'!I142 -> 3.1205275e-07 | F137: -6.760245431e-07 | G137: 6.16280879e-06 | H137: 3.123173707e-07 | J137: -1.605761932e-05 | K137: -1.251292543e-06 | L137: 5.769220554e-06 | N137: -0.0004119969366 | O137: -0.01330238036 | P137: 0.0002224835686 | Q137: 0.008454783049 | R137: 4.961591921e-06
A138: 64.89156 | B138: ='DF raw data'!G143 -> -2.5338895e-06 | C138: ='DF raw data'!H143 -> -4.5397164e-06 | D138: ='DF raw data'!I143 -> -1.6331891e-06 | F138: -2.536038238e-06 | G138: -4.554359894e-06 | H138: -1.634574044e-06 | J138: -1.227860143e-05 | K138: -8.47309418e-07 | L138: 4.606534231e-06 | N138: -0.0004181372196 | O138: -0.01351148242 | P138: 0.0002220598461 | Q138: 0.008565830737 | R138: 5.073684508e-06
A139: 65.39164 | B139: ='DF raw data'!G144 -> -7.3926464e-07 | C139: ='DF raw data'!H144 -> -1.0095019e-06 | D139: ='DF raw data'!I144 -> 9.1536788e-07 | F139: -7.398915364e-07 | G139: -1.01275819e-06 | H139: 9.16144112e-07 | J139: -7.198403174e-06 | K139: 1.788747304e-06 | L139: 1.037493649e-05 | N139: -0.000421736997 | O139: -0.01372238466 | P139: 0.0002229543629 | Q139: 0.008677325755 | R139: 5.187488084e-06
A140: 65.89172 | B140: ='DF raw data'!G145 -> 5.0688044e-07 | C140: ='DF raw data'!H145 -> 7.7285085e-06 | D140: ='DF raw data'!I145 -> 1.4182493e-06 | F140: 5.073102746e-07 | G140: 7.753437891e-06 | H140: 1.419451975e-06 | J140: -4.674604306e-06 | K140: -6.428502467e-06 | L140: 7.799440822e-06 | N140: -0.0004240746731 | O140: -0.01393445592 | P140: 0.0002197395974 | Q140: 0.008787213132 | R140: 5.301568744e-06
A141: 66.3918 | B141: ='DF raw data'!G146 -> -5.9768905e-07 | C141: ='DF raw data'!H146 -> 6.578769e-06 | D141: ='DF raw data'!I146 -> -2.7320623e-06 | F141: -5.981958903e-07 | G141: 6.599989744e-06 | H141: -2.734379089e-06 | J141: -2.608828612e-06 | K141: -7.612871031e-06 | L141: -4.137683283e-07 | N141: -0.0004253792961 | O141: -0.0141471796 | P141: 0.0002159325528 | Q141: 0.008895196683 | R141: 5.415374156e-06
A142: 66.89188 | B142: ='DF raw data'!G147 -> -5.1464622e-06 | C142: ='DF raw data'!H147 -> 1.6679121e-07 | D142: ='DF raw data'!I147 -> -4.2954184e-06 | F142: -5.1508264e-06 | G142: 1.673292185e-07 | H142: -4.299060915e-06 | J142: -1.219663398e-06 | K142: -5.961207688e-06 | L142: -6.059363987e-07 | N142: -0.0004259892254 | O142: -0.01436020829 | P142: 0.0002129514721 | Q142: 0.009001689456 | R142: 5.528799876e-06
A143: 67.39196 | B143: ='DF raw data'!G148 -> -7.4679419e-06 | C143: ='DF raw data'!H148 -> -5.7513671e-06 | D143: ='DF raw data'!I148 -> 1.5222795e-08 | F143: -7.474274715e-06 | G143: -5.769918943e-06 | H143: 1.523570393e-08 | J143: -4.27169693e-06 | K143: -2.160052852e-06 | L143: 5.072739638e-06 | N143: -0.0004281254156 | O143: -0.01457430525 | P143: 0.0002118712729 | Q143: 0.009107642042 | R143: 5.642908535e-06
A144: 67.89204 | B144: ='DF raw data'!G149 -> -4.9871314e-06 | C144: ='DF raw data'!H149 -> 1.2388454e-05 | D144: ='DF raw data'!I149 -> 1.8423976e-06 | F144: -4.991360487e-06 | G144: 1.24284147e-05 | H144: 1.843959953e-06 | J144: -7.123714091e-06 | K144: 1.997240767e-07 | L144: 1.040717781e-05 | N144: -0.0004316878426 | O144: -0.0147901837 | P144: 0.0002119711509 | Q144: 0.009213644575 | R144: 5.758570119e-06
A145: 68.39212 | B145: ='DF raw data'!G150 -> 5.5095506e-06 | C145: ='DF raw data'!H150 -> 5.9283093e-06 | D145: ='DF raw data'!I150 -> 7.7766674e-07 | F145: 5.514222699e-06 | G145: 5.947431895e-06 | H145: 7.783262014e-07 | J145: -2.961497522e-06 | K145: -1.405095159e-06 | L145: 7.780390781e-06 | N145: -0.0004331688282 | O145: -0.01500680277 | P145: 0.0002112684909 | Q145: 0.009319295722 | R145: 5.874723505e-06
A146: 68.8922 | B146: ='DF raw data'!G151 -> 1.204719e-05 | C146: ='DF raw data'!H151 -> -6.0970769e-06 | D146: ='DF raw data'!I151 -> -2.3822524e-06 | F146: 1.205740602e-05 | G146: -6.116743879e-06 | H146: -2.38427255e-06 | J146: -1.55322582e-06 | K146: -9.041135385e-06 | L146: 4.47904241e-06 | N146: -0.0004339455654 | O146: -0.01522381027 | P146: 0.0002067471999 | Q146: 0.009422685862 | R146: 5.990268568e-06
A147: 69.39228 | B147: ='DF raw data'!G152 -> 6.0502211e-06 | C147: ='DF raw data'!H152 -> -8.8741501e-07 | D147: ='DF raw data'!I152 -> -5.6159829e-06 | F147: 6.055351687e-06 | G147: -8.902774919e-07 | H147: -5.620745253e-06 | J147: -1.09074737e-05 | K147: -7.985397303e-06 | L147: 1.617788722e-06 | N147: -0.0004394001749 | O147: -0.01544354551 | P147: 0.0002027538624 | Q147: 0.009524079013 | R147: 6.107378124e-06
A148: 69.89236 | B148: ='DF raw data'!G153 -> 2.0066736e-06 | C148: ='DF raw data'!H153 -> 2.272006e-06 | D148: ='DF raw data'!I153 -> -5.2800847e-06 | F148: 2.008375259e-06 | G148: 2.279334675e-06 | H148: -5.284562212e-06 | J148: -1.623031164e-05 | K148: 2.472357094e-06 | L148: 9.939142752e-07 | N148: -0.0004475166291 | O148: -0.01566733962 | P148: 0.0002039902388 | Q148: 0.009626090452 | R148: 6.22833905e-06
A149: 70.39244 | B149: ='DF raw data'!G154 -> 4.2587999e-06 | C149: ='DF raw data'!H154 -> 1.1510238e-05 | D149: ='DF raw data'!I154 -> -6.4204892e-06 | F149: 4.262411362e-06 | G149: 1.154736589e-05 | H149: -6.425933775e-06 | J149: -9.070709244e-06 | K149: -1.12586215e-05 | L149: 1.373924801e-06 | N149: -0.0004520527094 | O149: -0.01589340214 | P149: 0.0001983600273 | Q149: 0.009725286334 | R149: 6.350207722e-06
A150: 70.89252 | B150: ='DF raw data'!G155 -> 5.2266669e-06 | C150: ='DF raw data'!H155 -> 2.0599429e-05 | D150: ='DF raw data'!I155 -> -3.5292453e-06 | F150: 5.231099114e-06 | G150: 2.066587535e-05 | H150: -3.5322381e-06 | J150: -2.447758841e-06 | K150: -6.283397114e-06 | L150: 5.827171755e-06 | N150: -0.0004532767846 | O150: -0.0161200768 | P150: 0.0001952178261 | Q150: 0.009822910865 | R150: 6.472012129e-06
A151: 71.3926 | B151: ='DF raw data'!G156 -> 1.0356033e-06 | C151: ='DF raw data'!H156 -> 4.5299939e-06 | D151: ='DF raw data'!I156 -> -1.7294936e-06 | F151: =(1-$G$1*($B$2-$G$2))*B151 -> 1.036481492e-06 | G151: 4.544606032e-06 | H151: -1.730960211e-06 | J151: -3.081748208e-06 | K151: -1.904916118e-06 | L151: 9.993990123e-06 | N151: -0.0004548179053 | O151: -0.01634752214 | P151: 0.0001942652156 | Q151: 0.009920059014 | R151: 6.594330848e-06
A152: 71.89268 | B152: ='DF raw data'!G157 -> 3.4594808e-07 | C152: ='DF raw data'!H157 -> 4.1881549e-06 | D152: ='DF raw data'!I157 -> -4.8765867e-07 | F152: 3.46241444e-07 | G152: 4.201664383e-06 | H152: -4.880722046e-07 | J152: -4.293609796e-06 | K152: 3.796294108e-07 | L152: 9.04825662e-06 | N152: -0.0004569650537 | O152: -0.01657604122 | P152: 0.0001944550607 | Q152: 0.0100173021 | R152: 6.717665494e-06
A153: 72.39276 | B153: ='DF raw data'!G158 -> 6.2114877e-06 | C153: ='DF raw data'!H158 -> 6.4239912e-06 | D153: ='DF raw data'!I158 -> 3.1565085e-06 | F153: 6.216755042e-06 | G153: 6.444712687e-06 | H153: 3.159185219e-06 | J153: -6.246617243e-06 | K153: -4.912696141e-06 | L153: 5.995498075e-06 | N153: -0.000460088862 | O153: -0.01680612246 | P153: 0.0001919983196 | Q153: 0.01011331662 | R153: 6.841957935e-06
A154: 72.89284 | B154: ='DF raw data'!G159 -> 7.8028606e-06 | C154: ='DF raw data'!H159 -> 5.9431231e-06 | D154: ='DF raw data'!I159 -> 3.4083475e-06 | F154: 7.809477426e-06 | G154: 5.962293479e-06 | H154: 3.411237779e-06 | J154: -3.506300724e-06 | K154: -1.921805623e-05 | L154: 4.126405327e-06 | N154: -0.0004618422929 | O154: -0.01703708055 | P154: 0.0001823877541 | Q154: 0.01020452509 | R154: 6.965259458e-06
A155: 73.39292 | B155: ='DF raw data'!G160 -> 1.6815374e-06 | C155: ='DF raw data'!H160 -> 8.7380186e-06 | D155: ='DF raw data'!I160 -> -4.4607404e-08 | F155: 1.682963344e-06 | G155: 8.766204308e-06 | H155: -4.464523108e-08 | J155: -7.992525919e-07 | K155: -4.444729803e-06 | L155: 3.371375904e-06 | N155: -0.0004622419831 | O155: -0.01726823852 | P155: 0.0001801650336 | Q155: 0.01029462202 | R155: 7.088342694e-06
A156: 73.893 | B156: ='DF raw data'!G161 -> -5.1064135e-06 | C156: ='DF raw data'!H161 -> 1.2877464e-05 | D156: ='DF raw data'!I161 -> 2.6783835e-06 | F156: -5.110743739e-06 | G156: 1.291900207e-05 | H156: 2.680654769e-06 | J156: -4.077358871e-06 | K156: 2.744355642e-06 | L156: 1.385248495e-06 | N156: -0.0004642809887 | O156: -0.01750041616 | P156: 0.000181537431 | Q156: 0.01038540526 | R156: 7.212618912e-06
A157: 74.39308 | B157: ='DF raw data'!G162 -> -2.2829779e-07 | C157: ='DF raw data'!H162 -> 1.2917227e-05 | D157: ='DF raw data'!I162 -> 5.3127928e-06 | F157: -2.284913865e-07 | G157: 1.295889333e-05 | H157: 5.317298048e-06 | J157: -5.733480372e-06 | K157: -3.363567877e-06 | L157: 1.693407393e-07 | N157: -0.0004671481876 | O157: -0.01773402762 | P157: 0.0001798553779 | Q157: 0.01047534733 | R157: 7.337926651e-06
A158: 74.89316 | B158: ='DF raw data'!G163 -> 3.0417577e-06 | C158: ='DF raw data'!H163 -> 6.8185373e-06 | D158: ='DF raw data'!I163 -> 1.2698998e-06 | F158: 3.044337111e-06 | G158: 6.840531451e-06 | H158: 1.270976675e-06 | J158: -4.524758144e-06 | K158: -2.465380663e-06 | L158: 3.037989132e-06 | N158: -0.0004694109287 | O158: -0.01796877064 | P158: 0.0001786224904 | Q158: 0.01056467287 | R158: 7.464073139e-06
A159: 75.39324 | B159: ='DF raw data'!G164 -> -4.1743233e-06 | C159: ='DF raw data'!H164 -> 2.9885096e-06 | D159: ='DF raw data'!I164 -> -1.5226418e-06 | F159: -4.177863126e-06 | G159: 2.998149458e-06 | H159: -1.523933e-06 | J159: -5.311934304e-06 | K159: -4.916849495e-06 | L159: 4.0992284e-06 | N159: -0.0004720673208 | O159: -0.01820484207 | P159: 0.0001761636723 | Q159: 0.0106527688 | R159: 7.591034047e-06
A160: 75.89332 | B160: ='DF raw data'!G165 -> -6.2797344e-06 | C160: ='DF raw data'!H165 -> 1.3320711e-05 | D160: ='DF raw data'!I165 -> -4.5839975e-06 | F160: -6.285059615e-06 | G160: 1.336367883e-05 | H160: -4.58788473e-06 | J160: -5.377136648e-06 | K160: 4.364700688e-06 | L160: 7.603764429e-07 | N160: -0.0004747563193 | O160: -0.01844225821 | P160: 0.0001783463718 | Q160: 0.01074195625 | R160: 7.719655118e-06
A161: 76.3934 | B161: ='DF raw data'!G166 -> -2.4120063e-06 | C161: ='DF raw data'!H166 -> 1.6253973e-05 | D161: ='DF raw data'!I166 -> -8.7736425e-06 | F161: -2.414051681e-06 | G161: 1.630640248e-05 | H161: -8.781082549e-06 | J161: -7.45300089e-06 | K161: -2.998399462e-06 | L161: -2.088155355e-06 | N161: -0.0004784834159 | O161: -0.01868153819 | P161: 0.0001768469322 | Q161: 0.01083039387 | R161: 7.849786544e-06
A162: 76.89348 | B162: ='DF raw data'!G167 -> 1.8688381e-07 | C162: ='DF raw data'!H167 -> 5.4319617e-06 | D162: ='DF raw data'!I167 -> -6.4747314e-06 | F162: 1.870422875e-07 | G162: 5.449483256e-06 | H162: -6.480221972e-06 | J162: -1.052527687e-05 | K162: -1.386576517e-05 | L162: -2.279394889e-06 | N162: -0.0004837468964 | O162: -0.01892345034 | P162: 0.0001699129404 | Q162: 0.01091536393 | R162: 7.981248308e-06
A163: 77.39356 | B163: ='DF raw data'!G168 -> -1.7257545e-06 | C163: ='DF raw data'!H168 -> 5.2885271e-06 | D163: ='DF raw data'!I168 -> 3.6830186e-06 | F163: -1.72721794e-06 | G163: 5.305585988e-06 | H163: 3.6861418e-06 | J163: -1.160599855e-05 | K163: -4.754546949e-07 | L163: -2.085024002e-06 | N163: -0.0004895508242 | O163: -0.01916826492 | P163: 0.000169675175 | Q163: 0.01100021509 | R163: 8.115494621e-06
A164: 77.89364 | B164: ='DF raw data'!G169 -> -2.1705719e-06 | C164: ='DF raw data'!H169 -> 4.6949108e-06 | D164: ='DF raw data'!I169 -> 9.048741e-06 | F164: -2.172412545e-06 | G164: 4.710054895e-06 | H164: 9.056414332e-06 | J164: -1.473733067e-05 | K164: 6.170173871e-06 | L164: 3.048515451e-06 | N164: -0.0004969206685 | O164: -0.01941676501 | P164: 0.0001727607555 | Q164: 0.01108660929 | R164: 8.253904978e-06
A165: 78.39372 | B165: ='DF raw data'!G170 -> 3.3875858e-06 | C165: ='DF raw data'!H170 -> 1.664865e-05 | D165: ='DF raw data'!I170 -> 6.8070653e-06 | F165: 3.390458473e-06 | G165: 1.670235256e-05 | H165: 6.812837691e-06 | J165: -1.894604463e-05 | K165: -1.429456989e-06 | L165: 8.928691315e-06 | N165: -0.0005063952065 | O165: -0.01967000312 | P165: 0.0001720459127 | Q165: 0.01117264601 | R165: 8.396945812e-06
A166: 78.8938 | B166: ='DF raw data'!G171 -> 1.0326056e-05 | C166: ='DF raw data'!H171 -> 9.9100444e-06 | D166: ='DF raw data'!I171 -> 9.8783366e-06 | F166: 1.03348125e-05 | G166: 9.942010642e-06 | H166: 9.886713429e-06 | J166: -1.700947181e-05 | K166: -3.164921274e-06 | L166: 9.32069185e-06 | N166: -0.0005149013031 | O166: -0.01992749496 | P166: 0.0001704631988 | Q166: 0.01125789125 | R166: 8.544059873e-06
A167: 79.39388 | B167: ='DF raw data'!G172 -> 7.4316008e-06 | C167: ='DF raw data'!H172 -> 6.6920484e-06 | D167: ='DF raw data'!I172 -> 8.5922456e-06 | F167: 7.437902797e-06 | G167: 6.713634543e-06 | H167: 8.599531824e-06 | J167: -1.01997981e-05 | K167: -5.268222053e-06 | L167: 1.762266136e-06 | N167: -0.0005200020182 | O167: -0.02018753757 | P167: 0.0001678286664 | Q167: 0.01134181901 | R167: 8.693368039e-06
A168: 79.89396 | B168: ='DF raw data'!G173 -> 1.7900719e-06 | C168: ='DF raw data'!H173 -> 1.6451446e-05 | D168: ='DF raw data'!I173 -> -3.5923388e-06 | F168: 1.791589881e-06 | G168: 1.650451245e-05 | H168: -3.595385103e-06 | J168: -4.836742783e-06 | K168: -8.005748136e-06 | L168: -1.710205526e-06 | N168: -0.0005224207765 | O168: -0.02044878976 | P168: 0.0001638251518 | Q168: 0.01142374469 | R168: 8.843273094e-06
A169: 80.39404 | B169: ='DF raw data'!G174 -> -1.2410153e-07 | C169: ='DF raw data'!H174 -> 1.5298767e-05 | D169: ='DF raw data'!I174 -> -5.3705976e-06 | F169: -1.242067681e-07 | G169: 1.534811532e-05 | H169: -5.375151867e-06 | J169: -2.211465634e-06 | K169: -1.176861727e-05 | L169: -6.604249158e-07 | N169: -0.0005235266862 | O169: -0.02071059498 | P169: 0.0001579399017 | Q169: 0.01150272727 | R169: 8.992809618e-06
A170: 80.89412 | B170: ='DF raw data'!G175 -> -4.16905e-06 | C170: ='DF raw data'!H175 -> 1.1418172e-05 | D170: ='DF raw data'!I175 -> -5.5395126e-06 | F170: -4.172585354e-06 | G170: 1.145500292e-05 | H170: -5.544210107e-06 | J170: 4.582370358e-07 | K170: -6.89927904e-06 | L170: 2.961253716e-06 | N170: -0.0005232975311 | O170: -0.02097228561 | P170: 0.0001544897102 | Q170: 0.01157998449 | R170: 9.141687123e-06
A171: 81.3942 | B171: ='DF raw data'!G176 -> -6.0908342e-06 | C171: ='DF raw data'!H176 -> 1.3584094e-05 | D171: ='DF raw data'!I176 -> -1.125318e-05 | F171: -6.095999227e-06 | G171: 1.362791141e-05 | H171: -1.12627227e-05 | J171: 1.979610688e-07 | K171: -1.070449283e-06 | L171: 5.379615849e-06 | N171: -0.0005231985347 | O171: -0.02123392673 | P171: 0.0001539544 | Q171: 0.011656974 | R171: 9.29043025e-06
A172: 81.89428 | B172: ='DF raw data'!G177 -> -6.2120516e-06 | C172: ='DF raw data'!H177 -> 2.342942e-05 | D172: ='DF raw data'!I177 -> -6.2314089e-06 | F172: -6.21731942e-06 | G172: 2.350499489e-05 | H172: -6.236693135e-06 | J172: -2.514899128e-06 | K172: -5.091802115e-06 | L172: 6.623166486e-06 | N172: -0.0005244561854 | O172: -0.02149619678 | P172: 0.0001514080916 | Q172: 0.01173269016 | R172: 9.439443438e-06
A173: 82.39436 | B173: ='DF raw data'!G178 -> -4.9631699e-06 | C173: ='DF raw data'!H178 -> 9.4583929e-06 | D173: ='DF raw data'!I178 -> 5.5768137e-06 | F173: -4.967378668e-06 | G173: 9.488902276e-06 | H173: 5.581542838e-06 | J173: -5.962357595e-06 | K173: -1.29788184e-05 | L173: 4.591747803e-06 | N173: -0.0005274378412 | O173: -0.0217599579 | P173: 0.0001449176441 | Q173: 0.01180516058 | R173: 9.589063274e-06
A174: 82.89444 | B174: ='DF raw data'!G179 -> -3.4771265e-06 | C174: ='DF raw data'!H179 -> 1.2061425e-05 | D174: ='DF raw data'!I179 -> 3.3760023e-06 | F174: -3.480075103e-06 | G174: 1.210033082e-05 | H174: 3.37886515e-06 | J174: -8.449412631e-06 | K174: -6.064275679e-06 | L174: 7.523608915e-06 | N174: -0.0005316632235 | O174: -0.02202583204 | P174: 0.0001418850211 | Q174: 0.01187611444 | R174: 9.740486069e-06
A175: 83.39452 | B175: ='DF raw data'!G180 -> -5.698882e-06 | C175: ='DF raw data'!H180 -> 1.3396629e-05 | D175: ='DF raw data'!I180 -> -3.1301226e-06 | F175: -5.703714652e-06 | G175: 1.343984171e-05 | H175: -3.132776944e-06 | J175: -1.275653137e-05 | K175: -9.690879287e-06 | L175: 8.994434418e-06 | N175: -0.0005380425097 | O175: -0.02229489634 | P175: 0.0001370388062 | Q175: 0.01194464481 | R175: 9.894645418e-06
A176: 83.8946 | B176: ='DF raw data'!G181 -> -6.2391509e-06 | C176: ='DF raw data'!H181 -> 8.4416797e-06 | D176: ='DF raw data'!I181 -> -4.984317e-06 | F176: -6.2444417e-06 | G176: 8.468909525e-06 | H176: -4.988543701e-06 | J176: -1.587623964e-05 | K176: -1.237994486e-05 | L176: 3.973000049e-06 | N176: -0.0005459818996 | O176: -0.02256793097 | P176: 0.0001308478433 | Q176: 0.01201007919 | R176: 1.005227933e-05
A177: 84.39468 | B177: ='DF raw data'!G182 -> -7.0035009e-07 | C177: ='DF raw data'!H182 -> 1.523112e-05 | D177: ='DF raw data'!I182 -> -8.057852e-06 | F177: -7.009439869e-07 | G177: 1.528025012e-05 | H177: -8.064685058e-06 | J177: -1.226403809e-05 | K177: -2.627479053e-06 | L177: 2.069739252e-06 | N177: -0.0005521148998 | O177: -0.02284403259 | P177: 0.0001295338936 | Q177: 0.0120748565 | R177: 1.021311001e-05
A178: 84.89476 | B178: ='DF raw data'!G183 -> 1.2407908e-06 | C178: ='DF raw data'!H183 -> 1.6602618e-05 | D178: ='DF raw data'!I183 -> -6.8421091e-06 | F178: 1.241842991e-06 | G178: 1.665617208e-05 | H178: -6.847911209e-06 | J178: -7.119438569e-06 | K178: -4.652610195e-06 | L178: 2.622940669e-06 | N178: -0.0005556751886 | O178: -0.02312191464 | P178: 0.0001272072163 | Q178: 0.01213847029 | R178: 1.03756143e-05
A179: 85.39484 | B179: ='DF raw data'!G184 -> -9.9865258e-07 | C179: ='DF raw data'!H184 -> 1.4477789e-05 | D179: ='DF raw data'!I184 -> 4.8874458e-06 | F179: -9.994994374e-07 | G179: 1.452448914e-05 | H179: 4.891590354e-06 | J179: -8.478880999e-07 | K179: -1.290265652e-05 | L179: 6.48495178e-06 | N179: -0.0005560992005 | O179: -0.02340000873 | P179: 0.0001207548558 | Q179: 0.01219885738 | R179: 1.053755423e-05
A180: 85.89492 | B180: ='DF raw data'!G185 -> 1.8691034e-06 | C180: ='DF raw data'!H185 -> 1.2924164e-05 | D180: ='DF raw data'!I185 -> 9.866224e-06 | F180: 1.8706884e-06 | G180: 1.296585271e-05 | H180: 9.874590558e-06 | J180: 3.429034658e-06 | K180: -1.0422143e-05 | L180: 7.436747719e-06 | N180: -0.0005543844089 | O180: -0.02367724528 | P180: 0.0001155429506 | Q180: 0.0122566381 | R180: 1.069792601e-05
A181: 86.395 | B181: ='DF raw data'!G186 -> 8.9402778e-07 | C181: ='DF raw data'!H186 -> 8.7889903e-06 | D181: ='DF raw data'!I186 -> 2.0113127e-06 | F181: 8.947859156e-07 | G181: 8.817340424e-06 | H181: 2.013018293e-06 | J181: 4.483497284e-07 | K181: -1.038452906e-05 | L181: 2.87179642e-06 | N181: -0.0005541601981 | O181: -0.02395436971 | P181: 0.0001103498553 | Q181: 0.01231182185 | R181: 1.085758686e-05
A182: 86.89508 | B182: ='DF raw data'!G187 -> -5.4656584e-06 | C182: ='DF raw data'!H187 -> 8.1474727e-06 | D182: ='DF raw data'!I187 -> -5.6575795e-06 | F182: -5.470293278e-06 | G182: 8.173753519e-06 | H182: -5.662377127e-06 | J182: -2.765087608e-06 | K182: -9.647644776e-06 | L182: -8.616555848e-07 | N182: -0.0005555429631 | O182: -0.02423218564 | P182: 0.0001055252611 | Q182: 0.01236459292 | R182: 1.101749422e-05
A183: 87.39516 | B183: ='DF raw data'!G188 -> -8.2217439e-06 | C183: ='DF raw data'!H188 -> 1.4607082e-05 | D183: ='DF raw data'!I188 -> -7.4938057e-06 | F183: -8.228715939e-06 | G183: 1.46541992e-05 | H183: -7.500160447e-06 | J183: -4.057516859e-06 | K183: -7.946308823e-06 | L183: 4.929063304e-06 | N183: -0.0005575720462 | O183: -0.02451101627 | P183: 0.000101551471 | Q183: 0.01241537678 | R183: 1.117811956e-05
A184: 87.89524 | B184: ='DF raw data'!G189 -> -7.442176e-06 | C184: ='DF raw data'!H189 -> 1.2046215e-05 | D184: ='DF raw data'!I189 -> -4.8635907e-06 | F184: -7.448486965e-06 | G184: 1.208507176e-05 | H184: -4.867715025e-06 | J184: -4.322537106e-06 | K184: -1.752823901e-05 | L184: 1.019941878e-05 | N184: -0.0005597336605 | O184: -0.02479092788 | P184: 9.27859492e-05 | Q184: 0.01246177718 | R184: 1.133910082e-05
A185: 88.39532 | B185: ='DF raw data'!G190 -> -4.9404071e-06 | C185: ='DF raw data'!H190 -> 2.7808974e-06 | D185: ='DF raw data'!I190 -> -3.3009003e-06 | F185: -4.944596565e-06 | G185: 2.789867576e-06 | H185: -3.303699463e-06 | J185: -2.151741231e-06 | K185: -1.47394483e-05 | L185: 9.113267803e-06 | N185: -0.0005608097033 | O185: -0.02507137759 | P185: 8.541504589e-05 | Q185: 0.01250449154 | R185: 1.150002819e-05
A186: 88.8954 | B186: ='DF raw data'!G191 -> -1.8850179e-06 | C186: ='DF raw data'!H191 -> 1.1063255e-05 | D186: ='DF raw data'!I191 -> -4.6377049e-06 | F186: -1.886616395e-06 | G186: 1.109894108e-05 | H186: -4.641637674e-06 | J186: -2.477020233e-06 | K186: -1.187302096e-05 | L186: 5.325862805e-06 | N186: -0.0005620484116 | O186: -0.02535244676 | P186: 7.947758557e-05 | Q186: 0.01254423669 | R186: 1.166116152e-05
A187: 89.39548 | B187: ='DF raw data'!G192 -> -4.9449415e-07 | C187: ='DF raw data'!H192 -> 1.8972416e-05 | D187: ='DF raw data'!I192 -> -6.7894639e-06 | F187: -4.94913481e-07 | G187: 1.90336142e-05 | H187: -6.795221365e-06 | J187: -3.666902599e-06 | K187: -1.525841491e-05 | L187: -5.061566872e-07 | N187: -0.0005638821562 | O187: -0.02563443295 | P187: 7.184715744e-05 | Q187: 0.01258016601 | R187: 1.182274992e-05
A188: 89.89556 | B188: ='DF raw data'!G193 -> 1.8052241e-06 | C188: ='DF raw data'!H193 -> 9.7795537e-06 | D188: ='DF raw data'!I193 -> -1.0982238e-05 | F188: 1.80675493e-06 | G188: 9.811099026e-06 | H188: -1.099155094e-05 | J188: -1.115446197e-06 | K188: -5.355362533e-06 | L188: 3.662861275e-06 | N188: -0.0005644399685 | O188: -0.02591669809 | P188: 6.916904775e-05 | Q188: 0.01261475607 | R188: 1.198446421e-05
A189: 90.39564 | B189: ='DF raw data'!G194 -> 5.8330852e-06 | C189: ='DF raw data'!H194 -> 2.0577681e-05 | D189: ='DF raw data'!I194 -> -1.1963644e-05 | F189: 5.838031656e-06 | G189: 2.06440572e-05 | H189: -1.197378917e-05 | J189: -1.640607757e-06 | K189: -1.073951543e-05 | L189: 1.518408219e-05 | N189: -0.0005652604037 | O189: -0.02619937351 | P189: 6.379843087e-05 | Q189: 0.01264666039 | R189: 1.214628488e-05
A190: 90.89572 | B190: ='DF raw data'!G195 -> 2.7737588e-06 | C190: ='DF raw data'!H195 -> 3.4238354e-05 | D190: ='DF raw data'!I195 -> -2.2409606e-06 | F190: 2.776110947e-06 | G190: 3.434879462e-05 | H190: -2.242860935e-06 | J190: -6.249690347e-06 | K190: -8.320579705e-06 | L190: 1.682396664e-05 | N190: -0.0005683857488 | O190: -0.02648361186 | P190: 5.963747537e-05 | Q190: 0.0126764839 | R190: 1.23096205e-05
A191: 91.3958 | B191: ='DF raw data'!G196 -> -6.1461697e-06 | C191: ='DF raw data'!H196 -> 3.659321e-05 | D191: ='DF raw data'!I196 -> 9.4693623e-06 | F191: -6.151381652e-06 | G191: 3.671124654e-05 | H191: 9.477392319e-06 | J191: -8.529045402e-06 | K191: -1.039255888e-05 | L191: 1.18659488e-05 | N191: -0.0005726509538 | O191: -0.02676998315 | P191: 5.444036453e-05 | Q191: 0.01270370844 | R191: 1.247509341e-05
A192: 91.89588 | B192: ='DF raw data'!G197 -> -6.9158568e-06 | C192: ='DF raw data'!H197 -> 2.5307807e-05 | D192: ='DF raw data'!I197 -> 1.11217e-05 | F192: -6.921721447e-06 | G192: 2.538944089e-05 | H192: 1.11311312e-05 | J192: -7.823507413e-06 | K192: -2.414870258e-05 | L192: 7.482843575e-06 | N192: -0.0005765633334 | O192: -0.02705831094 | P192: 4.236408134e-05 | Q192: 0.01272489387 | R192: 1.264223014e-05
A193: 92.39596 | B193: ='DF raw data'!G198 -> 4.424673e-07 | C193: ='DF raw data'!H198 -> 1.3776496e-05 | D193: ='DF raw data'!I198 -> 5.2288028e-06 | F193: 4.428425123e-07 | G193: 1.382093402e-05 | H193: 5.233236825e-06 | J193: -7.745143517e-06 | K193: -2.278348303e-05 | L193: 4.31784523e-06 | N193: -0.0005804365248 | O193: -0.02734857564 | P193: 3.097051715e-05 | Q193: 0.0127403816 | R193: 1.281119003e-05
A194: 92.89604 | B194: ='DF raw data'!G199 -> 6.5382264e-06 | C194: ='DF raw data'!H199 -> 2.7862003e-05 | D194: ='DF raw data'!I199 -> 1.8041952e-06 | F194: 6.543770816e-06 | G194: 2.795187581e-05 | H194: 1.805725158e-06 | J194: -1.01112801e-05 | K194: -1.697754839e-05 | L194: 4.64150296e-06 | N194: -0.0005854929738 | O194: -0.02764136896 | P194: 2.248038475e-05 | Q194: 0.01275162359 | R194: 1.298287119e-05
A195: 93.39612 | B195: ='DF raw data'!G200 -> 7.6763035e-06 | C195: ='DF raw data'!H200 -> 3.7711863e-05 | D195: ='DF raw data'!I200 -> 4.0409445e-06 | F195: 7.682813005e-06 | G195: 3.783350792e-05 | H195: 4.044371221e-06 | J195: -1.220758626e-05 | K195: -1.760975912e-05 | L195: 8.061087711e-06 | N195: -0.0005915977435 | O195: -0.02793721516 | P195: 1.367409641e-05 | Q195: 0.01275846174 | R195: 1.315798664e-05
A196: 93.8962 | B196: ='DF raw data'!G201 -> 6.4700084e-06 | C196: ='DF raw data'!H201 -> 2.6897058e-05 | D196: ='DF raw data'!I201 -> 1.560276e-06 | F196: 6.475494967e-06 | G196: 2.698381824e-05 | H196: 1.561599114e-06 | J196: -1.122046089e-05 | K196: -6.346179476e-06 | L196: 8.186515083e-06 | N196: -0.0005972088716 | O196: -0.02823586737 | P196: 1.050049897e-05 | Q196: 0.01276371283 | R196: 1.333639953e-05
A197: 94.39628 | B197: ='DF raw data'!G202 -> 3.0739302e-06 | C197: ='DF raw data'!H202 -> 9.6774793e-06 | D197: ='DF raw data'!I202 -> -7.5419252e-06 | F197: 3.076536893e-06 | G197: 9.70869537e-06 | H197: -7.548320753e-06 | J197: -9.423378054e-06 | K197: -1.123960636e-05 | L197: 8.626078917e-06 | N197: -0.0006019213145 | O197: -0.02853687619 | P197: 4.879796625e-06 | Q197: 0.01276615311 | R197: 1.351759506e-05
A198: 94.89636 | B198: ='DF raw data'!G203 -> 8.4570087e-07 | C198: ='DF raw data'!H203 -> 1.4013597e-05 | D198: ='DF raw data'!I203 -> -8.4611038e-06 | F198: 8.464180243e-07 | G198: 1.405879983e-05 | H198: -8.468278816e-06 | J198: -5.800085805e-06 | K198: -1.45460274e-05 | L198: 1.088897102e-05 | N198: -0.0006048218214 | O198: -0.02883933548 | P198: -2.394380755e-06 | Q198: 0.01276495573 | R198: 1.370053191e-05
A199: 95.39644 | B199: ='DF raw data'!G204 -> 4.2873689e-06 | C199: ='DF raw data'!H204 -> 2.3263434e-05 | D199: ='DF raw data'!I204 -> -2.8759516e-06 | F199: 4.291004589e-06 | G199: =(1-$G$1*($B$2-$G$2))*C199*$M$2/$M$1 -> 2.333847348e-05 | H199: -2.878390407e-06 | J199: =-CELL("contents", INDEX($F$6:$F$1203,1204-CELL("row",F199))) -> -5.548097701e-07 | K199: =CELL("contents", INDEX($G$6:$G$1203,1204-CELL("row",G199))) -> -6.446970045e-06 | L199: =-CELL("contents", INDEX($H$6:$H$1203,1204-CELL("row",H199))) -> 8.542880525e-06 | N199: -0.0006050992707 | O199: -0.02914193352 | P199: -5.618381535e-06 | Q199: 0.01276214609 | R199: 1.388364955e-05
A200: =A199+$B$1 -> 95.89652 | B200: ='DF raw data'!G205 -> 5.5502014e-06 | C200: ='DF raw data'!H205 -> 1.3204762e-05 | D200: ='DF raw data'!I205 -> 4.5135096e-07 | F200: 5.554907971e-06 | G200: 1.324735582e-05 | H200: 4.517337056e-07 | J200: 5.382039002e-07 | K200: -1.821720221e-05 | L200: 9.271868883e-06 | N200: =J200*$B$1+N199 -> -0.0006048301256 | O200: =N200*$B$1+O199 -> -0.02944439697 | P200: =K200*$B$1+P199 -> -1.472844002e-05 | Q200: =P200*$B$1+Q199 -> 0.01275478069 | R200: =(N200^2+P200^2)*$B$1+R199 -> 1.406669704e-05
... 1003 more rows

Sheet 20 mm
A1: dz | B1: ='DF raw data'!K7 -> 0.50009 | C1: mm | F1: T_coeff | G1: -0.0008 | H1: /degC | L1: Hallref | M1: ='PI vs gap'!B50 -> 0.50513 | N1: T | P1: IBy total | Q1: =P1203*1000 -> -2.552443668 | R1: muTm
A2: Tref | B2: ='DF raw data'!K8 -> 21.11 | C2: degC | F2: Tcorr | G2: 20 | H2: degC | L2: NMRref | M2: ='PI vs gap'!B51 -> 0.50633 | N2: T | P2: JBy total | Q2: =Q1203 -> -4.509746309 | R2: muTm^2
A3: Encoder | B3: ='DF raw data'!K9 -> 591535 | P3: PI total | Q3: =R1203 -> 1869.453892 | R3: T^2mm^3
J4: SXR-rotation
A5: z [mm] | B5: Bx | C5: By | D5: Bz | F5: Bx_corr | G5: By_corr | H5: Bz_corr | J5: Bx_rot | K5: By_rot | L5: Bz_rot | N5: Ix | O5: Jx | P5: Iy | Q5: Jy | R5: PI
A6: ='PI vs gap'!B53 -> -1.119 | B6: ='DF raw data'!J11 -> -4.3553491e-06 | C6: ='DF raw data'!K11 -> 6.3330858e-06 | D6: ='DF raw data'!L11 -> 5.8427395e-07 | F6: =(1-$G$1*($B$2-$G$2))*B6 -> -4.35921665e-06 | G6: =(1-$G$1*($B$2-$G$2))*C6*$M$2/$M$1 -> 6.353767984e-06 | H6: =(1-$G$1*($B$2-$G$2))*D6 -> 5.847927853e-07 | J6: =-CELL("contents", INDEX($F$6:$F$1203,1204-CELL("row",F6))) -> -2.115617502e-06 | K6: =CELL("contents", INDEX($G$6:$G$1203,1204-CELL("row",G6))) -> 1.569854642e-07 | L6: =-CELL("contents", INDEX($H$6:$H$1203,1204-CELL("row",H6))) -> 1.016370736e-05 | N6: =J6*$B$1 -> -1.057999156e-06 | O6: =N6*$B$1 -> -5.290947981e-07 | P6: =K6*$B$1 -> 7.85068608e-08 | Q6: =P6*$B$1 -> 3.926049602e-08 | R6: =(N6^2+P6^2)*$B$1 -> 5.628640683e-13
A7: =A6+$B$1 -> -0.61891 | B7: ='DF raw data'!J12 -> -4.1121139e-06 | C7: ='DF raw data'!K12 -> -1.2754667e-06 | D7: ='DF raw data'!L12 -> -5.3898875e-06 | F7: =(1-$G$1*($B$2-$G$2))*B7 -> -4.115765457e-06 | G7: =(1-$G$1*($B$2-$G$2))*C7*$M$2/$M$1 -> -1.279632037e-06 | H7: -5.39467372e-06 | J7: =-CELL("contents", INDEX($F$6:$F$1203,1204-CELL("row",F7))) -> -6.622606457e-07 | K7: =CELL("contents", INDEX($G$6:$G$1203,1204-CELL("row",G7))) -> -8.060589668e-06 | L7: =-CELL("contents", INDEX($H$6:$H$1203,1204-CELL("row",H7))) -> 9.794405215e-06 | N7: =J7*$B$1+N6 -> -1.389189083e-06 | O7: =N7*$B$1+O6 -> -1.223814366e-06 | P7: =K7*$B$1+P6 -> -3.952513426e-06 | Q7: =P7*$B$1+Q6 -> -1.937351943e-06 | R7: =(N7^2+P7^2)*$B$1+R6 -> 9.340548114e-12
A8: =A7+$B$1 -> -0.11882 | B8: ='DF raw data'!J13 -> -4.1641788e-06 | C8: ='DF raw data'!K13 -> 1.2401701e-06 | D8: ='DF raw data'!L13 -> 8.8063825e-07 | F8: -4.167876591e-06 | G8: 1.244220168e-06 | H8: 8.814202568e-07 | J8: -1.963962051e-06 | K8: 3.255213563e-07 | L8: 9.26862914e-06 | N8: =J8*$B$1+N7 -> -2.371346865e-06 | O8: =N8*$B$1+O7 -> -2.40970122e-06 | P8: =K8*$B$1+P7 -> -3.789723451e-06 | Q8: =P8*$B$1+Q7 -> -3.832554744e-06 | R8: =(N8^2+P8^2)*$B$1+R7 -> 1.933499169e-11
A9: 0.38127 | B9: ='DF raw data'!J14 -> -3.9001179e-06 | C9: ='DF raw data'!K14 -> -4.8602546e-06 | D9: ='DF raw data'!L14 -> 7.2027415e-06 | F9: -3.903581205e-06 | G9: -4.876126907e-06 | H9: 7.209137534e-06 | J9: -5.559071576e-06 | K9: -5.831773336e-06 | L9: 8.51436725e-06 | N9: -5.151382969e-06 | O9: -4.985856329e-06 | P9: -6.706134979e-06 | Q9: -7.186225786e-06 | R9: 5.509592392e-11
A10: 0.88136 | B10: ='DF raw data'!J15 -> -3.9638626e-06 | C10: ='DF raw data'!K15 -> -4.1333428e-06 | D10: ='DF raw data'!L15 -> 8.430361e-07 | F10: -3.96738251e-06 | G10: -4.146841205e-06 | H10: 8.437847161e-07 | J10: -5.601094759e-06 | K10: -4.469448626e-06 | L10: 7.598370066e-06 | N10: -7.952434447e-06 | O10: -8.962789272e-06 | P10: -8.941261543e-06 | Q10: -1.165766127e-05 | R10: 1.267024966e-10
A11: 1.38145 | B11: ='DF raw data'!J16 -> -4.0282766e-06 | C11: ='DF raw data'!K16 -> -2.0429384e-06 | D11: ='DF raw data'!L16 -> 2.4837937e-06 | F11: -4.03185371e-06 | G11: -2.049610097e-06 | H11: 2.485999309e-06 | J11: -3.015196419e-06 | K11: 1.027635161e-05 | L11: 7.848302609e-06 | N11: -9.460304024e-06 | O11: -1.369379271e-05 | P11: -3.802160867e-06 | Q11: -1.35590839e-05 | R11: 1.786887422e-10
A12: 1.88154 | B12: ='DF raw data'!J17 -> -4.0609166e-06 | C12: ='DF raw data'!K17 -> -1.4834791e-06 | D12: ='DF raw data'!L17 -> 3.4101689e-07 | F12: -4.064522694e-06 | G12: -1.488323751e-06 | H12: 3.41319713e-07 | J12: -7.057530727e-07 | K12: 1.607301937e-05 | L12: 9.446484035e-06 | N12: -9.813244079e-06 | O12: -1.860129794e-05 | P12: 4.23579539e-06 | Q12: -1.144080498e-05 | R12: 2.358198849e-10
A13: 2.38163 | B13: ='DF raw data'!J18 -> -4.3015489e-06 | C13: ='DF raw data'!K18 -> 4.4525636e-06 | D13: ='DF raw data'!L18 -> -3.0218944e-06 | F13: -4.305368675e-06 | G13: 4.467104496e-06 | H13: -3.024577842e-06 | J13: -2.053952692e-06 | K13: 3.444256919e-06 | L13: 1.047659296e-05 | N13: -1.084040528e-05 | O13: -2.402247622e-05 | P13: 5.958233832e-06 | Q13: -8.461151825e-06 | R13: 3.123411248e-10
A14: 2.88172 | B14: ='DF raw data'!J19 -> -4.4714261e-06 | C14: ='DF raw data'!K19 -> 9.3864337e-06 | D14: ='DF raw data'!L19 -> -4.7580031e-07 | F14: -4.475396726e-06 | G14: 9.417087311e-06 | H14: -4.762228207e-07 | J14: -6.31274094e-06 | K14: -2.430983909e-06 | L14: 1.042070438e-05 | N14: -1.39973439e-05 | O14: -3.102240793e-05 | P14: 4.742523089e-06 | Q14: -6.089463454e-06 | R14: 4.21569363e-10
A15: 3.38181 | B15: ='DF raw data'!J20 -> -3.8282278e-06 | C15: ='DF raw data'!K20 -> -8.5238999e-06 | D15: ='DF raw data'!L20 -> -2.6063972e-06 | F15: -3.831627266e-06 | G15: -8.551736704e-06 | H15: -2.608711681e-06 | J15: -7.299371691e-06 | K15: 3.997513628e-06 | L15: 1.04205042e-05 | N15: -1.764768669e-05 | O15: -3.984783956e-05 | P15: 6.74163968e-06 | Q15: -2.718036866e-06 | R15: 6.000467586e-10
A16: 3.8819 | B16: ='DF raw data'!J21 -> -3.8971802e-06 | C16: ='DF raw data'!K21 -> -5.5419318e-06 | D16: ='DF raw data'!L21 -> 3.073128e-06 | F16: -3.900640896e-06 | G16: -5.560030284e-06 | H16: 3.075856938e-06 | J16: -4.968148802e-06 | K16: -8.926146547e-06 | L16: 1.019035401e-05 | N16: -2.013220822e-05 | O16: -4.991575557e-05 | P16: 2.277763053e-06 | Q16: -1.578950341e-06 | R16: 8.053307093e-10
A17: 4.38199 | B17: ='DF raw data'!J22 -> -3.995835e-06 | C17: ='DF raw data'!K22 -> -3.6263177e-06 | D17: ='DF raw data'!L22 -> -2.0573898e-06 | F17: -3.999383301e-06 | G17: -3.638160295e-06 | H17: -2.059216762e-06 | J17: -4.484921277e-06 | K17: -1.164075187e-05 | L17: 9.314126106e-06 | N17: -2.23750725e-05 | O17: -6.110530558e-05 | P17: -3.543660551e-06 | Q17: -3.351099546e-06 | R17: 1.061977597e-09
A18: 4.88208 | B18: ='DF raw data'!J23 -> -4.6846226e-06 | C18: ='DF raw data'!K23 -> 1.4892438e-05 | D18: ='DF raw data'!L23 -> -2.8825962e-06 | F18: -4.688782545e-06 | G18: 1.494107277e-05 | H18: -2.885155945e-06 | J18: -4.748414651e-06 | K18: -7.294892443e-06 | L18: 8.960076689e-06 | N18: -2.474970718e-05 | O18: -7.348238665e-05 | P18: -7.191763313e-06 | Q18: -6.947628462e-06 | R18: 1.394172114e-09
A19: 5.38217 | B19: ='DF raw data'!J24 -> -4.0876157e-06 | C19: ='DF raw data'!K24 -> -1.3064187e-06 | D19: ='DF raw data'!L24 -> -1.3107201e-06 | F19: -4.091245503e-06 | G19: -1.310685118e-06 | H19: -1.311884019e-06 | J19: -5.272061437e-06 | K19: 1.649960495e-06 | L19: 9.668641536e-06 | N19: -2.738621239e-05 | O19: -8.71779576e-05 | P19: -6.366634569e-06 | Q19: -1.013151874e-05 | R19: 1.789512595e-09
A20: 5.88226 | B20: ='DF raw data'!J25 -> -3.8292301e-06 | C20: ='DF raw data'!K25 -> -7.9178708e-06 | D20: ='DF raw data'!L25 -> 1.2597302e-06 | F20: -3.832630456e-06 | G20: -7.943728473e-06 | H20: 1.26084884e-06 | J20: -6.583717054e-06 | K20: -1.647226696e-05 | L20: 9.73638624e-06 | N20: -3.067866345e-05 | O20: -0.0001025200504 | P20: -1.460425056e-05 | Q20: -1.74349584e-05 | R20: 2.366848759e-09
A21: 6.38235 | B21: ='DF raw data'!J26 -> -3.6524768e-06 | C21: ='DF raw data'!K26 -> -1.3530748e-05 | D21: ='DF raw data'!L26 -> -4.4029548e-06 | F21: -3.655720199e-06 | G21: -1.357493585e-05 | H21: -4.406864624e-06 | J21: -3.780557757e-06 | K21: -1.118669387e-05 | L21: 8.795606969e-06 | N21: -3.256928258e-05 | O21: -0.0001188076229 | P21: -2.019860429e-05 | Q21: -2.753607842e-05 | R21: 3.101351838e-09
A22: 6.88244 | B22: ='DF raw data'!J27 -> -6.5654885e-06 | C22: ='DF raw data'!K27 -> -7.1981617e-06 | D22: ='DF raw data'!L27 -> 2.9082075e-06 | F22: -6.571318654e-06 | G22: -7.221668993e-06 | H22: 2.910789988e-06 | J22: -3.172931864e-06 | K22: -8.865376334e-06 | L22: 8.149594519e-06 | N22: -3.415603407e-05 | O22: -0.000135888714 | P22: -2.463209034e-05 | Q22: -3.985434048e-05 | R22: 3.988198711e-09
A23: 7.38253 | B23: ='DF raw data'!J28 -> -1.0353787e-05 | C23: ='DF raw data'!K28 -> -3.2950179e-06 | D23: ='DF raw data'!L28 -> 2.974095e-06 | F23: =(1-$G$1*($B$2-$G$2))*B23 -> -1.036298116e-05 | G23: -3.305778557e-06 | H23: 2.976735996e-06 | J23: -7.269508296e-06 | K23: 2.269970694e-07 | L23: 1.013086723e-05 | N23: -3.779144248e-05 | O23: -0.0001547878365 | P23: -2.451857138e-05 | Q23: -5.211583284e-05 | R23: 5.003058086e-09
A24: 7.88262 | B24: ='DF raw data'!J29 -> -7.5618582e-06 | C24: ='DF raw data'!K29 -> 6.0201978e-06 | D24: ='DF raw data'!L29 -> 7.9088804e-06 | F24: -7.56857313e-06 | G24: 6.039858174e-06 | H24: 7.915903486e-06 | J24: -1.037805153e-05 | K24: -4.149250146e-06 | L24: 8.368664281e-07 | N24: -4.298140227e-05 | O24: -0.0001762824059 | P24: -2.659356988e-05 | Q24: -6.541501121e-05 | R24: 6.280597452e-09
A25: 8.38271 | B25: ='DF raw data'!J30 -> -4.2369347e-06 | C25: ='DF raw data'!K30 -> 1.4771372e-06 | D25: ='DF raw data'!L30 -> 1.7355365e-05 | F25: -4.240697098e-06 | G25: 1.48196114e-06 | H25: 1.737077656e-05 | J25: -7.650852629e-06 | K25: -5.030067098e-06 | L25: -1.07966229e-06 | N25: -4.680751716e-05 | O25: -0.0001996903772 | P25: -2.910905614e-05 | Q25: -7.997215909e-05 | R25: 7.800011303e-09
A26: 8.8828 | B26: ='DF raw data'!J31 -> -6.455482e-07 | C26: ='DF raw data'!K31 -> -5.0850781e-06 | D26: ='DF raw data'!L31 -> 1.4930469e-05 | F26: -6.461214468e-07 | G26: -5.101684621e-06 | H26: 1.494372726e-05 | J26: -5.102433941e-06 | K26: -6.418626907e-06 | L26: 4.63828164e-06 | N26: -4.935919335e-05 | O26: -0.0002243744162 | P26: -3.231894727e-05 | Q26: -9.613454143e-05 | R26: 9.540746739e-09
A27: 9.38289 | B27: ='DF raw data'!J32 -> 3.1301345e-06 | C27: ='DF raw data'!K32 -> -1.1932739e-06 | D27: ='DF raw data'!L32 -> 6.5830573e-06 | F27: 3.132914059e-06 | G27: -1.197170817e-06 | H27: 6.588903055e-06 | J27: -7.787343326e-06 | K27: -5.359773527e-06 | L27: 3.827198637e-06 | N27: -5.325356587e-05 | O27: -0.000251005992 | P27: -3.499931641e-05 | Q27: -0.0001136373496 | R27: 1.157155943e-08
A28: 9.88298 | B28: ='DF raw data'!J33 -> 4.3547188e-06 | C28: ='DF raw data'!K33 -> -6.3761204e-06 | D28: ='DF raw data'!L33 -> 3.1625095e-06 | F28: 4.35858579e-06 | G28: -6.396943124e-06 | H28: 3.165317808e-06 | J28: -1.205742149e-05 | K28: -2.599963957e-07 | L28: 1.255197727e-06 | N28: -5.928336179e-05 | O28: -0.0002806530084 | P28: -3.512933801e-05 | Q28: -0.0001312051802 | R28: 1.394628049e-08
A29: 10.38307 | B29: ='DF raw data'!J34 -> -8.6708928e-07 | C29: ='DF raw data'!K34 -> 4.3048581e-06 | D29: ='DF raw data'!L34 -> -9.3076233e-07 | F29: -8.678592553e-07 | G29: 4.318916628e-06 | H29: -9.315888469e-07 | J29: -1.386880657e-05 | K29: -7.522191124e-06 | L29: 3.281636308e-06 | N29: -6.621901327e-05 | O29: -0.0003137684747 | P29: -3.889111057e-05 | Q29: -0.0001506542357 | R29: 1.689554937e-08
A30: 10.88316 | B30: ='DF raw data'!J35 -> -8.1154112e-06 | C30: ='DF raw data'!K35 -> 7.0818801e-06 | D30: ='DF raw data'!L35 -> -1.0429758e-06 | F30: -8.122617685e-06 | G30: 7.105007648e-06 | H30: -1.043901963e-06 | J30: -1.345352313e-05 | K30: -3.403364811e-06 | L30: 7.558866518e-06 | N30: -7.294698565e-05 | O30: -0.0003502485328 | P30: -4.059309928e-05 | Q30: -0.0001709544387 | R30: 2.038070779e-08
A31: 11.38325 | B31: ='DF raw data'!J36 -> -1.0322547e-05 | C31: ='DF raw data'!K36 -> -1.0214194e-06 | D31: ='DF raw data'!L36 -> -9.1798574e-07 | F31: -1.033171342e-05 | G31: -1.024755086e-06 | H31: -9.188009113e-07 | J31: -1.334930166e-05 | K31: 6.315484668e-06 | L31: 7.422109986e-06 | N31: -7.962283792e-05 | O31: -0.0003900671178 | P31: -3.743478855e-05 | Q31: -0.0001896752021 | R31: 2.425198435e-08
A32: 11.88334 | B32: ='DF raw data'!J37 -> -2.6980258e-06 | C32: ='DF raw data'!K37 -> -1.1791263e-05 | D32: ='DF raw data'!L37 -> -1.7256207e-06 | F32: -2.700421647e-06 | G32: -1.182977015e-05 | H32: -1.727153051e-06 | J32: -1.16965213e-05 | K32: -5.70446985e-06 | L32: 6.377217645e-06 | N32: -8.547215125e-05 | O32: -0.0004328108859 | P32: -4.028753688e-05 | Q32: -0.0002098225964 | R32: 2.871707506e-08
A33: 12.38343 | B33: ='DF raw data'!J38 -> 5.048646e-06 | C33: ='DF raw data'!K38 -> -1.0344095e-07 | D33: ='DF raw data'!L38 -> -2.0876068e-06 | F33: 5.053129198e-06 | G33: -1.037787608e-07 | H33: -2.089460595e-06 | J33: -8.839646442e-06 | K33: 2.69636425e-06 | L33: 3.97867663e-06 | N33: -8.989277004e-05 | O33: -0.0004777653613 | P33: -3.893911208e-05 | Q33: -0.000229295657 | R33: 3.351642106e-08
A34: 12.88352 | B34: ='DF raw data'!J39 -> 6.3891748e-06 | C34: ='DF raw data'!K39 -> -8.4424023e-09 | D34: ='DF raw data'!L39 -> -4.6867714e-07 | F34: 6.394848387e-06 | G34: -8.469972954e-09 | H34: -4.690933253e-07 | J34: -8.828423385e-06 | K34: 7.310618834e-06 | L34: 1.692432347e-08 | N34: -9.430777629e-05 | O34: -0.0005249277371 | P34: -3.528314471e-05 | Q34: -0.0002469404048 | R34: 3.858676205e-08
A35: 13.38361 | B35: ='DF raw data'!J40 -> 2.1678745e-06 | C35: ='DF raw data'!K40 -> -1.4285056e-06 | D35: ='DF raw data'!L40 -> 1.621851e-06 | F35: 2.169799573e-06 | G35: -1.433170722e-06 | H35: 1.623291204e-06 | J35: -1.049616933e-05 | K35: -1.127584607e-05 | L35: -6.816387582e-06 | N35: -9.955680561e-05 | O35: -0.0005747151 | P35: -4.092208257e-05 | Q35: -0.0002674051291 | R35: 4.438089199e-08
A36: 13.8837 | B36: ='DF raw data'!J41 -> 7.5290032e-09 | C36: ='DF raw data'!K41 -> 5.9251993e-06 | D36: ='DF raw data'!L41 -> 7.0649094e-06 | F36: 7.535688955e-09 | G36: 5.944549434e-06 | H36: 7.07118304e-06 | J36: -9.918340172e-06 | K36: -1.083168728e-05 | L36: -5.496580233e-06 | N36: -0.0001045168683 | O36: -0.0006269829407 | P36: -4.633890106e-05 | Q36: -0.0002905787501 | R36: 5.091760315e-08
A37: 14.38379 | B37: ='DF raw data'!J42 -> 9.2353116e-07 | C37: ='DF raw data'!K42 -> -7.3601996e-07 | D37: ='DF raw data'!L42 -> 7.3749834e-06 | F37: 9.243512557e-07 | G37: -7.384236066e-07 | H37: 7.381532385e-06 | J37: -1.096463195e-05 | K37: -1.404078222e-05 | L37: 5.822038884e-07 | N37: -0.0001100001711 | O37: -0.0006819929263 | P37: -5.336055584e-05 | Q37: -0.0003172638305 | R37: 5.83926417e-08
A38: 14.88388 | B38: ='DF raw data'!J43 -> 1.0705228e-07 | C38: ='DF raw data'!K43 -> 3.6397264e-06 | D38: ='DF raw data'!L43 -> -2.8057912e-06 | F38: 1.071473424e-07 | G38: 3.651612784e-06 | H38: -2.808282743e-06 | J38: -1.184977927e-05 | K38: -2.510766208e-06 | L38: 2.951167412e-06 | N38: -0.0001159261273 | O38: -0.0007399664233 | P38: -5.461616491e-05 | Q38: -0.0003445768284 | R38: 6.660501589e-08
A39: 15.38397 | B39: ='DF raw data'!J44 -> -3.9630575e-07 | C39: ='DF raw data'!K44 -> -5.6343983e-06 | D39: ='DF raw data'!L44 -> -1.0837604e-05 | F39: -3.966576695e-07 | G39: -5.652798755e-06 | H39: -1.084722779e-05 | J39: -1.03623506e-05 | K39: -3.702416054e-06 | L39: 3.28310371e-06 | N39: -0.0001211082352 | O39: -0.0008005314406 | P39: -5.646770616e-05 | Q39: -0.0003728157636 | R39: 7.553452614e-08
A40: 15.88406 | B40: ='DF raw data'!J45 -> -3.6106192e-07 | C40: ='DF raw data'!K45 -> -5.1229713e-06 | D40: ='DF raw data'!L45 -> -2.0106854e-05 | F40: -3.61382543e-07 | G40: -5.13970157e-06 | H40: -2.012470889e-05 | J40: -6.318219201e-06 | K40: 2.069752763e-06 | L40: 1.769299844e-07 | N40: -0.0001242679134 | O40: -0.0008626765814 | P40: -5.54326435e-05 | Q40: -0.0004005370743 | R40: 8.479383865e-08
A41: 16.38415 | B41: ='DF raw data'!J46 -> -9.6027065e-07 | C41: ='DF raw data'!K46 -> 1.3675982e-05 | D41: ='DF raw data'!L46 -> -1.3982484e-05 | F41: -9.611233703e-07 | G41: 1.372064414e-05 | H41: -1.399490045e-05 | J41: -4.609185726e-06 | K41: 7.003136447e-06 | L41: -6.649387117e-06 | N41: -0.0001265729211 | O41: -0.0009259744335 | P41: -5.193044499e-05 | Q41: -0.0004265069705 | R41: 9.415426096e-08
A42: 16.88424 | B42: ='DF raw data'!J47 -> -8.1575922e-07 | C42: ='DF raw data'!K47 -> 6.2303457e-06 | D42: ='DF raw data'!L47 -> -3.4483055e-06 | F42: -8.164836142e-07 | G42: 6.250692362e-06 | H42: -3.451367595e-06 | J42: -7.697752339e-06 | K42: -1.092357739e-06 | L42: -7.508098977e-06 | N42: -0.0001304224901 | O42: -0.0009911974166 | P42: -5.247672218e-05 | Q42: -0.0004527500545 | R42: 1.040379559e-07
A43: 17.38433 | B43: ='DF raw data'!J48 -> 1.3134851e-07 | C43: ='DF raw data'!K48 -> 2.6416906e-06 | D43: ='DF raw data'!L48 -> -1.2476266e-06 | F43: 1.314651475e-07 | G43: 2.650317663e-06 | H43: -1.248734492e-06 | J43: -8.478145414e-06 | K43: -6.481944713e-06 | L43: -2.904461574e-06 | N43: -0.0001346623258 | O43: -0.001058540699 | P43: -5.571827791e-05 | Q43: -0.0004806142081 | R43: 1.146591016e-07
A44: 17.88442 | B44: ='DF raw data'!J49 -> 1.4579939e-06 | C44: ='DF raw data'!K49 -> 1.4418239e-05 | D44: ='DF raw data'!L49 -> -1.5935766e-06 | F44: 1.459288599e-06 | G44: 1.446532516e-05 | H44: -1.594991696e-06 | J44: -6.021521567e-06 | K44: 5.536535306e-06 | L44: 5.769572635e-06 | N44: -0.0001376736285 | O44: -0.001127389904 | P44: -5.294951197e-05 | Q44: -0.0005070937295 | R44: 1.255398992e-07
A45: 18.38451 | B45: ='DF raw data'!J50 -> -9.4124766e-07 | C45: ='DF raw data'!K50 -> 5.6141812e-06 | D45: ='DF raw data'!L50 -> 2.2042659e-06 | F45: -9.420834879e-07 | G45: 5.632515632e-06 | H45: 2.206223288e-06 | J45: -6.32844097e-06 | K45: 2.728625363e-06 | L45: 6.170051044e-06 | N45: -0.0001408384186 | O45: -0.001197821789 | P45: -5.158495371e-05 | Q45: -0.000532890849 | R45: 1.367901576e-07
A46: 18.8846 | B46: ='DF raw data'!J51 -> -1.4232453e-06 | C46: ='DF raw data'!K51 -> -1.0383736e-05 | D46: ='DF raw data'!L51 -> 2.3204011e-06 | F46: -1.424509142e-06 | G46: -1.041764654e-05 | H46: 2.322461616e-06 | J46: -8.07475402e-06 | K46: 3.605160979e-06 | L46: 8.272561817e-06 | N46: -0.0001448765223 | O46: -0.001270273089 | P46: -4.978204875e-05 | Q46: -0.0005577863538 | R46: 1.485259992e-07
A47: 19.38469 | B47: ='DF raw data'!J52 -> 4.1102905e-07 | C47: ='DF raw data'!K52 -> -9.8957962e-06 | D47: ='DF raw data'!L52 -> -1.1032716e-06 | F47: 4.113940438e-07 | G47: -9.928113254e-06 | H47: -1.104251305e-06 | J47: -1.128865343e-05 | K47: 4.897687087e-07 | L47: 9.869345003e-06 | N47: -0.000150521865 | O47: -0.001345547568 | P47: -4.953712032e-05 | Q47: -0.0005825593723 | R47: 1.610836383e-07
A48: 19.88478 | B48: ='DF raw data'!J53 -> 2.8567949e-06 | C48: ='DF raw data'!K53 -> -6.7401111e-06 | D48: ='DF raw data'!L53 -> -7.6308934e-06 | F48: 2.859331734e-06 | G48: -6.762122521e-06 | H48: -7.637669633e-06 | J48: -1.0526233e-05 | K48: -1.865547654e-06 | L48: 7.095974135e-06 | N48: -0.0001557859289 | O48: -0.001423454553 | P48: -5.047006205e-05 | Q48: -0.0006077989456 | R48: 1.744942932e-07
A49: 20.38487 | B49: ='DF raw data'!J54 -> 5.6449189e-06 | C49: ='DF raw data'!K54 -> -1.2051761e-07 | D49: ='DF raw data'!L54 -> -5.2142495e-06 | F49: 5.649931588e-06 | G49: -1.209111887e-07 | H49: -5.218879754e-06 | J49: -7.709911227e-06 | K49: -9.682207605e-06 | L49: 4.561543157e-06 | N49: -0.0001596415784 | O49: -0.00150328971 | P49: -5.531203725e-05 | Q49: -0.0006354599423 | R49: 1.887692897e-07
A50: 20.88496 | B50: ='DF raw data'!J55 -> 7.4611712e-06 | C50: ='DF raw data'!K55 -> -3.7729537e-06 | D50: ='DF raw data'!L55 -> -2.0070765e-06 | F50: 7.46779672e-06 | G50: -3.785275169e-06 | H50: -2.008858784e-06 | J50: -7.470936806e-06 | K50: -1.332207375e-05 | L50: 4.072867397e-06 | N50: -0.0001633777192 | O50: -0.001584993274 | P50: -6.197427311e-05 | Q50: -0.0006664526566 | R50: 2.040385825e-07
A51: 21.38505 | B51: ='DF raw data'!J56 -> 3.7181301e-06 | C51: ='DF raw data'!K56 -> -8.6239661e-06 | D51: ='DF raw data'!L56 -> -3.7515238e-06 | F51: 3.7214318e-06 | G51: -8.652129693e-06 | H51: -3.754855153e-06 | J51: -5.444428163e-06 | K51: -7.037475223e-06 | L51: 3.967818497e-06 | N51: -0.0001661004232 | O51: -0.001668058435 | P51: -6.54936441e-05 | Q51: -0.0006992053731 | R51: 2.199808356e-07
A52: 21.88514 | B52: ='DF raw data'!J57 -> -3.1260231e-06 | C52: ='DF raw data'!K57 -> -2.3990565e-06 | D52: ='DF raw data'!L57 -> 3.0920964e-06 | F52: -3.128799009e-06 | G52: -2.406891184e-06 | H52: 3.094842182e-06 | J52: -2.326933283e-06 | K52: -2.608889008e-06 | L52: 2.489072435e-06 | N52: -0.0001672640993 | O52: -0.001751705538 | P52: -6.67983234e-05 | Q52: -0.0007326105466 | R52: 2.362034026e-07
A53: 22.38523 | B53: ='DF raw data'!J58 -> -7.2828452e-06 | C53: ='DF raw data'!K58 -> -2.0872344e-06 | D53: ='DF raw data'!L58 -> -4.704743e-07 | F53: -7.289312367e-06 | G53: -2.094050756e-06 | H53: -4.708920812e-07 | J53: -4.370945956e-06 | K53: -7.336522754e-06 | L53: 2.383622979e-06 | N53: -0.0001694499657 | O53: -0.001836445771 | P53: -7.046724506e-05 | Q53: -0.0007678505112 | R53: 2.530458955e-07
A54: 22.88532 | B54: ='DF raw data'!J59 -> -7.5903599e-06 | C54: ='DF raw data'!K59 -> -1.2299751e-05 | D54: ='DF raw data'!L59 -> -4.3989639e-06 | F54: -7.59710014e-06 | G54: -1.233991874e-05 | H54: -4.40287018e-06 | J54: -7.73175851e-06 | K54: -4.878535848e-06 | L54: -6.698550736e-07 | N54: -0.0001733165408 | O54: -0.00192311964 | P54: -7.290695206e-05 | Q54: -0.0008043105489 | R54: 2.707261008e-07
A55: 23.38541 | B55: ='DF raw data'!J60 -> -4.5714833e-06 | C55: ='DF raw data'!K60 -> -1.0531038e-05 | D55: ='DF raw data'!L60 -> -9.7457159e-06 | F55: -4.575542777e-06 | G55: -1.056542959e-05 | H55: -9.754370096e-06 | J55: -6.497400373e-06 | K55: 8.760623552e-06 | L55: 1.134495238e-06 | N55: -0.0001765658257 | O55: -0.002011418444 | P55: -6.852585182e-05 | Q55: -0.0008385796421 | R55: 2.886649708e-07
A56: 23.8855 | B56: ='DF raw data'!J61 -> -6.3466791e-07 | C56: ='DF raw data'!K61 -> -9.3927729e-06 | D56: ='DF raw data'!L61 -> -6.2854378e-06 | F56: -6.352314951e-07 | G56: -9.423447213e-06 | H56: -6.291019269e-06 | J56: -3.472435887e-06 | K56: 1.062573489e-05 | L56: 5.684441205e-06 | N56: -0.0001783023562 | O56: -0.002100585669 | P56: -6.321202807e-05 | Q56: -0.0008701913452 | R56: 3.06561937e-07
A57: 24.38559 | B57: ='DF raw data'!J62 -> -5.3213419e-08 | C57: ='DF raw data'!K62 -> 2.5033273e-06 | D57: ='DF raw data'!L62 -> -7.6040742e-06 | F57: -5.326067252e-08 | G57: 2.511502505e-06 | H57: -7.610826618e-06 | J57: -5.232042732e-06 | K57: -4.741458045e-06 | L57: 6.126017878e-06 | N57: -0.0001809188484 | O57: -0.002191061376 | P57: -6.558318382e-05 | Q57: -0.0009029888396 | R57: 3.250816619e-07
A58: 24.88568 | B58: ='DF raw data'!J63 -> 4.3682021e-06 | C58: ='DF raw data'!K63 -> -3.4267444e-07 | D58: ='DF raw data'!L63 -> -4.6802888e-06 | F58: 4.372081063e-06 | G58: -3.437935241e-07 | H58: -4.684444896e-06 | J58: -7.27926265e-06 | K58: -2.112124889e-06 | L58: 7.038352011e-06 | N58: -0.0001845591349 | O58: -0.002283357554 | P58: -6.663943636e-05 | Q58: -0.0009363145553 | R58: 3.443365715e-07
A59: 25.38577 | B59: ='DF raw data'!J64 -> 1.2553019e-05 | C59: ='DF raw data'!K64 -> 3.8728226e-06 | D59: ='DF raw data'!L64 -> 9.3169656e-06 | F59: 1.256416608e-05 | G59: 3.885470215e-06 | H59: 9.325239065e-06 | J59: -5.278408068e-06 | K59: 8.63546264e-06 | L59: -6.807242969e-08 | N59: -0.000187198814 | O59: -0.002376973809 | P59: -6.232092784e-05 | Q59: -0.0009674806281 | R59: 3.63803722e-07
A60: 25.88586 | B60: ='DF raw data'!J65 -> 1.3174455e-05 | C60: ='DF raw data'!K65 -> -8.6095597e-06 | D60: ='DF raw data'!L65 -> 1.0035616e-05 | F60: 1.318615392e-05 | G60: -8.637676246e-06 | H60: 1.004452763e-05 | J60: -2.854121211e-06 | K60: 6.079214584e-06 | L60: 4.436642443e-06 | N60: -0.0001886261315 | O60: -0.002471303851 | P60: -5.928077342e-05 | Q60: -0.0009971263501 | R60: 3.833542542e-07
A61: 26.38595 | B61: ='DF raw data'!J66 -> 1.8632966e-06 | C61: ='DF raw data'!K66 -> -6.5491754e-06 | D61: ='DF raw data'!L66 -> 9.3048584e-07 | F61: 1.864951207e-06 | G61: -6.570563275e-06 | H61: 9.313121114e-07 | J61: -6.963997143e-07 | K61: -3.351427349e-06 | L61: 7.106431713e-06 | N61: -0.000188974394 | O61: -0.002565808056 | P61: -6.095678873e-05 | Q61: -0.001027610231 | R61: 4.030713285e-07
A62: 26.88604 | B62: ='DF raw data'!J67 -> -2.4656717e-06 | C62: ='DF raw data'!K67 -> 1.9125087e-06 | D62: ='DF raw data'!L67 -> -5.4714146e-06 | F62: -2.467861216e-06 | G62: 1.918754448e-06 | H62: -5.476273216e-06 | J62: 3.807576828e-06 | K62: -5.774076327e-06 | L62: 4.104174574e-06 | N62: -0.0001870702629 | O62: -0.002659360023 | P62: -6.384434656e-05 | Q62: -0.00105953815 | R62: 4.226105368e-07
A63: 27.38613 | B63: ='DF raw data'!J68 -> 4.72391e-06 | C63: ='DF raw data'!K68 -> -8.570466e-06 | D63: ='DF raw data'!L68 -> -4.0849591e-06 | F63: 4.728104832e-06 | G63: -8.598454876e-06 | H63: -4.088586544e-06 | J63: 5.692050356e-06 | K63: -7.368656152e-06 | L63: 5.786489744e-06 | N63: -0.0001842237254 | O63: -0.002751488466 | P63: -6.752933781e-05 | Q63: -0.001093308896 | R63: 4.418632979e-07
A64: 27.88622 | B64: ='DF raw data'!J69 -> 5.8156638e-06 | C64: ='DF raw data'!K69 -> -1.6048966e-06 | D64: ='DF raw data'!L69 -> -4.7148278e-06 | F64: 5.820828109e-06 | G64: -1.610137768e-06 | H64: -4.719014567e-06 | J64: -1.110889495e-07 | K64: -3.899009787e-08 | L64: 5.075529071e-06 | N64: -0.0001842792799 | O64: -0.002843644691 | P64: -6.754883637e-05 | Q64: -0.001127089394 | R64: 4.61127614e-07
A65: 28.38631 | B65: ='DF raw data'!J70 -> 3.6719396e-06 | C65: ='DF raw data'!K70 -> 6.5162521e-07 | D65: ='DF raw data'!L70 -> -4.4699082e-06 | F65: 3.675200282e-06 | G65: 6.537532457e-07 | H65: -4.473877478e-06 | J65: -7.793222041e-06 | K65: -9.758241504e-06 | L65: 7.564597803e-06 | N65: -0.0001881765923 | O65: -0.002937749923 | P65: -7.242883536e-05 | Q65: -0.00116331033 | R65: 4.814594562e-07
A66: 28.8864 | B66: ='DF raw data'!J71 -> 3.6221438e-06 | C66: ='DF raw data'!K71 -> 2.6695258e-07 | D66: ='DF raw data'!L71 -> -2.5847658e-06 | F66: 3.625360264e-06 | G66: 2.678243766e-07 | H66: -2.587061072e-06 | J66: -1.183488205e-05 | K66: -7.410147711e-06 | L66: 1.489610701e-05 | N66: -0.0001940950985 | O66: -0.003034814941 | P66: -7.613457613e-05 | Q66: -0.00120138447 | R66: 5.031980589e-07
A67: 29.38649 | B67: ='DF raw data'!J72 -> 3.7408247e-06 | C67: ='DF raw data'!K72 -> 2.1741594e-06 | D67: ='DF raw data'!L72 -> -7.7589466e-06 | F67: 3.744146552e-06 | G67: 2.18125963e-06 | H67: -7.765836545e-06 | J67: -1.412027368e-05 | K67: -8.6599349e-07 | L67: 8.657517755e-06 | N67: -0.0002011565062 | O67: -0.003135411298 | P67: -7.656765082e-05 | Q67: -0.001239675187 | R67: 5.263655008e-07
A68: 29.88658 | B68: ='DF raw data'!J73 -> 3.6947006e-06 | C68: ='DF raw data'!K73 -> -1.7956977e-06 | D68: ='DF raw data'!L73 -> -9.9130339e-06 | F68: 3.697981494e-06 | G68: -1.801561974e-06 | H68: -9.921836674e-06 | J68: -1.384275046e-05 | K68: -7.726335536e-06 | L68: 5.477940896e-06 | N68: -0.0002080791272 | O68: -0.003239469589 | P68: -8.043151395e-05 | Q68: -0.001279898183 | R68: 5.512530556e-07
A69: 30.38667 | B69: ='DF raw data'!J74 -> 2.0107457e-06 | C69: ='DF raw data'!K74 -> -2.2650952e-06 | D69: ='DF raw data'!L74 -> -7.7882214e-07 | F69: 2.012531242e-06 | G69: -2.272492402e-06 | H69: -7.795137341e-07 | J69: -9.722590601e-06 | K69: -6.864924452e-06 | L69: 9.731721802e-06 | N69: -0.0002129412976 | O69: -0.003345959403 | P69: -8.386459402e-05 | Q69: -0.001321838028 | R69: 5.774464027e-07
A70: 30.88676 | B70: ='DF raw data'!J75 -> 4.4640657e-07 | C70: ='DF raw data'!K75 -> 9.7118163e-07 | D70: ='DF raw data'!L75 -> 6.5662862e-06 | F70: 4.46802979e-07 | G70: 9.743532525e-07 | H70: 6.572117062e-06 | J70: -6.550713072e-06 | K70: -5.563110812e-06 | L70: -2.556566217e-07 | N70: -0.0002162172437 | O70: -0.003454087484 | P70: -8.664665011e-05 | Q70: -0.001365169151 | R70: 6.045800551e-07
A71: 31.38685 | B71: ='DF raw data'!J76 -> 1.5751468e-07 | C71: ='DF raw data'!K76 -> -2.4703063e-06 | D71: ='DF raw data'!L76 -> 3.0918309e-06 | F71: 1.57654553e-07 | G71: =(1-$G$1*($B$2-$G$2))*C71*$M$2/$M$1 -> -2.478373667e-06 | H71: 3.094576446e-06 | J71: =-CELL("contents", INDEX($F$6:$F$1203,1204-CELL("row",F71))) -> -6.514903602e-06 | K71: =CELL("contents", INDEX($G$6:$G$1203,1204-CELL("row",G71))) -> -9.005129545e-06 | L71: =-CELL("contents", INDEX($H$6:$H$1203,1204-CELL("row",H71))) -> 4.966085171e-06 | N71: -0.0002194752818 | O71: -0.003563844878 | P71: -9.115002534e-05 | Q71: -0.001410752367 | R71: 6.328240013e-07
A72: =A71+$B$1 -> 31.88694 | B72: ='DF raw data'!J77 -> -2.6382847e-06 | C72: ='DF raw data'!K77 -> -2.1813016e-06 | D72: ='DF raw data'!L77 -> 2.0698935e-06 | F72: -2.640627497e-06 | G72: -2.188425154e-06 | H72: 2.071731565e-06 | J72: -7.434993517e-06 | K72: -1.911061406e-06 | L72: 5.468346283e-06 | N72: =J72*$B$1+N71 -> -0.0002231934477 | O72: =N72*$B$1+O71 -> -0.003675461689 | P72: =K72*$B$1+P71 -> -9.210572804e-05 | Q72: =P72*$B$1+Q71 -> -0.001456813521 | R72: =(N72^2+P72^2)*$B$1+R71 -> 6.619786383e-07
A73: 32.38703 | B73: ='DF raw data'!J78 -> -3.4359407e-06 | C73: ='DF raw data'!K78 -> -7.5417397e-06 | D73: ='DF raw data'!L78 -> 6.1080609e-06 | F73: -3.438991815e-06 | G73: -7.566369028e-06 | H73: 6.113484858e-06 | J73: -1.051113361e-05 | K73: 7.904972418e-06 | L73: -2.390140762e-06 | N73: -0.0002284499605 | O73: -0.00378970723 | P73: -8.815253038e-05 | Q73: -0.001500897719 | R73: 6.919641613e-07
A74: 32.88712 | B74: ='DF raw data'!J79 -> 1.7992836e-06 | C74: ='DF raw data'!K79 -> -6.2289496e-06 | D74: ='DF raw data'!L79 -> 3.6848942e-06 | F74: 1.800881364e-06 | G74: -6.249291703e-06 | H74: 3.688166386e-06 | J74: -1.28236503e-05 | K74: -8.601396652e-06 | L74: -2.651331994e-06 | N74: -0.0002348629398 | O74: -0.003907159837 | P74: -9.245400284e-05 | Q74: -0.001547133042 | R74: 7.238240666e-07
A75: 33.38721 | B75: ='DF raw data'!J80 -> 5.9499635e-06 | C75: ='DF raw data'!K80 -> -9.4827037e-06 | D75: ='DF raw data'!L80 -> -6.4963366e-08 | F75: 5.955247068e-06 | G75: -9.513671703e-06 | H75: -6.502105347e-08 | J75: -7.655996693e-06 | K75: -1.752951442e-05 | L75: -3.241258884e-06 | N75: -0.0002386916272 | O75: -0.004026527133 | P75: -0.0001012203377 | Q75: -0.00159775232 | R75: 7.574397412e-07
A76: 33.8873 | B76: ='DF raw data'!J81 -> 3.3614208e-06 | C76: ='DF raw data'!K81 -> -4.7597809e-06 | D76: ='DF raw data'!L81 -> -4.6402893e-06 | F76: 3.364405742e-06 | G76: -4.775325086e-06 | H76: -4.644409877e-06 | J76: -3.185024292e-06 | K76: -1.61993225e-05 | L76: 5.576195268e-06 | N76: -0.000240284426 | O76: -0.004146690972 | P76: -0.0001093214569 | Q76: -0.001652422888 | R76: 7.922899062e-07
A77: 34.38739 | B77: ='DF raw data'!J82 -> 1.466605e-06 | C77: ='DF raw data'!K82 -> 4.9770656e-06 | D77: ='DF raw data'!L82 -> -1.2878918e-06 | F77: 1.467907345e-06 | G77: 4.99331938e-06 | H77: -1.289035448e-06 | J77: -5.874943822e-06 | K77: -1.059930084e-05 | L77: 3.741801372e-06 | N77: -0.0002432224266 | O77: -0.004268324075 | P77: -0.0001146220612 | Q77: -0.001709744234 | R77: 8.284440957e-07
A78: 34.88748 | B78: ='DF raw data'!J83 -> 1.0033639e-06 | C78: ='DF raw data'!K83 -> 5.9605568e-06 | D78: ='DF raw data'!L83 -> 2.2426684e-06 | F78: 1.004254887e-06 | G78: 5.980022403e-06 | H78: 2.24465989e-06 | J78: -1.082386506e-05 | K78: -6.952740101e-06 | L78: -1.802813678e-06 | N78: -0.0002486353333 | O78: -0.004392664119 | P78: -0.000118099057 | Q78: -0.001768804392 | R78: 8.663343728e-07
A79: 35.38757 | B79: ='DF raw data'!J84 -> -2.1465428e-06 | C79: ='DF raw data'!K84 -> 8.9019295e-07 | D79: ='DF raw data'!L84 -> 4.0644518e-06 | F79: -2.14844893e-06 | G79: 8.931000848e-07 | H79: 4.068061033e-06 | J79: -1.192574166e-05 | K79: -2.284139113e-06 | L79: -7.970326871e-06 | N79: -0.0002545992775 | O79: -0.004519986672 | P79: -0.0001192413322 | Q79: -0.00182843579 | R79: 9.058611301e-07
A80: 35.88766 | B80: ='DF raw data'!J85 -> -6.2027057e-06 | C80: ='DF raw data'!K85 -> 4.1101898e-06 | D80: ='DF raw data'!L85 -> 5.3741023e-06 | F80: -6.208213703e-06 | G80: 4.123612593e-06 | H80: 5.378874503e-06 | J80: -6.64838763e-06 | K80: -6.001645087e-06 | L80: -5.327114781e-06 | N80: -0.0002579240696 | O80: -0.00464897192 | P80: -0.0001222426949 | Q80: -0.001889568139 | R80: 9.466025133e-07
A81: 36.38775 | B81: ='DF raw data'!J86 -> -9.8878763e-06 | C81: ='DF raw data'!K86 -> -6.0300104e-06 | D81: ='DF raw data'!L86 -> 3.1298987e-06 | F81: -9.896656734e-06 | G81: -6.04970282e-06 | H81: 3.13267805e-06 | J81: -1.531909829e-06 | K81: -9.789695991e-06 | L81: 1.060169095e-05 | N81: -0.0002586901624 | O81: -0.004778340283 | P81: -0.0001271384239 | Q81: -0.001953148793 | R81: 9.881523804e-07
A82: 36.88784 | B82: ='DF raw data'!J87 -> -8.507096e-06 | C82: ='DF raw data'!K87 -> -4.0797045e-06 | D82: ='DF raw data'!L87 -> 3.8358376e-06 | F82: -8.514650301e-06 | G82: -4.093027736e-06 | H82: 3.839243824e-06 | J82: -4.528948038e-06 | K82: -9.2147555e-06 | L82: 1.559661451e-05 | N82: -0.0002609550441 | O82: -0.004908841291 | P82: -0.000131746631 | Q82: -0.002019033966 | R82: 1.030887426e-06
A83: 37.38793 | B83: ='DF raw data'!J88 -> -2.5935631e-06 | C83: ='DF raw data'!K88 -> 9.3168774e-07 | D83: ='DF raw data'!L88 -> 3.8008514e-07 | F83: -2.595866184e-06 | G83: 9.347303859e-07 | H83: 3.804226556e-07 | J83: -1.229586104e-05 | K83: -1.322903891e-05 | L83: 5.073529997e-06 | N83: -0.0002671040812 | O83: -0.005042417371 | P83: -0.0001383623411 | Q83: -0.002088227589 | R83: 1.076139934e-06
A84: 37.88802 | B84: ='DF raw data'!J89 -> 3.6379636e-06 | C84: ='DF raw data'!K89 -> 1.2445757e-06 | D84: ='DF raw data'!L89 -> -1.0163419e-07 | F84: 3.641194112e-06 | G84: 1.248640155e-06 | H84: -1.017244412e-07 | J84: -1.34043525e-05 | K84: -5.841945448e-06 | L84: 1.513188319e-06 | N84: -0.0002738074638 | O84: -0.005179345745 | P84: -0.0001412838396 | Q84: -0.002158882225 | R84: 1.123614303e-06
A85: 38.38811 | B85: ='DF raw data'!J90 -> 5.5014079e-06 | C85: ='DF raw data'!K90 -> -7.4620825e-06 | D85: ='DF raw data'!L90 -> -3.0042575e-06 | F85: 5.50629315e-06 | G85: -7.486451689e-06 | H85: -3.006925281e-06 | J85: -7.70596963e-06 | K85: -7.783893794e-06 | L85: 3.86403682e-06 | N85: -0.0002776611422 | O85: -0.005318201306 | P85: -0.000145176487 | Q85: -0.002231483534 | R85: 1.1727091e-06
A86: 38.8882 | B86: ='DF raw data'!J91 -> 2.716087e-06 | C86: ='DF raw data'!K91 -> 6.1009246e-06 | D86: ='DF raw data'!L91 -> 1.0795666e-06 | F86: 2.718498885e-06 | G86: 6.120848607e-06 | H86: 1.080525255e-06 | J86: -4.750886945e-06 | K86: -1.58022841e-05 | L86: -2.247521929e-06 | N86: -0.0002800370132 | O86: -0.005458245016 | P86: -0.0001530790513 | Q86: -0.002308036837 | R86: 1.223645229e-06
A87: 39.38829 | B87: ='DF raw data'!J92 -> 3.9794597e-07 | C87: ='DF raw data'!K92 -> 5.402298e-06 | D87: ='DF raw data'!L92 -> 4.8793408e-06 | F87: =(1-$G$1*($B$2-$G$2))*B87 -> 3.98299346e-07 | G87: 5.419940477e-06 | H87: 4.883673655e-06 | J87: -7.812863668e-06 | K87: -6.518490774e-06 | L87: -5.816589749e-06 | N87: -0.0002839441482 | O87: -0.005600242645 | P87: -0.0001563388833 | Q87: -0.002386220349 | R87: 1.276187748e-06
A88: 39.88838 | B88: ='DF raw data'!J93 -> 7.7215397e-08 | C88: ='DF raw data'!K93 -> -1.2447767e-06 | D88: ='DF raw data'!L93 -> 3.9424594e-06 | F88: 7.728396427e-08 | G88: -1.248841812e-06 | H88: 3.945960304e-06 | J88: -1.209563539e-05 | K88: 1.15614377e-05 | L88: -8.449826789e-07 | N88: -0.0002899930545 | O88: -0.005745265272 | P88: -0.000150557124 | Q88: -0.002461512461 | R88: 1.329579066e-06
A89: 40.38847 | B89: ='DF raw data'!J94 -> 2.4861358e-06 | C89: ='DF raw data'!K94 -> -7.1237141e-06 | D89: ='DF raw data'!L94 -> -7.9193342e-07 | F89: 2.488343489e-06 | G89: -7.146978267e-06 | H89: -7.926366569e-07 | J89: -1.221609227e-05 | K89: 1.102879589e-05 | L89: 1.660937604e-06 | N89: -0.0002961022001 | O89: -0.005893343021 | P89: -0.0001450417334 | Q89: -0.002534046381 | R89: 1.383945659e-06
A90: 40.88856 | B90: ='DF raw data'!J95 -> 2.7053404e-06 | C90: ='DF raw data'!K95 -> 4.231742e-06 | D90: ='DF raw data'!L95 -> 3.1818781e-06 | F90: 2.707742742e-06 | G90: 4.245561751e-06 | H90: 3.184703608e-06 | J90: -9.524369536e-06 | K90: 3.728716063e-06 | L90: 1.653542343e-06 | N90: -0.0003008652421 | O90: -0.00604380272 | P90: -0.0001431770398 | Q90: -0.002605647787 | R90: 1.43946543e-06
A91: 41.38865 | B91: ='DF raw data'!J96 -> -6.5689505e-07 | C91: ='DF raw data'!K96 -> -3.0331016e-06 | D91: ='DF raw data'!L96 -> 1.0054384e-05 | F91: -6.574783728e-07 | G91: -3.043006908e-06 | H91: 1.006331229e-05 | J91: -7.753070418e-06 | K91: -4.052065299e-06 | L91: 5.53515886e-06 | N91: -0.0003047424751 | O91: -0.006196201384 | P91: -0.0001452034371 | Q91: -0.002678262574 | R91: 1.496451693e-06
A92: 41.88874 | B92: ='DF raw data'!J97 -> -9.9037493e-07 | C92: ='DF raw data'!K97 -> -9.2318578e-06 | D92: ='DF raw data'!L97 -> 8.210638e-06 | F92: -9.912543829e-07 | G92: -9.262006607e-06 | H92: 8.217929047e-06 | J92: -8.147709247e-06 | K92: -7.814282513e-06 | L92: 7.597172103e-06 | N92: -0.000308817063 | O92: -0.006350637709 | P92: -0.0001491112817 | Q92: -0.002752831635 | R92: 1.555263353e-06
A93: 42.38883 | B93: ='DF raw data'!J98 -> 1.4250866e-06 | C93: ='DF raw data'!K98 -> 4.8436391e-06 | D93: ='DF raw data'!L98 -> 4.4427434e-06 | F93: 1.426352077e-06 | G93: 4.859457145e-06 | H93: 4.446688556e-06 | J93: -9.115967797e-06 | K93: -6.238849412e-06 | L93: -9.33861173e-08 | N93: -0.0003133758673 | O93: -0.006507353847 | P93: -0.0001522312679 | Q93: -0.00282896097 | R93: 1.615963674e-06
A94: 42.88892 | B94: ='DF raw data'!J99 -> 1.61312e-06 | C94: ='DF raw data'!K99 -> -8.7544913e-07 | D94: ='DF raw data'!L99 -> 4.2922657e-06 | F94: 1.614552451e-06 | G94: -8.783081154e-07 | H94: 4.296077232e-06 | J94: -8.806643461e-06 | K94: -6.693848181e-06 | L94: -8.916966641e-06 | N94: -0.0003177799817 | O94: -0.006666272438 | P94: -0.0001555787944 | Q94: -0.002906764369 | R94: 1.67856938e-06
A95: 43.38901 | B95: ='DF raw data'!J100 -> -2.1831208e-06 | C95: ='DF raw data'!K100 -> -5.4528014e-06 | D95: ='DF raw data'!L100 -> 1.3720055e-06 | F95: -2.185059411e-06 | G95: -5.470608808e-06 | H95: 1.373223841e-06 | J95: -9.635137811e-06 | K95: -6.134704309e-06 | L95: -2.437702259e-06 | N95: -0.0003225984177 | O95: -0.006827600681 | P95: -0.0001586466987 | Q95: -0.002986101997 | R95: 1.743200269e-06
A96: 43.8891 | B96: ='DF raw data'!J101 -> -5.30339e-06 | C96: ='DF raw data'!K101 -> -7.5896833e-07 | D96: ='DF raw data'!L101 -> -7.6691649e-06 | F96: -5.30809941e-06 | G96: -7.614469199e-07 | H96: -7.675975118e-06 | J96: -1.091131765e-05 | K96: -3.181957105e-06 | L96: 3.637615437e-06 | N96: -0.0003280550586 | O96: -0.006991657735 | P96: -0.0001602379636 | Q96: -0.0030662354 | R96: 1.809860429e-06
A97: 44.38919 | B97: ='DF raw data'!J102 -> -6.3360703e-06 | C97: ='DF raw data'!K102 -> -6.8478266e-07 | D97: ='DF raw data'!L102 -> -1.0599273e-05 | F97: -6.34169673e-06 | G97: -6.870189791e-07 | H97: -1.060868515e-05 | J97: -1.298833341e-05 | K97: -1.505726298e-06 | L97: 2.211597556e-07 | N97: -0.0003345503942 | O97: -0.007158963041 | P97: -0.0001609909623 | Q97: -0.00314674537 | R97: 1.878793862e-06
A98: 44.88928 | B98: ='DF raw data'!J103 -> -3.357444e-06 | C98: ='DF raw data'!K103 -> 9.8402206e-06 | D98: ='DF raw data'!L103 -> -6.9477828e-06 | F98: -3.36042541e-06 | G98: 9.872356159e-06 | H98: -6.953952431e-06 | J98: -1.532289666e-05 | K98: -3.45075467e-06 | L98: 6.760633416e-07 | N98: -0.0003422132216 | O98: -0.007330100451 | P98: -0.0001627166502 | Q98: -0.00322811834 | R98: 1.950600084e-06
A99: 45.38937 | B99: ='DF raw data'!J104 -> 5.6726867e-06 | C99: ='DF raw data'!K104 -> 2.2345692e-07 | D99: ='DF raw data'!L104 -> -2.2661698e-06 | F99: 5.677724046e-06 | G99: 2.241866712e-07 | H99: -2.268182159e-06 | J99: -1.295466253e-05 | K99: -7.010745916e-07 | L99: -4.052272726e-06 | N99: -0.0003486917188 | O99: -0.007504477693 | P99: -0.0001630672506 | Q99: -0.003309666641 | R99: 2.024701841e-06
A100: 45.88946 | B100: ='DF raw data'!J105 -> 6.9499374e-06 | C100: ='DF raw data'!K105 -> 3.4072959e-06 | D100: ='DF raw data'!L105 -> -3.0125084e-06 | F100: 6.956108944e-06 | G100: 3.418423228e-06 | H100: -3.015183507e-06 | J100: -7.802307802e-06 | K100: 1.871368301e-06 | L100: -9.059518115e-06 | N100: -0.0003525935749 | O100: -0.007680806214 | P100: -0.000162131398 | Q100: -0.003390746932 | R100: 2.100019806e-06
A101: 46.38955 | B101: ='DF raw data'!J106 -> -9.6454346e-07 | C101: ='DF raw data'!K106 -> 3.0767965e-06 | D101: ='DF raw data'!L106 -> -4.6442071e-07 | F101: -9.653999746e-07 | G101: 3.086844504e-06 | H101: -4.648331156e-07 | J101: -7.770439929e-06 | K101: 6.378216165e-07 | L101: -2.18171064e-06 | N101: -0.0003564794942 | O101: -0.007859078044 | P101: -0.0001618124298 | Q101: -0.00347166771 | R101: 2.176664045e-06
A102: 46.88964 | B102: ='DF raw data'!J107 -> -8.2499782e-06 | C102: ='DF raw data'!K107 -> -2.678184e-06 | D102: ='DF raw data'!L107 -> 5.4289449e-06 | F102: -8.257304181e-06 | G102: -2.686930241e-06 | H102: 5.433765803e-06 | J102: -1.159550567e-05 | K102: -3.604559722e-06 | L102: 3.927983655e-06 | N102: -0.0003622782906 | O102: -0.008040249795 | P102: -0.0001636150341 | Q102: -0.003553489952 | R102: 2.255685986e-06
A103: 47.38973 | B103: ='DF raw data'!J108 -> -1.2319691e-05 | C103: ='DF raw data'!K108 -> 3.9766287e-06 | D103: ='DF raw data'!L108 -> 6.9228918e-07 | F103: -1.233063089e-05 | G103: 3.989615318e-06 | H103: 6.929039328e-07 | J103: -1.289092699e-05 | K103: -3.13684486e-06 | L103: 2.827402706e-06 | N103: -0.0003687249143 | O103: -0.008224645437 | P103: -0.0001651837388 | Q103: -0.003636096688 | R103: 2.337322543e-06
A104: 47.88982 | B104: ='DF raw data'!J109 -> -1.0574794e-05 | C104: ='DF raw data'!K109 -> 6.3961975e-06 | D104: ='DF raw data'!L109 -> -5.7100769e-06 | F104: -1.058418442e-05 | G104: 6.41708579e-06 | H104: -5.715147448e-06 | J104: -1.201800452e-05 | K104: -1.566229943e-06 | L104: -1.437640492e-06 | N104: -0.0003747349982 | O104: -0.008412046662 | P104: -0.0001659669947 | Q104: -0.003719095123 | R104: 2.421323342e-06
A105: 48.38991 | B105: ='DF raw data'!J110 -> -2.7748545e-06 | C105: ='DF raw data'!K110 -> 5.827796e-06 | D105: ='DF raw data'!L110 -> -4.305919e-06 | F105: -2.777318571e-06 | G105: 5.846828041e-06 | H105: -4.309742656e-06 | J105: -1.200470972e-05 | K105: -3.587025747e-06 | L105: -3.727866508e-06 | N105: -0.0003807384335 | O105: -0.008602450145 | P105: -0.0001677608305 | Q105: -0.003802990636 | R105: 2.507891647e-06
A106: 48.89 | B106: ='DF raw data'!J111 -> 3.5407768e-06 | C106: ='DF raw data'!K111 -> 9.1074025e-07 | D106: ='DF raw data'!L111 -> 4.5642085e-07 | F106: 3.54392101e-06 | G106: 9.137144869e-07 | H106: 4.568261517e-07 | J106: -1.247056704e-05 | K106: -8.243316263e-06 | L106: 2.59538846e-06 | N106: -0.0003869748394 | O106: -0.008795972393 | P106: -0.0001718832305 | Q106: -0.003888947721 | R106: 2.597554469e-06
A107: 49.39009 | B107: ='DF raw data'!J112 -> 2.2057877e-06 | C107: ='DF raw data'!K112 -> -1.1252255e-06 | D107: ='DF raw data'!L112 -> 4.329959e-07 | F107: 2.207746439e-06 | G107: -1.128900189e-06 | H107: 4.333804004e-07 | J107: -7.318345525e-06 | K107: -1.045981781e-05 | L107: 6.196497208e-06 | N107: -0.0003906346708 | O107: -0.008991324885 | P107: -0.0001771140808 | Q107: -0.003977520702 | R107: 2.689553447e-06
A108: 49.89018 | B108: ='DF raw data'!J113 -> 7.0799729e-07 | C108: ='DF raw data'!K113 -> -4.6714545e-06 | D108: ='DF raw data'!L113 -> -2.8252904e-07 | F108: 7.086259916e-07 | G108: -4.686710235e-06 | H108: -2.827799258e-07 | J108: -1.005257076e-06 | K108: -5.067145994e-06 | L108: 4.386350023e-06 | N108: -0.0003911373898 | O108: -0.009186928783 | P108: -0.0001796481098 | Q108: -0.004067360925 | R108: 2.782201072e-06
A109: 50.39027 | B109: ='DF raw data'!J114 -> 1.9409265e-06 | C109: ='DF raw data'!K114 -> -2.5955026e-07 | D109: ='DF raw data'!L114 -> -6.4118649e-07 | F109: 1.942650043e-06 | G109: -2.603978825e-07 | H109: -6.417558636e-07 | J109: -3.255908582e-06 | K109: -4.348437522e-06 | L109: 4.072266664e-06 | N109: -0.0003927656371 | O109: -0.00938334695 | P109: -0.0001818227199 | Q109: -0.004158288649 | R109: 2.875880104e-06
A110: 50.89036 | B110: ='DF raw data'!J115 -> 1.2956591e-06 | C110: ='DF raw data'!K115 -> 2.3494757e-05 | D110: ='DF raw data'!L115 -> 2.5796289e-06 | F110: 1.296809645e-06 | G110: 2.357148467e-05 | H110: 2.58191961e-06 | J110: -9.17088452e-06 | K110: -7.074689158e-06 | L110: 2.776243717e-06 | N110: -0.0003973519047 | O110: -0.009582058664 | P110: -0.0001853607012 | Q110: -0.004250985682 | R110: 2.972020969e-06
A111: 51.39045 | B111: ='DF raw data'!J116 -> -3.2114511e-07 | C111: ='DF raw data'!K116 -> 1.9694618e-05 | D111: ='DF raw data'!L116 -> 6.6852172e-06 | F111: -3.214302869e-07 | G111: 1.975893542e-05 | H111: 6.691153673e-06 | J111: -1.093844272e-05 | K111: -7.852299462e-06 | L111: -4.469222148e-08 | N111: -0.0004028221106 | O111: -0.009783505973 | P111: -0.0001892875577 | Q111: -0.004345646497 | R111: 3.071086514e-06
A112: 51.89054 | B112: ='DF raw data'!J117 -> 8.3862619e-07 | C112: ='DF raw data'!K117 -> 4.0413411e-06 | D112: ='DF raw data'!L117 -> 1.3697554e-05 | F112: 8.393708901e-07 | G112: 4.054539052e-06 | H112: 1.370971743e-05 | J112: -9.337037433e-06 | K112: -7.432506792e-06 | L112: -1.332191036e-06 | N112: -0.0004074914696 | O112: -0.009987288382 | P112: -0.00019300448 | Q112: -0.004442166107 | R112: 3.172754825e-06
A113: 52.39063 | B113: ='DF raw data'!J118 -> 2.7082108e-06 | C113: ='DF raw data'!K118 -> 1.314625e-06 | D113: ='DF raw data'!L118 -> 8.8387751e-06 | F113: 2.710615691e-06 | G113: 1.318918218e-06 | H113: 8.846623932e-06 | J113: -4.083200265e-06 | K113: 2.652726504e-06 | L113: 2.833115474e-07 | N113: -0.0004095334372 | O113: -0.01019209196 | P113: -0.000191677878 | Q113: -0.004538022297 | R113: 3.275002248e-06
A114: 52.89072 | B114: ='DF raw data'!J119 -> 5.5877144e-06 | C114: ='DF raw data'!K119 -> 3.5983626e-06 | D114: ='DF raw data'!L119 -> 7.6257129e-07 | F114: 5.59267629e-06 | G114: 3.610113901e-06 | H114: 7.632484533e-07 | J114: 4.710157209e-07 | K114: -1.819902474e-06 | L114: 2.57533637e-06 | N114: -0.000409297887 | O114: -0.01039677774 | P114: -0.000192587993 | Q114: -0.004634333627 | R114: 3.377328111e-06
A115: 53.39081 | B115: ='DF raw data'!J120 -> 6.0809934e-06 | C115: ='DF raw data'!K120 -> 6.8080858e-06 | D115: ='DF raw data'!L120 -> 6.7423207e-06 | F115: 6.086393322e-06 | G115: 6.830319208e-06 | H115: 6.748307881e-06 | J115: 5.767063409e-07 | K115: -5.545708264e-06 | L115: 7.114558923e-06 | N115: -0.0004090094819 | O115: -0.01060131929 | P115: -0.0001953613463 | Q115: -0.004732031882 | R115: 3.480074008e-06
A116: 53.8909 | B116: ='DF raw data'!J121 -> -7.7964683e-07 | C116: ='DF raw data'!K121 -> 1.67194e-06 | D116: ='DF raw data'!L121 -> 2.6537709e-06 | F116: -7.803391564e-07 | G116: 1.677400114e-06 | H116: 2.656127449e-06 | J116: -2.180421897e-06 | K116: -1.3393421e-05 | L116: 5.112101318e-06 | N116: -0.0004100998891 | O116: -0.01080640614 | P116: -0.0002020592622 | Q116: -0.004833079699 | R116: 3.584597751e-06
A117: 54.39099 | B117: ='DF raw data'!J122 -> -8.2992383e-06 | C117: ='DF raw data'!K122 -> -3.5053004e-06 | D117: ='DF raw data'!L122 -> 5.0194358e-06 | F117: -8.306608024e-06 | G117: -3.516747784e-06 | H117: 5.023893059e-06 | J117: -4.672587376e-06 | K117: -1.69518942e-05 | L117: 2.318175814e-07 | N117: -0.0004124366033 | O117: -0.01101266157 | P117: -0.0002105367349 | Q117: -0.004938367015 | R117: 3.691831884e-06
A118: 54.89108 | B118: ='DF raw data'!J123 -> -9.0908206e-06 | C118: ='DF raw data'!K123 -> 2.5094646e-06 | D118: ='DF raw data'!L123 -> 3.6767742e-06 | F118: -9.098893249e-06 | G118: 2.517659848e-06 | H118: 3.680039175e-06 | J118: -3.394136219e-06 | K118: -9.842976626e-06 | L118: 1.480282725e-06 | N118: -0.0004141339769 | O118: -0.01121976583 | P118: -0.0002154591091 | Q118: -0.00504611596 | R118: 3.800816287e-06
A119: 55.39117 | B119: ='DF raw data'!J124 -> -5.8940559e-06 | C119: ='DF raw data'!K124 -> -4.03901e-06 | D119: ='DF raw data'!L124 -> -1.0587464e-06 | F119: -5.899289822e-06 | G119: -4.052200339e-06 | H119: -1.059686567e-06 | J119: 1.290290561e-06 | K119: -1.088161681e-05 | L119: -8.231354258e-07 | N119: -0.0004134887155 | O119: -0.0114265474 | P119: -0.0002209008969 | Q119: -0.00515658629 | R119: 3.910721129e-06
A120: 55.89126 | B120: ='DF raw data'!J125 -> -3.1235547e-06 | C120: ='DF raw data'!K125 -> -1.1683246e-06 | D120: ='DF raw data'!L125 -> -3.3208526e-06 | F120: -3.126328417e-06 | G120: -1.172140039e-06 | H120: -3.323801517e-06 | J120: 5.424681844e-06 | K120: -7.29050767e-07 | L120: -7.513273468e-08 | N120: -0.0004107758863 | O120: -0.01163197231 | P120: -0.0002212654879 | Q120: -0.005267238948 | R120: 4.019588344e-06
A121: 56.39135 | B121: ='DF raw data'!J126 -> -1.8851441e-07 | C121: ='DF raw data'!K126 -> 2.6595676e-06 | D121: ='DF raw data'!L126 -> -4.6880741e-06 | F121: -1.886818108e-07 | G121: 2.668253045e-06 | H121: -4.69223711e-06 | J121: 6.729321736e-06 | K121: 2.791541662e-06 | L121: 1.778177321e-06 | N121: -0.0004074106198 | O121: -0.01183571429 | P121: -0.0002198694658 | Q121: -0.005377193469 | R121: 4.126770631e-06
A122: 56.89144 | B122: ='DF raw data'!J127 -> 2.5550641e-08 | C122: ='DF raw data'!K127 -> 2.9878006e-06 | D122: ='DF raw data'!L127 -> -5.2849973e-06 | F122: 2.557332997e-08 | G122: 2.997557967e-06 | H122: -5.289690378e-06 | J122: 5.269617268e-06 | K122: -6.631927021e-07 | L122: -1.717015857e-06 | N122: -0.0004047753369 | O122: -0.01203813839 | P122: -0.0002202011218 | Q122: -0.005487313848 | R122: 4.232955544e-06
A123: 57.39153 | B123: ='DF raw data'!J128 -> -1.0776173e-06 | C123: ='DF raw data'!K128 -> 4.019798e-07 | D123: ='DF raw data'!L128 -> 1.0801161e-07 | F123: -1.078574224e-06 | G123: 4.032925598e-07 | H123: 1.081075243e-07 | J123: -1.093520985e-07 | K123: -8.799379607e-06 | L123: 7.221244176e-08 | N123: -0.0004048300228 | O123: -0.01224058983 | P123: -0.0002246016036 | Q123: -0.005599634864 | R123: 4.340141448e-06
A124: 57.89162 | B124: ='DF raw data'!J129 -> -3.1883017e-06 | C124: ='DF raw data'!K129 -> 8.2699162e-06 | D124: ='DF raw data'!L129 -> 6.9717989e-06 | F124: -3.191132912e-06 | G124: 8.29692356e-06 | H124: 6.977989857e-06 | J124: -4.938819781e-06 | K124: -1.899089637e-05 | L124: 5.737264171e-06 | N124: -0.0004072998772 | O124: -0.01244427643 | P124: -0.000234098761 | Q124: -0.005716705313 | R124: 4.450509021e-06
A125: 58.39171 | B125: ='DF raw data'!J130 -> -9.9184467e-07 | C125: ='DF raw data'!K130 -> 1.4885366e-05 | D125: ='DF raw data'!L130 -> 4.6197783e-06 | F125: -9.927254281e-07 | G125: 1.493397767e-05 | H125: 4.623880663e-06 | J125: -2.931352131e-06 | K125: -3.047021777e-06 | L125: 5.727939097e-06 | N125: -0.0004087658171 | O125: -0.01264869613 | P125: -0.0002356225461 | Q125: -0.005834537792 | R125: 4.561832794e-06
A126: 58.8918 | B126: ='DF raw data'!J131 -> 2.3483647e-06 | C126: ='DF raw data'!K131 -> -4.8690936e-07 | D126: ='DF raw data'!L131 -> 2.3306713e-07 | F126: 2.350450048e-06 | G126: -4.884994772e-07 | H126: 2.332740936e-07 | J126: -8.523363432e-08 | K126: -1.238133154e-06 | L126: 4.083525253e-06 | N126: -0.0004088084416 | O126: -0.01285313714 | P126: -0.0002362417241 | Q126: -0.005952679916 | R126: 4.673320105e-06
A127: 59.39189 | B127: ='DF raw data'!J132 -> -2.3309234e-08 | C127: ='DF raw data'!K132 -> -2.8369917e-07 | D127: ='DF raw data'!L132 -> 8.2340193e-07 | F127: -2.33299326e-08 | G127: -2.846256565e-07 | H127: 8.241331109e-07 | J127: -2.557356218e-06 | K127: -5.573417962e-06 | L127: 9.330245707e-06 | N127: -0.0004100873499 | O127: -0.01305821772 | P127: -0.0002390289347 | Q127: -0.006072215896 | R127: 4.785993616e-06
A128: 59.89198 | B128: ='DF raw data'!J133 -> -2.1067597e-06 | C128: ='DF raw data'!K133 -> 4.7710541e-06 | D128: ='DF raw data'!L133 -> 3.037323e-06 | F128: -2.108630503e-06 | G128: 4.786635101e-06 | H128: 3.040020143e-06 | J128: -7.062935622e-06 | K128: -6.549277287e-06 | L128: 1.385980859e-05 | N128: -0.0004136194533 | O128: -0.01326506467 | P128: -0.0002423041628 | Q128: -0.006193389785 | R128: 4.900910477e-06
